Workbook

Sheet data
A1: To access the Visual Basic code (VBA) for the equations,choose e.g. tab 'Developer', then icon 'Visual Basic'
C2: Friction coefficients
B3: Red lead | C3: 0.06
B4: Mill scale | C4: 0.33
C5: a) Joint type: | L5: b) Condition: | Q5: c) Failure type:
C6: S = strap | L6: 1 = (red lead) paint | Q6: 0 = no failure
C7: L = lap | L7: 2 = reduced clamping | Q7: 1 = ply
C8: R = Riveted | L8: >2 = clamping stress in [MPa] | Q8: 2 = strap
C9: B = bolted | Q9: 3 = fastener
A10: ID | B10: Source | C10: Joint type a) | D10: nrow | E10: npr | F10: r [mm] | G10: w [mm] | H10: max(w1, w2) [mm] | I10: tp [mm] | J10: ts [mm] | K10: p; e [mm] | L10: Condition b) | M10: su [MPa] | N10: Δσnet [MPa] | O10: R | P10: N | Q10: FailureType c) | R10: SeriesRef | S10: Remark | T10: ID | U10: tp/r | V10: r/h | W10: r/w | X10: σmax [MPa] | Y10: σmin [MPa] | Z10: f1 | AA10: σcl,0 [MPa] | AB10: σclmax [MPa] | AC10: σclmin [MPa] | AD10: σslipmax [MPa] | AE10: σslipmin [MPa] | AF10: σpmax [MPa] | AG10: σpmin [MPa] | AH10: βmax | AI10: βmin | AJ10: Kt,hole | AK10: Kt,1,μmax | AL10: Kt,1,μmin | AM10: σhmax [MPa] | AN10: σhmin [MPa] | AO10: Δσh [MPa] | AP10: Rh | AQ10: Δσh [MPa]/K | AR10: Δτn [MPa] | AS10: τhmax [MPa] | AT10: τhmin [MPa] | AU10: Δτh [MPa]
A11: 1 | B11: Kloppel1936 | C11: R; S | D11: 2 | E11: 1 | F11: 8.5 | G11: 35 | I11: 6 | J11: 8 | K11: 70 | M11: 410 | N11: 206.01 | O11: 0.087 | P11: 785620 | Q11: 1 | R11: P99T3 | S11: Dahlen_ST37SM | T11: =A11 -> 1 | U11: =I11/F11 -> 0.7058823529 | V11: =F11/(J11+I11) -> 0.6071428571 | W11: =F11/G11 -> 0.2428571429 | X11: =N11/(1-O11) -> 225.6407448 | Y11: =X11*O11 -> 19.6307448 | Z11: =IF(OR(X11>=1.6*D11*AD11,D11=1),calcLoadFraction(G11,F11,I11,J11,K11,D11,1),"Condition for spring model not fulfilled") -> 0.5176815565 | AA11: =IF(L11>2,L11,IF(L11=2,1,sigma_cl0(I11+J11))) -> 112.4588041 | AB11: =Sigma_cl(AA11,U11,V11,X11) -> 94.11652299 | AC11: =Sigma_cl(AA11,U11,V11,Y11) -> 110.8630256 | AD11: =sigma_Slip(AB11,W11,U11,IF(L11=1,mu_redLead,mu_millScale)) -> 22.16870985 | AE11: =sigma_Slip(AC11,W11,U11,IF(L11=1,mu_redLead,mu_millScale)) -> 26.11327077 | AF11: =Sigma_p(AB11,V11) -> -22.10745934 | AG11: =Sigma_p(AC11,V11) -> -26.04112172 | AH11: =beta_1(X11,AD11,Z11) -> 0.8102157351 | AI11: =beta_1(Y11,AE11,Z11) -> 0 | AJ11: =k_tHole(W11,U11) -> 2.434043732 | AK11: =K_t1Mu(Z11,AH11,D11,W11,U11,SIGN(X11),mu_millScale) -> 3.555760459 | AL11: =K_t1Mu(Z11,AI11,D11,W11,U11,SIGN(Y11),mu_millScale) -> 1.804013958 | AM11: =Sigma_hMax(AK11,X11,AF11) -> 780.2169789 | AN11: =Sigma_hMin(X11,Y11,AG11,AE11,AK11,AL11,AJ11,AI11,Z11,IF(L11=1,mu_redLead,mu_millScale)) -> 114.2163505 | AO11: =(AM11-AN11) -> 666.0006284 | AP11: =AN11/AM11 -> 0.1463904959 | AQ11: =AO11/3.16*(1-0.9*AP11)/(1-AP11) -> 214.374134 | AR11: =tau_n(N11,W11,U11,D11) -> 144.3104236 | AS11: =tau_hMax(X11,Z11,AH11,W11,U11) -> 132.5929049 | AT11: =tau_hMin(X11,Y11,AS11,AE11,Z11,AI11,IF(L11=1,mu_redLead,mu_millScale),W11,U11) -> 39.13245267 | AU11: =(AS11-AT11) -> 93.46045224
A12: 2 | B12: Kloppel1936 | C12: R; S | D12: 2 | E12: 1 | F12: 8.5 | G12: 35 | I12: 6 | J12: 8 | K12: 70 | M12: 410 | N12: 196.2 | O12: 0.0909 | P12: 526210 | Q12: 1 | R12: P99T3 | S12: Dahlen_ST37SM | T12: =A12 -> 2 | U12: 0.7058823529 | V12: 0.6071428571 | W12: 0.2428571429 | X12: 215.8178418 | Y12: 19.61784182 | Z12: =IF(OR(X12>=1.6*D12*AD12,D12=1),calcLoadFraction(G12,F12,I12,J12,K12,D12,1),"Condition for spring model not fulfilled") -> 0.5176815565 | AA12: =IF(L12>2,L12,IF(L12=2,1,sigma_cl0(I12+J12))) -> 112.4588041 | AB12: =Sigma_cl(AA12,U12,V12,X12) -> 94.91502438 | AC12: =Sigma_cl(AA12,U12,V12,Y12) -> 110.8640745 | AD12: =sigma_Slip(AB12,W12,U12,IF(L12=1,mu_redLead,mu_millScale)) -> 22.35679314 | AE12: =sigma_Slip(AC12,W12,U12,IF(L12=1,mu_redLead,mu_millScale)) -> 26.11351783 | AF12: =Sigma_p(AB12,V12) -> -22.29502297 | AG12: =Sigma_p(AC12,V12) -> -26.0413681 | AH12: =beta_1(X12,AD12,Z12) -> 0.7998942949 | AI12: =beta_1(Y12,AE12,Z12) -> 0 | AJ12: =k_tHole(W12,U12) -> 2.434043732 | AK12: =K_t1Mu(Z12,AH12,D12,W12,U12,SIGN(X12),mu_millScale) -> 3.54288391 | AL12: =K_t1Mu(Z12,AI12,D12,W12,U12,SIGN(Y12),mu_millScale) -> 1.804013958 | AM12: =Sigma_hMax(AK12,X12,AF12) -> 742.3225364 | AN12: =Sigma_hMin(X12,Y12,AG12,AE12,AK12,AL12,AJ12,AI12,Z12,IF(L12=1,mu_redLead,mu_millScale)) -> 112.7848882 | AO12: =(AM12-AN12) -> 629.5376481 | AP12: =AN12/AM12 -> 0.1519351531 | AQ12: =AO12/3.16*(1-0.9*AP12)/(1-AP12) -> 202.7899168 | AR12: =tau_n(N12,W12,U12,D12) -> 137.4384986 | AS12: =tau_hMax(X12,Z12,AH12,W12,U12) -> 125.2051037 | AT12: =tau_hMin(X12,Y12,AS12,AE12,Z12,AI12,IF(L12=1,mu_redLead,mu_millScale),W12,U12) -> 38.15684325 | AU12: =(AS12-AT12) -> 87.04826041
A13: 3 | B13: Kloppel1936 | C13: R; S | D13: 2 | E13: 1 | F13: 8.5 | G13: 35 | I13: 6 | J13: 8 | K13: 70 | M13: 410 | N13: 186.39 | O13: 0.0952 | P13: 1169150 | Q13: 1 | R13: P99T3 | S13: Dahlen_ST37SM | T13: 3 | U13: 0.7058823529 | V13: 0.6071428571 | W13: 0.2428571429 | X13: 206.0013263 | Y13: 19.61132626 | Z13: =IF(OR(X13>=1.6*D13*AD13,D13=1),calcLoadFraction(G13,F13,I13,J13,K13,D13,1),"Condition for spring model not fulfilled") -> 0.5176815565 | AA13: =IF(L13>2,L13,IF(L13=2,1,sigma_cl0(I13+J13))) -> 112.4588041 | AB13: =Sigma_cl(AA13,U13,V13,X13) -> 95.71300653 | AC13: =Sigma_cl(AA13,U13,V13,Y13) -> 110.8646042 | AD13: =sigma_Slip(AB13,W13,U13,IF(L13=1,mu_redLead,mu_millScale)) -> 22.54475413 | AE13: =sigma_Slip(AC13,W13,U13,IF(L13=1,mu_redLead,mu_millScale)) -> 26.11364258 | AF13: =Sigma_p(AB13,V13) -> -22.48246464 | AG13: =Sigma_p(AC13,V13) -> -26.04149251 | AH13: =beta_1(X13,AD13,Z13) -> 0.7885961976 | AI13: =beta_1(Y13,AE13,Z13) -> 0 | AJ13: =k_tHole(W13,U13) -> 2.434043732 | AK13: =K_t1Mu(Z13,AH13,D13,W13,U13,SIGN(X13),mu_millScale) -> 3.528148707 | AL13: =K_t1Mu(Z13,AI13,D13,W13,U13,SIGN(Y13),mu_millScale) -> 1.804013958 | AM13: =Sigma_hMax(AK13,X13,AF13) -> 704.3208483 | AN13: =Sigma_hMin(X13,Y13,AG13,AE13,AK13,AL13,AJ13,AI13,Z13,IF(L13=1,mu_redLead,mu_millScale)) -> 111.2320314 | AO13: 593.0888169 | AP13: 0.1579280688 | AQ13: 191.2063355 | AR13: =tau_n(N13,W13,U13,D13) -> 130.5665737 | AS13: =tau_hMax(X13,Z13,AH13,W13,U13) -> 117.8221064 | AT13: =tau_hMin(X13,Y13,AS13,AE13,Z13,AI13,IF(L13=1,mu_redLead,mu_millScale),W13,U13) -> 37.12460479 | AU13: 80.6975016
A14: 4 | B14: Kloppel1936 | C14: R; S | D14: 2 | E14: 1 | F14: 8.5 | G14: 35 | I14: 6 | J14: 8 | K14: 70 | M14: 410 | N14: 186.39 | O14: 0.0952 | P14: 1991790 | Q14: 1 | R14: P99T3 | S14: Dahlen_ST37SM | T14: 4 | U14: 0.7058823529 | V14: 0.6071428571 | W14: 0.2428571429 | X14: 206.0013263 | Y14: 19.61132626 | Z14: =IF(OR(X14>=1.6*D14*AD14,D14=1),calcLoadFraction(G14,F14,I14,J14,K14,D14,1),"Condition for spring model not fulfilled") -> 0.5176815565 | AA14: =IF(L14>2,L14,IF(L14=2,1,sigma_cl0(I14+J14))) -> 112.4588041 | AB14: =Sigma_cl(AA14,U14,V14,X14) -> 95.71300653 | AC14: =Sigma_cl(AA14,U14,V14,Y14) -> 110.8646042 | AD14: =sigma_Slip(AB14,W14,U14,IF(L14=1,mu_redLead,mu_millScale)) -> 22.54475413 | AE14: =sigma_Slip(AC14,W14,U14,IF(L14=1,mu_redLead,mu_millScale)) -> 26.11364258 | AF14: =Sigma_p(AB14,V14) -> -22.48246464 | AG14: =Sigma_p(AC14,V14) -> -26.04149251 | AH14: =beta_1(X14,AD14,Z14) -> 0.7885961976 | AI14: =beta_1(Y14,AE14,Z14) -> 0 | AJ14: =k_tHole(W14,U14) -> 2.434043732 | AK14: =K_t1Mu(Z14,AH14,D14,W14,U14,SIGN(X14),mu_millScale) -> 3.528148707 | AL14: =K_t1Mu(Z14,AI14,D14,W14,U14,SIGN(Y14),mu_millScale) -> 1.804013958 | AM14: =Sigma_hMax(AK14,X14,AF14) -> 704.3208483 | AN14: =Sigma_hMin(X14,Y14,AG14,AE14,AK14,AL14,AJ14,AI14,Z14,IF(L14=1,mu_redLead,mu_millScale)) -> 111.2320314 | AO14: 593.0888169 | AP14: 0.1579280688 | AQ14: 191.2063355 | AR14: =tau_n(N14,W14,U14,D14) -> 130.5665737 | AS14: =tau_hMax(X14,Z14,AH14,W14,U14) -> 117.8221064 | AT14: =tau_hMin(X14,Y14,AS14,AE14,Z14,AI14,IF(L14=1,mu_redLead,mu_millScale),W14,U14) -> 37.12460479 | AU14: 80.6975016
A15: 5 | B15: Kloppel1936 | C15: R; S | D15: 2 | E15: 1 | F15: 8.5 | G15: 35 | I15: 6 | J15: 8 | K15: 70 | M15: 410 | N15: 176.58 | O15: 0.1 | P15: 1503380 | Q15: 1 | R15: P99T3 | S15: Dahlen_ST37SM | T15: 5 | U15: 0.7058823529 | V15: 0.6071428571 | W15: 0.2428571429 | X15: 196.2 | Y15: 19.62 | Z15: =IF(OR(X15>=1.6*D15*AD15,D15=1),calcLoadFraction(G15,F15,I15,J15,K15,D15,1),"Condition for spring model not fulfilled") -> 0.5176815565 | AA15: =IF(L15>2,L15,IF(L15=2,1,sigma_cl0(I15+J15))) -> 112.4588041 | AB15: =Sigma_cl(AA15,U15,V15,X15) -> 96.50975395 | AC15: =Sigma_cl(AA15,U15,V15,Y15) -> 110.8638991 | AD15: =sigma_Slip(AB15,W15,U15,IF(L15=1,mu_redLead,mu_millScale)) -> 22.73242429 | AE15: =sigma_Slip(AC15,W15,U15,IF(L15=1,mu_redLead,mu_millScale)) -> 26.1134765 | AF15: =Sigma_p(AB15,V15) -> -22.66961627 | AG15: =Sigma_p(AC15,V15) -> -26.04132689 | AH15: =beta_1(X15,AD15,Z15) -> 0.7761876446 | AI15: =beta_1(Y15,AE15,Z15) -> 0 | AJ15: =k_tHole(W15,U15) -> 2.434043732 | AK15: =K_t1Mu(Z15,AH15,D15,W15,U15,SIGN(X15),mu_millScale) -> 3.511212955 | AL15: =K_t1Mu(Z15,AI15,D15,W15,U15,SIGN(Y15),mu_millScale) -> 1.804013958 | AM15: =Sigma_hMax(AK15,X15,AF15) -> 666.2303655 | AN15: =Sigma_hMin(X15,Y15,AG15,AE15,AK15,AL15,AJ15,AI15,Z15,IF(L15=1,mu_redLead,mu_millScale)) -> 109.5646891 | AO15: 556.6656764 | AP15: 0.1644546613 | AQ15: 179.6272612 | AR15: =tau_n(N15,W15,U15,D15) -> 123.6946488 | AS15: =tau_hMax(X15,Z15,AH15,W15,U15) -> 110.450533 | AT15: =tau_hMin(X15,Y15,AS15,AE15,Z15,AI15,IF(L15=1,mu_redLead,mu_millScale),W15,U15) -> 36.03396562 | AU15: 74.41656738
A16: 6 | B16: Kloppel1936 | C16: R; S | D16: 2 | E16: 1 | F16: 8.5 | G16: 35 | I16: 6 | J16: 8 | K16: 70 | M16: 410 | N16: 170.694 | O16: 0.10309 | P16: 2685830 | Q16: 0 | R16: P99T3 | S16: Dahlen_ST37SM | T16: 6 | U16: 0.7058823529 | V16: 0.6071428571 | W16: 0.2428571429 | X16: 190.3134094 | Y16: 19.61940937 | Z16: =IF(OR(X16>=1.6*D16*AD16,D16=1),calcLoadFraction(G16,F16,I16,J16,K16,D16,1),"Condition for spring model not fulfilled") -> 0.5176815565 | AA16: =IF(L16>2,L16,IF(L16=2,1,sigma_cl0(I16+J16))) -> 112.4588041 | AB16: =Sigma_cl(AA16,U16,V16,X16) -> 96.98827347 | AC16: =Sigma_cl(AA16,U16,V16,Y16) -> 110.8639471 | AD16: =sigma_Slip(AB16,W16,U16,IF(L16=1,mu_redLead,mu_millScale)) -> 22.84513734 | AE16: =sigma_Slip(AC16,W16,U16,IF(L16=1,mu_redLead,mu_millScale)) -> 26.11348781 | AF16: =Sigma_p(AB16,V16) -> -22.7820179 | AG16: =Sigma_p(AC16,V16) -> -26.04133817 | AH16: =beta_1(X16,AD16,Z16) -> 0.7681208546 | AI16: =beta_1(Y16,AE16,Z16) -> 0 | AJ16: =k_tHole(W16,U16) -> 2.434043732 | AK16: =K_t1Mu(Z16,AH16,D16,W16,U16,SIGN(X16),mu_millScale) -> 3.499790479 | AL16: =K_t1Mu(Z16,AI16,D16,W16,U16,SIGN(Y16),mu_millScale) -> 1.804013958 | AM16: =Sigma_hMax(AK16,X16,AF16) -> 643.2750403 | AN16: =Sigma_hMin(X16,Y16,AG16,AE16,AK16,AL16,AJ16,AI16,Z16,IF(L16=1,mu_redLead,mu_millScale)) -> 108.4553598 | AO16: 534.8196806 | AP16: 0.1685987376 | AQ16: 172.678866 | AR16: =tau_n(N16,W16,U16,D16) -> 119.5714938 | AS16: =tau_hMax(X16,Z16,AH16,W16,U16) -> 106.0232306 | AT16: =tau_hMin(X16,Y16,AS16,AE16,Z16,AI16,IF(L16=1,mu_redLead,mu_millScale),W16,U16) -> 35.3410162 | AU16: 70.68221444
A17: 7 | B17: Kloppel1936 | C17: R; S | D17: 2 | E17: 1 | F17: 8.5 | G17: 35 | I17: 6 | J17: 8 | K17: 70 | M17: 410 | N17: 176.58 | O17: 0.1 | P17: 409000 | Q17: 1 | R17: P99T3 | S17: RZE_ST37SM | T17: 7 | U17: 0.7058823529 | V17: 0.6071428571 | W17: 0.2428571429 | X17: 196.2 | Y17: 19.62 | Z17: =IF(OR(X17>=1.6*D17*AD17,D17=1),calcLoadFraction(G17,F17,I17,J17,K17,D17,1),"Condition for spring model not fulfilled") -> 0.5176815565 | AA17: =IF(L17>2,L17,IF(L17=2,1,sigma_cl0(I17+J17))) -> 112.4588041 | AB17: =Sigma_cl(AA17,U17,V17,X17) -> 96.50975395 | AC17: =Sigma_cl(AA17,U17,V17,Y17) -> 110.8638991 | AD17: =sigma_Slip(AB17,W17,U17,IF(L17=1,mu_redLead,mu_millScale)) -> 22.73242429 | AE17: =sigma_Slip(AC17,W17,U17,IF(L17=1,mu_redLead,mu_millScale)) -> 26.1134765 | AF17: =Sigma_p(AB17,V17) -> -22.66961627 | AG17: =Sigma_p(AC17,V17) -> -26.04132689 | AH17: =beta_1(X17,AD17,Z17) -> 0.7761876446 | AI17: =beta_1(Y17,AE17,Z17) -> 0 | AJ17: =k_tHole(W17,U17) -> 2.434043732 | AK17: =K_t1Mu(Z17,AH17,D17,W17,U17,SIGN(X17),mu_millScale) -> 3.511212955 | AL17: =K_t1Mu(Z17,AI17,D17,W17,U17,SIGN(Y17),mu_millScale) -> 1.804013958 | AM17: =Sigma_hMax(AK17,X17,AF17) -> 666.2303655 | AN17: =Sigma_hMin(X17,Y17,AG17,AE17,AK17,AL17,AJ17,AI17,Z17,IF(L17=1,mu_redLead,mu_millScale)) -> 109.5646891 | AO17: 556.6656764 | AP17: 0.1644546613 | AQ17: 179.6272612 | AR17: =tau_n(N17,W17,U17,D17) -> 123.6946488 | AS17: =tau_hMax(X17,Z17,AH17,W17,U17) -> 110.450533 | AT17: =tau_hMin(X17,Y17,AS17,AE17,Z17,AI17,IF(L17=1,mu_redLead,mu_millScale),W17,U17) -> 36.03396562 | AU17: 74.41656738
A18: 8 | B18: Kloppel1936 | C18: R; S | D18: 2 | E18: 1 | F18: 8.5 | G18: 35 | I18: 6 | J18: 8 | K18: 70 | M18: 410 | N18: 147.15 | O18: 0.117647059 | P18: 2263000 | Q18: 0 | R18: P99T3 | S18: RZE_ST37SM | T18: 8 | U18: 0.7058823529 | V18: 0.6071428571 | W18: 0.2428571429 | X18: 166.77 | Y18: 19.62000003 | Z18: =IF(OR(X18>=1.6*D18*AD18,D18=1),calcLoadFraction(G18,F18,I18,J18,K18,D18,1),"Condition for spring model not fulfilled") -> 0.5176815565 | AA18: =IF(L18>2,L18,IF(L18=2,1,sigma_cl0(I18+J18))) -> 112.4588041 | AB18: =Sigma_cl(AA18,U18,V18,X18) -> 98.90211147 | AC18: =Sigma_cl(AA18,U18,V18,Y18) -> 110.8638991 | AD18: =sigma_Slip(AB18,W18,U18,IF(L18=1,mu_redLead,mu_millScale)) -> 23.29593299 | AE18: =sigma_Slip(AC18,W18,U18,IF(L18=1,mu_redLead,mu_millScale)) -> 26.1134765 | AF18: =Sigma_p(AB18,V18) -> -23.23156804 | AG18: =Sigma_p(AC18,V18) -> -26.04132689 | AH18: =beta_1(X18,AD18,Z18) -> 0.7301642506 | AI18: =beta_1(Y18,AE18,Z18) -> 0 | AJ18: =k_tHole(W18,U18) -> 2.434043732 | AK18: =K_t1Mu(Z18,AH18,D18,W18,U18,SIGN(X18),mu_millScale) -> 3.441872347 | AL18: =K_t1Mu(Z18,AI18,D18,W18,U18,SIGN(Y18),mu_millScale) -> 1.804013958 | AM18: =Sigma_hMax(AK18,X18,AF18) -> 550.7694834 | AN18: =Sigma_hMin(X18,Y18,AG18,AE18,AK18,AL18,AJ18,AI18,Z18,IF(L18=1,mu_redLead,mu_millScale)) -> 103.1952264 | AO18: 447.574257 | AP18: 0.1873655485 | AQ18: 144.9030948 | AR18: =tau_n(N18,W18,U18,D18) -> 103.078874 | AS18: =tau_hMax(X18,Z18,AH18,W18,U18) -> 88.31624227 | AT18: =tau_hMin(X18,Y18,AS18,AE18,Z18,AI18,IF(L18=1,mu_redLead,mu_millScale),W18,U18) -> 32.26247282 | AU18: 56.05376945
A19: 9 | B19: Kloppel1936 | C19: R; S | D19: 2 | E19: 1 | F19: 8.5 | G19: 35 | I19: 6 | J19: 8 | K19: 70 | M19: 410 | N19: 166.77 | O19: 0.105263158 | P19: 2362000 | Q19: 0 | R19: P99T3 | S19: RZE_ST37SM | T19: 9 | U19: 0.7058823529 | V19: 0.6071428571 | W19: 0.2428571429 | X19: 186.39 | Y19: 19.62000002 | Z19: =IF(OR(X19>=1.6*D19*AD19,D19=1),calcLoadFraction(G19,F19,I19,J19,K19,D19,1),"Condition for spring model not fulfilled") -> 0.5176815565 | AA19: =IF(L19>2,L19,IF(L19=2,1,sigma_cl0(I19+J19))) -> 112.4588041 | AB19: =Sigma_cl(AA19,U19,V19,X19) -> 97.30720646 | AC19: =Sigma_cl(AA19,U19,V19,Y19) -> 110.8638991 | AD19: =sigma_Slip(AB19,W19,U19,IF(L19=1,mu_redLead,mu_millScale)) -> 22.92026052 | AE19: =sigma_Slip(AC19,W19,U19,IF(L19=1,mu_redLead,mu_millScale)) -> 26.1134765 | AF19: =Sigma_p(AB19,V19) -> -22.85693353 | AG19: =Sigma_p(AC19,V19) -> -26.04132689 | AH19: =beta_1(X19,AD19,Z19) -> 0.7624613692 | AI19: =beta_1(Y19,AE19,Z19) -> 0 | AJ19: =k_tHole(W19,U19) -> 2.434043732 | AK19: =K_t1Mu(Z19,AH19,D19,W19,U19,SIGN(X19),mu_millScale) -> 3.491586487 | AL19: =K_t1Mu(Z19,AI19,D19,W19,U19,SIGN(Y19),mu_millScale) -> 1.804013958 | AM19: =Sigma_hMax(AK19,X19,AF19) -> 627.9398718 | AN19: =Sigma_hMin(X19,Y19,AG19,AE19,AK19,AL19,AJ19,AI19,Z19,IF(L19=1,mu_redLead,mu_millScale)) -> 107.6776566 | AO19: 520.2622152 | AP19: 0.1714776549 | AQ19: 168.0474623 | AR19: =tau_n(N19,W19,U19,D19) -> 116.8227238 | AS19: =tau_hMax(X19,Z19,AH19,W19,U19) -> 103.0724361 | AT19: =tau_hMin(X19,Y19,AS19,AE19,Z19,AI19,IF(L19=1,mu_redLead,mu_millScale),W19,U19) -> 34.86377665 | AU19: 68.20865944
A20: 10 | B20: Kloppel1936 | C20: R; S | D20: 2 | E20: 1 | F20: 8.5 | G20: 35 | I20: 6 | J20: 8 | K20: 70 | M20: 410 | N20: 208.953 | O20: 0.180769231 | P20: 308400 | Q20: 1 | R20: P99T3 | S20: Dahlen_ST37SM | T20: 10 | U20: 0.7058823529 | V20: 0.6071428571 | W20: 0.2428571429 | X20: 255.0600001 | Y20: 46.10700007 | Z20: =IF(OR(X20>=1.6*D20*AD20,D20=1),calcLoadFraction(G20,F20,I20,J20,K20,D20,1),"Condition for spring model not fulfilled") -> 0.5176815565 | AA20: =IF(L20>2,L20,IF(L20=2,1,sigma_cl0(I20+J20))) -> 112.4588041 | AB20: =Sigma_cl(AA20,U20,V20,X20) -> 91.7250389 | AC20: =Sigma_cl(AA20,U20,V20,Y20) -> 108.7107773 | AD20: =sigma_Slip(AB20,W20,U20,IF(L20=1,mu_redLead,mu_millScale)) -> 21.60540688 | AE20: =sigma_Slip(AC20,W20,U20,IF(L20=1,mu_redLead,mu_millScale)) -> 25.60631867 | AF20: =Sigma_p(AB20,V20) -> -21.54571273 | AG20: =Sigma_p(AC20,V20) -> -25.5355703 | AH20: =beta_1(X20,AD20,Z20) -> 0.8363720831 | AI20: =beta_1(Y20,AE20,Z20) -> 0 | AJ20: =k_tHole(W20,U20) -> 2.434043732 | AK20: =K_t1Mu(Z20,AH20,D20,W20,U20,SIGN(X20),mu_millScale) -> 3.585805646 | AL20: =K_t1Mu(Z20,AI20,D20,W20,U20,SIGN(Y20),mu_millScale) -> 1.804013958 | AM20: =Sigma_hMax(AK20,X20,AF20) -> 893.0498755 | AN20: =Sigma_hMin(X20,Y20,AG20,AE20,AK20,AL20,AJ20,AI20,Z20,IF(L20=1,mu_redLead,mu_millScale)) -> 203.7866733 | AO20: 689.2632022 | AP20: 0.2281918165 | AQ20: 224.5702119 | AR20: =tau_n(N20,W20,U20,D20) -> 146.3720011 | AS20: =tau_hMax(X20,Z20,AH20,W20,U20) -> 154.7191146 | AT20: =tau_hMin(X20,Y20,AS20,AE20,Z20,AI20,IF(L20=1,mu_redLead,mu_millScale),W20,U20) -> 55.15813313 | AU20: 99.56098143
A21: 11 | B21: Kloppel1936 | C21: R; S | D21: 2 | E21: 1 | F21: 8.5 | G21: 35 | I21: 6 | J21: 8 | K21: 70 | M21: 410 | N21: 199.143 | O21: 0.188 | P21: 507600 | Q21: 1 | R21: P99T3 | S21: Dahlen_ST37SM | T21: 11 | U21: 0.7058823529 | V21: 0.6071428571 | W21: 0.2428571429 | X21: 245.25 | Y21: 46.107 | Z21: =IF(OR(X21>=1.6*D21*AD21,D21=1),calcLoadFraction(G21,F21,I21,J21,K21,D21,1),"Condition for spring model not fulfilled") -> 0.5176815565 | AA21: =IF(L21>2,L21,IF(L21=2,1,sigma_cl0(I21+J21))) -> 112.4588041 | AB21: =Sigma_cl(AA21,U21,V21,X21) -> 92.52249142 | AC21: =Sigma_cl(AA21,U21,V21,Y21) -> 108.7107773 | AD21: =sigma_Slip(AB21,W21,U21,IF(L21=1,mu_redLead,mu_millScale)) -> 21.79324312 | AE21: =sigma_Slip(AC21,W21,U21,IF(L21=1,mu_redLead,mu_millScale)) -> 25.60631867 | AF21: =Sigma_p(AB21,V21) -> -21.73302999 | AG21: =Sigma_p(AC21,V21) -> -25.5355703 | AH21: =beta_1(X21,AD21,Z21) -> 0.8283474913 | AI21: =beta_1(Y21,AE21,Z21) -> 0 | AJ21: =k_tHole(W21,U21) -> 2.434043732 | AK21: =K_t1Mu(Z21,AH21,D21,W21,U21,SIGN(X21),mu_millScale) -> 3.576990135 | AL21: =K_t1Mu(Z21,AI21,D21,W21,U21,SIGN(Y21),mu_millScale) -> 1.804013958 | AM21: =Sigma_hMax(AK21,X21,AF21) -> 855.5238005 | AN21: =Sigma_hMin(X21,Y21,AG21,AE21,AK21,AL21,AJ21,AI21,Z21,IF(L21=1,mu_redLead,mu_millScale)) -> 202.2642238 | AO21: 653.2595767 | AP21: 0.2364215042 | AQ21: 213.1284807 | AR21: =tau_n(N21,W21,U21,D21) -> 139.5000761 | AS21: =tau_hMax(X21,Z21,AH21,W21,U21) -> 147.3410176 | AT21: =tau_hMin(X21,Y21,AS21,AE21,Z21,AI21,IF(L21=1,mu_redLead,mu_millScale),W21,U21) -> 54.08112913 | AU21: 93.25988845
A22: 12 | B22: Kloppel1936 | C22: R; S | D22: 2 | E22: 1 | F22: 8.5 | G22: 35 | I22: 6 | J22: 8 | K22: 70 | M22: 410 | N22: 189.333 | O22: 0.195833333 | P22: 391100 | Q22: 1 | R22: P99T3 | S22: Dahlen_ST37SM | T22: 12 | U22: 0.7058823529 | V22: 0.6071428571 | W22: 0.2428571429 | X22: 235.4399999 | Y22: 46.1069999 | Z22: =IF(OR(X22>=1.6*D22*AD22,D22=1),calcLoadFraction(G22,F22,I22,J22,K22,D22,1),"Condition for spring model not fulfilled") -> 0.5176815565 | AA22: =IF(L22>2,L22,IF(L22=2,1,sigma_cl0(I22+J22))) -> 112.4588041 | AB22: =Sigma_cl(AA22,U22,V22,X22) -> 93.31994393 | AC22: =Sigma_cl(AA22,U22,V22,Y22) -> 108.7107773 | AD22: =sigma_Slip(AB22,W22,U22,IF(L22=1,mu_redLead,mu_millScale)) -> 21.98107935 | AE22: =sigma_Slip(AC22,W22,U22,IF(L22=1,mu_redLead,mu_millScale)) -> 25.60631867 | AF22: =Sigma_p(AB22,V22) -> -21.92034725 | AG22: =Sigma_p(AC22,V22) -> -25.5355703 | AH22: =beta_1(X22,AD22,Z22) -> 0.8196541834 | AI22: =beta_1(Y22,AE22,Z22) -> 0 | AJ22: =k_tHole(W22,U22) -> 2.434043732 | AK22: =K_t1Mu(Z22,AH22,D22,W22,U22,SIGN(X22),mu_millScale) -> 3.567035736 | AL22: =K_t1Mu(Z22,AI22,D22,W22,U22,SIGN(Y22),mu_millScale) -> 1.804013958 | AM22: =Sigma_hMax(AK22,X22,AF22) -> 817.902546 | AN22: =Sigma_hMin(X22,Y22,AG22,AE22,AK22,AL22,AJ22,AI22,Z22,IF(L22=1,mu_redLead,mu_millScale)) -> 200.6031151 | AO22: 617.2994309 | AP22: 0.2452653022 | AQ22: 201.696121 | AR22: =tau_n(N22,W22,U22,D22) -> 132.6281512 | AS22: =tau_hMax(X22,Z22,AH22,W22,U22) -> 139.9629206 | AT22: =tau_hMin(X22,Y22,AS22,AE22,Z22,AI22,IF(L22=1,mu_redLead,mu_millScale),W22,U22) -> 52.94440624 | AU22: 87.01851435
A23: 13 | B23: Kloppel1936 | C23: R; S | D23: 2 | E23: 1 | F23: 8.5 | G23: 35 | I23: 6 | J23: 8 | K23: 70 | M23: 410 | N23: 179.523 | O23: 0.204347826 | P23: 1036300 | Q23: 1 | R23: P99T3 | S23: Dahlen_ST37SM | T23: 13 | U23: 0.7058823529 | V23: 0.6071428571 | W23: 0.2428571429 | X23: 225.63 | Y23: 46.10699998 | Z23: =IF(OR(X23>=1.6*D23*AD23,D23=1),calcLoadFraction(G23,F23,I23,J23,K23,D23,1),"Condition for spring model not fulfilled") -> 0.5176815565 | AA23: =IF(L23>2,L23,IF(L23=2,1,sigma_cl0(I23+J23))) -> 112.4588041 | AB23: =Sigma_cl(AA23,U23,V23,X23) -> 94.11739643 | AC23: =Sigma_cl(AA23,U23,V23,Y23) -> 108.7107773 | AD23: =sigma_Slip(AB23,W23,U23,IF(L23=1,mu_redLead,mu_millScale)) -> 22.16891559 | AE23: =sigma_Slip(AC23,W23,U23,IF(L23=1,mu_redLead,mu_millScale)) -> 25.60631867 | AF23: =Sigma_p(AB23,V23) -> -22.1076645 | AG23: =Sigma_p(AC23,V23) -> -25.5355703 | AH23: =beta_1(X23,AD23,Z23) -> 0.8102049359 | AI23: =beta_1(Y23,AE23,Z23) -> 0 | AJ23: =k_tHole(W23,U23) -> 2.434043732 | AK23: =K_t1Mu(Z23,AH23,D23,W23,U23,SIGN(X23),mu_millScale) -> 3.555747282 | AL23: =K_t1Mu(Z23,AI23,D23,W23,U23,SIGN(Y23),mu_millScale) -> 1.804013958 | AM23: =Sigma_hMax(AK23,X23,AF23) -> 780.1755947 | AN23: =Sigma_hMin(X23,Y23,AG23,AE23,AK23,AL23,AJ23,AI23,Z23,IF(L23=1,mu_redLead,mu_millScale)) -> 198.7844847 | AO23: 581.39111 | AP23: 0.2547945438 | AQ23: 190.2751767 | AR23: =tau_n(N23,W23,U23,D23) -> 125.7562263 | AS23: =tau_hMax(X23,Z23,AH23,W23,U23) -> 132.5848237 | AT23: =tau_hMin(X23,Y23,AS23,AE23,Z23,AI23,IF(L23=1,mu_redLead,mu_millScale),W23,U23) -> 51.74214627 | AU23: 80.84267746
A24: 14 | B24: Kloppel1936 | C24: R; S | D24: 2 | E24: 1 | F24: 8.5 | G24: 35 | I24: 6 | J24: 8 | K24: 70 | M24: 410 | N24: 174.618 | O24: 0.208888889 | P24: 1015400 | Q24: 1 | R24: P99T3 | S24: Dahlen_ST37SM | T24: 14 | U24: 0.7058823529 | V24: 0.6071428571 | W24: 0.2428571429 | X24: 220.725 | Y24: 46.10700003 | Z24: =IF(OR(X24>=1.6*D24*AD24,D24=1),calcLoadFraction(G24,F24,I24,J24,K24,D24,1),"Condition for spring model not fulfilled") -> 0.5176815565 | AA24: =IF(L24>2,L24,IF(L24=2,1,sigma_cl0(I24+J24))) -> 112.4588041 | AB24: =Sigma_cl(AA24,U24,V24,X24) -> 94.51612268 | AC24: =Sigma_cl(AA24,U24,V24,Y24) -> 108.7107773 | AD24: =sigma_Slip(AB24,W24,U24,IF(L24=1,mu_redLead,mu_millScale)) -> 22.2628337 | AE24: =sigma_Slip(AC24,W24,U24,IF(L24=1,mu_redLead,mu_millScale)) -> 25.60631867 | AF24: =Sigma_p(AB24,V24) -> -22.20132313 | AG24: =Sigma_p(AC24,V24) -> -25.5355703 | AH24: =beta_1(X24,AD24,Z24) -> 0.8051653373 | AI24: =beta_1(Y24,AE24,Z24) -> 0 | AJ24: =k_tHole(W24,U24) -> 2.434043732 | AK24: =K_t1Mu(Z24,AH24,D24,W24,U24,SIGN(X24),mu_millScale) -> 3.549530419 | AL24: =K_t1Mu(Z24,AI24,D24,W24,U24,SIGN(Y24),mu_millScale) -> 1.804013958 | AM24: =Sigma_hMax(AK24,X24,AF24) -> 761.2687788 | AN24: =Sigma_hMin(X24,Y24,AG24,AE24,AK24,AL24,AJ24,AI24,Z24,IF(L24=1,mu_redLead,mu_millScale)) -> 197.8092844 | AO24: 563.4594944 | AP24: 0.2598415827 | AQ24: 184.5697541 | AR24: =tau_n(N24,W24,U24,D24) -> 122.3202638 | AS24: =tau_hMax(X24,Z24,AH24,W24,U24) -> 128.8957753 | AT24: =tau_hMin(X24,Y24,AS24,AE24,Z24,AI24,IF(L24=1,mu_redLead,mu_millScale),W24,U24) -> 51.11440329 | AU24: 77.78137202
A25: 15 | B25: Kloppel1936 | C25: R; S | D25: 2 | E25: 1 | F25: 8.5 | G25: 35 | I25: 6 | J25: 8 | K25: 70 | M25: 410 | N25: 169.7 | O25: 0.213636364 | P25: 2094600 | Q25: 0 | R25: P99T3 | S25: Dahlen_ST37SM | T25: 15 | U25: 0.7058823529 | V25: 0.6071428571 | W25: 0.2428571429 | X25: 215.8034683 | Y25: 46.10346831 | Z25: =IF(OR(X25>=1.6*D25*AD25,D25=1),calcLoadFraction(G25,F25,I25,J25,K25,D25,1),"Condition for spring model not fulfilled") -> 0.5176815565 | AA25: =IF(L25>2,L25,IF(L25=2,1,sigma_cl0(I25+J25))) -> 112.4588041 | AB25: =Sigma_cl(AA25,U25,V25,X25) -> 94.9161928 | AC25: =Sigma_cl(AA25,U25,V25,Y25) -> 108.7110644 | AD25: =sigma_Slip(AB25,W25,U25,IF(L25=1,mu_redLead,mu_millScale)) -> 22.35706836 | AE25: =sigma_Slip(AC25,W25,U25,IF(L25=1,mu_redLead,mu_millScale)) -> 25.60638629 | AF25: =Sigma_p(AB25,V25) -> -22.29529742 | AG25: =Sigma_p(AC25,V25) -> -25.53563773 | AH25: =beta_1(X25,AD25,Z25) -> 0.7998785035 | AI25: =beta_1(Y25,AE25,Z25) -> 0 | AJ25: =k_tHole(W25,U25) -> 2.434043732 | AK25: =K_t1Mu(Z25,AH25,D25,W25,U25,SIGN(X25),mu_millScale) -> 3.542863778 | AL25: =K_t1Mu(Z25,AI25,D25,W25,U25,SIGN(Y25),mu_millScale) -> 1.804013958 | AM25: =Sigma_hMax(AK25,X25,AF25) -> 742.2669937 | AN25: =Sigma_hMin(X25,Y25,AG25,AE25,AK25,AL25,AJ25,AI25,Z25,IF(L25=1,mu_redLead,mu_millScale)) -> 196.7712781 | AO25: 545.4957156 | AP25: 0.2650950126 | AQ25: 178.8521656 | AR25: =tau_n(N25,W25,U25,D25) -> 118.8751948 | AS25: =tau_hMax(X25,Z25,AH25,W25,U25) -> 125.1942934 | AT25: =tau_hMin(X25,Y25,AS25,AE25,Z25,AI25,IF(L25=1,mu_redLead,mu_millScale),W25,U25) -> 50.46388494 | AU25: 74.73040841
A26: 16 | B26: Kloppel1936 | C26: R; S | D26: 2 | E26: 1 | F26: 8.5 | G26: 35 | I26: 6 | J26: 8 | K26: 70 | M26: 420 | N26: 156.96 | O26: 0.111111111 | P26: 2141000 | Q26: 1 | R26: P99T5 | S26: RZE_AS | T26: 16 | U26: 0.7058823529 | V26: 0.6071428571 | W26: 0.2428571429 | X26: 176.58 | Y26: 19.61999998 | Z26: =IF(OR(X26>=1.6*D26*AD26,D26=1),calcLoadFraction(G26,F26,I26,J26,K26,D26,1),"Condition for spring model not fulfilled") -> 0.5176815565 | AA26: =IF(L26>2,L26,IF(L26=2,1,sigma_cl0(I26+J26))) -> 112.4588041 | AB26: =Sigma_cl(AA26,U26,V26,X26) -> 98.10465897 | AC26: =Sigma_cl(AA26,U26,V26,Y26) -> 110.8638991 | AD26: =sigma_Slip(AB26,W26,U26,IF(L26=1,mu_redLead,mu_millScale)) -> 23.10809676 | AE26: =sigma_Slip(AC26,W26,U26,IF(L26=1,mu_redLead,mu_millScale)) -> 26.11347651 | AF26: =Sigma_p(AB26,V26) -> -23.04425079 | AG26: =Sigma_p(AC26,V26) -> -26.04132689 | AH26: =beta_1(X26,AD26,Z26) -> 0.747209952 | AI26: =beta_1(Y26,AE26,Z26) -> 0 | AJ26: =k_tHole(W26,U26) -> 2.434043732 | AK26: =K_t1Mu(Z26,AH26,D26,W26,U26,SIGN(X26),mu_millScale) -> 3.468714372 | AL26: =K_t1Mu(Z26,AI26,D26,W26,U26,SIGN(Y26),mu_millScale) -> 1.804013958 | AM26: =Sigma_hMax(AK26,X26,AF26) -> 589.4613329 | AN26: =Sigma_hMin(X26,Y26,AG26,AE26,AK26,AL26,AJ26,AI26,Z26,IF(L26=1,mu_redLead,mu_millScale)) -> 105.5675622 | AO26: 483.8937707 | AP26: 0.1790915813 | AQ26: 156.4716857 | AR26: =tau_n(N26,W26,U26,D26) -> 109.9507989 | AS26: =tau_hMax(X26,Z26,AH26,W26,U26) -> 95.69433914 | AT26: =tau_hMin(X26,Y26,AS26,AE26,Z26,AI26,IF(L26=1,mu_redLead,mu_millScale),W26,U26) -> 33.61007852 | AU26: 62.08426063
A27: 17 | B27: Kloppel1936 | C27: R; S | D27: 2 | E27: 1 | F27: 8.5 | G27: 35 | I27: 6 | J27: 8 | K27: 70 | M27: 420 | N27: 147.15 | O27: 0.117647059 | P27: 505000 | Q27: 1 | R27: P99T5 | S27: RZE_AS | T27: 17 | U27: 0.7058823529 | V27: 0.6071428571 | W27: 0.2428571429 | X27: 166.77 | Y27: 19.62000003 | Z27: =IF(OR(X27>=1.6*D27*AD27,D27=1),calcLoadFraction(G27,F27,I27,J27,K27,D27,1),"Condition for spring model not fulfilled") -> 0.5176815565 | AA27: =IF(L27>2,L27,IF(L27=2,1,sigma_cl0(I27+J27))) -> 112.4588041 | AB27: =Sigma_cl(AA27,U27,V27,X27) -> 98.90211147 | AC27: =Sigma_cl(AA27,U27,V27,Y27) -> 110.8638991 | AD27: =sigma_Slip(AB27,W27,U27,IF(L27=1,mu_redLead,mu_millScale)) -> 23.29593299 | AE27: =sigma_Slip(AC27,W27,U27,IF(L27=1,mu_redLead,mu_millScale)) -> 26.1134765 | AF27: =Sigma_p(AB27,V27) -> -23.23156804 | AG27: =Sigma_p(AC27,V27) -> -26.04132689 | AH27: =beta_1(X27,AD27,Z27) -> 0.7301642506 | AI27: =beta_1(Y27,AE27,Z27) -> 0 | AJ27: =k_tHole(W27,U27) -> 2.434043732 | AK27: =K_t1Mu(Z27,AH27,D27,W27,U27,SIGN(X27),mu_millScale) -> 3.441872347 | AL27: =K_t1Mu(Z27,AI27,D27,W27,U27,SIGN(Y27),mu_millScale) -> 1.804013958 | AM27: =Sigma_hMax(AK27,X27,AF27) -> 550.7694834 | AN27: =Sigma_hMin(X27,Y27,AG27,AE27,AK27,AL27,AJ27,AI27,Z27,IF(L27=1,mu_redLead,mu_millScale)) -> 103.1952264 | AO27: 447.574257 | AP27: 0.1873655485 | AQ27: 144.9030948 | AR27: =tau_n(N27,W27,U27,D27) -> 103.078874 | AS27: =tau_hMax(X27,Z27,AH27,W27,U27) -> 88.31624227 | AT27: =tau_hMin(X27,Y27,AS27,AE27,Z27,AI27,IF(L27=1,mu_redLead,mu_millScale),W27,U27) -> 32.26247282 | AU27: 56.05376945
A28: 18 | B28: Kloppel1936 | C28: R; S | D28: 2 | E28: 1 | F28: 8.5 | G28: 35 | I28: 6 | J28: 8 | K28: 70 | M28: 420 | N28: 137.34 | O28: 0.125 | P28: 2252000 | Q28: 0 | R28: P99T5 | S28: RZE_AS | T28: 18 | U28: 0.7058823529 | V28: 0.6071428571 | W28: 0.2428571429 | X28: 156.96 | Y28: 19.62 | Z28: =IF(OR(X28>=1.6*D28*AD28,D28=1),calcLoadFraction(G28,F28,I28,J28,K28,D28,1),"Condition for spring model not fulfilled") -> 0.5176815565 | AA28: =IF(L28>2,L28,IF(L28=2,1,sigma_cl0(I28+J28))) -> 112.4588041 | AB28: =Sigma_cl(AA28,U28,V28,X28) -> 99.69956398 | AC28: =Sigma_cl(AA28,U28,V28,Y28) -> 110.8638991 | AD28: =sigma_Slip(AB28,W28,U28,IF(L28=1,mu_redLead,mu_millScale)) -> 23.48376923 | AE28: =sigma_Slip(AC28,W28,U28,IF(L28=1,mu_redLead,mu_millScale)) -> 26.1134765 | AF28: =Sigma_p(AB28,V28) -> -23.4188853 | AG28: =Sigma_p(AC28,V28) -> -26.04132689 | AH28: =beta_1(X28,AD28,Z28) -> 0.7109878363 | AI28: =beta_1(Y28,AE28,Z28) -> 0 | AJ28: =k_tHole(W28,U28) -> 2.434043732 | AK28: =K_t1Mu(Z28,AH28,D28,W28,U28,SIGN(X28),mu_millScale) -> 3.410128238 | AL28: =K_t1Mu(Z28,AI28,D28,W28,U28,SIGN(Y28),mu_millScale) -> 1.804013958 | AM28: =Sigma_hMax(AK28,X28,AF28) -> 511.8348429 | AN28: =Sigma_hMin(X28,Y28,AG28,AE28,AK28,AL28,AJ28,AI28,Z28,IF(L28=1,mu_redLead,mu_millScale)) -> 100.5123333 | AO28: 411.3225096 | AP28: 0.1963764966 | AQ28: 133.3461212 | AR28: =tau_n(N28,W28,U28,D28) -> 96.20694905 | AS28: =tau_hMax(X28,Z28,AH28,W28,U28) -> 80.93814532 | AT28: =tau_hMin(X28,Y28,AS28,AE28,Z28,AI28,IF(L28=1,mu_redLead,mu_millScale),W28,U28) -> 30.80869489 | AU28: 50.12945044
A29: 19 | B29: Kloppel1936 | C29: R; S | D29: 2 | E29: 1 | F29: 8.5 | G29: 35 | I29: 6 | J29: 8 | K29: 70 | M29: 420 | N29: 147.15 | O29: 0.117647059 | P29: 824000 | Q29: 1 | R29: P99T5 | S29: RZE_AS | T29: 19 | U29: 0.7058823529 | V29: 0.6071428571 | W29: 0.2428571429 | X29: 166.77 | Y29: 19.62000003 | Z29: =IF(OR(X29>=1.6*D29*AD29,D29=1),calcLoadFraction(G29,F29,I29,J29,K29,D29,1),"Condition for spring model not fulfilled") -> 0.5176815565 | AA29: =IF(L29>2,L29,IF(L29=2,1,sigma_cl0(I29+J29))) -> 112.4588041 | AB29: =Sigma_cl(AA29,U29,V29,X29) -> 98.90211147 | AC29: =Sigma_cl(AA29,U29,V29,Y29) -> 110.8638991 | AD29: =sigma_Slip(AB29,W29,U29,IF(L29=1,mu_redLead,mu_millScale)) -> 23.29593299 | AE29: =sigma_Slip(AC29,W29,U29,IF(L29=1,mu_redLead,mu_millScale)) -> 26.1134765 | AF29: =Sigma_p(AB29,V29) -> -23.23156804 | AG29: =Sigma_p(AC29,V29) -> -26.04132689 | AH29: =beta_1(X29,AD29,Z29) -> 0.7301642506 | AI29: =beta_1(Y29,AE29,Z29) -> 0 | AJ29: =k_tHole(W29,U29) -> 2.434043732 | AK29: =K_t1Mu(Z29,AH29,D29,W29,U29,SIGN(X29),mu_millScale) -> 3.441872347 | AL29: =K_t1Mu(Z29,AI29,D29,W29,U29,SIGN(Y29),mu_millScale) -> 1.804013958 | AM29: =Sigma_hMax(AK29,X29,AF29) -> 550.7694834 | AN29: =Sigma_hMin(X29,Y29,AG29,AE29,AK29,AL29,AJ29,AI29,Z29,IF(L29=1,mu_redLead,mu_millScale)) -> 103.1952264 | AO29: 447.574257 | AP29: 0.1873655485 | AQ29: 144.9030948 | AR29: =tau_n(N29,W29,U29,D29) -> 103.078874 | AS29: =tau_hMax(X29,Z29,AH29,W29,U29) -> 88.31624227 | AT29: =tau_hMin(X29,Y29,AS29,AE29,Z29,AI29,IF(L29=1,mu_redLead,mu_millScale),W29,U29) -> 32.26247282 | AU29: 56.05376945
A30: 20 | B30: Kloppel1936 | C30: R; S | D30: 2 | E30: 1 | F30: 8.5 | G30: 35 | I30: 6 | J30: 8 | K30: 70 | M30: 420 | N30: 137.34 | O30: 0.125 | P30: 1117000 | Q30: 1 | R30: P99T5 | S30: RZE_AS | T30: 20 | U30: 0.7058823529 | V30: 0.6071428571 | W30: 0.2428571429 | X30: 156.96 | Y30: 19.62 | Z30: =IF(OR(X30>=1.6*D30*AD30,D30=1),calcLoadFraction(G30,F30,I30,J30,K30,D30,1),"Condition for spring model not fulfilled") -> 0.5176815565 | AA30: =IF(L30>2,L30,IF(L30=2,1,sigma_cl0(I30+J30))) -> 112.4588041 | AB30: =Sigma_cl(AA30,U30,V30,X30) -> 99.69956398 | AC30: =Sigma_cl(AA30,U30,V30,Y30) -> 110.8638991 | AD30: =sigma_Slip(AB30,W30,U30,IF(L30=1,mu_redLead,mu_millScale)) -> 23.48376923 | AE30: =sigma_Slip(AC30,W30,U30,IF(L30=1,mu_redLead,mu_millScale)) -> 26.1134765 | AF30: =Sigma_p(AB30,V30) -> -23.4188853 | AG30: =Sigma_p(AC30,V30) -> -26.04132689 | AH30: =beta_1(X30,AD30,Z30) -> 0.7109878363 | AI30: =beta_1(Y30,AE30,Z30) -> 0 | AJ30: =k_tHole(W30,U30) -> 2.434043732 | AK30: =K_t1Mu(Z30,AH30,D30,W30,U30,SIGN(X30),mu_millScale) -> 3.410128238 | AL30: =K_t1Mu(Z30,AI30,D30,W30,U30,SIGN(Y30),mu_millScale) -> 1.804013958 | AM30: =Sigma_hMax(AK30,X30,AF30) -> 511.8348429 | AN30: =Sigma_hMin(X30,Y30,AG30,AE30,AK30,AL30,AJ30,AI30,Z30,IF(L30=1,mu_redLead,mu_millScale)) -> 100.5123333 | AO30: 411.3225096 | AP30: 0.1963764966 | AQ30: 133.3461212 | AR30: =tau_n(N30,W30,U30,D30) -> 96.20694905 | AS30: =tau_hMax(X30,Z30,AH30,W30,U30) -> 80.93814532 | AT30: =tau_hMin(X30,Y30,AS30,AE30,Z30,AI30,IF(L30=1,mu_redLead,mu_millScale),W30,U30) -> 30.80869489 | AU30: 50.12945044
A31: 21 | B31: Kloppel1936 | C31: R; S | D31: 2 | E31: 1 | F31: 8.5 | G31: 35 | I31: 6 | J31: 8 | K31: 70 | M31: 420 | N31: 137.34 | O31: 0.125 | P31: 1603000 | Q31: 1 | R31: P99T5 | S31: RZE_AS | T31: 21 | U31: 0.7058823529 | V31: 0.6071428571 | W31: 0.2428571429 | X31: 156.96 | Y31: 19.62 | Z31: =IF(OR(X31>=1.6*D31*AD31,D31=1),calcLoadFraction(G31,F31,I31,J31,K31,D31,1),"Condition for spring model not fulfilled") -> 0.5176815565 | AA31: =IF(L31>2,L31,IF(L31=2,1,sigma_cl0(I31+J31))) -> 112.4588041 | AB31: =Sigma_cl(AA31,U31,V31,X31) -> 99.69956398 | AC31: =Sigma_cl(AA31,U31,V31,Y31) -> 110.8638991 | AD31: =sigma_Slip(AB31,W31,U31,IF(L31=1,mu_redLead,mu_millScale)) -> 23.48376923 | AE31: =sigma_Slip(AC31,W31,U31,IF(L31=1,mu_redLead,mu_millScale)) -> 26.1134765 | AF31: =Sigma_p(AB31,V31) -> -23.4188853 | AG31: =Sigma_p(AC31,V31) -> -26.04132689 | AH31: =beta_1(X31,AD31,Z31) -> 0.7109878363 | AI31: =beta_1(Y31,AE31,Z31) -> 0 | AJ31: =k_tHole(W31,U31) -> 2.434043732 | AK31: =K_t1Mu(Z31,AH31,D31,W31,U31,SIGN(X31),mu_millScale) -> 3.410128238 | AL31: =K_t1Mu(Z31,AI31,D31,W31,U31,SIGN(Y31),mu_millScale) -> 1.804013958 | AM31: =Sigma_hMax(AK31,X31,AF31) -> 511.8348429 | AN31: =Sigma_hMin(X31,Y31,AG31,AE31,AK31,AL31,AJ31,AI31,Z31,IF(L31=1,mu_redLead,mu_millScale)) -> 100.5123333 | AO31: 411.3225096 | AP31: 0.1963764966 | AQ31: 133.3461212 | AR31: =tau_n(N31,W31,U31,D31) -> 96.20694905 | AS31: =tau_hMax(X31,Z31,AH31,W31,U31) -> 80.93814532 | AT31: =tau_hMin(X31,Y31,AS31,AE31,Z31,AI31,IF(L31=1,mu_redLead,mu_millScale),W31,U31) -> 30.80869489 | AU31: 50.12945044
A32: 22 | B32: Kloppel1936 | C32: R; S | D32: 2 | E32: 1 | F32: 8.5 | G32: 35 | I32: 6 | J32: 8 | K32: 70 | M32: 410 | N32: 156.96 | O32: 0.111111111 | P32: 800000 | Q32: 1 | R32: P99T4 | S32: RZE_ST37TH | T32: 22 | U32: 0.7058823529 | V32: 0.6071428571 | W32: 0.2428571429 | X32: 176.58 | Y32: 19.61999998 | Z32: =IF(OR(X32>=1.6*D32*AD32,D32=1),calcLoadFraction(G32,F32,I32,J32,K32,D32,1),"Condition for spring model not fulfilled") -> 0.5176815565 | AA32: =IF(L32>2,L32,IF(L32=2,1,sigma_cl0(I32+J32))) -> 112.4588041 | AB32: =Sigma_cl(AA32,U32,V32,X32) -> 98.10465897 | AC32: =Sigma_cl(AA32,U32,V32,Y32) -> 110.8638991 | AD32: =sigma_Slip(AB32,W32,U32,IF(L32=1,mu_redLead,mu_millScale)) -> 23.10809676 | AE32: =sigma_Slip(AC32,W32,U32,IF(L32=1,mu_redLead,mu_millScale)) -> 26.11347651 | AF32: =Sigma_p(AB32,V32) -> -23.04425079 | AG32: =Sigma_p(AC32,V32) -> -26.04132689 | AH32: =beta_1(X32,AD32,Z32) -> 0.747209952 | AI32: =beta_1(Y32,AE32,Z32) -> 0 | AJ32: =k_tHole(W32,U32) -> 2.434043732 | AK32: =K_t1Mu(Z32,AH32,D32,W32,U32,SIGN(X32),mu_millScale) -> 3.468714372 | AL32: =K_t1Mu(Z32,AI32,D32,W32,U32,SIGN(Y32),mu_millScale) -> 1.804013958 | AM32: =Sigma_hMax(AK32,X32,AF32) -> 589.4613329 | AN32: =Sigma_hMin(X32,Y32,AG32,AE32,AK32,AL32,AJ32,AI32,Z32,IF(L32=1,mu_redLead,mu_millScale)) -> 105.5675622 | AO32: 483.8937707 | AP32: 0.1790915813 | AQ32: 156.4716857 | AR32: =tau_n(N32,W32,U32,D32) -> 109.9507989 | AS32: =tau_hMax(X32,Z32,AH32,W32,U32) -> 95.69433914 | AT32: =tau_hMin(X32,Y32,AS32,AE32,Z32,AI32,IF(L32=1,mu_redLead,mu_millScale),W32,U32) -> 33.61007852 | AU32: 62.08426063
A33: 23 | B33: Kloppel1936 | C33: R; S | D33: 2 | E33: 1 | F33: 8.5 | G33: 35 | I33: 6 | J33: 8 | K33: 70 | M33: 410 | N33: 156.96 | O33: 0.111111111 | P33: 1100000 | Q33: 1 | R33: P99T4 | S33: RZE_ST37TH | T33: 23 | U33: 0.7058823529 | V33: 0.6071428571 | W33: 0.2428571429 | X33: 176.58 | Y33: 19.61999998 | Z33: =IF(OR(X33>=1.6*D33*AD33,D33=1),calcLoadFraction(G33,F33,I33,J33,K33,D33,1),"Condition for spring model not fulfilled") -> 0.5176815565 | AA33: =IF(L33>2,L33,IF(L33=2,1,sigma_cl0(I33+J33))) -> 112.4588041 | AB33: =Sigma_cl(AA33,U33,V33,X33) -> 98.10465897 | AC33: =Sigma_cl(AA33,U33,V33,Y33) -> 110.8638991 | AD33: =sigma_Slip(AB33,W33,U33,IF(L33=1,mu_redLead,mu_millScale)) -> 23.10809676 | AE33: =sigma_Slip(AC33,W33,U33,IF(L33=1,mu_redLead,mu_millScale)) -> 26.11347651 | AF33: =Sigma_p(AB33,V33) -> -23.04425079 | AG33: =Sigma_p(AC33,V33) -> -26.04132689 | AH33: =beta_1(X33,AD33,Z33) -> 0.747209952 | AI33: =beta_1(Y33,AE33,Z33) -> 0 | AJ33: =k_tHole(W33,U33) -> 2.434043732 | AK33: =K_t1Mu(Z33,AH33,D33,W33,U33,SIGN(X33),mu_millScale) -> 3.468714372 | AL33: =K_t1Mu(Z33,AI33,D33,W33,U33,SIGN(Y33),mu_millScale) -> 1.804013958 | AM33: =Sigma_hMax(AK33,X33,AF33) -> 589.4613329 | AN33: =Sigma_hMin(X33,Y33,AG33,AE33,AK33,AL33,AJ33,AI33,Z33,IF(L33=1,mu_redLead,mu_millScale)) -> 105.5675622 | AO33: 483.8937707 | AP33: 0.1790915813 | AQ33: 156.4716857 | AR33: =tau_n(N33,W33,U33,D33) -> 109.9507989 | AS33: =tau_hMax(X33,Z33,AH33,W33,U33) -> 95.69433914 | AT33: =tau_hMin(X33,Y33,AS33,AE33,Z33,AI33,IF(L33=1,mu_redLead,mu_millScale),W33,U33) -> 33.61007852 | AU33: 62.08426063
A34: 24 | B34: Kloppel1936 | C34: R; S | D34: 2 | E34: 1 | F34: 8.5 | G34: 35 | I34: 6 | J34: 8 | K34: 70 | M34: 410 | N34: 147.15 | O34: 0.117647059 | P34: 900000 | Q34: 1 | R34: P99T4 | S34: RZE_ST37TH | T34: 24 | U34: 0.7058823529 | V34: 0.6071428571 | W34: 0.2428571429 | X34: 166.77 | Y34: 19.62000003 | Z34: =IF(OR(X34>=1.6*D34*AD34,D34=1),calcLoadFraction(G34,F34,I34,J34,K34,D34,1),"Condition for spring model not fulfilled") -> 0.5176815565 | AA34: =IF(L34>2,L34,IF(L34=2,1,sigma_cl0(I34+J34))) -> 112.4588041 | AB34: =Sigma_cl(AA34,U34,V34,X34) -> 98.90211147 | AC34: =Sigma_cl(AA34,U34,V34,Y34) -> 110.8638991 | AD34: =sigma_Slip(AB34,W34,U34,IF(L34=1,mu_redLead,mu_millScale)) -> 23.29593299 | AE34: =sigma_Slip(AC34,W34,U34,IF(L34=1,mu_redLead,mu_millScale)) -> 26.1134765 | AF34: =Sigma_p(AB34,V34) -> -23.23156804 | AG34: =Sigma_p(AC34,V34) -> -26.04132689 | AH34: =beta_1(X34,AD34,Z34) -> 0.7301642506 | AI34: =beta_1(Y34,AE34,Z34) -> 0 | AJ34: =k_tHole(W34,U34) -> 2.434043732 | AK34: =K_t1Mu(Z34,AH34,D34,W34,U34,SIGN(X34),mu_millScale) -> 3.441872347 | AL34: =K_t1Mu(Z34,AI34,D34,W34,U34,SIGN(Y34),mu_millScale) -> 1.804013958 | AM34: =Sigma_hMax(AK34,X34,AF34) -> 550.7694834 | AN34: =Sigma_hMin(X34,Y34,AG34,AE34,AK34,AL34,AJ34,AI34,Z34,IF(L34=1,mu_redLead,mu_millScale)) -> 103.1952264 | AO34: 447.574257 | AP34: 0.1873655485 | AQ34: 144.9030948 | AR34: =tau_n(N34,W34,U34,D34) -> 103.078874 | AS34: =tau_hMax(X34,Z34,AH34,W34,U34) -> 88.31624227 | AT34: =tau_hMin(X34,Y34,AS34,AE34,Z34,AI34,IF(L34=1,mu_redLead,mu_millScale),W34,U34) -> 32.26247282 | AU34: 56.05376945
A35: 25 | B35: Kloppel1936 | C35: R; S | D35: 2 | E35: 1 | F35: 8.5 | G35: 35 | I35: 6 | J35: 8 | K35: 70 | M35: 410 | N35: 147.15 | O35: 0.117647059 | P35: 2200000 | Q35: 0 | R35: P99T4 | S35: RZE_ST37TH | T35: 25 | U35: 0.7058823529 | V35: 0.6071428571 | W35: 0.2428571429 | X35: 166.77 | Y35: 19.62000003 | Z35: =IF(OR(X35>=1.6*D35*AD35,D35=1),calcLoadFraction(G35,F35,I35,J35,K35,D35,1),"Condition for spring model not fulfilled") -> 0.5176815565 | AA35: =IF(L35>2,L35,IF(L35=2,1,sigma_cl0(I35+J35))) -> 112.4588041 | AB35: =Sigma_cl(AA35,U35,V35,X35) -> 98.90211147 | AC35: =Sigma_cl(AA35,U35,V35,Y35) -> 110.8638991 | AD35: =sigma_Slip(AB35,W35,U35,IF(L35=1,mu_redLead,mu_millScale)) -> 23.29593299 | AE35: =sigma_Slip(AC35,W35,U35,IF(L35=1,mu_redLead,mu_millScale)) -> 26.1134765 | AF35: =Sigma_p(AB35,V35) -> -23.23156804 | AG35: =Sigma_p(AC35,V35) -> -26.04132689 | AH35: =beta_1(X35,AD35,Z35) -> 0.7301642506 | AI35: =beta_1(Y35,AE35,Z35) -> 0 | AJ35: =k_tHole(W35,U35) -> 2.434043732 | AK35: =K_t1Mu(Z35,AH35,D35,W35,U35,SIGN(X35),mu_millScale) -> 3.441872347 | AL35: =K_t1Mu(Z35,AI35,D35,W35,U35,SIGN(Y35),mu_millScale) -> 1.804013958 | AM35: =Sigma_hMax(AK35,X35,AF35) -> 550.7694834 | AN35: =Sigma_hMin(X35,Y35,AG35,AE35,AK35,AL35,AJ35,AI35,Z35,IF(L35=1,mu_redLead,mu_millScale)) -> 103.1952264 | AO35: 447.574257 | AP35: 0.1873655485 | AQ35: 144.9030948 | AR35: =tau_n(N35,W35,U35,D35) -> 103.078874 | AS35: =tau_hMax(X35,Z35,AH35,W35,U35) -> 88.31624227 | AT35: =tau_hMin(X35,Y35,AS35,AE35,Z35,AI35,IF(L35=1,mu_redLead,mu_millScale),W35,U35) -> 32.26247282 | AU35: 56.05376945
A36: 26 | B36: Kloppel1936 | C36: R; S | D36: 2 | E36: 1 | F36: 8.5 | G36: 35 | I36: 6 | J36: 8 | K36: 70 | M36: 410 | N36: 156.96 | O36: 0.111111111 | P36: 2000000 | Q36: 0 | R36: P99T4 | S36: RZE_ST37TH | T36: 26 | U36: 0.7058823529 | V36: 0.6071428571 | W36: 0.2428571429 | X36: 176.58 | Y36: 19.61999998 | Z36: =IF(OR(X36>=1.6*D36*AD36,D36=1),calcLoadFraction(G36,F36,I36,J36,K36,D36,1),"Condition for spring model not fulfilled") -> 0.5176815565 | AA36: =IF(L36>2,L36,IF(L36=2,1,sigma_cl0(I36+J36))) -> 112.4588041 | AB36: =Sigma_cl(AA36,U36,V36,X36) -> 98.10465897 | AC36: =Sigma_cl(AA36,U36,V36,Y36) -> 110.8638991 | AD36: =sigma_Slip(AB36,W36,U36,IF(L36=1,mu_redLead,mu_millScale)) -> 23.10809676 | AE36: =sigma_Slip(AC36,W36,U36,IF(L36=1,mu_redLead,mu_millScale)) -> 26.11347651 | AF36: =Sigma_p(AB36,V36) -> -23.04425079 | AG36: =Sigma_p(AC36,V36) -> -26.04132689 | AH36: =beta_1(X36,AD36,Z36) -> 0.747209952 | AI36: =beta_1(Y36,AE36,Z36) -> 0 | AJ36: =k_tHole(W36,U36) -> 2.434043732 | AK36: =K_t1Mu(Z36,AH36,D36,W36,U36,SIGN(X36),mu_millScale) -> 3.468714372 | AL36: =K_t1Mu(Z36,AI36,D36,W36,U36,SIGN(Y36),mu_millScale) -> 1.804013958 | AM36: =Sigma_hMax(AK36,X36,AF36) -> 589.4613329 | AN36: =Sigma_hMin(X36,Y36,AG36,AE36,AK36,AL36,AJ36,AI36,Z36,IF(L36=1,mu_redLead,mu_millScale)) -> 105.5675622 | AO36: 483.8937707 | AP36: 0.1790915813 | AQ36: 156.4716857 | AR36: =tau_n(N36,W36,U36,D36) -> 109.9507989 | AS36: =tau_hMax(X36,Z36,AH36,W36,U36) -> 95.69433914 | AT36: =tau_hMin(X36,Y36,AS36,AE36,Z36,AI36,IF(L36=1,mu_redLead,mu_millScale),W36,U36) -> 33.61007852 | AU36: 62.08426063
A37: 27 | B37: Kloppel1936 | C37: R; S | D37: 2 | E37: 1 | F37: 8.5 | G37: 35 | I37: 6 | J37: 8 | K37: 70 | M37: 410 | N37: 147.15 | O37: 0.117647059 | P37: 600000 | Q37: 1 | R37: P99T4 | S37: RZE_ST37TH | T37: 27 | U37: 0.7058823529 | V37: 0.6071428571 | W37: 0.2428571429 | X37: 166.77 | Y37: 19.62000003 | Z37: =IF(OR(X37>=1.6*D37*AD37,D37=1),calcLoadFraction(G37,F37,I37,J37,K37,D37,1),"Condition for spring model not fulfilled") -> 0.5176815565 | AA37: =IF(L37>2,L37,IF(L37=2,1,sigma_cl0(I37+J37))) -> 112.4588041 | AB37: =Sigma_cl(AA37,U37,V37,X37) -> 98.90211147 | AC37: =Sigma_cl(AA37,U37,V37,Y37) -> 110.8638991 | AD37: =sigma_Slip(AB37,W37,U37,IF(L37=1,mu_redLead,mu_millScale)) -> 23.29593299 | AE37: =sigma_Slip(AC37,W37,U37,IF(L37=1,mu_redLead,mu_millScale)) -> 26.1134765 | AF37: =Sigma_p(AB37,V37) -> -23.23156804 | AG37: =Sigma_p(AC37,V37) -> -26.04132689 | AH37: =beta_1(X37,AD37,Z37) -> 0.7301642506 | AI37: =beta_1(Y37,AE37,Z37) -> 0 | AJ37: =k_tHole(W37,U37) -> 2.434043732 | AK37: =K_t1Mu(Z37,AH37,D37,W37,U37,SIGN(X37),mu_millScale) -> 3.441872347 | AL37: =K_t1Mu(Z37,AI37,D37,W37,U37,SIGN(Y37),mu_millScale) -> 1.804013958 | AM37: =Sigma_hMax(AK37,X37,AF37) -> 550.7694834 | AN37: =Sigma_hMin(X37,Y37,AG37,AE37,AK37,AL37,AJ37,AI37,Z37,IF(L37=1,mu_redLead,mu_millScale)) -> 103.1952264 | AO37: 447.574257 | AP37: 0.1873655485 | AQ37: 144.9030948 | AR37: =tau_n(N37,W37,U37,D37) -> 103.078874 | AS37: =tau_hMax(X37,Z37,AH37,W37,U37) -> 88.31624227 | AT37: =tau_hMin(X37,Y37,AS37,AE37,Z37,AI37,IF(L37=1,mu_redLead,mu_millScale),W37,U37) -> 32.26247282 | AU37: 56.05376945
A38: 28 | B38: Kloppel1936 | C38: R; S | D38: 2 | E38: 1 | F38: 8.5 | G38: 35 | I38: 6 | J38: 8 | K38: 70 | M38: 410 | N38: 137.34 | O38: 0.125 | P38: 1300000 | Q38: 1 | R38: P99T4 | S38: RZE_ST37TH | T38: 28 | U38: 0.7058823529 | V38: 0.6071428571 | W38: 0.2428571429 | X38: 156.96 | Y38: 19.62 | Z38: =IF(OR(X38>=1.6*D38*AD38,D38=1),calcLoadFraction(G38,F38,I38,J38,K38,D38,1),"Condition for spring model not fulfilled") -> 0.5176815565 | AA38: =IF(L38>2,L38,IF(L38=2,1,sigma_cl0(I38+J38))) -> 112.4588041 | AB38: =Sigma_cl(AA38,U38,V38,X38) -> 99.69956398 | AC38: =Sigma_cl(AA38,U38,V38,Y38) -> 110.8638991 | AD38: =sigma_Slip(AB38,W38,U38,IF(L38=1,mu_redLead,mu_millScale)) -> 23.48376923 | AE38: =sigma_Slip(AC38,W38,U38,IF(L38=1,mu_redLead,mu_millScale)) -> 26.1134765 | AF38: =Sigma_p(AB38,V38) -> -23.4188853 | AG38: =Sigma_p(AC38,V38) -> -26.04132689 | AH38: =beta_1(X38,AD38,Z38) -> 0.7109878363 | AI38: =beta_1(Y38,AE38,Z38) -> 0 | AJ38: =k_tHole(W38,U38) -> 2.434043732 | AK38: =K_t1Mu(Z38,AH38,D38,W38,U38,SIGN(X38),mu_millScale) -> 3.410128238 | AL38: =K_t1Mu(Z38,AI38,D38,W38,U38,SIGN(Y38),mu_millScale) -> 1.804013958 | AM38: =Sigma_hMax(AK38,X38,AF38) -> 511.8348429 | AN38: =Sigma_hMin(X38,Y38,AG38,AE38,AK38,AL38,AJ38,AI38,Z38,IF(L38=1,mu_redLead,mu_millScale)) -> 100.5123333 | AO38: 411.3225096 | AP38: 0.1963764966 | AQ38: 133.3461212 | AR38: =tau_n(N38,W38,U38,D38) -> 96.20694905 | AS38: =tau_hMax(X38,Z38,AH38,W38,U38) -> 80.93814532 | AT38: =tau_hMin(X38,Y38,AS38,AE38,Z38,AI38,IF(L38=1,mu_redLead,mu_millScale),W38,U38) -> 30.80869489 | AU38: 50.12945044
A39: 29 | B39: Kloppel1936 | C39: R; S | D39: 2 | E39: 1 | F39: 8.5 | G39: 35 | I39: 6 | J39: 8 | K39: 70 | M39: 410 | N39: 127.53 | O39: 0.133333333 | P39: 1700000 | Q39: 1 | R39: P99T4 | S39: RZE_ST37TH | T39: 29 | U39: 0.7058823529 | V39: 0.6071428571 | W39: 0.2428571429 | X39: 147.1499999 | Y39: 19.61999994 | Z39: =IF(OR(X39>=1.6*D39*AD39,D39=1),calcLoadFraction(G39,F39,I39,J39,K39,D39,1),"Condition for spring model not fulfilled") -> 0.5176815565 | AA39: =IF(L39>2,L39,IF(L39=2,1,sigma_cl0(I39+J39))) -> 112.4588041 | AB39: =Sigma_cl(AA39,U39,V39,X39) -> 100.4970165 | AC39: =Sigma_cl(AA39,U39,V39,Y39) -> 110.8638991 | AD39: =sigma_Slip(AB39,W39,U39,IF(L39=1,mu_redLead,mu_millScale)) -> 23.67160546 | AE39: =sigma_Slip(AC39,W39,U39,IF(L39=1,mu_redLead,mu_millScale)) -> 26.11347651 | AF39: =Sigma_p(AB39,V39) -> -23.60620256 | AG39: =Sigma_p(AC39,V39) -> -26.04132689 | AH39: =beta_1(X39,AD39,Z39) -> 0.6892545668 | AI39: =beta_1(Y39,AE39,Z39) -> 0 | AJ39: =k_tHole(W39,U39) -> 2.434043732 | AK39: =K_t1Mu(Z39,AH39,D39,W39,U39,SIGN(X39),mu_millScale) -> 3.372268198 | AL39: =K_t1Mu(Z39,AI39,D39,W39,U39,SIGN(Y39),mu_millScale) -> 1.804013958 | AM39: =Sigma_hMax(AK39,X39,AF39) -> 472.6230625 | AN39: =Sigma_hMin(X39,Y39,AG39,AE39,AK39,AL39,AJ39,AI39,Z39,IF(L39=1,mu_redLead,mu_millScale)) -> 97.45880641 | AO39: 375.1642561 | AP39: 0.2062083172 | AQ39: 121.8070053 | AR39: =tau_n(N39,W39,U39,D39) -> 89.33502412 | AS39: =tau_hMax(X39,Z39,AH39,W39,U39) -> 73.56004836 | AT39: =tau_hMin(X39,Y39,AS39,AE39,Z39,AI39,IF(L39=1,mu_redLead,mu_millScale),W39,U39) -> 29.23416832 | AU39: 44.32588004
A40: 30 | B40: Kloppel1936 | C40: R; S | D40: 2 | E40: 1 | F40: 8.5 | G40: 35 | I40: 6 | J40: 8 | K40: 70 | M40: 410 | N40: 119.772 | O40: 0.142857143 | P40: 2000000 | Q40: 0 | R40: P99T4 | S40: RZE_ST37TH | T40: 30 | U40: 0.7058823529 | V40: 0.6071428571 | W40: 0.2428571429 | X40: 139.734 | Y40: 19.96200002 | Z40: =IF(OR(X40>=1.6*D40*AD40,D40=1),calcLoadFraction(G40,F40,I40,J40,K40,D40,1),"Condition for spring model not fulfilled") -> 0.5176815565 | AA40: =IF(L40>2,L40,IF(L40=2,1,sigma_cl0(I40+J40))) -> 112.4588041 | AB40: =Sigma_cl(AA40,U40,V40,X40) -> 101.0998613 | AC40: =Sigma_cl(AA40,U40,V40,Y40) -> 110.836098 | AD40: =sigma_Slip(AB40,W40,U40,IF(L40=1,mu_redLead,mu_millScale)) -> 23.81360276 | AE40: =sigma_Slip(AC40,W40,U40,IF(L40=1,mu_redLead,mu_millScale)) -> 26.10692809 | AF40: =Sigma_p(AB40,V40) -> -23.74780753 | AG40: =Sigma_p(AC40,V40) -> -26.03479656 | AH40: =beta_1(X40,AD40,Z40) -> 0.6707996253 | AI40: =beta_1(Y40,AE40,Z40) -> 0 | AJ40: =k_tHole(W40,U40) -> 2.434043732 | AK40: =K_t1Mu(Z40,AH40,D40,W40,U40,SIGN(X40),mu_millScale) -> 3.338630534 | AL40: =K_t1Mu(Z40,AI40,D40,W40,U40,SIGN(Y40),mu_millScale) -> 1.804013958 | AM40: =Sigma_hMax(AK40,X40,AF40) -> 442.7723915 | AN40: =Sigma_hMin(X40,Y40,AG40,AE40,AK40,AL40,AJ40,AI40,Z40,IF(L40=1,mu_redLead,mu_millScale)) -> 95.83892471 | AO40: 346.9334668 | AP40: 0.2164518984 | AQ40: 112.8219491 | AR40: =tau_n(N40,W40,U40,D40) -> 83.90052936 | AS40: =tau_hMax(X40,Z40,AH40,W40,U40) -> 67.98247791 | AT40: =tau_hMin(X40,Y40,AS40,AE40,Z40,AI40,IF(L40=1,mu_redLead,mu_millScale),W40,U40) -> 28.07179556 | AU40: 39.91068235
A41: 31 | B41: Kloppel1936 | C41: R; S | D41: 2 | E41: 1 | F41: 8.5 | G41: 35 | I41: 6 | J41: 8 | K41: 70 | M41: 410 | N41: 127.53 | O41: 0.133333333 | P41: 1800000 | Q41: 1 | R41: P99T4 | S41: RZE_ST37TH | T41: 31 | U41: 0.7058823529 | V41: 0.6071428571 | W41: 0.2428571429 | X41: 147.1499999 | Y41: 19.61999994 | Z41: =IF(OR(X41>=1.6*D41*AD41,D41=1),calcLoadFraction(G41,F41,I41,J41,K41,D41,1),"Condition for spring model not fulfilled") -> 0.5176815565 | AA41: =IF(L41>2,L41,IF(L41=2,1,sigma_cl0(I41+J41))) -> 112.4588041 | AB41: =Sigma_cl(AA41,U41,V41,X41) -> 100.4970165 | AC41: =Sigma_cl(AA41,U41,V41,Y41) -> 110.8638991 | AD41: =sigma_Slip(AB41,W41,U41,IF(L41=1,mu_redLead,mu_millScale)) -> 23.67160546 | AE41: =sigma_Slip(AC41,W41,U41,IF(L41=1,mu_redLead,mu_millScale)) -> 26.11347651 | AF41: =Sigma_p(AB41,V41) -> -23.60620256 | AG41: =Sigma_p(AC41,V41) -> -26.04132689 | AH41: =beta_1(X41,AD41,Z41) -> 0.6892545668 | AI41: =beta_1(Y41,AE41,Z41) -> 0 | AJ41: =k_tHole(W41,U41) -> 2.434043732 | AK41: =K_t1Mu(Z41,AH41,D41,W41,U41,SIGN(X41),mu_millScale) -> 3.372268198 | AL41: =K_t1Mu(Z41,AI41,D41,W41,U41,SIGN(Y41),mu_millScale) -> 1.804013958 | AM41: =Sigma_hMax(AK41,X41,AF41) -> 472.6230625 | AN41: =Sigma_hMin(X41,Y41,AG41,AE41,AK41,AL41,AJ41,AI41,Z41,IF(L41=1,mu_redLead,mu_millScale)) -> 97.45880641 | AO41: 375.1642561 | AP41: 0.2062083172 | AQ41: 121.8070053 | AR41: =tau_n(N41,W41,U41,D41) -> 89.33502412 | AS41: =tau_hMax(X41,Z41,AH41,W41,U41) -> 73.56004836 | AT41: =tau_hMin(X41,Y41,AS41,AE41,Z41,AI41,IF(L41=1,mu_redLead,mu_millScale),W41,U41) -> 29.23416832 | AU41: 44.32588004
A42: 32 | B42: Kloppel1936 | C42: R; S | D42: 2 | E42: 1 | F42: 8.5 | G42: 35 | I42: 6 | J42: 8 | K42: 70 | M42: 410 | N42: 130.473 | O42: 0.261111111 | P42: 1600000 | Q42: 1 | R42: P99T4 | S42: RZE_ST37TH | T42: 32 | U42: 0.7058823529 | V42: 0.6071428571 | W42: 0.2428571429 | X42: 176.58 | Y42: 46.10699997 | Z42: =IF(OR(X42>=1.6*D42*AD42,D42=1),calcLoadFraction(G42,F42,I42,J42,K42,D42,1),"Condition for spring model not fulfilled") -> 0.5176815565 | AA42: =IF(L42>2,L42,IF(L42=2,1,sigma_cl0(I42+J42))) -> 112.4588041 | AB42: =Sigma_cl(AA42,U42,V42,X42) -> 98.10465897 | AC42: =Sigma_cl(AA42,U42,V42,Y42) -> 108.7107773 | AD42: =sigma_Slip(AB42,W42,U42,IF(L42=1,mu_redLead,mu_millScale)) -> 23.10809676 | AE42: =sigma_Slip(AC42,W42,U42,IF(L42=1,mu_redLead,mu_millScale)) -> 25.60631867 | AF42: =Sigma_p(AB42,V42) -> -23.04425079 | AG42: =Sigma_p(AC42,V42) -> -25.5355703 | AH42: =beta_1(X42,AD42,Z42) -> 0.747209952 | AI42: =beta_1(Y42,AE42,Z42) -> 0 | AJ42: =k_tHole(W42,U42) -> 2.434043732 | AK42: =K_t1Mu(Z42,AH42,D42,W42,U42,SIGN(X42),mu_millScale) -> 3.468714372 | AL42: =K_t1Mu(Z42,AI42,D42,W42,U42,SIGN(Y42),mu_millScale) -> 1.804013958 | AM42: =Sigma_hMax(AK42,X42,AF42) -> 589.4613329 | AN42: =Sigma_hMin(X42,Y42,AG42,AE42,AK42,AL42,AJ42,AI42,Z42,IF(L42=1,mu_redLead,mu_millScale)) -> 186.376771 | AO42: 403.084562 | AP42: 0.3161815043 | AQ42: 133.4564048 | AR42: =tau_n(N42,W42,U42,D42) -> 91.3966016 | AS42: =tau_hMax(X42,Z42,AH42,W42,U42) -> 95.69433914 | AT42: =tau_hMin(X42,Y42,AS42,AE42,Z42,AI42,IF(L42=1,mu_redLead,mu_millScale),W42,U42) -> 44.47781836 | AU42: 51.21652078
A43: 33 | B43: Kloppel1936 | C43: R; S | D43: 2 | E43: 1 | F43: 8.5 | G43: 35 | I43: 6 | J43: 8 | K43: 70 | M43: 410 | N43: 120.663 | O43: 0.276470588 | P43: 2000000 | Q43: 0 | R43: P99T4 | S43: RZE_ST37TH | T43: 33 | U43: 0.7058823529 | V43: 0.6071428571 | W43: 0.2428571429 | X43: 166.7699999 | Y43: 46.10699995 | Z43: =IF(OR(X43>=1.6*D43*AD43,D43=1),calcLoadFraction(G43,F43,I43,J43,K43,D43,1),"Condition for spring model not fulfilled") -> 0.5176815565 | AA43: =IF(L43>2,L43,IF(L43=2,1,sigma_cl0(I43+J43))) -> 112.4588041 | AB43: =Sigma_cl(AA43,U43,V43,X43) -> 98.90211148 | AC43: =Sigma_cl(AA43,U43,V43,Y43) -> 108.7107773 | AD43: =sigma_Slip(AB43,W43,U43,IF(L43=1,mu_redLead,mu_millScale)) -> 23.29593299 | AE43: =sigma_Slip(AC43,W43,U43,IF(L43=1,mu_redLead,mu_millScale)) -> 25.60631867 | AF43: =Sigma_p(AB43,V43) -> -23.23156804 | AG43: =Sigma_p(AC43,V43) -> -25.5355703 | AH43: =beta_1(X43,AD43,Z43) -> 0.7301642504 | AI43: =beta_1(Y43,AE43,Z43) -> 0 | AJ43: =k_tHole(W43,U43) -> 2.434043732 | AK43: =K_t1Mu(Z43,AH43,D43,W43,U43,SIGN(X43),mu_millScale) -> 3.441872347 | AL43: =K_t1Mu(Z43,AI43,D43,W43,U43,SIGN(Y43),mu_millScale) -> 1.804013958 | AM43: =Sigma_hMax(AK43,X43,AF43) -> 550.769483 | AN43: =Sigma_hMin(X43,Y43,AG43,AE43,AK43,AL43,AJ43,AI43,Z43,IF(L43=1,mu_redLead,mu_millScale)) -> 182.9547024 | AO43: 367.8147806 | AP43: 0.3321801734 | AQ43: 122.1867882 | AR43: =tau_n(N43,W43,U43,D43) -> 84.52467667 | AS43: =tau_hMax(X43,Z43,AH43,W43,U43) -> 88.3162422 | AT43: =tau_hMin(X43,Y43,AS43,AE43,Z43,AI43,IF(L43=1,mu_redLead,mu_millScale),W43,U43) -> 42.70190645 | AU43: 45.61433575
A44: 34 | B44: Kloppel1936 | C44: R; S | D44: 2 | E44: 1 | F44: 8.5 | G44: 35 | I44: 6 | J44: 8 | K44: 70 | M44: 410 | N44: 130.473 | O44: 0.261111111 | P44: 1900000 | Q44: 1 | R44: P99T4 | S44: RZE_ST37TH | T44: 34 | U44: 0.7058823529 | V44: 0.6071428571 | W44: 0.2428571429 | X44: 176.58 | Y44: 46.10699997 | Z44: =IF(OR(X44>=1.6*D44*AD44,D44=1),calcLoadFraction(G44,F44,I44,J44,K44,D44,1),"Condition for spring model not fulfilled") -> 0.5176815565 | AA44: =IF(L44>2,L44,IF(L44=2,1,sigma_cl0(I44+J44))) -> 112.4588041 | AB44: =Sigma_cl(AA44,U44,V44,X44) -> 98.10465897 | AC44: =Sigma_cl(AA44,U44,V44,Y44) -> 108.7107773 | AD44: =sigma_Slip(AB44,W44,U44,IF(L44=1,mu_redLead,mu_millScale)) -> 23.10809676 | AE44: =sigma_Slip(AC44,W44,U44,IF(L44=1,mu_redLead,mu_millScale)) -> 25.60631867 | AF44: =Sigma_p(AB44,V44) -> -23.04425079 | AG44: =Sigma_p(AC44,V44) -> -25.5355703 | AH44: =beta_1(X44,AD44,Z44) -> 0.747209952 | AI44: =beta_1(Y44,AE44,Z44) -> 0 | AJ44: =k_tHole(W44,U44) -> 2.434043732 | AK44: =K_t1Mu(Z44,AH44,D44,W44,U44,SIGN(X44),mu_millScale) -> 3.468714372 | AL44: =K_t1Mu(Z44,AI44,D44,W44,U44,SIGN(Y44),mu_millScale) -> 1.804013958 | AM44: =Sigma_hMax(AK44,X44,AF44) -> 589.4613329 | AN44: =Sigma_hMin(X44,Y44,AG44,AE44,AK44,AL44,AJ44,AI44,Z44,IF(L44=1,mu_redLead,mu_millScale)) -> 186.376771 | AO44: 403.084562 | AP44: 0.3161815043 | AQ44: 133.4564048 | AR44: =tau_n(N44,W44,U44,D44) -> 91.3966016 | AS44: =tau_hMax(X44,Z44,AH44,W44,U44) -> 95.69433914 | AT44: =tau_hMin(X44,Y44,AS44,AE44,Z44,AI44,IF(L44=1,mu_redLead,mu_millScale),W44,U44) -> 44.47781836 | AU44: 51.21652078
A45: 35 | B45: Kloppel1936 | C45: R; S | D45: 2 | E45: 1 | F45: 8.5 | G45: 35 | I45: 6 | J45: 8 | K45: 70 | M45: 410 | N45: 120.663 | O45: 0.276470588 | P45: 2000000 | Q45: 0 | R45: P99T4 | S45: RZE_ST37TH | T45: 35 | U45: 0.7058823529 | V45: 0.6071428571 | W45: 0.2428571429 | X45: 166.7699999 | Y45: 46.10699995 | Z45: =IF(OR(X45>=1.6*D45*AD45,D45=1),calcLoadFraction(G45,F45,I45,J45,K45,D45,1),"Condition for spring model not fulfilled") -> 0.5176815565 | AA45: =IF(L45>2,L45,IF(L45=2,1,sigma_cl0(I45+J45))) -> 112.4588041 | AB45: =Sigma_cl(AA45,U45,V45,X45) -> 98.90211148 | AC45: =Sigma_cl(AA45,U45,V45,Y45) -> 108.7107773 | AD45: =sigma_Slip(AB45,W45,U45,IF(L45=1,mu_redLead,mu_millScale)) -> 23.29593299 | AE45: =sigma_Slip(AC45,W45,U45,IF(L45=1,mu_redLead,mu_millScale)) -> 25.60631867 | AF45: =Sigma_p(AB45,V45) -> -23.23156804 | AG45: =Sigma_p(AC45,V45) -> -25.5355703 | AH45: =beta_1(X45,AD45,Z45) -> 0.7301642504 | AI45: =beta_1(Y45,AE45,Z45) -> 0 | AJ45: =k_tHole(W45,U45) -> 2.434043732 | AK45: =K_t1Mu(Z45,AH45,D45,W45,U45,SIGN(X45),mu_millScale) -> 3.441872347 | AL45: =K_t1Mu(Z45,AI45,D45,W45,U45,SIGN(Y45),mu_millScale) -> 1.804013958 | AM45: =Sigma_hMax(AK45,X45,AF45) -> 550.769483 | AN45: =Sigma_hMin(X45,Y45,AG45,AE45,AK45,AL45,AJ45,AI45,Z45,IF(L45=1,mu_redLead,mu_millScale)) -> 182.9547024 | AO45: 367.8147806 | AP45: 0.3321801734 | AQ45: 122.1867882 | AR45: =tau_n(N45,W45,U45,D45) -> 84.52467667 | AS45: =tau_hMax(X45,Z45,AH45,W45,U45) -> 88.3162422 | AT45: =tau_hMin(X45,Y45,AS45,AE45,Z45,AI45,IF(L45=1,mu_redLead,mu_millScale),W45,U45) -> 42.70190645 | AU45: 45.61433575
A46: 36 | B46: Kloppel1936 | C46: R; S | D46: 2 | E46: 1 | F46: 8.5 | G46: 35 | I46: 6 | J46: 8 | K46: 70 | M46: 410 | N46: 130.473 | O46: 0.261111111 | P46: 2000000 | Q46: 0 | R46: P99T4 | S46: RZE_ST37TH | T46: 36 | U46: 0.7058823529 | V46: 0.6071428571 | W46: 0.2428571429 | X46: 176.58 | Y46: 46.10699997 | Z46: =IF(OR(X46>=1.6*D46*AD46,D46=1),calcLoadFraction(G46,F46,I46,J46,K46,D46,1),"Condition for spring model not fulfilled") -> 0.5176815565 | AA46: =IF(L46>2,L46,IF(L46=2,1,sigma_cl0(I46+J46))) -> 112.4588041 | AB46: =Sigma_cl(AA46,U46,V46,X46) -> 98.10465897 | AC46: =Sigma_cl(AA46,U46,V46,Y46) -> 108.7107773 | AD46: =sigma_Slip(AB46,W46,U46,IF(L46=1,mu_redLead,mu_millScale)) -> 23.10809676 | AE46: =sigma_Slip(AC46,W46,U46,IF(L46=1,mu_redLead,mu_millScale)) -> 25.60631867 | AF46: =Sigma_p(AB46,V46) -> -23.04425079 | AG46: =Sigma_p(AC46,V46) -> -25.5355703 | AH46: =beta_1(X46,AD46,Z46) -> 0.747209952 | AI46: =beta_1(Y46,AE46,Z46) -> 0 | AJ46: =k_tHole(W46,U46) -> 2.434043732 | AK46: =K_t1Mu(Z46,AH46,D46,W46,U46,SIGN(X46),mu_millScale) -> 3.468714372 | AL46: =K_t1Mu(Z46,AI46,D46,W46,U46,SIGN(Y46),mu_millScale) -> 1.804013958 | AM46: =Sigma_hMax(AK46,X46,AF46) -> 589.4613329 | AN46: =Sigma_hMin(X46,Y46,AG46,AE46,AK46,AL46,AJ46,AI46,Z46,IF(L46=1,mu_redLead,mu_millScale)) -> 186.376771 | AO46: 403.084562 | AP46: 0.3161815043 | AQ46: 133.4564048 | AR46: =tau_n(N46,W46,U46,D46) -> 91.3966016 | AS46: =tau_hMax(X46,Z46,AH46,W46,U46) -> 95.69433914 | AT46: =tau_hMin(X46,Y46,AS46,AE46,Z46,AI46,IF(L46=1,mu_redLead,mu_millScale),W46,U46) -> 44.47781836 | AU46: 51.21652078
A47: 37 | B47: Kloppel1936 | C47: R; S | D47: 2 | E47: 1 | F47: 8.5 | G47: 35 | I47: 6 | J47: 8 | K47: 70 | M47: 410 | N47: 140.283 | O47: 0.247368421 | P47: 900000 | Q47: 1 | R47: P99T4 | S47: RZE_ST37TH | T47: 37 | U47: 0.7058823529 | V47: 0.6071428571 | W47: 0.2428571429 | X47: 186.39 | Y47: 46.10699999 | Z47: =IF(OR(X47>=1.6*D47*AD47,D47=1),calcLoadFraction(G47,F47,I47,J47,K47,D47,1),"Condition for spring model not fulfilled") -> 0.5176815565 | AA47: =IF(L47>2,L47,IF(L47=2,1,sigma_cl0(I47+J47))) -> 112.4588041 | AB47: =Sigma_cl(AA47,U47,V47,X47) -> 97.30720646 | AC47: =Sigma_cl(AA47,U47,V47,Y47) -> 108.7107773 | AD47: =sigma_Slip(AB47,W47,U47,IF(L47=1,mu_redLead,mu_millScale)) -> 22.92026052 | AE47: =sigma_Slip(AC47,W47,U47,IF(L47=1,mu_redLead,mu_millScale)) -> 25.60631867 | AF47: =Sigma_p(AB47,V47) -> -22.85693353 | AG47: =Sigma_p(AC47,V47) -> -25.5355703 | AH47: =beta_1(X47,AD47,Z47) -> 0.7624613692 | AI47: =beta_1(Y47,AE47,Z47) -> 0 | AJ47: =k_tHole(W47,U47) -> 2.434043732 | AK47: =K_t1Mu(Z47,AH47,D47,W47,U47,SIGN(X47),mu_millScale) -> 3.491586487 | AL47: =K_t1Mu(Z47,AI47,D47,W47,U47,SIGN(Y47),mu_millScale) -> 1.804013958 | AM47: =Sigma_hMax(AK47,X47,AF47) -> 627.9398717 | AN47: =Sigma_hMin(X47,Y47,AG47,AE47,AK47,AL47,AJ47,AI47,Z47,IF(L47=1,mu_redLead,mu_millScale)) -> 189.4189998 | AO47: 438.5208718 | AP47: 0.3016514931 | AQ47: 144.7666999 | AR47: =tau_n(N47,W47,U47,D47) -> 98.26852653 | AS47: =tau_hMax(X47,Z47,AH47,W47,U47) -> 103.0724361 | AT47: =tau_hMin(X47,Y47,AS47,AE47,Z47,AI47,IF(L47=1,mu_redLead,mu_millScale),W47,U47) -> 46.1295266 | AU47: 56.94290947
A48: 38 | B48: Kloppel1936 | C48: R; S | D48: 2 | E48: 1 | F48: 8.5 | G48: 35 | I48: 6 | J48: 8 | K48: 70 | M48: 550 | N48: 166.77 | O48: 0.105263158 | P48: 2246000 | Q48: 0 | R48: P99T6 | S48: RZE_ST52A | T48: 38 | U48: 0.7058823529 | V48: 0.6071428571 | W48: 0.2428571429 | X48: 186.39 | Y48: 19.62000002 | Z48: =IF(OR(X48>=1.6*D48*AD48,D48=1),calcLoadFraction(G48,F48,I48,J48,K48,D48,1),"Condition for spring model not fulfilled") -> 0.5176815565 | AA48: =IF(L48>2,L48,IF(L48=2,1,sigma_cl0(I48+J48))) -> 112.4588041 | AB48: =Sigma_cl(AA48,U48,V48,X48) -> 97.30720646 | AC48: =Sigma_cl(AA48,U48,V48,Y48) -> 110.8638991 | AD48: =sigma_Slip(AB48,W48,U48,IF(L48=1,mu_redLead,mu_millScale)) -> 22.92026052 | AE48: =sigma_Slip(AC48,W48,U48,IF(L48=1,mu_redLead,mu_millScale)) -> 26.1134765 | AF48: =Sigma_p(AB48,V48) -> -22.85693353 | AG48: =Sigma_p(AC48,V48) -> -26.04132689 | AH48: =beta_1(X48,AD48,Z48) -> 0.7624613692 | AI48: =beta_1(Y48,AE48,Z48) -> 0 | AJ48: =k_tHole(W48,U48) -> 2.434043732 | AK48: =K_t1Mu(Z48,AH48,D48,W48,U48,SIGN(X48),mu_millScale) -> 3.491586487 | AL48: =K_t1Mu(Z48,AI48,D48,W48,U48,SIGN(Y48),mu_millScale) -> 1.804013958 | AM48: =Sigma_hMax(AK48,X48,AF48) -> 627.9398718 | AN48: =Sigma_hMin(X48,Y48,AG48,AE48,AK48,AL48,AJ48,AI48,Z48,IF(L48=1,mu_redLead,mu_millScale)) -> 107.6776566 | AO48: 520.2622152 | AP48: 0.1714776549 | AQ48: 168.0474623 | AR48: =tau_n(N48,W48,U48,D48) -> 116.8227238 | AS48: =tau_hMax(X48,Z48,AH48,W48,U48) -> 103.0724361 | AT48: =tau_hMin(X48,Y48,AS48,AE48,Z48,AI48,IF(L48=1,mu_redLead,mu_millScale),W48,U48) -> 34.86377665 | AU48: 68.20865944
A49: 39 | B49: Kloppel1936 | C49: R; S | D49: 2 | E49: 1 | F49: 8.5 | G49: 35 | I49: 6 | J49: 8 | K49: 70 | M49: 550 | N49: 176.58 | O49: 0.1 | P49: 1359000 | Q49: 1 | R49: P99T6 | S49: RZE_ST52A | T49: 39 | U49: 0.7058823529 | V49: 0.6071428571 | W49: 0.2428571429 | X49: 196.2 | Y49: 19.62 | Z49: =IF(OR(X49>=1.6*D49*AD49,D49=1),calcLoadFraction(G49,F49,I49,J49,K49,D49,1),"Condition for spring model not fulfilled") -> 0.5176815565 | AA49: =IF(L49>2,L49,IF(L49=2,1,sigma_cl0(I49+J49))) -> 112.4588041 | AB49: =Sigma_cl(AA49,U49,V49,X49) -> 96.50975395 | AC49: =Sigma_cl(AA49,U49,V49,Y49) -> 110.8638991 | AD49: =sigma_Slip(AB49,W49,U49,IF(L49=1,mu_redLead,mu_millScale)) -> 22.73242429 | AE49: =sigma_Slip(AC49,W49,U49,IF(L49=1,mu_redLead,mu_millScale)) -> 26.1134765 | AF49: =Sigma_p(AB49,V49) -> -22.66961627 | AG49: =Sigma_p(AC49,V49) -> -26.04132689 | AH49: =beta_1(X49,AD49,Z49) -> 0.7761876446 | AI49: =beta_1(Y49,AE49,Z49) -> 0 | AJ49: =k_tHole(W49,U49) -> 2.434043732 | AK49: =K_t1Mu(Z49,AH49,D49,W49,U49,SIGN(X49),mu_millScale) -> 3.511212955 | AL49: =K_t1Mu(Z49,AI49,D49,W49,U49,SIGN(Y49),mu_millScale) -> 1.804013958 | AM49: =Sigma_hMax(AK49,X49,AF49) -> 666.2303655 | AN49: =Sigma_hMin(X49,Y49,AG49,AE49,AK49,AL49,AJ49,AI49,Z49,IF(L49=1,mu_redLead,mu_millScale)) -> 109.5646891 | AO49: 556.6656764 | AP49: 0.1644546613 | AQ49: 179.6272612 | AR49: =tau_n(N49,W49,U49,D49) -> 123.6946488 | AS49: =tau_hMax(X49,Z49,AH49,W49,U49) -> 110.450533 | AT49: =tau_hMin(X49,Y49,AS49,AE49,Z49,AI49,IF(L49=1,mu_redLead,mu_millScale),W49,U49) -> 36.03396562 | AU49: 74.41656738
A50: 40 | B50: Kloppel1936 | C50: R; S | D50: 2 | E50: 1 | F50: 8.5 | G50: 35 | I50: 6 | J50: 8 | K50: 70 | M50: 550 | N50: 166.77 | O50: 0.105263158 | P50: 498000 | Q50: 1 | R50: P99T6 | S50: RZE_ST52A | T50: 40 | U50: 0.7058823529 | V50: 0.6071428571 | W50: 0.2428571429 | X50: 186.39 | Y50: 19.62000002 | Z50: =IF(OR(X50>=1.6*D50*AD50,D50=1),calcLoadFraction(G50,F50,I50,J50,K50,D50,1),"Condition for spring model not fulfilled") -> 0.5176815565 | AA50: =IF(L50>2,L50,IF(L50=2,1,sigma_cl0(I50+J50))) -> 112.4588041 | AB50: =Sigma_cl(AA50,U50,V50,X50) -> 97.30720646 | AC50: =Sigma_cl(AA50,U50,V50,Y50) -> 110.8638991 | AD50: =sigma_Slip(AB50,W50,U50,IF(L50=1,mu_redLead,mu_millScale)) -> 22.92026052 | AE50: =sigma_Slip(AC50,W50,U50,IF(L50=1,mu_redLead,mu_millScale)) -> 26.1134765 | AF50: =Sigma_p(AB50,V50) -> -22.85693353 | AG50: =Sigma_p(AC50,V50) -> -26.04132689 | AH50: =beta_1(X50,AD50,Z50) -> 0.7624613692 | AI50: =beta_1(Y50,AE50,Z50) -> 0 | AJ50: =k_tHole(W50,U50) -> 2.434043732 | AK50: =K_t1Mu(Z50,AH50,D50,W50,U50,SIGN(X50),mu_millScale) -> 3.491586487 | AL50: =K_t1Mu(Z50,AI50,D50,W50,U50,SIGN(Y50),mu_millScale) -> 1.804013958 | AM50: =Sigma_hMax(AK50,X50,AF50) -> 627.9398718 | AN50: =Sigma_hMin(X50,Y50,AG50,AE50,AK50,AL50,AJ50,AI50,Z50,IF(L50=1,mu_redLead,mu_millScale)) -> 107.6776566 | AO50: 520.2622152 | AP50: 0.1714776549 | AQ50: 168.0474623 | AR50: =tau_n(N50,W50,U50,D50) -> 116.8227238 | AS50: =tau_hMax(X50,Z50,AH50,W50,U50) -> 103.0724361 | AT50: =tau_hMin(X50,Y50,AS50,AE50,Z50,AI50,IF(L50=1,mu_redLead,mu_millScale),W50,U50) -> 34.86377665 | AU50: 68.20865944
A51: 41 | B51: Kloppel1936 | C51: R; S | D51: 2 | E51: 1 | F51: 8.5 | G51: 35 | I51: 6 | J51: 8 | K51: 70 | M51: 550 | N51: 156.96 | O51: 0.111111111 | P51: 2242000 | Q51: 0 | R51: P99T6 | S51: RZE_ST52A | T51: 41 | U51: 0.7058823529 | V51: 0.6071428571 | W51: 0.2428571429 | X51: 176.58 | Y51: 19.61999998 | Z51: =IF(OR(X51>=1.6*D51*AD51,D51=1),calcLoadFraction(G51,F51,I51,J51,K51,D51,1),"Condition for spring model not fulfilled") -> 0.5176815565 | AA51: =IF(L51>2,L51,IF(L51=2,1,sigma_cl0(I51+J51))) -> 112.4588041 | AB51: =Sigma_cl(AA51,U51,V51,X51) -> 98.10465897 | AC51: =Sigma_cl(AA51,U51,V51,Y51) -> 110.8638991 | AD51: =sigma_Slip(AB51,W51,U51,IF(L51=1,mu_redLead,mu_millScale)) -> 23.10809676 | AE51: =sigma_Slip(AC51,W51,U51,IF(L51=1,mu_redLead,mu_millScale)) -> 26.11347651 | AF51: =Sigma_p(AB51,V51) -> -23.04425079 | AG51: =Sigma_p(AC51,V51) -> -26.04132689 | AH51: =beta_1(X51,AD51,Z51) -> 0.747209952 | AI51: =beta_1(Y51,AE51,Z51) -> 0 | AJ51: =k_tHole(W51,U51) -> 2.434043732 | AK51: =K_t1Mu(Z51,AH51,D51,W51,U51,SIGN(X51),mu_millScale) -> 3.468714372 | AL51: =K_t1Mu(Z51,AI51,D51,W51,U51,SIGN(Y51),mu_millScale) -> 1.804013958 | AM51: =Sigma_hMax(AK51,X51,AF51) -> 589.4613329 | AN51: =Sigma_hMin(X51,Y51,AG51,AE51,AK51,AL51,AJ51,AI51,Z51,IF(L51=1,mu_redLead,mu_millScale)) -> 105.5675622 | AO51: 483.8937707 | AP51: 0.1790915813 | AQ51: 156.4716857 | AR51: =tau_n(N51,W51,U51,D51) -> 109.9507989 | AS51: =tau_hMax(X51,Z51,AH51,W51,U51) -> 95.69433914 | AT51: =tau_hMin(X51,Y51,AS51,AE51,Z51,AI51,IF(L51=1,mu_redLead,mu_millScale),W51,U51) -> 33.61007852 | AU51: 62.08426063
A52: 42 | B52: Kloppel1936 | C52: R; S | D52: 2 | E52: 1 | F52: 8.5 | G52: 35 | I52: 6 | J52: 8 | K52: 70 | M52: 550 | N52: 166.77 | O52: 0.105263158 | P52: 1785000 | Q52: 1 | R52: P99T6 | S52: RZE_ST52A | T52: 42 | U52: 0.7058823529 | V52: 0.6071428571 | W52: 0.2428571429 | X52: 186.39 | Y52: 19.62000002 | Z52: =IF(OR(X52>=1.6*D52*AD52,D52=1),calcLoadFraction(G52,F52,I52,J52,K52,D52,1),"Condition for spring model not fulfilled") -> 0.5176815565 | AA52: =IF(L52>2,L52,IF(L52=2,1,sigma_cl0(I52+J52))) -> 112.4588041 | AB52: =Sigma_cl(AA52,U52,V52,X52) -> 97.30720646 | AC52: =Sigma_cl(AA52,U52,V52,Y52) -> 110.8638991 | AD52: =sigma_Slip(AB52,W52,U52,IF(L52=1,mu_redLead,mu_millScale)) -> 22.92026052 | AE52: =sigma_Slip(AC52,W52,U52,IF(L52=1,mu_redLead,mu_millScale)) -> 26.1134765 | AF52: =Sigma_p(AB52,V52) -> -22.85693353 | AG52: =Sigma_p(AC52,V52) -> -26.04132689 | AH52: =beta_1(X52,AD52,Z52) -> 0.7624613692 | AI52: =beta_1(Y52,AE52,Z52) -> 0 | AJ52: =k_tHole(W52,U52) -> 2.434043732 | AK52: =K_t1Mu(Z52,AH52,D52,W52,U52,SIGN(X52),mu_millScale) -> 3.491586487 | AL52: =K_t1Mu(Z52,AI52,D52,W52,U52,SIGN(Y52),mu_millScale) -> 1.804013958 | AM52: =Sigma_hMax(AK52,X52,AF52) -> 627.9398718 | AN52: =Sigma_hMin(X52,Y52,AG52,AE52,AK52,AL52,AJ52,AI52,Z52,IF(L52=1,mu_redLead,mu_millScale)) -> 107.6776566 | AO52: 520.2622152 | AP52: 0.1714776549 | AQ52: 168.0474623 | AR52: =tau_n(N52,W52,U52,D52) -> 116.8227238 | AS52: =tau_hMax(X52,Z52,AH52,W52,U52) -> 103.0724361 | AT52: =tau_hMin(X52,Y52,AS52,AE52,Z52,AI52,IF(L52=1,mu_redLead,mu_millScale),W52,U52) -> 34.86377665 | AU52: 68.20865944
A53: 43 | B53: Kloppel1936 | C53: R; S | D53: 2 | E53: 1 | F53: 8.5 | G53: 35 | I53: 6 | J53: 8 | K53: 70 | M53: 550 | N53: 156.96 | O53: 0.111111111 | P53: 2270000 | Q53: 0 | R53: P99T6 | S53: RZE_ST52A | T53: 43 | U53: 0.7058823529 | V53: 0.6071428571 | W53: 0.2428571429 | X53: 176.58 | Y53: 19.61999998 | Z53: =IF(OR(X53>=1.6*D53*AD53,D53=1),calcLoadFraction(G53,F53,I53,J53,K53,D53,1),"Condition for spring model not fulfilled") -> 0.5176815565 | AA53: =IF(L53>2,L53,IF(L53=2,1,sigma_cl0(I53+J53))) -> 112.4588041 | AB53: =Sigma_cl(AA53,U53,V53,X53) -> 98.10465897 | AC53: =Sigma_cl(AA53,U53,V53,Y53) -> 110.8638991 | AD53: =sigma_Slip(AB53,W53,U53,IF(L53=1,mu_redLead,mu_millScale)) -> 23.10809676 | AE53: =sigma_Slip(AC53,W53,U53,IF(L53=1,mu_redLead,mu_millScale)) -> 26.11347651 | AF53: =Sigma_p(AB53,V53) -> -23.04425079 | AG53: =Sigma_p(AC53,V53) -> -26.04132689 | AH53: =beta_1(X53,AD53,Z53) -> 0.747209952 | AI53: =beta_1(Y53,AE53,Z53) -> 0 | AJ53: =k_tHole(W53,U53) -> 2.434043732 | AK53: =K_t1Mu(Z53,AH53,D53,W53,U53,SIGN(X53),mu_millScale) -> 3.468714372 | AL53: =K_t1Mu(Z53,AI53,D53,W53,U53,SIGN(Y53),mu_millScale) -> 1.804013958 | AM53: =Sigma_hMax(AK53,X53,AF53) -> 589.4613329 | AN53: =Sigma_hMin(X53,Y53,AG53,AE53,AK53,AL53,AJ53,AI53,Z53,IF(L53=1,mu_redLead,mu_millScale)) -> 105.5675622 | AO53: 483.8937707 | AP53: 0.1790915813 | AQ53: 156.4716857 | AR53: =tau_n(N53,W53,U53,D53) -> 109.9507989 | AS53: =tau_hMax(X53,Z53,AH53,W53,U53) -> 95.69433914 | AT53: =tau_hMin(X53,Y53,AS53,AE53,Z53,AI53,IF(L53=1,mu_redLead,mu_millScale),W53,U53) -> 33.61007852 | AU53: 62.08426063
A54: 44 | B54: Kloppel1936 | C54: R; S | D54: 2 | E54: 1 | F54: 8.5 | G54: 35 | I54: 6 | J54: 8 | K54: 70 | M54: 550 | N54: 166.77 | O54: 0.105263158 | P54: 646000 | Q54: 1 | R54: P99T6 | S54: RZE_ST52A | T54: 44 | U54: 0.7058823529 | V54: 0.6071428571 | W54: 0.2428571429 | X54: 186.39 | Y54: 19.62000002 | Z54: =IF(OR(X54>=1.6*D54*AD54,D54=1),calcLoadFraction(G54,F54,I54,J54,K54,D54,1),"Condition for spring model not fulfilled") -> 0.5176815565 | AA54: =IF(L54>2,L54,IF(L54=2,1,sigma_cl0(I54+J54))) -> 112.4588041 | AB54: =Sigma_cl(AA54,U54,V54,X54) -> 97.30720646 | AC54: =Sigma_cl(AA54,U54,V54,Y54) -> 110.8638991 | AD54: =sigma_Slip(AB54,W54,U54,IF(L54=1,mu_redLead,mu_millScale)) -> 22.92026052 | AE54: =sigma_Slip(AC54,W54,U54,IF(L54=1,mu_redLead,mu_millScale)) -> 26.1134765 | AF54: =Sigma_p(AB54,V54) -> -22.85693353 | AG54: =Sigma_p(AC54,V54) -> -26.04132689 | AH54: =beta_1(X54,AD54,Z54) -> 0.7624613692 | AI54: =beta_1(Y54,AE54,Z54) -> 0 | AJ54: =k_tHole(W54,U54) -> 2.434043732 | AK54: =K_t1Mu(Z54,AH54,D54,W54,U54,SIGN(X54),mu_millScale) -> 3.491586487 | AL54: =K_t1Mu(Z54,AI54,D54,W54,U54,SIGN(Y54),mu_millScale) -> 1.804013958 | AM54: =Sigma_hMax(AK54,X54,AF54) -> 627.9398718 | AN54: =Sigma_hMin(X54,Y54,AG54,AE54,AK54,AL54,AJ54,AI54,Z54,IF(L54=1,mu_redLead,mu_millScale)) -> 107.6776566 | AO54: 520.2622152 | AP54: 0.1714776549 | AQ54: 168.0474623 | AR54: =tau_n(N54,W54,U54,D54) -> 116.8227238 | AS54: =tau_hMax(X54,Z54,AH54,W54,U54) -> 103.0724361 | AT54: =tau_hMin(X54,Y54,AS54,AE54,Z54,AI54,IF(L54=1,mu_redLead,mu_millScale),W54,U54) -> 34.86377665 | AU54: 68.20865944
A55: 45 | B55: Kloppel1936 | C55: R; S | D55: 2 | E55: 1 | F55: 8.5 | G55: 35 | I55: 6 | J55: 8 | K55: 70 | M55: 550 | N55: 166.77 | O55: 0.291666667 | P55: 1200000 | Q55: 1 | R55: P99T6 | S55: RZE_ST52A | T55: 45 | U55: 0.7058823529 | V55: 0.6071428571 | W55: 0.2428571429 | X55: 235.4400001 | Y55: 68.67000011 | Z55: =IF(OR(X55>=1.6*D55*AD55,D55=1),calcLoadFraction(G55,F55,I55,J55,K55,D55,1),"Condition for spring model not fulfilled") -> 0.5176815565 | AA55: =IF(L55>2,L55,IF(L55=2,1,sigma_cl0(I55+J55))) -> 112.4588041 | AB55: =Sigma_cl(AA55,U55,V55,X55) -> 93.31994391 | AC55: =Sigma_cl(AA55,U55,V55,Y55) -> 106.8766365 | AD55: =sigma_Slip(AB55,W55,U55,IF(L55=1,mu_redLead,mu_millScale)) -> 21.98107935 | AE55: =sigma_Slip(AC55,W55,U55,IF(L55=1,mu_redLead,mu_millScale)) -> 25.17429533 | AF55: =Sigma_p(AB55,V55) -> -21.92034724 | AG55: =Sigma_p(AC55,V55) -> -25.10474061 | AH55: =beta_1(X55,AD55,Z55) -> 0.8196541836 | AI55: =beta_1(Y55,AE55,Z55) -> 0.2918462128 | AJ55: =k_tHole(W55,U55) -> 2.434043732 | AK55: =K_t1Mu(Z55,AH55,D55,W55,U55,SIGN(X55),mu_millScale) -> 3.567035736 | AL55: =K_t1Mu(Z55,AI55,D55,W55,U55,SIGN(Y55),mu_millScale) -> 2.463941223 | AM55: =Sigma_hMax(AK55,X55,AF55) -> 817.9025468 | AN55: =Sigma_hMin(X55,Y55,AG55,AE55,AK55,AL55,AJ55,AI55,Z55,IF(L55=1,mu_redLead,mu_millScale)) -> 263.8070529 | AO55: 554.0954939 | AP55: 0.3225409359 | AQ55: 183.6949997 | AR55: =tau_n(N55,W55,U55,D55) -> 116.8227238 | AS55: =tau_hMax(X55,Z55,AH55,W55,U55) -> 139.9629207 | AT55: =tau_hMin(X55,Y55,AS55,AE55,Z55,AI55,IF(L55=1,mu_redLead,mu_millScale),W55,U55) -> 63.69972528 | AU55: 76.26319547
A56: 46 | B56: Kloppel1936 | C56: R; S | D56: 2 | E56: 1 | F56: 8.5 | G56: 35 | I56: 6 | J56: 8 | K56: 70 | M56: 550 | N56: 156.96 | O56: 0.304347826 | P56: 1500000 | Q56: 1 | R56: P99T6 | S56: RZE_ST52A | T56: 46 | U56: 0.7058823529 | V56: 0.6071428571 | W56: 0.2428571429 | X56: 225.63 | Y56: 68.66999997 | Z56: =IF(OR(X56>=1.6*D56*AD56,D56=1),calcLoadFraction(G56,F56,I56,J56,K56,D56,1),"Condition for spring model not fulfilled") -> 0.5176815565 | AA56: =IF(L56>2,L56,IF(L56=2,1,sigma_cl0(I56+J56))) -> 112.4588041 | AB56: =Sigma_cl(AA56,U56,V56,X56) -> 94.11739643 | AC56: =Sigma_cl(AA56,U56,V56,Y56) -> 106.8766366 | AD56: =sigma_Slip(AB56,W56,U56,IF(L56=1,mu_redLead,mu_millScale)) -> 22.16891559 | AE56: =sigma_Slip(AC56,W56,U56,IF(L56=1,mu_redLead,mu_millScale)) -> 25.17429533 | AF56: =Sigma_p(AB56,V56) -> -22.1076645 | AG56: =Sigma_p(AC56,V56) -> -25.10474061 | AH56: =beta_1(X56,AD56,Z56) -> 0.8102049359 | AI56: =beta_1(Y56,AE56,Z56) -> 0.2918462113 | AJ56: =k_tHole(W56,U56) -> 2.434043732 | AK56: =K_t1Mu(Z56,AH56,D56,W56,U56,SIGN(X56),mu_millScale) -> 3.555747282 | AL56: =K_t1Mu(Z56,AI56,D56,W56,U56,SIGN(Y56),mu_millScale) -> 2.463941219 | AM56: =Sigma_hMax(AK56,X56,AF56) -> 780.1755947 | AN56: =Sigma_hMin(X56,Y56,AG56,AE56,AK56,AL56,AJ56,AI56,Z56,IF(L56=1,mu_redLead,mu_millScale)) -> 261.7628561 | AO56: 518.4127386 | AP56: 0.335517873 | AQ56: 172.3382988 | AR56: =tau_n(N56,W56,U56,D56) -> 109.9507989 | AS56: =tau_hMax(X56,Z56,AH56,W56,U56) -> 132.5848237 | AT56: =tau_hMin(X56,Y56,AS56,AE56,Z56,AI56,IF(L56=1,mu_redLead,mu_millScale),W56,U56) -> 62.25903874 | AU56: 70.32578499
A57: 47 | B57: Kloppel1936 | C57: R; S | D57: 2 | E57: 1 | F57: 8.5 | G57: 35 | I57: 6 | J57: 8 | K57: 70 | M57: 550 | N57: 156.96 | O57: 0.304347826 | P57: 2300000 | Q57: 0 | R57: P99T6 | S57: RZE_ST52A | T57: 47 | U57: 0.7058823529 | V57: 0.6071428571 | W57: 0.2428571429 | X57: 225.63 | Y57: 68.66999997 | Z57: =IF(OR(X57>=1.6*D57*AD57,D57=1),calcLoadFraction(G57,F57,I57,J57,K57,D57,1),"Condition for spring model not fulfilled") -> 0.5176815565 | AA57: =IF(L57>2,L57,IF(L57=2,1,sigma_cl0(I57+J57))) -> 112.4588041 | AB57: =Sigma_cl(AA57,U57,V57,X57) -> 94.11739643 | AC57: =Sigma_cl(AA57,U57,V57,Y57) -> 106.8766366 | AD57: =sigma_Slip(AB57,W57,U57,IF(L57=1,mu_redLead,mu_millScale)) -> 22.16891559 | AE57: =sigma_Slip(AC57,W57,U57,IF(L57=1,mu_redLead,mu_millScale)) -> 25.17429533 | AF57: =Sigma_p(AB57,V57) -> -22.1076645 | AG57: =Sigma_p(AC57,V57) -> -25.10474061 | AH57: =beta_1(X57,AD57,Z57) -> 0.8102049359 | AI57: =beta_1(Y57,AE57,Z57) -> 0.2918462113 | AJ57: =k_tHole(W57,U57) -> 2.434043732 | AK57: =K_t1Mu(Z57,AH57,D57,W57,U57,SIGN(X57),mu_millScale) -> 3.555747282 | AL57: =K_t1Mu(Z57,AI57,D57,W57,U57,SIGN(Y57),mu_millScale) -> 2.463941219 | AM57: =Sigma_hMax(AK57,X57,AF57) -> 780.1755947 | AN57: =Sigma_hMin(X57,Y57,AG57,AE57,AK57,AL57,AJ57,AI57,Z57,IF(L57=1,mu_redLead,mu_millScale)) -> 261.7628561 | AO57: 518.4127386 | AP57: 0.335517873 | AQ57: 172.3382988 | AR57: =tau_n(N57,W57,U57,D57) -> 109.9507989 | AS57: =tau_hMax(X57,Z57,AH57,W57,U57) -> 132.5848237 | AT57: =tau_hMin(X57,Y57,AS57,AE57,Z57,AI57,IF(L57=1,mu_redLead,mu_millScale),W57,U57) -> 62.25903874 | AU57: 70.32578499
A58: 48 | B58: Kloppel1936 | C58: R; S | D58: 2 | E58: 1 | F58: 8.5 | G58: 35 | I58: 6 | J58: 8 | K58: 70 | M58: 550 | N58: 166.77 | O58: 0.291666667 | P58: 1900000 | Q58: 1 | R58: P99T6 | S58: RZE_ST52A | T58: 48 | U58: 0.7058823529 | V58: 0.6071428571 | W58: 0.2428571429 | X58: 235.4400001 | Y58: 68.67000011 | Z58: =IF(OR(X58>=1.6*D58*AD58,D58=1),calcLoadFraction(G58,F58,I58,J58,K58,D58,1),"Condition for spring model not fulfilled") -> 0.5176815565 | AA58: =IF(L58>2,L58,IF(L58=2,1,sigma_cl0(I58+J58))) -> 112.4588041 | AB58: =Sigma_cl(AA58,U58,V58,X58) -> 93.31994391 | AC58: =Sigma_cl(AA58,U58,V58,Y58) -> 106.8766365 | AD58: =sigma_Slip(AB58,W58,U58,IF(L58=1,mu_redLead,mu_millScale)) -> 21.98107935 | AE58: =sigma_Slip(AC58,W58,U58,IF(L58=1,mu_redLead,mu_millScale)) -> 25.17429533 | AF58: =Sigma_p(AB58,V58) -> -21.92034724 | AG58: =Sigma_p(AC58,V58) -> -25.10474061 | AH58: =beta_1(X58,AD58,Z58) -> 0.8196541836 | AI58: =beta_1(Y58,AE58,Z58) -> 0.2918462128 | AJ58: =k_tHole(W58,U58) -> 2.434043732 | AK58: =K_t1Mu(Z58,AH58,D58,W58,U58,SIGN(X58),mu_millScale) -> 3.567035736 | AL58: =K_t1Mu(Z58,AI58,D58,W58,U58,SIGN(Y58),mu_millScale) -> 2.463941223 | AM58: =Sigma_hMax(AK58,X58,AF58) -> 817.9025468 | AN58: =Sigma_hMin(X58,Y58,AG58,AE58,AK58,AL58,AJ58,AI58,Z58,IF(L58=1,mu_redLead,mu_millScale)) -> 263.8070529 | AO58: 554.0954939 | AP58: 0.3225409359 | AQ58: 183.6949997 | AR58: =tau_n(N58,W58,U58,D58) -> 116.8227238 | AS58: =tau_hMax(X58,Z58,AH58,W58,U58) -> 139.9629207 | AT58: =tau_hMin(X58,Y58,AS58,AE58,Z58,AI58,IF(L58=1,mu_redLead,mu_millScale),W58,U58) -> 63.69972528 | AU58: 76.26319547
A59: 49 | B59: Kloppel1936 | C59: R; S | D59: 2 | E59: 1 | F59: 8.5 | G59: 35 | I59: 6 | J59: 8 | K59: 70 | M59: 550 | N59: 156.96 | O59: 0.304347826 | P59: 1500000 | Q59: 1 | R59: P99T6 | S59: RZE_ST52A | T59: 49 | U59: 0.7058823529 | V59: 0.6071428571 | W59: 0.2428571429 | X59: 225.63 | Y59: 68.66999997 | Z59: =IF(OR(X59>=1.6*D59*AD59,D59=1),calcLoadFraction(G59,F59,I59,J59,K59,D59,1),"Condition for spring model not fulfilled") -> 0.5176815565 | AA59: =IF(L59>2,L59,IF(L59=2,1,sigma_cl0(I59+J59))) -> 112.4588041 | AB59: =Sigma_cl(AA59,U59,V59,X59) -> 94.11739643 | AC59: =Sigma_cl(AA59,U59,V59,Y59) -> 106.8766366 | AD59: =sigma_Slip(AB59,W59,U59,IF(L59=1,mu_redLead,mu_millScale)) -> 22.16891559 | AE59: =sigma_Slip(AC59,W59,U59,IF(L59=1,mu_redLead,mu_millScale)) -> 25.17429533 | AF59: =Sigma_p(AB59,V59) -> -22.1076645 | AG59: =Sigma_p(AC59,V59) -> -25.10474061 | AH59: =beta_1(X59,AD59,Z59) -> 0.8102049359 | AI59: =beta_1(Y59,AE59,Z59) -> 0.2918462113 | AJ59: =k_tHole(W59,U59) -> 2.434043732 | AK59: =K_t1Mu(Z59,AH59,D59,W59,U59,SIGN(X59),mu_millScale) -> 3.555747282 | AL59: =K_t1Mu(Z59,AI59,D59,W59,U59,SIGN(Y59),mu_millScale) -> 2.463941219 | AM59: =Sigma_hMax(AK59,X59,AF59) -> 780.1755947 | AN59: =Sigma_hMin(X59,Y59,AG59,AE59,AK59,AL59,AJ59,AI59,Z59,IF(L59=1,mu_redLead,mu_millScale)) -> 261.7628561 | AO59: 518.4127386 | AP59: 0.335517873 | AQ59: 172.3382988 | AR59: =tau_n(N59,W59,U59,D59) -> 109.9507989 | AS59: =tau_hMax(X59,Z59,AH59,W59,U59) -> 132.5848237 | AT59: =tau_hMin(X59,Y59,AS59,AE59,Z59,AI59,IF(L59=1,mu_redLead,mu_millScale),W59,U59) -> 62.25903874 | AU59: 70.32578499
A60: 50 | B60: Kloppel1936 | C60: R; S | D60: 2 | E60: 1 | F60: 8.5 | G60: 35 | I60: 6 | J60: 8 | K60: 70 | M60: 550 | N60: 147.15 | O60: 0.318181818 | P60: 2300000 | Q60: 0 | R60: P99T6 | S60: RZE_ST52A | T60: 50 | U60: 0.7058823529 | V60: 0.6071428571 | W60: 0.2428571429 | X60: 215.8199999 | Y60: 68.66999994 | Z60: =IF(OR(X60>=1.6*D60*AD60,D60=1),calcLoadFraction(G60,F60,I60,J60,K60,D60,1),"Condition for spring model not fulfilled") -> 0.5176815565 | AA60: =IF(L60>2,L60,IF(L60=2,1,sigma_cl0(I60+J60))) -> 112.4588041 | AB60: =Sigma_cl(AA60,U60,V60,X60) -> 94.91484894 | AC60: =Sigma_cl(AA60,U60,V60,Y60) -> 106.8766366 | AD60: =sigma_Slip(AB60,W60,U60,IF(L60=1,mu_redLead,mu_millScale)) -> 22.35675182 | AE60: =sigma_Slip(AC60,W60,U60,IF(L60=1,mu_redLead,mu_millScale)) -> 25.17429533 | AF60: =Sigma_p(AB60,V60) -> -22.29498176 | AG60: =Sigma_p(AC60,V60) -> -25.10474061 | AH60: =beta_1(X60,AD60,Z60) -> 0.7998966658 | AI60: =beta_1(Y60,AE60,Z60) -> 0.2918462109 | AJ60: =k_tHole(W60,U60) -> 2.434043732 | AK60: =K_t1Mu(Z60,AH60,D60,W60,U60,SIGN(X60),mu_millScale) -> 3.542886933 | AL60: =K_t1Mu(Z60,AI60,D60,W60,U60,SIGN(Y60),mu_millScale) -> 2.463941219 | AM60: =Sigma_hMax(AK60,X60,AF60) -> 742.3308758 | AN60: =Sigma_hMin(X60,Y60,AG60,AE60,AK60,AL60,AJ60,AI60,Z60,IF(L60=1,mu_redLead,mu_millScale)) -> 259.5097488 | AO60: 482.821127 | AP60: 0.3495877071 | AQ60: 161.0038297 | AR60: =tau_n(N60,W60,U60,D60) -> 103.078874 | AS60: =tau_hMax(X60,Z60,AH60,W60,U60) -> 125.2067268 | AT60: =tau_hMin(X60,Y60,AS60,AE60,Z60,AI60,IF(L60=1,mu_redLead,mu_millScale),W60,U60) -> 60.73165766 | AU60: 64.47506912
A61: 51 | B61: Kloppel1936 | C61: R; S | D61: 2 | E61: 1 | F61: 8.5 | G61: 35 | I61: 6 | J61: 8 | K61: 70 | M61: 550 | N61: 156.96 | O61: 0.304347826 | P61: 1300000 | Q61: 1 | R61: P99T6 | S61: RZE_ST52A | T61: 51 | U61: 0.7058823529 | V61: 0.6071428571 | W61: 0.2428571429 | X61: 225.63 | Y61: 68.66999997 | Z61: =IF(OR(X61>=1.6*D61*AD61,D61=1),calcLoadFraction(G61,F61,I61,J61,K61,D61,1),"Condition for spring model not fulfilled") -> 0.5176815565 | AA61: =IF(L61>2,L61,IF(L61=2,1,sigma_cl0(I61+J61))) -> 112.4588041 | AB61: =Sigma_cl(AA61,U61,V61,X61) -> 94.11739643 | AC61: =Sigma_cl(AA61,U61,V61,Y61) -> 106.8766366 | AD61: =sigma_Slip(AB61,W61,U61,IF(L61=1,mu_redLead,mu_millScale)) -> 22.16891559 | AE61: =sigma_Slip(AC61,W61,U61,IF(L61=1,mu_redLead,mu_millScale)) -> 25.17429533 | AF61: =Sigma_p(AB61,V61) -> -22.1076645 | AG61: =Sigma_p(AC61,V61) -> -25.10474061 | AH61: =beta_1(X61,AD61,Z61) -> 0.8102049359 | AI61: =beta_1(Y61,AE61,Z61) -> 0.2918462113 | AJ61: =k_tHole(W61,U61) -> 2.434043732 | AK61: =K_t1Mu(Z61,AH61,D61,W61,U61,SIGN(X61),mu_millScale) -> 3.555747282 | AL61: =K_t1Mu(Z61,AI61,D61,W61,U61,SIGN(Y61),mu_millScale) -> 2.463941219 | AM61: =Sigma_hMax(AK61,X61,AF61) -> 780.1755947 | AN61: =Sigma_hMin(X61,Y61,AG61,AE61,AK61,AL61,AJ61,AI61,Z61,IF(L61=1,mu_redLead,mu_millScale)) -> 261.7628561 | AO61: 518.4127386 | AP61: 0.335517873 | AQ61: 172.3382988 | AR61: =tau_n(N61,W61,U61,D61) -> 109.9507989 | AS61: =tau_hMax(X61,Z61,AH61,W61,U61) -> 132.5848237 | AT61: =tau_hMin(X61,Y61,AS61,AE61,Z61,AI61,IF(L61=1,mu_redLead,mu_millScale),W61,U61) -> 62.25903874 | AU61: 70.32578499
A62: 52 | B62: Kloppel1936 | C62: R; S | D62: 2 | E62: 1 | F62: 8.5 | G62: 35 | I62: 6 | J62: 8 | K62: 70 | M62: 541.5 | N62: 206.01 | O62: 0.087 | P62: 894210 | Q62: 1 | R62: P100T7 | S62: DAHLEN_ST52B | T62: 52 | U62: 0.7058823529 | V62: 0.6071428571 | W62: 0.2428571429 | X62: 225.6407448 | Y62: 19.6307448 | Z62: =IF(OR(X62>=1.6*D62*AD62,D62=1),calcLoadFraction(G62,F62,I62,J62,K62,D62,1),"Condition for spring model not fulfilled") -> 0.5176815565 | AA62: =IF(L62>2,L62,IF(L62=2,1,sigma_cl0(I62+J62))) -> 112.4588041 | AB62: =Sigma_cl(AA62,U62,V62,X62) -> 94.11652299 | AC62: =Sigma_cl(AA62,U62,V62,Y62) -> 110.8630256 | AD62: =sigma_Slip(AB62,W62,U62,IF(L62=1,mu_redLead,mu_millScale)) -> 22.16870985 | AE62: =sigma_Slip(AC62,W62,U62,IF(L62=1,mu_redLead,mu_millScale)) -> 26.11327077 | AF62: =Sigma_p(AB62,V62) -> -22.10745934 | AG62: =Sigma_p(AC62,V62) -> -26.04112172 | AH62: =beta_1(X62,AD62,Z62) -> 0.8102157351 | AI62: =beta_1(Y62,AE62,Z62) -> 0 | AJ62: =k_tHole(W62,U62) -> 2.434043732 | AK62: =K_t1Mu(Z62,AH62,D62,W62,U62,SIGN(X62),mu_millScale) -> 3.555760459 | AL62: =K_t1Mu(Z62,AI62,D62,W62,U62,SIGN(Y62),mu_millScale) -> 1.804013958 | AM62: =Sigma_hMax(AK62,X62,AF62) -> 780.2169789 | AN62: =Sigma_hMin(X62,Y62,AG62,AE62,AK62,AL62,AJ62,AI62,Z62,IF(L62=1,mu_redLead,mu_millScale)) -> 114.2163505 | AO62: 666.0006284 | AP62: 0.1463904959 | AQ62: 214.374134 | AR62: =tau_n(N62,W62,U62,D62) -> 144.3104236 | AS62: =tau_hMax(X62,Z62,AH62,W62,U62) -> 132.5929049 | AT62: =tau_hMin(X62,Y62,AS62,AE62,Z62,AI62,IF(L62=1,mu_redLead,mu_millScale),W62,U62) -> 39.13245267 | AU62: 93.46045224
A63: 53 | B63: Kloppel1936 | C63: R; S | D63: 2 | E63: 1 | F63: 8.5 | G63: 35 | I63: 6 | J63: 8 | K63: 70 | M63: 541.5 | N63: 186.39 | O63: 0.0952 | P63: 1212470 | Q63: 1 | R63: P100T7 | S63: DAHLEN_ST52B | T63: 53 | U63: 0.7058823529 | V63: 0.6071428571 | W63: 0.2428571429 | X63: 206.0013263 | Y63: 19.61132626 | Z63: =IF(OR(X63>=1.6*D63*AD63,D63=1),calcLoadFraction(G63,F63,I63,J63,K63,D63,1),"Condition for spring model not fulfilled") -> 0.5176815565 | AA63: =IF(L63>2,L63,IF(L63=2,1,sigma_cl0(I63+J63))) -> 112.4588041 | AB63: =Sigma_cl(AA63,U63,V63,X63) -> 95.71300653 | AC63: =Sigma_cl(AA63,U63,V63,Y63) -> 110.8646042 | AD63: =sigma_Slip(AB63,W63,U63,IF(L63=1,mu_redLead,mu_millScale)) -> 22.54475413 | AE63: =sigma_Slip(AC63,W63,U63,IF(L63=1,mu_redLead,mu_millScale)) -> 26.11364258 | AF63: =Sigma_p(AB63,V63) -> -22.48246464 | AG63: =Sigma_p(AC63,V63) -> -26.04149251 | AH63: =beta_1(X63,AD63,Z63) -> 0.7885961976 | AI63: =beta_1(Y63,AE63,Z63) -> 0 | AJ63: =k_tHole(W63,U63) -> 2.434043732 | AK63: =K_t1Mu(Z63,AH63,D63,W63,U63,SIGN(X63),mu_millScale) -> 3.528148707 | AL63: =K_t1Mu(Z63,AI63,D63,W63,U63,SIGN(Y63),mu_millScale) -> 1.804013958 | AM63: =Sigma_hMax(AK63,X63,AF63) -> 704.3208483 | AN63: =Sigma_hMin(X63,Y63,AG63,AE63,AK63,AL63,AJ63,AI63,Z63,IF(L63=1,mu_redLead,mu_millScale)) -> 111.2320314 | AO63: 593.0888169 | AP63: 0.1579280688 | AQ63: 191.2063355 | AR63: =tau_n(N63,W63,U63,D63) -> 130.5665737 | AS63: =tau_hMax(X63,Z63,AH63,W63,U63) -> 117.8221064 | AT63: =tau_hMin(X63,Y63,AS63,AE63,Z63,AI63,IF(L63=1,mu_redLead,mu_millScale),W63,U63) -> 37.12460479 | AU63: 80.6975016
A64: 54 | B64: Kloppel1936 | C64: R; S | D64: 2 | E64: 1 | F64: 8.5 | G64: 35 | I64: 6 | J64: 8 | K64: 70 | M64: 541.5 | N64: 176.58 | O64: 0.1 | P64: 336900 | Q64: 1 | R64: P100T7 | S64: DAHLEN_ST52B | T64: 54 | U64: 0.7058823529 | V64: 0.6071428571 | W64: 0.2428571429 | X64: 196.2 | Y64: 19.62 | Z64: =IF(OR(X64>=1.6*D64*AD64,D64=1),calcLoadFraction(G64,F64,I64,J64,K64,D64,1),"Condition for spring model not fulfilled") -> 0.5176815565 | AA64: =IF(L64>2,L64,IF(L64=2,1,sigma_cl0(I64+J64))) -> 112.4588041 | AB64: =Sigma_cl(AA64,U64,V64,X64) -> 96.50975395 | AC64: =Sigma_cl(AA64,U64,V64,Y64) -> 110.8638991 | AD64: =sigma_Slip(AB64,W64,U64,IF(L64=1,mu_redLead,mu_millScale)) -> 22.73242429 | AE64: =sigma_Slip(AC64,W64,U64,IF(L64=1,mu_redLead,mu_millScale)) -> 26.1134765 | AF64: =Sigma_p(AB64,V64) -> -22.66961627 | AG64: =Sigma_p(AC64,V64) -> -26.04132689 | AH64: =beta_1(X64,AD64,Z64) -> 0.7761876446 | AI64: =beta_1(Y64,AE64,Z64) -> 0 | AJ64: =k_tHole(W64,U64) -> 2.434043732 | AK64: =K_t1Mu(Z64,AH64,D64,W64,U64,SIGN(X64),mu_millScale) -> 3.511212955 | AL64: =K_t1Mu(Z64,AI64,D64,W64,U64,SIGN(Y64),mu_millScale) -> 1.804013958 | AM64: =Sigma_hMax(AK64,X64,AF64) -> 666.2303655 | AN64: =Sigma_hMin(X64,Y64,AG64,AE64,AK64,AL64,AJ64,AI64,Z64,IF(L64=1,mu_redLead,mu_millScale)) -> 109.5646891 | AO64: 556.6656764 | AP64: 0.1644546613 | AQ64: 179.6272612 | AR64: =tau_n(N64,W64,U64,D64) -> 123.6946488 | AS64: =tau_hMax(X64,Z64,AH64,W64,U64) -> 110.450533 | AT64: =tau_hMin(X64,Y64,AS64,AE64,Z64,AI64,IF(L64=1,mu_redLead,mu_millScale),W64,U64) -> 36.03396562 | AU64: 74.41656738
A65: 55 | B65: Kloppel1936 | C65: R; S | D65: 2 | E65: 1 | F65: 8.5 | G65: 35 | I65: 6 | J65: 8 | K65: 70 | M65: 541.5 | N65: 170.694 | O65: 0.103092784 | P65: 2111280 | Q65: 0 | R65: P100T7 | S65: DAHLEN_ST52B | T65: 55 | U65: 0.7058823529 | V65: 0.6071428571 | W65: 0.2428571429 | X65: 190.3140001 | Y65: 19.62000011 | Z65: =IF(OR(X65>=1.6*D65*AD65,D65=1),calcLoadFraction(G65,F65,I65,J65,K65,D65,1),"Condition for spring model not fulfilled") -> 0.5176815565 | AA65: =IF(L65>2,L65,IF(L65=2,1,sigma_cl0(I65+J65))) -> 112.4588041 | AB65: =Sigma_cl(AA65,U65,V65,X65) -> 96.98822545 | AC65: =Sigma_cl(AA65,U65,V65,Y65) -> 110.8638991 | AD65: =sigma_Slip(AB65,W65,U65,IF(L65=1,mu_redLead,mu_millScale)) -> 22.84512603 | AE65: =sigma_Slip(AC65,W65,U65,IF(L65=1,mu_redLead,mu_millScale)) -> 26.1134765 | AF65: =Sigma_p(AB65,V65) -> -22.78200662 | AG65: =Sigma_p(AC65,V65) -> -26.04132689 | AH65: =beta_1(X65,AD65,Z65) -> 0.7681216891 | AI65: =beta_1(Y65,AE65,Z65) -> 0 | AJ65: =k_tHole(W65,U65) -> 2.434043732 | AK65: =K_t1Mu(Z65,AH65,D65,W65,U65,SIGN(X65),mu_millScale) -> 3.499791678 | AL65: =K_t1Mu(Z65,AI65,D65,W65,U65,SIGN(Y65),mu_millScale) -> 1.804013958 | AM65: =Sigma_hMax(AK65,X65,AF65) -> 643.2773471 | AN65: =Sigma_hMin(X65,Y65,AG65,AE65,AK65,AL65,AJ65,AI65,Z65,IF(L65=1,mu_redLead,mu_millScale)) -> 108.4573017 | AO65: 534.8200454 | AP65: 0.1686011518 | AQ65: 172.6790429 | AR65: =tau_n(N65,W65,U65,D65) -> 119.5714938 | AS65: =tau_hMax(X65,Z65,AH65,W65,U65) -> 106.0236749 | AT65: =tau_hMin(X65,Y65,AS65,AE65,Z65,AI65,IF(L65=1,mu_redLead,mu_millScale),W65,U65) -> 35.34134536 | AU65: 70.68232956
A66: 56 | B66: Kloppel1936 | C66: R; S | D66: 2 | E66: 1 | F66: 8.5 | G66: 35 | I66: 6 | J66: 8 | K66: 70 | M66: 541.5 | N66: 166.77 | O66: 0.105263158 | P66: 2070110 | Q66: 0 | R66: P100T7 | S66: DAHLEN_ST52B | T66: 56 | U66: 0.7058823529 | V66: 0.6071428571 | W66: 0.2428571429 | X66: 186.39 | Y66: 19.62000002 | Z66: =IF(OR(X66>=1.6*D66*AD66,D66=1),calcLoadFraction(G66,F66,I66,J66,K66,D66,1),"Condition for spring model not fulfilled") -> 0.5176815565 | AA66: =IF(L66>2,L66,IF(L66=2,1,sigma_cl0(I66+J66))) -> 112.4588041 | AB66: =Sigma_cl(AA66,U66,V66,X66) -> 97.30720646 | AC66: =Sigma_cl(AA66,U66,V66,Y66) -> 110.8638991 | AD66: =sigma_Slip(AB66,W66,U66,IF(L66=1,mu_redLead,mu_millScale)) -> 22.92026052 | AE66: =sigma_Slip(AC66,W66,U66,IF(L66=1,mu_redLead,mu_millScale)) -> 26.1134765 | AF66: =Sigma_p(AB66,V66) -> -22.85693353 | AG66: =Sigma_p(AC66,V66) -> -26.04132689 | AH66: =beta_1(X66,AD66,Z66) -> 0.7624613692 | AI66: =beta_1(Y66,AE66,Z66) -> 0 | AJ66: =k_tHole(W66,U66) -> 2.434043732 | AK66: =K_t1Mu(Z66,AH66,D66,W66,U66,SIGN(X66),mu_millScale) -> 3.491586487 | AL66: =K_t1Mu(Z66,AI66,D66,W66,U66,SIGN(Y66),mu_millScale) -> 1.804013958 | AM66: =Sigma_hMax(AK66,X66,AF66) -> 627.9398718 | AN66: =Sigma_hMin(X66,Y66,AG66,AE66,AK66,AL66,AJ66,AI66,Z66,IF(L66=1,mu_redLead,mu_millScale)) -> 107.6776566 | AO66: 520.2622152 | AP66: 0.1714776549 | AQ66: 168.0474623 | AR66: =tau_n(N66,W66,U66,D66) -> 116.8227238 | AS66: =tau_hMax(X66,Z66,AH66,W66,U66) -> 103.0724361 | AT66: =tau_hMin(X66,Y66,AS66,AE66,Z66,AI66,IF(L66=1,mu_redLead,mu_millScale),W66,U66) -> 34.86377665 | AU66: 68.20865944
A67: 57 | B67: Kloppel1936 | C67: R; S | D67: 2 | E67: 1 | F67: 8.5 | G67: 35 | I67: 6 | J67: 8 | K67: 70 | M67: 541.5 | N67: 206.01 | O67: 0.087 | P67: 764500 | Q67: 1 | R67: P100T7 | S67: DAHLEN_ST52B | T67: 57 | U67: 0.7058823529 | V67: 0.6071428571 | W67: 0.2428571429 | X67: 225.6407448 | Y67: 19.6307448 | Z67: =IF(OR(X67>=1.6*D67*AD67,D67=1),calcLoadFraction(G67,F67,I67,J67,K67,D67,1),"Condition for spring model not fulfilled") -> 0.5176815565 | AA67: =IF(L67>2,L67,IF(L67=2,1,sigma_cl0(I67+J67))) -> 112.4588041 | AB67: =Sigma_cl(AA67,U67,V67,X67) -> 94.11652299 | AC67: =Sigma_cl(AA67,U67,V67,Y67) -> 110.8630256 | AD67: =sigma_Slip(AB67,W67,U67,IF(L67=1,mu_redLead,mu_millScale)) -> 22.16870985 | AE67: =sigma_Slip(AC67,W67,U67,IF(L67=1,mu_redLead,mu_millScale)) -> 26.11327077 | AF67: =Sigma_p(AB67,V67) -> -22.10745934 | AG67: =Sigma_p(AC67,V67) -> -26.04112172 | AH67: =beta_1(X67,AD67,Z67) -> 0.8102157351 | AI67: =beta_1(Y67,AE67,Z67) -> 0 | AJ67: =k_tHole(W67,U67) -> 2.434043732 | AK67: =K_t1Mu(Z67,AH67,D67,W67,U67,SIGN(X67),mu_millScale) -> 3.555760459 | AL67: =K_t1Mu(Z67,AI67,D67,W67,U67,SIGN(Y67),mu_millScale) -> 1.804013958 | AM67: =Sigma_hMax(AK67,X67,AF67) -> 780.2169789 | AN67: =Sigma_hMin(X67,Y67,AG67,AE67,AK67,AL67,AJ67,AI67,Z67,IF(L67=1,mu_redLead,mu_millScale)) -> 114.2163505 | AO67: 666.0006284 | AP67: 0.1463904959 | AQ67: 214.374134 | AR67: =tau_n(N67,W67,U67,D67) -> 144.3104236 | AS67: =tau_hMax(X67,Z67,AH67,W67,U67) -> 132.5929049 | AT67: =tau_hMin(X67,Y67,AS67,AE67,Z67,AI67,IF(L67=1,mu_redLead,mu_millScale),W67,U67) -> 39.13245267 | AU67: 93.46045224
A68: 58 | B68: Kloppel1936 | C68: R; S | D68: 2 | E68: 1 | F68: 8.5 | G68: 35 | I68: 6 | J68: 8 | K68: 70 | M68: 541.5 | N68: 186.39 | O68: 0.0952 | P68: 1598900 | Q68: 1 | R68: P100T7 | S68: DAHLEN_ST52B | T68: 58 | U68: 0.7058823529 | V68: 0.6071428571 | W68: 0.2428571429 | X68: 206.0013263 | Y68: 19.61132626 | Z68: =IF(OR(X68>=1.6*D68*AD68,D68=1),calcLoadFraction(G68,F68,I68,J68,K68,D68,1),"Condition for spring model not fulfilled") -> 0.5176815565 | AA68: =IF(L68>2,L68,IF(L68=2,1,sigma_cl0(I68+J68))) -> 112.4588041 | AB68: =Sigma_cl(AA68,U68,V68,X68) -> 95.71300653 | AC68: =Sigma_cl(AA68,U68,V68,Y68) -> 110.8646042 | AD68: =sigma_Slip(AB68,W68,U68,IF(L68=1,mu_redLead,mu_millScale)) -> 22.54475413 | AE68: =sigma_Slip(AC68,W68,U68,IF(L68=1,mu_redLead,mu_millScale)) -> 26.11364258 | AF68: =Sigma_p(AB68,V68) -> -22.48246464 | AG68: =Sigma_p(AC68,V68) -> -26.04149251 | AH68: =beta_1(X68,AD68,Z68) -> 0.7885961976 | AI68: =beta_1(Y68,AE68,Z68) -> 0 | AJ68: =k_tHole(W68,U68) -> 2.434043732 | AK68: =K_t1Mu(Z68,AH68,D68,W68,U68,SIGN(X68),mu_millScale) -> 3.528148707 | AL68: =K_t1Mu(Z68,AI68,D68,W68,U68,SIGN(Y68),mu_millScale) -> 1.804013958 | AM68: =Sigma_hMax(AK68,X68,AF68) -> 704.3208483 | AN68: =Sigma_hMin(X68,Y68,AG68,AE68,AK68,AL68,AJ68,AI68,Z68,IF(L68=1,mu_redLead,mu_millScale)) -> 111.2320314 | AO68: 593.0888169 | AP68: 0.1579280688 | AQ68: 191.2063355 | AR68: =tau_n(N68,W68,U68,D68) -> 130.5665737 | AS68: =tau_hMax(X68,Z68,AH68,W68,U68) -> 117.8221064 | AT68: =tau_hMin(X68,Y68,AS68,AE68,Z68,AI68,IF(L68=1,mu_redLead,mu_millScale),W68,U68) -> 37.12460479 | AU68: 80.6975016
A69: 59 | B69: Kloppel1936 | C69: R; S | D69: 2 | E69: 1 | F69: 8.5 | G69: 35 | I69: 6 | J69: 8 | K69: 70 | M69: 541.5 | N69: 176.58 | O69: 0.1 | P69: 2005700 | Q69: 0 | R69: P100T7 | S69: DAHLEN_ST52B | T69: 59 | U69: 0.7058823529 | V69: 0.6071428571 | W69: 0.2428571429 | X69: 196.2 | Y69: 19.62 | Z69: =IF(OR(X69>=1.6*D69*AD69,D69=1),calcLoadFraction(G69,F69,I69,J69,K69,D69,1),"Condition for spring model not fulfilled") -> 0.5176815565 | AA69: =IF(L69>2,L69,IF(L69=2,1,sigma_cl0(I69+J69))) -> 112.4588041 | AB69: =Sigma_cl(AA69,U69,V69,X69) -> 96.50975395 | AC69: =Sigma_cl(AA69,U69,V69,Y69) -> 110.8638991 | AD69: =sigma_Slip(AB69,W69,U69,IF(L69=1,mu_redLead,mu_millScale)) -> 22.73242429 | AE69: =sigma_Slip(AC69,W69,U69,IF(L69=1,mu_redLead,mu_millScale)) -> 26.1134765 | AF69: =Sigma_p(AB69,V69) -> -22.66961627 | AG69: =Sigma_p(AC69,V69) -> -26.04132689 | AH69: =beta_1(X69,AD69,Z69) -> 0.7761876446 | AI69: =beta_1(Y69,AE69,Z69) -> 0 | AJ69: =k_tHole(W69,U69) -> 2.434043732 | AK69: =K_t1Mu(Z69,AH69,D69,W69,U69,SIGN(X69),mu_millScale) -> 3.511212955 | AL69: =K_t1Mu(Z69,AI69,D69,W69,U69,SIGN(Y69),mu_millScale) -> 1.804013958 | AM69: =Sigma_hMax(AK69,X69,AF69) -> 666.2303655 | AN69: =Sigma_hMin(X69,Y69,AG69,AE69,AK69,AL69,AJ69,AI69,Z69,IF(L69=1,mu_redLead,mu_millScale)) -> 109.5646891 | AO69: 556.6656764 | AP69: 0.1644546613 | AQ69: 179.6272612 | AR69: =tau_n(N69,W69,U69,D69) -> 123.6946488 | AS69: =tau_hMax(X69,Z69,AH69,W69,U69) -> 110.450533 | AT69: =tau_hMin(X69,Y69,AS69,AE69,Z69,AI69,IF(L69=1,mu_redLead,mu_millScale),W69,U69) -> 36.03396562 | AU69: 74.41656738
A70: 60 | B70: Kloppel1936 | C70: R; S | D70: 2 | E70: 1 | F70: 8.5 | G70: 35 | I70: 6 | J70: 8 | K70: 70 | M70: 541.5 | N70: 166.77 | O70: 0.291666667 | P70: 319670 | Q70: 1 | R70: P100T7 | S70: DAHLEN_ST52B | T70: 60 | U70: 0.7058823529 | V70: 0.6071428571 | W70: 0.2428571429 | X70: 235.4400001 | Y70: 68.67000011 | Z70: =IF(OR(X70>=1.6*D70*AD70,D70=1),calcLoadFraction(G70,F70,I70,J70,K70,D70,1),"Condition for spring model not fulfilled") -> 0.5176815565 | AA70: =IF(L70>2,L70,IF(L70=2,1,sigma_cl0(I70+J70))) -> 112.4588041 | AB70: =Sigma_cl(AA70,U70,V70,X70) -> 93.31994391 | AC70: =Sigma_cl(AA70,U70,V70,Y70) -> 106.8766365 | AD70: =sigma_Slip(AB70,W70,U70,IF(L70=1,mu_redLead,mu_millScale)) -> 21.98107935 | AE70: =sigma_Slip(AC70,W70,U70,IF(L70=1,mu_redLead,mu_millScale)) -> 25.17429533 | AF70: =Sigma_p(AB70,V70) -> -21.92034724 | AG70: =Sigma_p(AC70,V70) -> -25.10474061 | AH70: =beta_1(X70,AD70,Z70) -> 0.8196541836 | AI70: =beta_1(Y70,AE70,Z70) -> 0.2918462128 | AJ70: =k_tHole(W70,U70) -> 2.434043732 | AK70: =K_t1Mu(Z70,AH70,D70,W70,U70,SIGN(X70),mu_millScale) -> 3.567035736 | AL70: =K_t1Mu(Z70,AI70,D70,W70,U70,SIGN(Y70),mu_millScale) -> 2.463941223 | AM70: =Sigma_hMax(AK70,X70,AF70) -> 817.9025468 | AN70: =Sigma_hMin(X70,Y70,AG70,AE70,AK70,AL70,AJ70,AI70,Z70,IF(L70=1,mu_redLead,mu_millScale)) -> 263.8070529 | AO70: 554.0954939 | AP70: 0.3225409359 | AQ70: 183.6949997 | AR70: =tau_n(N70,W70,U70,D70) -> 116.8227238 | AS70: =tau_hMax(X70,Z70,AH70,W70,U70) -> 139.9629207 | AT70: =tau_hMin(X70,Y70,AS70,AE70,Z70,AI70,IF(L70=1,mu_redLead,mu_millScale),W70,U70) -> 63.69972528 | AU70: 76.26319547
A71: 61 | B71: Kloppel1936 | C71: R; S | D71: 2 | E71: 1 | F71: 8.5 | G71: 35 | I71: 6 | J71: 8 | K71: 70 | M71: 541.5 | N71: 156.96 | O71: 0.304347826 | P71: 354840 | Q71: 1 | R71: P100T7 | S71: DAHLEN_ST52B | T71: 61 | U71: 0.7058823529 | V71: 0.6071428571 | W71: 0.2428571429 | X71: 225.63 | Y71: 68.66999997 | Z71: =IF(OR(X71>=1.6*D71*AD71,D71=1),calcLoadFraction(G71,F71,I71,J71,K71,D71,1),"Condition for spring model not fulfilled") -> 0.5176815565 | AA71: =IF(L71>2,L71,IF(L71=2,1,sigma_cl0(I71+J71))) -> 112.4588041 | AB71: =Sigma_cl(AA71,U71,V71,X71) -> 94.11739643 | AC71: =Sigma_cl(AA71,U71,V71,Y71) -> 106.8766366 | AD71: =sigma_Slip(AB71,W71,U71,IF(L71=1,mu_redLead,mu_millScale)) -> 22.16891559 | AE71: =sigma_Slip(AC71,W71,U71,IF(L71=1,mu_redLead,mu_millScale)) -> 25.17429533 | AF71: =Sigma_p(AB71,V71) -> -22.1076645 | AG71: =Sigma_p(AC71,V71) -> -25.10474061 | AH71: =beta_1(X71,AD71,Z71) -> 0.8102049359 | AI71: =beta_1(Y71,AE71,Z71) -> 0.2918462113 | AJ71: =k_tHole(W71,U71) -> 2.434043732 | AK71: =K_t1Mu(Z71,AH71,D71,W71,U71,SIGN(X71),mu_millScale) -> 3.555747282 | AL71: =K_t1Mu(Z71,AI71,D71,W71,U71,SIGN(Y71),mu_millScale) -> 2.463941219 | AM71: =Sigma_hMax(AK71,X71,AF71) -> 780.1755947 | AN71: =Sigma_hMin(X71,Y71,AG71,AE71,AK71,AL71,AJ71,AI71,Z71,IF(L71=1,mu_redLead,mu_millScale)) -> 261.7628561 | AO71: 518.4127386 | AP71: 0.335517873 | AQ71: 172.3382988 | AR71: =tau_n(N71,W71,U71,D71) -> 109.9507989 | AS71: =tau_hMax(X71,Z71,AH71,W71,U71) -> 132.5848237 | AT71: =tau_hMin(X71,Y71,AS71,AE71,Z71,AI71,IF(L71=1,mu_redLead,mu_millScale),W71,U71) -> 62.25903874 | AU71: 70.32578499
A72: 62 | B72: Kloppel1936 | C72: R; S | D72: 2 | E72: 1 | F72: 8.5 | G72: 35 | I72: 6 | J72: 8 | K72: 70 | M72: 541.5 | N72: 137.34 | O72: 0.333333333 | P72: 940680 | Q72: 1 | R72: P100T7 | S72: DAHLEN_ST52B | T72: 62 | U72: 0.7058823529 | V72: 0.6071428571 | W72: 0.2428571429 | X72: 206.0099999 | Y72: 68.6699999 | Z72: =IF(OR(X72>=1.6*D72*AD72,D72=1),calcLoadFraction(G72,F72,I72,J72,K72,D72,1),"Condition for spring model not fulfilled") -> 0.5176815565 | AA72: =IF(L72>2,L72,IF(L72=2,1,sigma_cl0(I72+J72))) -> 112.4588041 | AB72: =Sigma_cl(AA72,U72,V72,X72) -> 95.71230145 | AC72: =Sigma_cl(AA72,U72,V72,Y72) -> 106.8766366 | AD72: =sigma_Slip(AB72,W72,U72,IF(L72=1,mu_redLead,mu_millScale)) -> 22.54458806 | AE72: =sigma_Slip(AC72,W72,U72,IF(L72=1,mu_redLead,mu_millScale)) -> 25.17429534 | AF72: =Sigma_p(AB72,V72) -> -22.48229902 | AG72: =Sigma_p(AC72,V72) -> -25.10474061 | AH72: =beta_1(X72,AD72,Z72) -> 0.7886066556 | AI72: =beta_1(Y72,AE72,Z72) -> 0.2918462104 | AJ72: =k_tHole(W72,U72) -> 2.434043732 | AK72: =K_t1Mu(Z72,AH72,D72,W72,U72,SIGN(X72),mu_millScale) -> 3.528162651 | AL72: =K_t1Mu(Z72,AI72,D72,W72,U72,SIGN(Y72),mu_millScale) -> 2.463941217 | AM72: =Sigma_hMax(AK72,X72,AF72) -> 704.3544885 | AN72: =Sigma_hMin(X72,Y72,AG72,AE72,AK72,AL72,AJ72,AI72,Z72,IF(L72=1,mu_redLead,mu_millScale)) -> 257.016244 | AO72: 447.3382444 | AP72: 0.3648961542 | AQ72: 149.696161 | AR72: =tau_n(N72,W72,U72,D72) -> 96.20694905 | AS72: =tau_hMax(X72,Z72,AH72,W72,U72) -> 117.8286298 | AT72: =tau_hMin(X72,Y72,AS72,AE72,Z72,AI72,IF(L72=1,mu_redLead,mu_millScale),W72,U72) -> 59.10843259 | AU72: 58.72019725
A73: 63 | B73: Kloppel1936 | C73: R; S | D73: 2 | E73: 1 | F73: 8.5 | G73: 35 | I73: 6 | J73: 8 | K73: 70 | M73: 541.5 | N73: 127.53 | O73: 0.35 | P73: 1204020 | Q73: 1 | R73: P100T7 | S73: DAHLEN_ST52B | T73: 63 | U73: 0.7058823529 | V73: 0.6071428571 | W73: 0.2428571429 | X73: 196.2 | Y73: 68.67 | Z73: =IF(OR(X73>=1.6*D73*AD73,D73=1),calcLoadFraction(G73,F73,I73,J73,K73,D73,1),"Condition for spring model not fulfilled") -> 0.5176815565 | AA73: =IF(L73>2,L73,IF(L73=2,1,sigma_cl0(I73+J73))) -> 112.4588041 | AB73: =Sigma_cl(AA73,U73,V73,X73) -> 96.50975395 | AC73: =Sigma_cl(AA73,U73,V73,Y73) -> 106.8766366 | AD73: =sigma_Slip(AB73,W73,U73,IF(L73=1,mu_redLead,mu_millScale)) -> 22.73242429 | AE73: =sigma_Slip(AC73,W73,U73,IF(L73=1,mu_redLead,mu_millScale)) -> 25.17429533 | AF73: =Sigma_p(AB73,V73) -> -22.66961627 | AG73: =Sigma_p(AC73,V73) -> -25.10474061 | AH73: =beta_1(X73,AD73,Z73) -> 0.7761876446 | AI73: =beta_1(Y73,AE73,Z73) -> 0.2918462116 | AJ73: =k_tHole(W73,U73) -> 2.434043732 | AK73: =K_t1Mu(Z73,AH73,D73,W73,U73,SIGN(X73),mu_millScale) -> 3.511212955 | AL73: =K_t1Mu(Z73,AI73,D73,W73,U73,SIGN(Y73),mu_millScale) -> 2.46394122 | AM73: =Sigma_hMax(AK73,X73,AF73) -> 666.2303655 | AN73: =Sigma_hMin(X73,Y73,AG73,AE73,AK73,AL73,AJ73,AI73,Z73,IF(L73=1,mu_redLead,mu_millScale)) -> 254.244549 | AO73: 411.9858165 | AP73: 0.3816165732 | AQ73: 138.420972 | AR73: =tau_n(N73,W73,U73,D73) -> 89.33502412 | AS73: =tau_hMax(X73,Z73,AH73,W73,U73) -> 110.450533 | AT73: =tau_hMin(X73,Y73,AS73,AE73,Z73,AI73,IF(L73=1,mu_redLead,mu_millScale),W73,U73) -> 57.37882772 | AU73: 53.07170528
A74: 64 | B74: Kloppel1936 | C74: R; S | D74: 2 | E74: 1 | F74: 8.5 | G74: 35 | I74: 6 | J74: 8 | K74: 70 | M74: 541.5 | N74: 117.72 | O74: 0.368421053 | P74: 1358730 | Q74: 1 | R74: P100T7 | S74: DAHLEN_ST52B | T74: 64 | U74: 0.7058823529 | V74: 0.6071428571 | W74: 0.2428571429 | X74: 186.3900001 | Y74: 68.67000011 | Z74: =IF(OR(X74>=1.6*D74*AD74,D74=1),calcLoadFraction(G74,F74,I74,J74,K74,D74,1),"Condition for spring model not fulfilled") -> 0.5176815565 | AA74: =IF(L74>2,L74,IF(L74=2,1,sigma_cl0(I74+J74))) -> 112.4588041 | AB74: =Sigma_cl(AA74,U74,V74,X74) -> 97.30720645 | AC74: =Sigma_cl(AA74,U74,V74,Y74) -> 106.8766365 | AD74: =sigma_Slip(AB74,W74,U74,IF(L74=1,mu_redLead,mu_millScale)) -> 22.92026052 | AE74: =sigma_Slip(AC74,W74,U74,IF(L74=1,mu_redLead,mu_millScale)) -> 25.17429533 | AF74: =Sigma_p(AB74,V74) -> -22.85693353 | AG74: =Sigma_p(AC74,V74) -> -25.10474061 | AH74: =beta_1(X74,AD74,Z74) -> 0.7624613694 | AI74: =beta_1(Y74,AE74,Z74) -> 0.2918462127 | AJ74: =k_tHole(W74,U74) -> 2.434043732 | AK74: =K_t1Mu(Z74,AH74,D74,W74,U74,SIGN(X74),mu_millScale) -> 3.491586487 | AL74: =K_t1Mu(Z74,AI74,D74,W74,U74,SIGN(Y74),mu_millScale) -> 2.463941223 | AM74: =Sigma_hMax(AK74,X74,AF74) -> 627.9398722 | AN74: =Sigma_hMin(X74,Y74,AG74,AE74,AK74,AL74,AJ74,AI74,Z74,IF(L74=1,mu_redLead,mu_millScale)) -> 251.1489833 | AO74: 376.7908889 | AP74: 0.3999570571 | AQ74: 127.1853757 | AR74: =tau_n(N74,W74,U74,D74) -> 82.46309919 | AS74: =tau_hMax(X74,Z74,AH74,W74,U74) -> 103.0724362 | AT74: =tau_hMin(X74,Y74,AS74,AE74,Z74,AI74,IF(L74=1,mu_redLead,mu_millScale),W74,U74) -> 55.53064256 | AU74: 47.5417936
A75: 65 | B75: Kloppel1936 | C75: R; S | D75: 2 | E75: 1 | F75: 8.5 | G75: 35 | I75: 6 | J75: 8 | K75: 70 | M75: 541.5 | N75: 111.834 | O75: 0.380434783 | P75: 2432320 | Q75: 0 | R75: P100T7 | S75: DAHLEN_ST52B | T75: 65 | U75: =I75/F75 -> 0.7058823529 | V75: =F75/(J75+I75) -> 0.6071428571 | W75: =F75/G75 -> 0.2428571429 | X75: =N75/(1-O75) -> 180.5040001 | Y75: =X75*O75 -> 68.67000011 | Z75: =IF(OR(X75>=1.6*D75*AD75,D75=1),calcLoadFraction(G75,F75,I75,J75,K75,D75,1),"Condition for spring model not fulfilled") -> 0.5176815565 | AA75: =IF(L75>2,L75,IF(L75=2,1,sigma_cl0(I75+J75))) -> 112.4588041 | AB75: =Sigma_cl(AA75,U75,V75,X75) -> 97.78567796 | AC75: =Sigma_cl(AA75,U75,V75,Y75) -> 106.8766365 | AD75: =sigma_Slip(AB75,W75,U75,IF(L75=1,mu_redLead,mu_millScale)) -> 23.03296226 | AE75: =sigma_Slip(AC75,W75,U75,IF(L75=1,mu_redLead,mu_millScale)) -> 25.17429533 | AF75: =Sigma_p(AB75,V75) -> -22.96932388 | AG75: =Sigma_p(AC75,V75) -> -25.10474061 | AH75: =beta_1(X75,AD75,Z75) -> 0.7535094506 | AI75: =beta_1(Y75,AE75,Z75) -> 0.2918462128 | AJ75: =k_tHole(W75,U75) -> 2.434043732 | AK75: =K_t1Mu(Z75,AH75,D75,W75,U75,SIGN(X75),mu_millScale) -> 3.478295038 | AL75: =K_t1Mu(Z75,AI75,D75,W75,U75,SIGN(Y75),mu_millScale) -> 2.463941223 | AM75: =Sigma_hMax(AK75,X75,AF75) -> 604.876844 | AN75: =Sigma_hMin(X75,Y75,AG75,AE75,AK75,AL75,AJ75,AI75,Z75,IF(L75=1,mu_redLead,mu_millScale)) -> 249.1135359 | AO75: 355.7633081 | AP75: 0.4118417466 | AQ75: 120.4666651 | AR75: =tau_n(N75,W75,U75,D75) -> 78.33994423 | AS75: =tau_hMax(X75,Z75,AH75,W75,U75) -> 98.64557801 | AT75: =tau_hMin(X75,Y75,AS75,AE75,Z75,AI75,IF(L75=1,mu_redLead,mu_millScale),W75,U75) -> 54.35899632 | AU75: 44.2865817
A76: 66 | B76: Kloppel1936 | C76: R; S | D76: 2 | E76: 1 | F76: 8.5 | G76: 35 | I76: 6 | J76: 8 | K76: 70 | M76: 615 | N76: 176.58 | O76: 0.1 | P76: 500000 | Q76: 1 | R76: P100T11 | S76: RZE_BAUSTAHL | T76: =A76 -> 66 | U76: 0.7058823529 | V76: 0.6071428571 | W76: 0.2428571429 | X76: 196.2 | Y76: 19.62 | Z76: =IF(OR(X76>=1.6*D76*AD76,D76=1),calcLoadFraction(G76,F76,I76,J76,K76,D76,1),"Condition for spring model not fulfilled") -> 0.5176815565 | AA76: =IF(L76>2,L76,IF(L76=2,1,sigma_cl0(I76+J76))) -> 112.4588041 | AB76: =Sigma_cl(AA76,U76,V76,X76) -> 96.50975395 | AC76: =Sigma_cl(AA76,U76,V76,Y76) -> 110.8638991 | AD76: =sigma_Slip(AB76,W76,U76,IF(L76=1,mu_redLead,mu_millScale)) -> 22.73242429 | AE76: =sigma_Slip(AC76,W76,U76,IF(L76=1,mu_redLead,mu_millScale)) -> 26.1134765 | AF76: =Sigma_p(AB76,V76) -> -22.66961627 | AG76: =Sigma_p(AC76,V76) -> -26.04132689 | AH76: =beta_1(X76,AD76,Z76) -> 0.7761876446 | AI76: =beta_1(Y76,AE76,Z76) -> 0 | AJ76: =k_tHole(W76,U76) -> 2.434043732 | AK76: =K_t1Mu(Z76,AH76,D76,W76,U76,SIGN(X76),mu_millScale) -> 3.511212955 | AL76: =K_t1Mu(Z76,AI76,D76,W76,U76,SIGN(Y76),mu_millScale) -> 1.804013958 | AM76: =Sigma_hMax(AK76,X76,AF76) -> 666.2303655 | AN76: =Sigma_hMin(X76,Y76,AG76,AE76,AK76,AL76,AJ76,AI76,Z76,IF(L76=1,mu_redLead,mu_millScale)) -> 109.5646891 | AO76: =(AM76-AN76) -> 556.6656764 | AP76: =AN76/AM76 -> 0.1644546613 | AQ76: =AO76/3.16*(1-0.9*AP76)/(1-AP76) -> 179.6272612 | AR76: =tau_n(N76,W76,U76,D76) -> 123.6946488 | AS76: =tau_hMax(X76,Z76,AH76,W76,U76) -> 110.450533 | AT76: =tau_hMin(X76,Y76,AS76,AE76,Z76,AI76,IF(L76=1,mu_redLead,mu_millScale),W76,U76) -> 36.03396562 | AU76: =(AS76-AT76) -> 74.41656738
A77: 67 | B77: Kloppel1936 | C77: R; S | D77: 2 | E77: 1 | F77: 8.5 | G77: 35 | I77: 6 | J77: 8 | K77: 70 | M77: 615 | N77: 156.96 | O77: 0.111111111 | P77: 1913000 | Q77: 1 | R77: P100T11 | S77: RZE_BAUSTAHL | T77: 67 | U77: 0.7058823529 | V77: 0.6071428571 | W77: 0.2428571429 | X77: 176.58 | Y77: 19.61999998 | Z77: =IF(OR(X77>=1.6*D77*AD77,D77=1),calcLoadFraction(G77,F77,I77,J77,K77,D77,1),"Condition for spring model not fulfilled") -> 0.5176815565 | AA77: =IF(L77>2,L77,IF(L77=2,1,sigma_cl0(I77+J77))) -> 112.4588041 | AB77: =Sigma_cl(AA77,U77,V77,X77) -> 98.10465897 | AC77: =Sigma_cl(AA77,U77,V77,Y77) -> 110.8638991 | AD77: =sigma_Slip(AB77,W77,U77,IF(L77=1,mu_redLead,mu_millScale)) -> 23.10809676 | AE77: =sigma_Slip(AC77,W77,U77,IF(L77=1,mu_redLead,mu_millScale)) -> 26.11347651 | AF77: =Sigma_p(AB77,V77) -> -23.04425079 | AG77: =Sigma_p(AC77,V77) -> -26.04132689 | AH77: =beta_1(X77,AD77,Z77) -> 0.747209952 | AI77: =beta_1(Y77,AE77,Z77) -> 0 | AJ77: =k_tHole(W77,U77) -> 2.434043732 | AK77: =K_t1Mu(Z77,AH77,D77,W77,U77,SIGN(X77),mu_millScale) -> 3.468714372 | AL77: =K_t1Mu(Z77,AI77,D77,W77,U77,SIGN(Y77),mu_millScale) -> 1.804013958 | AM77: =Sigma_hMax(AK77,X77,AF77) -> 589.4613329 | AN77: =Sigma_hMin(X77,Y77,AG77,AE77,AK77,AL77,AJ77,AI77,Z77,IF(L77=1,mu_redLead,mu_millScale)) -> 105.5675622 | AO77: 483.8937707 | AP77: 0.1790915813 | AQ77: 156.4716857 | AR77: =tau_n(N77,W77,U77,D77) -> 109.9507989 | AS77: =tau_hMax(X77,Z77,AH77,W77,U77) -> 95.69433914 | AT77: =tau_hMin(X77,Y77,AS77,AE77,Z77,AI77,IF(L77=1,mu_redLead,mu_millScale),W77,U77) -> 33.61007852 | AU77: 62.08426063
A78: 68 | B78: Kloppel1936 | C78: R; S | D78: 2 | E78: 1 | F78: 8.5 | G78: 35 | I78: 6 | J78: 8 | K78: 70 | M78: 615 | N78: 147.15 | O78: 0.117647059 | P78: 2305000 | Q78: 1 | R78: P100T11 | S78: RZE_BAUSTAHL | T78: 68 | U78: 0.7058823529 | V78: 0.6071428571 | W78: 0.2428571429 | X78: 166.77 | Y78: 19.62000003 | Z78: =IF(OR(X78>=1.6*D78*AD78,D78=1),calcLoadFraction(G78,F78,I78,J78,K78,D78,1),"Condition for spring model not fulfilled") -> 0.5176815565 | AA78: =IF(L78>2,L78,IF(L78=2,1,sigma_cl0(I78+J78))) -> 112.4588041 | AB78: =Sigma_cl(AA78,U78,V78,X78) -> 98.90211147 | AC78: =Sigma_cl(AA78,U78,V78,Y78) -> 110.8638991 | AD78: =sigma_Slip(AB78,W78,U78,IF(L78=1,mu_redLead,mu_millScale)) -> 23.29593299 | AE78: =sigma_Slip(AC78,W78,U78,IF(L78=1,mu_redLead,mu_millScale)) -> 26.1134765 | AF78: =Sigma_p(AB78,V78) -> -23.23156804 | AG78: =Sigma_p(AC78,V78) -> -26.04132689 | AH78: =beta_1(X78,AD78,Z78) -> 0.7301642506 | AI78: =beta_1(Y78,AE78,Z78) -> 0 | AJ78: =k_tHole(W78,U78) -> 2.434043732 | AK78: =K_t1Mu(Z78,AH78,D78,W78,U78,SIGN(X78),mu_millScale) -> 3.441872347 | AL78: =K_t1Mu(Z78,AI78,D78,W78,U78,SIGN(Y78),mu_millScale) -> 1.804013958 | AM78: =Sigma_hMax(AK78,X78,AF78) -> 550.7694834 | AN78: =Sigma_hMin(X78,Y78,AG78,AE78,AK78,AL78,AJ78,AI78,Z78,IF(L78=1,mu_redLead,mu_millScale)) -> 103.1952264 | AO78: 447.574257 | AP78: 0.1873655485 | AQ78: 144.9030948 | AR78: =tau_n(N78,W78,U78,D78) -> 103.078874 | AS78: =tau_hMax(X78,Z78,AH78,W78,U78) -> 88.31624227 | AT78: =tau_hMin(X78,Y78,AS78,AE78,Z78,AI78,IF(L78=1,mu_redLead,mu_millScale),W78,U78) -> 32.26247282 | AU78: 56.05376945
A79: 69 | B79: Kloppel1936 | C79: R; S | D79: 2 | E79: 1 | F79: 8.5 | G79: 35 | I79: 6 | J79: 8 | K79: 70 | M79: 615 | N79: 166.77 | O79: 0.105263158 | P79: 1484000 | Q79: 1 | R79: P100T11 | S79: RZE_BAUSTAHL | T79: 69 | U79: 0.7058823529 | V79: 0.6071428571 | W79: 0.2428571429 | X79: 186.39 | Y79: 19.62000002 | Z79: =IF(OR(X79>=1.6*D79*AD79,D79=1),calcLoadFraction(G79,F79,I79,J79,K79,D79,1),"Condition for spring model not fulfilled") -> 0.5176815565 | AA79: =IF(L79>2,L79,IF(L79=2,1,sigma_cl0(I79+J79))) -> 112.4588041 | AB79: =Sigma_cl(AA79,U79,V79,X79) -> 97.30720646 | AC79: =Sigma_cl(AA79,U79,V79,Y79) -> 110.8638991 | AD79: =sigma_Slip(AB79,W79,U79,IF(L79=1,mu_redLead,mu_millScale)) -> 22.92026052 | AE79: =sigma_Slip(AC79,W79,U79,IF(L79=1,mu_redLead,mu_millScale)) -> 26.1134765 | AF79: =Sigma_p(AB79,V79) -> -22.85693353 | AG79: =Sigma_p(AC79,V79) -> -26.04132689 | AH79: =beta_1(X79,AD79,Z79) -> 0.7624613692 | AI79: =beta_1(Y79,AE79,Z79) -> 0 | AJ79: =k_tHole(W79,U79) -> 2.434043732 | AK79: =K_t1Mu(Z79,AH79,D79,W79,U79,SIGN(X79),mu_millScale) -> 3.491586487 | AL79: =K_t1Mu(Z79,AI79,D79,W79,U79,SIGN(Y79),mu_millScale) -> 1.804013958 | AM79: =Sigma_hMax(AK79,X79,AF79) -> 627.9398718 | AN79: =Sigma_hMin(X79,Y79,AG79,AE79,AK79,AL79,AJ79,AI79,Z79,IF(L79=1,mu_redLead,mu_millScale)) -> 107.6776566 | AO79: 520.2622152 | AP79: 0.1714776549 | AQ79: 168.0474623 | AR79: =tau_n(N79,W79,U79,D79) -> 116.8227238 | AS79: =tau_hMax(X79,Z79,AH79,W79,U79) -> 103.0724361 | AT79: =tau_hMin(X79,Y79,AS79,AE79,Z79,AI79,IF(L79=1,mu_redLead,mu_millScale),W79,U79) -> 34.86377665 | AU79: 68.20865944
A80: 70 | B80: Kloppel1936 | C80: R; S | D80: 2 | E80: 1 | F80: 8.5 | G80: 35 | I80: 6 | J80: 8 | K80: 70 | M80: 615 | N80: 147.15 | O80: 0.117647059 | P80: 2335000 | Q80: 1 | R80: P100T11 | S80: RZE_BAUSTAHL | T80: 70 | U80: 0.7058823529 | V80: 0.6071428571 | W80: 0.2428571429 | X80: 166.77 | Y80: 19.62000003 | Z80: =IF(OR(X80>=1.6*D80*AD80,D80=1),calcLoadFraction(G80,F80,I80,J80,K80,D80,1),"Condition for spring model not fulfilled") -> 0.5176815565 | AA80: =IF(L80>2,L80,IF(L80=2,1,sigma_cl0(I80+J80))) -> 112.4588041 | AB80: =Sigma_cl(AA80,U80,V80,X80) -> 98.90211147 | AC80: =Sigma_cl(AA80,U80,V80,Y80) -> 110.8638991 | AD80: =sigma_Slip(AB80,W80,U80,IF(L80=1,mu_redLead,mu_millScale)) -> 23.29593299 | AE80: =sigma_Slip(AC80,W80,U80,IF(L80=1,mu_redLead,mu_millScale)) -> 26.1134765 | AF80: =Sigma_p(AB80,V80) -> -23.23156804 | AG80: =Sigma_p(AC80,V80) -> -26.04132689 | AH80: =beta_1(X80,AD80,Z80) -> 0.7301642506 | AI80: =beta_1(Y80,AE80,Z80) -> 0 | AJ80: =k_tHole(W80,U80) -> 2.434043732 | AK80: =K_t1Mu(Z80,AH80,D80,W80,U80,SIGN(X80),mu_millScale) -> 3.441872347 | AL80: =K_t1Mu(Z80,AI80,D80,W80,U80,SIGN(Y80),mu_millScale) -> 1.804013958 | AM80: =Sigma_hMax(AK80,X80,AF80) -> 550.7694834 | AN80: =Sigma_hMin(X80,Y80,AG80,AE80,AK80,AL80,AJ80,AI80,Z80,IF(L80=1,mu_redLead,mu_millScale)) -> 103.1952264 | AO80: 447.574257 | AP80: 0.1873655485 | AQ80: 144.9030948 | AR80: =tau_n(N80,W80,U80,D80) -> 103.078874 | AS80: =tau_hMax(X80,Z80,AH80,W80,U80) -> 88.31624227 | AT80: =tau_hMin(X80,Y80,AS80,AE80,Z80,AI80,IF(L80=1,mu_redLead,mu_millScale),W80,U80) -> 32.26247282 | AU80: 56.05376945
A81: 71 | B81: Kloppel1936 | C81: R; S | D81: 2 | E81: 1 | F81: 8.5 | G81: 35 | I81: 6 | J81: 8 | K81: 70 | M81: 590 | N81: 196.2 | O81: 0.259259259 | P81: 903500 | Q81: 1 | R81: P100T9 | S81: Stuttgard_ST52D | T81: 71 | U81: 0.7058823529 | V81: 0.6071428571 | W81: 0.2428571429 | X81: 264.8699999 | Y81: 68.66999991 | Z81: =IF(OR(X81>=1.6*D81*AD81,D81=1),calcLoadFraction(G81,F81,I81,J81,K81,D81,1),"Condition for spring model not fulfilled") -> 0.5176815565 | AA81: =IF(L81>2,L81,IF(L81=2,1,sigma_cl0(I81+J81))) -> 112.4588041 | AB81: =Sigma_cl(AA81,U81,V81,X81) -> 90.92758641 | AC81: =Sigma_cl(AA81,U81,V81,Y81) -> 106.8766366 | AD81: =sigma_Slip(AB81,W81,U81,IF(L81=1,mu_redLead,mu_millScale)) -> 21.41757065 | AE81: =sigma_Slip(AC81,W81,U81,IF(L81=1,mu_redLead,mu_millScale)) -> 25.17429534 | AF81: =Sigma_p(AB81,V81) -> -21.35839548 | AG81: =Sigma_p(AC81,V81) -> -25.10474061 | AH81: =beta_1(X81,AD81,Z81) -> 0.8438022606 | AI81: =beta_1(Y81,AE81,Z81) -> 0.2918462106 | AJ81: =k_tHole(W81,U81) -> 2.434043732 | AK81: =K_t1Mu(Z81,AH81,D81,W81,U81,SIGN(X81),mu_millScale) -> 3.593643542 | AL81: =K_t1Mu(Z81,AI81,D81,W81,U81,SIGN(Y81),mu_millScale) -> 2.463941218 | AM81: =Sigma_hMax(AK81,X81,AF81) -> 930.4899693 | AN81: =Sigma_hMin(X81,Y81,AG81,AE81,AK81,AL81,AJ81,AI81,Z81,IF(L81=1,mu_redLead,mu_millScale)) -> 268.9303688 | AO81: 661.5596004 | AP81: 0.2890201697 | AQ81: 217.8647586 | AR81: =tau_n(N81,W81,U81,D81) -> 137.4384986 | AS81: =tau_hMax(X81,Z81,AH81,W81,U81) -> 162.0972113 | AT81: =tau_hMin(X81,Y81,AS81,AE81,Z81,AI81,IF(L81=1,mu_redLead,mu_millScale),W81,U81) -> 67.57672383 | AU81: 94.52048752
A82: 72 | B82: Kloppel1936 | C82: R; S | D82: 2 | E82: 1 | F82: 8.5 | G82: 35 | I82: 6 | J82: 8 | K82: 70 | M82: 590 | N82: 176.58 | O82: 0.28 | P82: 556600 | Q82: 1 | R82: P100T9 | S82: Stuttgard_ST52D | T82: 72 | U82: 0.7058823529 | V82: 0.6071428571 | W82: 0.2428571429 | X82: 245.25 | Y82: 68.67 | Z82: =IF(OR(X82>=1.6*D82*AD82,D82=1),calcLoadFraction(G82,F82,I82,J82,K82,D82,1),"Condition for spring model not fulfilled") -> 0.5176815565 | AA82: =IF(L82>2,L82,IF(L82=2,1,sigma_cl0(I82+J82))) -> 112.4588041 | AB82: =Sigma_cl(AA82,U82,V82,X82) -> 92.52249142 | AC82: =Sigma_cl(AA82,U82,V82,Y82) -> 106.8766366 | AD82: =sigma_Slip(AB82,W82,U82,IF(L82=1,mu_redLead,mu_millScale)) -> 21.79324312 | AE82: =sigma_Slip(AC82,W82,U82,IF(L82=1,mu_redLead,mu_millScale)) -> 25.17429533 | AF82: =Sigma_p(AB82,V82) -> -21.73302999 | AG82: =Sigma_p(AC82,V82) -> -25.10474061 | AH82: =beta_1(X82,AD82,Z82) -> 0.8283474913 | AI82: =beta_1(Y82,AE82,Z82) -> 0.2918462116 | AJ82: =k_tHole(W82,U82) -> 2.434043732 | AK82: =K_t1Mu(Z82,AH82,D82,W82,U82,SIGN(X82),mu_millScale) -> 3.576990135 | AL82: =K_t1Mu(Z82,AI82,D82,W82,U82,SIGN(Y82),mu_millScale) -> 2.46394122 | AM82: =Sigma_hMax(AK82,X82,AF82) -> 855.5238005 | AN82: =Sigma_hMin(X82,Y82,AG82,AE82,AK82,AL82,AJ82,AI82,Z82,IF(L82=1,mu_redLead,mu_millScale)) -> 265.6687437 | AO82: 589.8550568 | AP82: 0.3105334341 | AQ82: 195.0702314 | AR82: =tau_n(N82,W82,U82,D82) -> 123.6946488 | AS82: =tau_hMax(X82,Z82,AH82,W82,U82) -> 147.3410176 | AT82: =tau_hMin(X82,Y82,AS82,AE82,Z82,AI82,IF(L82=1,mu_redLead,mu_millScale),W82,U82) -> 65.06170361 | AU82: 82.27931397
A83: 73 | B83: Kloppel1936 | C83: R; S | D83: 2 | E83: 1 | F83: 8.5 | G83: 35 | I83: 6 | J83: 8 | K83: 70 | M83: 590 | N83: 166.77 | O83: 0.291666667 | P83: 2041000 | Q83: 0 | R83: P100T9 | S83: Stuttgard_ST52D | T83: 73 | U83: 0.7058823529 | V83: 0.6071428571 | W83: 0.2428571429 | X83: 235.4400001 | Y83: 68.67000011 | Z83: =IF(OR(X83>=1.6*D83*AD83,D83=1),calcLoadFraction(G83,F83,I83,J83,K83,D83,1),"Condition for spring model not fulfilled") -> 0.5176815565 | AA83: =IF(L83>2,L83,IF(L83=2,1,sigma_cl0(I83+J83))) -> 112.4588041 | AB83: =Sigma_cl(AA83,U83,V83,X83) -> 93.31994391 | AC83: =Sigma_cl(AA83,U83,V83,Y83) -> 106.8766365 | AD83: =sigma_Slip(AB83,W83,U83,IF(L83=1,mu_redLead,mu_millScale)) -> 21.98107935 | AE83: =sigma_Slip(AC83,W83,U83,IF(L83=1,mu_redLead,mu_millScale)) -> 25.17429533 | AF83: =Sigma_p(AB83,V83) -> -21.92034724 | AG83: =Sigma_p(AC83,V83) -> -25.10474061 | AH83: =beta_1(X83,AD83,Z83) -> 0.8196541836 | AI83: =beta_1(Y83,AE83,Z83) -> 0.2918462128 | AJ83: =k_tHole(W83,U83) -> 2.434043732 | AK83: =K_t1Mu(Z83,AH83,D83,W83,U83,SIGN(X83),mu_millScale) -> 3.567035736 | AL83: =K_t1Mu(Z83,AI83,D83,W83,U83,SIGN(Y83),mu_millScale) -> 2.463941223 | AM83: =Sigma_hMax(AK83,X83,AF83) -> 817.9025468 | AN83: =Sigma_hMin(X83,Y83,AG83,AE83,AK83,AL83,AJ83,AI83,Z83,IF(L83=1,mu_redLead,mu_millScale)) -> 263.8070529 | AO83: 554.0954939 | AP83: 0.3225409359 | AQ83: 183.6949997 | AR83: =tau_n(N83,W83,U83,D83) -> 116.8227238 | AS83: =tau_hMax(X83,Z83,AH83,W83,U83) -> 139.9629207 | AT83: =tau_hMin(X83,Y83,AS83,AE83,Z83,AI83,IF(L83=1,mu_redLead,mu_millScale),W83,U83) -> 63.69972528 | AU83: 76.26319547
A84: 74 | B84: Kloppel1936 | C84: R; S | D84: 2 | E84: 1 | F84: 8.5 | G84: 35 | I84: 6 | J84: 8 | K84: 70 | M84: 590 | N84: 156.96 | O84: 0.304347826 | P84: 2001000 | Q84: 0 | R84: P100T9 | S84: Stuttgard_ST52D | T84: 74 | U84: 0.7058823529 | V84: 0.6071428571 | W84: 0.2428571429 | X84: 225.63 | Y84: 68.66999997 | Z84: =IF(OR(X84>=1.6*D84*AD84,D84=1),calcLoadFraction(G84,F84,I84,J84,K84,D84,1),"Condition for spring model not fulfilled") -> 0.5176815565 | AA84: =IF(L84>2,L84,IF(L84=2,1,sigma_cl0(I84+J84))) -> 112.4588041 | AB84: =Sigma_cl(AA84,U84,V84,X84) -> 94.11739643 | AC84: =Sigma_cl(AA84,U84,V84,Y84) -> 106.8766366 | AD84: =sigma_Slip(AB84,W84,U84,IF(L84=1,mu_redLead,mu_millScale)) -> 22.16891559 | AE84: =sigma_Slip(AC84,W84,U84,IF(L84=1,mu_redLead,mu_millScale)) -> 25.17429533 | AF84: =Sigma_p(AB84,V84) -> -22.1076645 | AG84: =Sigma_p(AC84,V84) -> -25.10474061 | AH84: =beta_1(X84,AD84,Z84) -> 0.8102049359 | AI84: =beta_1(Y84,AE84,Z84) -> 0.2918462113 | AJ84: =k_tHole(W84,U84) -> 2.434043732 | AK84: =K_t1Mu(Z84,AH84,D84,W84,U84,SIGN(X84),mu_millScale) -> 3.555747282 | AL84: =K_t1Mu(Z84,AI84,D84,W84,U84,SIGN(Y84),mu_millScale) -> 2.463941219 | AM84: =Sigma_hMax(AK84,X84,AF84) -> 780.1755947 | AN84: =Sigma_hMin(X84,Y84,AG84,AE84,AK84,AL84,AJ84,AI84,Z84,IF(L84=1,mu_redLead,mu_millScale)) -> 261.7628561 | AO84: 518.4127386 | AP84: 0.335517873 | AQ84: 172.3382988 | AR84: =tau_n(N84,W84,U84,D84) -> 109.9507989 | AS84: =tau_hMax(X84,Z84,AH84,W84,U84) -> 132.5848237 | AT84: =tau_hMin(X84,Y84,AS84,AE84,Z84,AI84,IF(L84=1,mu_redLead,mu_millScale),W84,U84) -> 62.25903874 | AU84: 70.32578499
A85: 75 | B85: Kloppel1936 | C85: R; S | D85: 2 | E85: 1 | F85: 8.5 | G85: 35 | I85: 6 | J85: 8 | K85: 70 | L85: 1 | M85: 590 | N85: 225.63 | O85: 0.08 | P85: 93100 | Q85: 1 | R85: P100T8 | S85: Stuttgard_ST52C | T85: 75 | U85: 0.7058823529 | V85: 0.6071428571 | W85: 0.2428571429 | X85: 245.25 | Y85: 19.62 | Z85: =IF(OR(X85>=1.6*D85*AD85,D85=1),calcLoadFraction(G85,F85,I85,J85,K85,D85,1),"Condition for spring model not fulfilled") -> 0.5176815565 | AA85: =IF(L85>2,L85,IF(L85=2,1,sigma_cl0(I85+J85))) -> 112.4588041 | AB85: =Sigma_cl(AA85,U85,V85,X85) -> 92.52249142 | AC85: =Sigma_cl(AA85,U85,V85,Y85) -> 110.8638991 | AD85: =sigma_Slip(AB85,W85,U85,IF(L85=1,mu_redLead,mu_millScale)) -> 3.962407839 | AE85: =sigma_Slip(AC85,W85,U85,IF(L85=1,mu_redLead,mu_millScale)) -> 4.747904819 | AF85: =Sigma_p(AB85,V85) -> -21.73302999 | AG85: =Sigma_p(AC85,V85) -> -26.04132689 | AH85: =beta_1(X85,AD85,Z85) -> 0.968790453 | AI85: =beta_1(Y85,AE85,Z85) -> 0.5325444629 | AJ85: =k_tHole(W85,U85) -> 2.434043732 | AK85: =K_t1Mu(Z85,AH85,D85,W85,U85,SIGN(X85),mu_millScale) -> 3.674347834 | AL85: =K_t1Mu(Z85,AI85,D85,W85,U85,SIGN(Y85),mu_millScale) -> 3.0503941 | AM85: =Sigma_hMax(AK85,X85,AF85) -> 879.4007764 | AN85: =Sigma_hMin(X85,Y85,AG85,AE85,AK85,AL85,AJ85,AI85,Z85,IF(L85=1,mu_redLead,mu_millScale)) -> 59.74487061 | AO85: 819.6559057 | AP85: 0.06793815995 | AQ85: 261.2754408 | AR85: =tau_n(N85,W85,U85,D85) -> 158.0542734 | AS85: =tau_hMax(X85,Z85,AH85,W85,U85) -> 172.3220903 | AT85: =tau_hMin(X85,Y85,AS85,AE85,Z85,AI85,IF(L85=1,mu_redLead,mu_millScale),W85,U85) -> 20.36933891 | AU85: 151.9527514
A86: 76 | B86: Kloppel1936 | C86: R; S | D86: 2 | E86: 1 | F86: 8.5 | G86: 35 | I86: 6 | J86: 8 | K86: 70 | L86: 1 | M86: 590 | N86: 186.39 | O86: 0.0952 | P86: 283200 | Q86: 1 | R86: P100T8 | S86: Stuttgard_ST52C | T86: 76 | U86: 0.7058823529 | V86: 0.6071428571 | W86: 0.2428571429 | X86: 206.0013263 | Y86: 19.61132626 | Z86: =IF(OR(X86>=1.6*D86*AD86,D86=1),calcLoadFraction(G86,F86,I86,J86,K86,D86,1),"Condition for spring model not fulfilled") -> 0.5176815565 | AA86: =IF(L86>2,L86,IF(L86=2,1,sigma_cl0(I86+J86))) -> 112.4588041 | AB86: =Sigma_cl(AA86,U86,V86,X86) -> 95.71300653 | AC86: =Sigma_cl(AA86,U86,V86,Y86) -> 110.8646042 | AD86: =sigma_Slip(AB86,W86,U86,IF(L86=1,mu_redLead,mu_millScale)) -> 4.099046206 | AE86: =sigma_Slip(AC86,W86,U86,IF(L86=1,mu_redLead,mu_millScale)) -> 4.747935015 | AF86: =Sigma_p(AB86,V86) -> -22.48246464 | AG86: =Sigma_p(AC86,V86) -> -26.04149251 | AH86: =beta_1(X86,AD86,Z86) -> 0.961562945 | AI86: =beta_1(Y86,AE86,Z86) -> 0.5323347413 | AJ86: =k_tHole(W86,U86) -> 2.434043732 | AK86: =K_t1Mu(Z86,AH86,D86,W86,U86,SIGN(X86),mu_millScale) -> 3.672510721 | AL86: =K_t1Mu(Z86,AI86,D86,W86,U86,SIGN(Y86),mu_millScale) -> 3.049916836 | AM86: =Sigma_hMax(AK86,X86,AF86) -> 734.0596145 | AN86: =Sigma_hMin(X86,Y86,AG86,AE86,AK86,AL86,AJ86,AI86,Z86,IF(L86=1,mu_redLead,mu_millScale)) -> 59.37430706 | AO86: 674.6853074 | AP86: 0.08088485715 | AQ86: 215.3869424 | AR86: =tau_n(N86,W86,U86,D86) -> 130.5665737 | AS86: =tau_hMax(X86,Z86,AH86,W86,U86) -> 143.6646182 | AT86: =tau_hMin(X86,Y86,AS86,AE86,Z86,AI86,IF(L86=1,mu_redLead,mu_millScale),W86,U86) -> 20.0064197 | AU86: 123.6581985
A87: 77 | B87: Kloppel1936 | C87: R; S | D87: 2 | E87: 1 | F87: 8.5 | G87: 35 | I87: 6 | J87: 8 | K87: 70 | L87: 1 | M87: 590 | N87: 147.15 | O87: 0.117647059 | P87: 428300 | Q87: 1 | R87: P100T8 | S87: Stuttgard_ST52C | T87: 77 | U87: 0.7058823529 | V87: 0.6071428571 | W87: 0.2428571429 | X87: 166.77 | Y87: 19.62000003 | Z87: =IF(OR(X87>=1.6*D87*AD87,D87=1),calcLoadFraction(G87,F87,I87,J87,K87,D87,1),"Condition for spring model not fulfilled") -> 0.5176815565 | AA87: =IF(L87>2,L87,IF(L87=2,1,sigma_cl0(I87+J87))) -> 112.4588041 | AB87: =Sigma_cl(AA87,U87,V87,X87) -> 98.90211147 | AC87: =Sigma_cl(AA87,U87,V87,Y87) -> 110.8638991 | AD87: =sigma_Slip(AB87,W87,U87,IF(L87=1,mu_redLead,mu_millScale)) -> 4.23562418 | AE87: =sigma_Slip(AC87,W87,U87,IF(L87=1,mu_redLead,mu_millScale)) -> 4.747904819 | AF87: =Sigma_p(AB87,V87) -> -23.23156804 | AG87: =Sigma_p(AC87,V87) -> -26.04132689 | AH87: =beta_1(X87,AD87,Z87) -> 0.9509389547 | AI87: =beta_1(Y87,AE87,Z87) -> 0.5325444637 | AJ87: =k_tHole(W87,U87) -> 2.434043732 | AK87: =K_t1Mu(Z87,AH87,D87,W87,U87,SIGN(X87),mu_millScale) -> 3.669141669 | AL87: =K_t1Mu(Z87,AI87,D87,W87,U87,SIGN(Y87),mu_millScale) -> 3.050394102 | AM87: =Sigma_hMax(AK87,X87,AF87) -> 588.6711882 | AN87: =Sigma_hMin(X87,Y87,AG87,AE87,AK87,AL87,AJ87,AI87,Z87,IF(L87=1,mu_redLead,mu_millScale)) -> 58.89196533 | AO87: 529.7792229 | AP87: 0.1000422078 | AQ87: 169.5153226 | AR87: =tau_n(N87,W87,U87,D87) -> 103.078874 | AS87: =tau_hMax(X87,Z87,AH87,W87,U87) -> 115.0198124 | AT87: =tau_hMin(X87,Y87,AS87,AE87,Z87,AI87,IF(L87=1,mu_redLead,mu_millScale),W87,U87) -> 19.5159843 | AU87: 95.50382806
A88: 78 | B88: Kloppel1936 | C88: R; S | D88: 2 | E88: 1 | F88: 8.5 | G88: 35 | I88: 6 | J88: 8 | K88: 70 | L88: 1 | M88: 590 | N88: 137.34 | O88: 0.125 | P88: 2021400 | Q88: 0 | R88: P100T8 | S88: Stuttgard_ST52C | T88: 78 | U88: 0.7058823529 | V88: 0.6071428571 | W88: 0.2428571429 | X88: 156.96 | Y88: 19.62 | Z88: =IF(OR(X88>=1.6*D88*AD88,D88=1),calcLoadFraction(G88,F88,I88,J88,K88,D88,1),"Condition for spring model not fulfilled") -> 0.5176815565 | AA88: =IF(L88>2,L88,IF(L88=2,1,sigma_cl0(I88+J88))) -> 112.4588041 | AB88: =Sigma_cl(AA88,U88,V88,X88) -> 99.69956398 | AC88: =Sigma_cl(AA88,U88,V88,Y88) -> 110.8638991 | AD88: =sigma_Slip(AB88,W88,U88,IF(L88=1,mu_redLead,mu_millScale)) -> 4.269776223 | AE88: =sigma_Slip(AC88,W88,U88,IF(L88=1,mu_redLead,mu_millScale)) -> 4.747904819 | AF88: =Sigma_p(AB88,V88) -> -23.4188853 | AG88: =Sigma_p(AC88,V88) -> -26.04132689 | AH88: =beta_1(X88,AD88,Z88) -> 0.9474523339 | AI88: =beta_1(Y88,AE88,Z88) -> 0.5325444629 | AJ88: =k_tHole(W88,U88) -> 2.434043732 | AK88: =K_t1Mu(Z88,AH88,D88,W88,U88,SIGN(X88),mu_millScale) -> 3.667864524 | AL88: =K_t1Mu(Z88,AI88,D88,W88,U88,SIGN(Y88),mu_millScale) -> 3.0503941 | AM88: =Sigma_hMax(AK88,X88,AF88) -> 552.2891304 | AN88: =Sigma_hMin(X88,Y88,AG88,AE88,AK88,AL88,AJ88,AI88,Z88,IF(L88=1,mu_redLead,mu_millScale)) -> 58.72120177 | AO88: 493.5679287 | AP88: 0.106323298 | AQ88: 158.0506484 | AR88: =tau_n(N88,W88,U88,D88) -> 96.20694905 | AS88: =tau_hMax(X88,Z88,AH88,W88,U88) -> 107.8570276 | AT88: =tau_hMin(X88,Y88,AS88,AE88,Z88,AI88,IF(L88=1,mu_redLead,mu_millScale),W88,U88) -> 19.35905856 | AU88: 88.49796904
A89: 79 | B89: Kloppel1936 | C89: R; S | D89: 2 | E89: 1 | F89: 8.5 | G89: 35 | I89: 6 | J89: 8 | K89: 70 | L89: 1 | M89: 590 | N89: 255.06 | O89: 0.0714 | P89: 68000 | Q89: 1 | R89: P100T9 | S89: Stuttgard_ST52D | T89: 79 | U89: 0.7058823529 | V89: 0.6071428571 | W89: 0.2428571429 | X89: 274.6715486 | Y89: 19.61154857 | Z89: =IF(OR(X89>=1.6*D89*AD89,D89=1),calcLoadFraction(G89,F89,I89,J89,K89,D89,1),"Condition for spring model not fulfilled") -> 0.5176815565 | AA89: =IF(L89>2,L89,IF(L89=2,1,sigma_cl0(I89+J89))) -> 112.4588041 | AB89: =Sigma_cl(AA89,U89,V89,X89) -> 90.13082091 | AC89: =Sigma_cl(AA89,U89,V89,Y89) -> 110.8645861 | AD89: =sigma_Slip(AB89,W89,U89,IF(L89=1,mu_redLead,mu_millScale)) -> 3.859981134 | AE89: =sigma_Slip(AC89,W89,U89,IF(L89=1,mu_redLead,mu_millScale)) -> 4.747934241 | AF89: =Sigma_p(AB89,V89) -> -21.1712396 | AG89: =Sigma_p(AC89,V89) -> -26.04148827 | AH89: =beta_1(X89,AD89,Z89) -> 0.9728538144 | AI89: =beta_1(Y89,AE89,Z89) -> 0.5323401188 | AJ89: =k_tHole(W89,U89) -> 2.434043732 | AK89: =K_t1Mu(Z89,AH89,D89,W89,U89,SIGN(X89),mu_millScale) -> 3.675217048 | AL89: =K_t1Mu(Z89,AI89,D89,W89,U89,SIGN(Y89),mu_millScale) -> 3.049929075 | AM89: =Sigma_hMax(AK89,X89,AF89) -> 988.3063183 | AN89: =Sigma_hMin(X89,Y89,AG89,AE89,AK89,AL89,AJ89,AI89,Z89,IF(L89=1,mu_redLead,mu_millScale)) -> 59.90479458 | AO89: 928.4015238 | AP89: 0.06061359061 | AQ89: 295.6936719 | AR89: =tau_n(N89,W89,U89,D89) -> 178.6700482 | AS89: =tau_hMax(X89,Z89,AH89,W89,U89) -> 193.8042737 | AT89: =tau_hMin(X89,Y89,AS89,AE89,Z89,AI89,IF(L89=1,mu_redLead,mu_millScale),W89,U89) -> 20.57316764 | AU89: 173.231106
A90: 80 | B90: Kloppel1936 | C90: R; S | D90: 2 | E90: 1 | F90: 8.5 | G90: 35 | I90: 6 | J90: 8 | K90: 70 | L90: 1 | M90: 590 | N90: 196.2 | O90: 0.0909 | P90: 168300 | Q90: 1 | R90: P100T9 | S90: Stuttgard_ST52D | T90: 80 | U90: 0.7058823529 | V90: 0.6071428571 | W90: 0.2428571429 | X90: 215.8178418 | Y90: 19.61784182 | Z90: =IF(OR(X90>=1.6*D90*AD90,D90=1),calcLoadFraction(G90,F90,I90,J90,K90,D90,1),"Condition for spring model not fulfilled") -> 0.5176815565 | AA90: =IF(L90>2,L90,IF(L90=2,1,sigma_cl0(I90+J90))) -> 112.4588041 | AB90: =Sigma_cl(AA90,U90,V90,X90) -> 94.91502438 | AC90: =Sigma_cl(AA90,U90,V90,Y90) -> 110.8640745 | AD90: =sigma_Slip(AB90,W90,U90,IF(L90=1,mu_redLead,mu_millScale)) -> 4.064871481 | AE90: =sigma_Slip(AC90,W90,U90,IF(L90=1,mu_redLead,mu_millScale)) -> 4.747912332 | AF90: =Sigma_p(AB90,V90) -> -22.29502297 | AG90: =Sigma_p(AC90,V90) -> -26.0413681 | AH90: =beta_1(X90,AD90,Z90) -> 0.9636171445 | AI90: =beta_1(Y90,AE90,Z90) -> 0.5324922978 | AJ90: =k_tHole(W90,U90) -> 2.434043732 | AK90: =K_t1Mu(Z90,AH90,D90,W90,U90,SIGN(X90),mu_millScale) -> 3.673070581 | AL90: =K_t1Mu(Z90,AI90,D90,W90,U90,SIGN(Y90),mu_millScale) -> 3.050275397 | AM90: =Sigma_hMax(AK90,X90,AF90) -> 770.4191427 | AN90: =Sigma_hMin(X90,Y90,AG90,AE90,AK90,AL90,AJ90,AI90,Z90,IF(L90=1,mu_redLead,mu_millScale)) -> 59.49409645 | AO90: 710.9250463 | AP90: 0.07722302465 | AQ90: 226.859005 | AR90: =tau_n(N90,W90,U90,D90) -> 137.4384986 | AS90: =tau_hMax(X90,Z90,AH90,W90,U90) -> 150.8321602 | AT90: =tau_hMin(X90,Y90,AS90,AE90,Z90,AI90,IF(L90=1,mu_redLead,mu_millScale),W90,U90) -> 20.11047114 | AU90: 130.7216891
A91: 81 | B91: Kloppel1936 | C91: R; S | D91: 2 | E91: 1 | F91: 8.5 | G91: 35 | I91: 6 | J91: 8 | K91: 70 | L91: 1 | M91: 590 | N91: 156.96 | O91: 0.111111111 | P91: 378900 | Q91: 1 | R91: P100T9 | S91: Stuttgard_ST52D | T91: 81 | U91: 0.7058823529 | V91: 0.6071428571 | W91: 0.2428571429 | X91: 176.58 | Y91: 19.61999998 | Z91: =IF(OR(X91>=1.6*D91*AD91,D91=1),calcLoadFraction(G91,F91,I91,J91,K91,D91,1),"Condition for spring model not fulfilled") -> 0.5176815565 | AA91: =IF(L91>2,L91,IF(L91=2,1,sigma_cl0(I91+J91))) -> 112.4588041 | AB91: =Sigma_cl(AA91,U91,V91,X91) -> 98.10465897 | AC91: =Sigma_cl(AA91,U91,V91,Y91) -> 110.8638991 | AD91: =sigma_Slip(AB91,W91,U91,IF(L91=1,mu_redLead,mu_millScale)) -> 4.201472138 | AE91: =sigma_Slip(AC91,W91,U91,IF(L91=1,mu_redLead,mu_millScale)) -> 4.747904819 | AF91: =Sigma_p(AB91,V91) -> -23.04425079 | AG91: =Sigma_p(AC91,V91) -> -26.04132689 | AH91: =beta_1(X91,AD91,Z91) -> 0.9540381731 | AI91: =beta_1(Y91,AE91,Z91) -> 0.5325444623 | AJ91: =k_tHole(W91,U91) -> 2.434043732 | AK91: =K_t1Mu(Z91,AH91,D91,W91,U91,SIGN(X91),mu_millScale) -> 3.670206056 | AL91: =K_t1Mu(Z91,AI91,D91,W91,U91,SIGN(Y91),mu_millScale) -> 3.050394099 | AM91: =Sigma_hMax(AK91,X91,AF91) -> 625.0407345 | AN91: =Sigma_hMin(X91,Y91,AG91,AE91,AK91,AL91,AJ91,AI91,Z91,IF(L91=1,mu_redLead,mu_millScale)) -> 59.04263476 | AO91: 565.9980997 | AP91: 0.09446205904 | AQ91: 180.9817605 | AR91: =tau_n(N91,W91,U91,D91) -> 109.9507989 | AS91: =tau_hMax(X91,Z91,AH91,W91,U91) -> 122.1825971 | AT91: =tau_hMin(X91,Y91,AS91,AE91,Z91,AI91,IF(L91=1,mu_redLead,mu_millScale),W91,U91) -> 19.65777661 | AU91: 102.5248205
A92: 82 | B92: Kloppel1936 | C92: R; S | D92: 2 | E92: 1 | F92: 8.5 | G92: 35 | I92: 6 | J92: 8 | K92: 70 | L92: 1 | M92: 590 | N92: 127.53 | O92: 0.133333333 | P92: 696400 | Q92: 1 | R92: P100T9 | S92: Stuttgard_ST52D (duplicate in Graf1935) | T92: 82 | U92: 0.7058823529 | V92: 0.6071428571 | W92: 0.2428571429 | X92: 147.1499999 | Y92: 19.61999994 | Z92: =IF(OR(X92>=1.6*D92*AD92,D92=1),calcLoadFraction(G92,F92,I92,J92,K92,D92,1),"Condition for spring model not fulfilled") -> 0.5176815565 | AA92: =IF(L92>2,L92,IF(L92=2,1,sigma_cl0(I92+J92))) -> 112.4588041 | AB92: =Sigma_cl(AA92,U92,V92,X92) -> 100.4970165 | AC92: =Sigma_cl(AA92,U92,V92,Y92) -> 110.8638991 | AD92: =sigma_Slip(AB92,W92,U92,IF(L92=1,mu_redLead,mu_millScale)) -> 4.303928266 | AE92: =sigma_Slip(AC92,W92,U92,IF(L92=1,mu_redLead,mu_millScale)) -> 4.747904819 | AF92: =Sigma_p(AB92,V92) -> -23.60620256 | AG92: =Sigma_p(AC92,V92) -> -26.04132689 | AH92: =beta_1(X92,AD92,Z92) -> 0.9435008303 | AI92: =beta_1(Y92,AE92,Z92) -> 0.5325444615 | AJ92: =k_tHole(W92,U92) -> 2.434043732 | AK92: =K_t1Mu(Z92,AH92,D92,W92,U92,SIGN(X92),mu_millScale) -> 3.666315646 | AL92: =K_t1Mu(Z92,AI92,D92,W92,U92,SIGN(Y92),mu_millScale) -> 3.050394097 | AM92: =Sigma_hMax(AK92,X92,AF92) -> 515.8921445 | AN92: =Sigma_hMin(X92,Y92,AG92,AE92,AK92,AL92,AJ92,AI92,Z92,IF(L92=1,mu_redLead,mu_millScale)) -> 58.52608377 | AO92: 457.3660607 | AP92: 0.1134463558 | AQ92: 146.5881864 | AR92: =tau_n(N92,W92,U92,D92) -> 89.33502412 | AS92: =tau_hMax(X92,Z92,AH92,W92,U92) -> 100.6942428 | AT92: =tau_hMin(X92,Y92,AS92,AE92,Z92,AI92,IF(L92=1,mu_redLead,mu_millScale),W92,U92) -> 19.18425933 | AU92: 81.50998349
A93: 83 | B93: Kloppel1936 | C93: R; S | D93: 2 | E93: 1 | F93: 8.5 | G93: 35 | I93: 6 | J93: 8 | K93: 70 | L93: 1 | M93: 590 | N93: 107.91 | O93: 0.153846154 | P93: 1209700 | Q93: 1 | R93: P100T9 | S93: Stuttgard_ST52D (duplicate in Graf1935) | T93: 83 | U93: 0.7058823529 | V93: 0.6071428571 | W93: 0.2428571429 | X93: 127.53 | Y93: 19.62000002 | Z93: =IF(OR(X93>=1.6*D93*AD93,D93=1),calcLoadFraction(G93,F93,I93,J93,K93,D93,1),"Condition for spring model not fulfilled") -> 0.5176815565 | AA93: =IF(L93>2,L93,IF(L93=2,1,sigma_cl0(I93+J93))) -> 112.4588041 | AB93: =Sigma_cl(AA93,U93,V93,X93) -> 102.0919215 | AC93: =Sigma_cl(AA93,U93,V93,Y93) -> 110.8638991 | AD93: =sigma_Slip(AB93,W93,U93,IF(L93=1,mu_redLead,mu_millScale)) -> 4.37223235 | AE93: =sigma_Slip(AC93,W93,U93,IF(L93=1,mu_redLead,mu_millScale)) -> 4.747904819 | AF93: =Sigma_p(AB93,V93) -> -23.98083707 | AG93: =Sigma_p(AC93,V93) -> -26.04132689 | AH93: =beta_1(X93,AD93,Z93) -> 0.9337740524 | AI93: =beta_1(Y93,AE93,Z93) -> 0.5325444634 | AJ93: =k_tHole(W93,U93) -> 2.434043732 | AK93: =K_t1Mu(Z93,AH93,D93,W93,U93,SIGN(X93),mu_millScale) -> 3.662048085 | AL93: =K_t1Mu(Z93,AI93,D93,W93,U93,SIGN(Y93),mu_millScale) -> 3.050394101 | AM93: =Sigma_hMax(AK93,X93,AF93) -> 443.0401552 | AN93: =Sigma_hMin(X93,Y93,AG93,AE93,AK93,AL93,AJ93,AI93,Z93,IF(L93=1,mu_redLead,mu_millScale)) -> 58.03881174 | AO93: 385.0013435 | AP93: 0.1310012446 | AQ93: 123.6725395 | AR93: =tau_n(N93,W93,U93,D93) -> 75.59117426 | AS93: =tau_hMax(X93,Z93,AH93,W93,U93) -> 86.3686734 | AT93: =tau_hMin(X93,Y93,AS93,AE93,Z93,AI93,IF(L93=1,mu_redLead,mu_millScale),W93,U93) -> 18.76623626 | AU93: 67.60243713
A94: 84 | B94: Kloppel1936 | C94: R; S | D94: 2 | E94: 1 | F94: 8.5 | G94: 35 | I94: 6 | J94: 8 | K94: 70 | L94: 1 | M94: 590 | N94: 98.1 | O94: 0.166666667 | P94: 2021000 | Q94: 0 | R94: P100T9 | S94: Stuttgard_ST52D | T94: 84 | U94: 0.7058823529 | V94: 0.6071428571 | W94: 0.2428571429 | X94: 117.72 | Y94: 19.62000005 | Z94: =IF(OR(X94>=1.6*D94*AD94,D94=1),calcLoadFraction(G94,F94,I94,J94,K94,D94,1),"Condition for spring model not fulfilled") -> 0.5176815565 | AA94: =IF(L94>2,L94,IF(L94=2,1,sigma_cl0(I94+J94))) -> 112.4588041 | AB94: =Sigma_cl(AA94,U94,V94,X94) -> 102.889374 | AC94: =Sigma_cl(AA94,U94,V94,Y94) -> 110.8638991 | AD94: =sigma_Slip(AB94,W94,U94,IF(L94=1,mu_redLead,mu_millScale)) -> 4.406384393 | AE94: =sigma_Slip(AC94,W94,U94,IF(L94=1,mu_redLead,mu_millScale)) -> 4.747904819 | AF94: =Sigma_p(AB94,V94) -> -24.16815432 | AG94: =Sigma_p(AC94,V94) -> -26.04132689 | AH94: =beta_1(X94,AD94,Z94) -> 0.9276948162 | AI94: =beta_1(Y94,AE94,Z94) -> 0.532544464 | AJ94: =k_tHole(W94,U94) -> 2.434043732 | AK94: =K_t1Mu(Z94,AH94,D94,W94,U94,SIGN(X94),mu_millScale) -> 3.659055851 | AL94: =K_t1Mu(Z94,AI94,D94,W94,U94,SIGN(Y94),mu_millScale) -> 3.050394103 | AM94: =Sigma_hMax(AK94,X94,AF94) -> 406.5759006 | AN94: =Sigma_hMin(X94,Y94,AG94,AE94,AK94,AL94,AJ94,AI94,Z94,IF(L94=1,mu_redLead,mu_millScale)) -> 57.72938449 | AO94: 348.8465161 | AP94: 0.1419891942 | AQ94: 112.2213464 | AR94: =tau_n(N94,W94,U94,D94) -> 68.71924932 | AS94: =tau_hMax(X94,Z94,AH94,W94,U94) -> 79.20588867 | AT94: =tau_hMin(X94,Y94,AS94,AE94,Z94,AI94,IF(L94=1,mu_redLead,mu_millScale),W94,U94) -> 18.51280988 | AU94: 60.69307879
A95: 85 | B95: Graf1935 | C95: R; S | D95: 2 | E95: 1 | F95: 8.5 | G95: 35 | I95: 6 | J95: 8 | K95: 70 | L95: 1 | M95: 590 | N95: 127.53 | O95: 0.133333333 | P95: 700000 | Q95: 1 | R95: P26 | T95: 85 | U95: 0.7058823529 | V95: 0.6071428571 | W95: 0.2428571429 | X95: 147.1499999 | Y95: 19.61999994 | Z95: =IF(OR(X95>=1.6*D95*AD95,D95=1),calcLoadFraction(G95,F95,I95,J95,K95,D95,1),"Condition for spring model not fulfilled") -> 0.5176815565 | AA95: =IF(L95>2,L95,IF(L95=2,1,sigma_cl0(I95+J95))) -> 112.4588041 | AB95: =Sigma_cl(AA95,U95,V95,X95) -> 100.4970165 | AC95: =Sigma_cl(AA95,U95,V95,Y95) -> 110.8638991 | AD95: =sigma_Slip(AB95,W95,U95,IF(L95=1,mu_redLead,mu_millScale)) -> 4.303928266 | AE95: =sigma_Slip(AC95,W95,U95,IF(L95=1,mu_redLead,mu_millScale)) -> 4.747904819 | AF95: =Sigma_p(AB95,V95) -> -23.60620256 | AG95: =Sigma_p(AC95,V95) -> -26.04132689 | AH95: =beta_1(X95,AD95,Z95) -> 0.9435008303 | AI95: =beta_1(Y95,AE95,Z95) -> 0.5325444615 | AJ95: =k_tHole(W95,U95) -> 2.434043732 | AK95: =K_t1Mu(Z95,AH95,D95,W95,U95,SIGN(X95),mu_millScale) -> 3.666315646 | AL95: =K_t1Mu(Z95,AI95,D95,W95,U95,SIGN(Y95),mu_millScale) -> 3.050394097 | AM95: =Sigma_hMax(AK95,X95,AF95) -> 515.8921445 | AN95: =Sigma_hMin(X95,Y95,AG95,AE95,AK95,AL95,AJ95,AI95,Z95,IF(L95=1,mu_redLead,mu_millScale)) -> 58.52608377 | AO95: 457.3660607 | AP95: 0.1134463558 | AQ95: 146.5881864 | AR95: =tau_n(N95,W95,U95,D95) -> 89.33502412 | AS95: =tau_hMax(X95,Z95,AH95,W95,U95) -> 100.6942428 | AT95: =tau_hMin(X95,Y95,AS95,AE95,Z95,AI95,IF(L95=1,mu_redLead,mu_millScale),W95,U95) -> 19.18425933 | AU95: 81.50998349
A96: 86 | B96: Graf1935 | C96: R; S | D96: 2 | E96: 1 | F96: 8.5 | G96: 35 | I96: 6 | J96: 8 | K96: 70 | L96: 1 | M96: 590 | N96: 107.91 | O96: 0.153846154 | P96: 1021300 | Q96: 1 | R96: P26 | T96: 86 | U96: 0.7058823529 | V96: 0.6071428571 | W96: 0.2428571429 | X96: 127.53 | Y96: 19.62000002 | Z96: =IF(OR(X96>=1.6*D96*AD96,D96=1),calcLoadFraction(G96,F96,I96,J96,K96,D96,1),"Condition for spring model not fulfilled") -> 0.5176815565 | AA96: =IF(L96>2,L96,IF(L96=2,1,sigma_cl0(I96+J96))) -> 112.4588041 | AB96: =Sigma_cl(AA96,U96,V96,X96) -> 102.0919215 | AC96: =Sigma_cl(AA96,U96,V96,Y96) -> 110.8638991 | AD96: =sigma_Slip(AB96,W96,U96,IF(L96=1,mu_redLead,mu_millScale)) -> 4.37223235 | AE96: =sigma_Slip(AC96,W96,U96,IF(L96=1,mu_redLead,mu_millScale)) -> 4.747904819 | AF96: =Sigma_p(AB96,V96) -> -23.98083707 | AG96: =Sigma_p(AC96,V96) -> -26.04132689 | AH96: =beta_1(X96,AD96,Z96) -> 0.9337740524 | AI96: =beta_1(Y96,AE96,Z96) -> 0.5325444634 | AJ96: =k_tHole(W96,U96) -> 2.434043732 | AK96: =K_t1Mu(Z96,AH96,D96,W96,U96,SIGN(X96),mu_millScale) -> 3.662048085 | AL96: =K_t1Mu(Z96,AI96,D96,W96,U96,SIGN(Y96),mu_millScale) -> 3.050394101 | AM96: =Sigma_hMax(AK96,X96,AF96) -> 443.0401552 | AN96: =Sigma_hMin(X96,Y96,AG96,AE96,AK96,AL96,AJ96,AI96,Z96,IF(L96=1,mu_redLead,mu_millScale)) -> 58.03881174 | AO96: 385.0013435 | AP96: 0.1310012446 | AQ96: 123.6725395 | AR96: =tau_n(N96,W96,U96,D96) -> 75.59117426 | AS96: =tau_hMax(X96,Z96,AH96,W96,U96) -> 86.3686734 | AT96: =tau_hMin(X96,Y96,AS96,AE96,Z96,AI96,IF(L96=1,mu_redLead,mu_millScale),W96,U96) -> 18.76623626 | AU96: 67.60243713
A97: 85 | B97: Graf1935 | C97: R; S | D97: 2 | E97: 1 | F97: 8.5 | G97: 35 | I97: 6 | J97: 8 | K97: 70 | L97: 1 | M97: 590 | N97: 127.53 | O97: 0.133333333 | P97: 434000 | Q97: 1 | R97: P48 | T97: 85 | U97: =I97/F97 -> 0.7058823529 | V97: =F97/(J97+I97) -> 0.6071428571 | W97: =F97/G97 -> 0.2428571429 | X97: =N97/(1-O97) -> 147.1499999 | Y97: =X97*O97 -> 19.61999994 | Z97: =IF(OR(X97>=1.6*D97*AD97,D97=1),calcLoadFraction(G97,F97,I97,J97,K97,D97,1),"Condition for spring model not fulfilled") -> 0.5176815565 | AA97: =IF(L97>2,L97,IF(L97=2,1,sigma_cl0(I97+J97))) -> 112.4588041 | AB97: =Sigma_cl(AA97,U97,V97,X97) -> 100.4970165 | AC97: =Sigma_cl(AA97,U97,V97,Y97) -> 110.8638991 | AD97: =sigma_Slip(AB97,W97,U97,IF(L97=1,mu_redLead,mu_millScale)) -> 4.303928266 | AE97: =sigma_Slip(AC97,W97,U97,IF(L97=1,mu_redLead,mu_millScale)) -> 4.747904819 | AF97: =Sigma_p(AB97,V97) -> -23.60620256 | AG97: =Sigma_p(AC97,V97) -> -26.04132689 | AH97: =beta_1(X97,AD97,Z97) -> 0.9435008303 | AI97: =beta_1(Y97,AE97,Z97) -> 0.5325444615 | AJ97: =k_tHole(W97,U97) -> 2.434043732 | AK97: =K_t1Mu(Z97,AH97,D97,W97,U97,SIGN(X97),mu_millScale) -> 3.666315646 | AL97: =K_t1Mu(Z97,AI97,D97,W97,U97,SIGN(Y97),mu_millScale) -> 3.050394097 | AM97: =Sigma_hMax(AK97,X97,AF97) -> 515.8921445 | AN97: =Sigma_hMin(X97,Y97,AG97,AE97,AK97,AL97,AJ97,AI97,Z97,IF(L97=1,mu_redLead,mu_millScale)) -> 58.52608377 | AO97: =(AM97-AN97) -> 457.3660607 | AP97: =AN97/AM97 -> 0.1134463558 | AQ97: 146.5881864 | AR97: =tau_n(N97,W97,U97,D97) -> 89.33502412 | AS97: =tau_hMax(X97,Z97,AH97,W97,U97) -> 100.6942428 | AT97: =tau_hMin(X97,Y97,AS97,AE97,Z97,AI97,IF(L97=1,mu_redLead,mu_millScale),W97,U97) -> 19.18425933 | AU97: 81.50998349
A98: 86 | B98: Graf1935 | C98: R; S | D98: 2 | E98: 1 | F98: 8.5 | G98: 35 | I98: 6 | J98: 8 | K98: 70 | L98: 1 | M98: 590 | N98: 107.91 | O98: 0.153846154 | P98: 1003000 | Q98: 1 | R98: P48 | T98: 86 | U98: 0.7058823529 | V98: 0.6071428571 | W98: 0.2428571429 | X98: 127.53 | Y98: 19.62000002 | Z98: =IF(OR(X98>=1.6*D98*AD98,D98=1),calcLoadFraction(G98,F98,I98,J98,K98,D98,1),"Condition for spring model not fulfilled") -> 0.5176815565 | AA98: =IF(L98>2,L98,IF(L98=2,1,sigma_cl0(I98+J98))) -> 112.4588041 | AB98: =Sigma_cl(AA98,U98,V98,X98) -> 102.0919215 | AC98: =Sigma_cl(AA98,U98,V98,Y98) -> 110.8638991 | AD98: =sigma_Slip(AB98,W98,U98,IF(L98=1,mu_redLead,mu_millScale)) -> 4.37223235 | AE98: =sigma_Slip(AC98,W98,U98,IF(L98=1,mu_redLead,mu_millScale)) -> 4.747904819 | AF98: =Sigma_p(AB98,V98) -> -23.98083707 | AG98: =Sigma_p(AC98,V98) -> -26.04132689 | AH98: =beta_1(X98,AD98,Z98) -> 0.9337740524 | AI98: =beta_1(Y98,AE98,Z98) -> 0.5325444634 | AJ98: =k_tHole(W98,U98) -> 2.434043732 | AK98: =K_t1Mu(Z98,AH98,D98,W98,U98,SIGN(X98),mu_millScale) -> 3.662048085 | AL98: =K_t1Mu(Z98,AI98,D98,W98,U98,SIGN(Y98),mu_millScale) -> 3.050394101 | AM98: =Sigma_hMax(AK98,X98,AF98) -> 443.0401552 | AN98: =Sigma_hMin(X98,Y98,AG98,AE98,AK98,AL98,AJ98,AI98,Z98,IF(L98=1,mu_redLead,mu_millScale)) -> 58.03881174 | AO98: 385.0013435 | AP98: 0.1310012446 | AQ98: 123.6725395 | AR98: =tau_n(N98,W98,U98,D98) -> 75.59117426 | AS98: =tau_hMax(X98,Z98,AH98,W98,U98) -> 86.3686734 | AT98: =tau_hMin(X98,Y98,AS98,AE98,Z98,AI98,IF(L98=1,mu_redLead,mu_millScale),W98,U98) -> 18.76623626 | AU98: 67.60243713
A99: 87 | B99: Graf1935 | C99: R; S | D99: 2 | E99: 1 | F99: 10 | G99: 39.5 | I99: 8.5 | J99: 13 | K99: 70 | M99: 537 | N99: 210.915 | O99: 0.0227 | P99: 310700 | Q99: 1 | R99: GH52.33.1-2 | T99: 87 | U99: =I99/F99 -> 0.85 | V99: =F99/(J99+I99) -> 0.4651162791 | W99: =F99/G99 -> 0.253164557 | X99: =N99/(1-O99) -> 215.8139773 | Y99: =X99*O99 -> 4.898977284 | Z99: =IF(OR(X99>=1.6*D99*AD99,D99=1),calcLoadFraction(G99,F99,I99,J99,K99,D99,1),"Condition for spring model not fulfilled") -> 0.5205211239 | AA99: =IF(L99>2,L99,IF(L99=2,1,sigma_cl0(I99+J99))) -> 151.6522834 | AB99: =Sigma_cl(AA99,U99,V99,X99) -> 133.8116168 | AC99: =Sigma_cl(AA99,U99,V99,Y99) -> 151.2473003 | AD99: =sigma_Slip(AB99,W99,U99,IF(L99=1,mu_redLead,mu_millScale)) -> 27.66219855 | AE99: =sigma_Slip(AC99,W99,U99,IF(L99=1,mu_redLead,mu_millScale)) -> 31.26658919 | AF99: =Sigma_p(AB99,V99) -> -23.49251351 | AG99: =Sigma_p(AC99,V99) -> -26.55359326 | AH99: =beta_1(X99,AD99,Z99) -> 0.7537542369 | AI99: =beta_1(Y99,AE99,Z99) -> 0 | AJ99: =k_tHole(W99,U99) -> 2.416557311 | AK99: =K_t1Mu(Z99,AH99,D99,W99,U99,SIGN(X99),mu_millScale) -> 3.427286886 | AL99: =K_t1Mu(Z99,AI99,D99,W99,U99,SIGN(Y99),mu_millScale) -> 1.787622747 | AM99: =Sigma_hMax(AK99,X99,AF99) -> 716.1639007 | AN99: =Sigma_hMin(X99,Y99,AG99,AE99,AK99,AL99,AJ99,AI99,Z99,IF(L99=1,mu_redLead,mu_millScale)) -> 72.86950059 | AO99: =(AM99-AN99) -> 643.2944001 | AP99: =AN99/AM99 -> 0.1017497538 | AQ99: 205.8801741 | AR99: =tau_n(N99,W99,U99,D99) -> 168.3443462 | AS99: =tau_hMax(X99,Z99,AH99,W99,U99) -> 135.1664033 | AT99: =tau_hMin(X99,Y99,AS99,AE99,Z99,AI99,IF(L99=1,mu_redLead,mu_millScale),W99,U99) -> 37.31821119 | AU99: 97.84819208
A100: 88 | B100: Graf1935 | C100: R; S | D100: 2 | E100: 1 | F100: 10 | G100: 39.5 | I100: 8.5 | J100: 13 | K100: 70 | M100: 537 | N100: 171.675 | O100: 0.0278 | P100: 498400 | Q100: 1 | R100: GH52.34-35.2 | T100: 88 | U100: 0.85 | V100: 0.4651162791 | W100: 0.253164557 | X100: 176.5840362 | Y100: 4.909036207 | Z100: =IF(OR(X100>=1.6*D100*AD100,D100=1),calcLoadFraction(G100,F100,I100,J100,K100,D100,1),"Condition for spring model not fulfilled") -> 0.5205211239 | AA100: =IF(L100>2,L100,IF(L100=2,1,sigma_cl0(I100+J100))) -> 151.6522834 | AB100: =Sigma_cl(AA100,U100,V100,X100) -> 137.0546333 | AC100: =Sigma_cl(AA100,U100,V100,Y100) -> 151.2464687 | AD100: =sigma_Slip(AB100,W100,U100,IF(L100=1,mu_redLead,mu_millScale)) -> 28.33261095 | AE100: =sigma_Slip(AC100,W100,U100,IF(L100=1,mu_redLead,mu_millScale)) -> 31.26641729 | AF100: =Sigma_p(AB100,V100) -> -24.06187073 | AG100: =Sigma_p(AC100,V100) -> -26.55344727 | AH100: =beta_1(X100,AD100,Z100) -> 0.6917544611 | AI100: =beta_1(Y100,AE100,Z100) -> 0 | AJ100: =k_tHole(W100,U100) -> 2.416557311 | AK100: =K_t1Mu(Z100,AH100,D100,W100,U100,SIGN(X100),mu_millScale) -> 3.327474504 | AL100: =K_t1Mu(Z100,AI100,D100,W100,U100,SIGN(Y100),mu_millScale) -> 1.787622747 | AM100: =Sigma_hMax(AK100,X100,AF100) -> 563.5170076 | AN100: =Sigma_hMin(X100,Y100,AG100,AE100,AK100,AL100,AJ100,AI100,Z100,IF(L100=1,mu_redLead,mu_millScale)) -> 65.46229123 | AO100: 498.0547164 | AP100: 0.1161673744 | AQ100: 159.6838435 | AR100: =tau_n(N100,W100,U100,D100) -> 137.0244679 | AS100: =tau_hMax(X100,Z100,AH100,W100,U100) -> 101.4992494 | AT100: =tau_hMin(X100,Y100,AS100,AE100,Z100,AI100,IF(L100=1,mu_redLead,mu_millScale),W100,U100) -> 32.12617237 | AU100: 69.37307702
A101: 89 | B101: Graf1935 | C101: R; S | D101: 2 | E101: 1 | F101: 10 | G101: 39.5 | I101: 8.5 | J101: 13 | K101: 70 | M101: 537 | N101: 152.055 | O101: 0.032258064 | P101: 1316500 | Q101: 1 | R101: GH52.34-35.1 | T101: 89 | U101: 0.85 | V101: 0.4651162791 | W101: 0.253164557 | X101: 157.1234999 | Y101: 5.068499916 | Z101: =IF(OR(X101>=1.6*D101*AD101,D101=1),calcLoadFraction(G101,F101,I101,J101,K101,D101,1),"Condition for spring model not fulfilled") -> 0.5205211239 | AA101: =IF(L101>2,L101,IF(L101=2,1,sigma_cl0(I101+J101))) -> 151.6522834 | AB101: =Sigma_cl(AA101,U101,V101,X101) -> 138.663375 | AC101: =Sigma_cl(AA101,U101,V101,Y101) -> 151.2332864 | AD101: =sigma_Slip(AB101,W101,U101,IF(L101=1,mu_redLead,mu_millScale)) -> 28.66517798 | AE101: =sigma_Slip(AC101,W101,U101,IF(L101=1,mu_redLead,mu_millScale)) -> 31.26369216 | AF101: =Sigma_p(AB101,V101) -> -24.34430799 | AG101: =Sigma_p(AC101,V101) -> -26.55113292 | AH101: =beta_1(X101,AD101,Z101) -> 0.6495103971 | AI101: =beta_1(Y101,AE101,Z101) -> 0 | AJ101: =k_tHole(W101,U101) -> 2.416557311 | AK101: =K_t1Mu(Z101,AH101,D101,W101,U101,SIGN(X101),mu_millScale) -> 3.250618987 | AL101: =K_t1Mu(Z101,AI101,D101,W101,U101,SIGN(Y101),mu_millScale) -> 1.787622747 | AM101: =Sigma_hMax(AK101,X101,AF101) -> 486.4043242 | AN101: =Sigma_hMin(X101,Y101,AG101,AE101,AK101,AL101,AJ101,AI101,Z101,IF(L101=1,mu_redLead,mu_millScale)) -> 60.79978193 | AO101: 425.6045422 | AP101: 0.1249984404 | AQ101: 136.6090254 | AR101: =tau_n(N101,W101,U101,D101) -> 121.3645287 | AS101: =tau_hMax(X101,Z101,AH101,W101,U101) -> 84.79820799 | AT101: =tau_hMin(X101,Y101,AS101,AE101,Z101,AI101,IF(L101=1,mu_redLead,mu_millScale),W101,U101) -> 29.03197503 | AU101: 55.76623296
A102: 90 | B102: Graf1935 | C102: R; S | D102: 2 | E102: 1 | F102: 10 | G102: 39.5 | I102: 12.5 | J102: 8.5 | K102: 70 | M102: 572 | N102: 210.915 | O102: 0.0227 | P102: 280000 | Q102: 2 | R102: GH52.23-32.3 | T102: 90 | U102: 1.25 | V102: 0.4761904762 | W102: 0.253164557 | X102: 215.8139773 | Y102: 4.898977284 | Z102: =IF(OR(X102>=1.6*D102*AD102,D102=1),calcLoadFraction(G102,F102,I102,J102,K102,D102,1),"Condition for spring model not fulfilled") -> 0.4806557526 | AA102: =IF(L102>2,L102,IF(L102=2,1,sigma_cl0(I102+J102))) -> 149.6503023 | AB102: =Sigma_cl(AA102,U102,V102,X102) -> 123.0066014 | AC102: =Sigma_cl(AA102,U102,V102,Y102) -> 149.0454903 | AD102: =sigma_Slip(AB102,W102,U102,IF(L102=1,mu_redLead,mu_millScale)) -> 17.29140203 | AE102: =sigma_Slip(AC102,W102,U102,IF(L102=1,mu_redLead,mu_millScale)) -> 20.9517657 | AF102: =Sigma_p(AB102,V102) -> -22.17667093 | AG102: =Sigma_p(AC102,V102) -> -26.87118215 | AH102: =beta_1(X102,AD102,Z102) -> 0.8333073329 | AI102: =beta_1(Y102,AE102,Z102) -> 0 | AJ102: =k_tHole(W102,U102) -> 2.416557311 | AK102: =K_t1Mu(Z102,AH102,D102,W102,U102,SIGN(X102),mu_millScale) -> 3.605224384 | AL102: =K_t1Mu(Z102,AI102,D102,W102,U102,SIGN(Y102),mu_millScale) -> 1.835791224 | AM102: =Sigma_hMax(AK102,X102,AF102) -> 755.8811424 | AN102: =Sigma_hMin(X102,Y102,AG102,AE102,AK102,AL102,AJ102,AI102,Z102,IF(L102=1,mu_redLead,mu_millScale)) -> 56.00193671 | AO102: 699.8792057 | AP102: 0.07408828395 | AQ102: 223.2529745 | AR102: =tau_n(N102,W102,U102,D102) -> 247.5652151 | AS102: =tau_hMax(X102,Z102,AH102,W102,U102) -> 202.9229034 | AT102: =tau_hMin(X102,Y102,AS102,AE102,Z102,AI102,IF(L102=1,mu_redLead,mu_millScale),W102,U102) -> 45.6156542 | AU102: 157.3072492
A103: 91 | B103: Graf1935 | C103: R; S | D103: 2 | E103: 1 | F103: 10 | G103: 39.5 | I103: 12.5 | J103: 8.5 | K103: 70 | M103: 572 | N103: 171.675 | O103: 0.0278 | P103: 773000 | Q103: 2 | R103: GH52.23-32.1 | T103: 91 | U103: 1.25 | V103: 0.4761904762 | W103: 0.253164557 | X103: 176.5840362 | Y103: 4.909036207 | Z103: =IF(OR(X103>=1.6*D103*AD103,D103=1),calcLoadFraction(G103,F103,I103,J103,K103,D103,1),"Condition for spring model not fulfilled") -> 0.4806557526 | AA103: =IF(L103>2,L103,IF(L103=2,1,sigma_cl0(I103+J103))) -> 149.6503023 | AB103: =Sigma_cl(AA103,U103,V103,X103) -> 127.849804 | AC103: =Sigma_cl(AA103,U103,V103,Y103) -> 149.0442485 | AD103: =sigma_Slip(AB103,W103,U103,IF(L103=1,mu_redLead,mu_millScale)) -> 17.97222535 | AE103: =sigma_Slip(AC103,W103,U103,IF(L103=1,mu_redLead,mu_millScale)) -> 20.95159114 | AF103: =Sigma_p(AB103,V103) -> -23.04984448 | AG103: =Sigma_p(AC103,V103) -> -26.87095826 | AH103: =beta_1(X103,AD103,Z103) -> 0.7882534848 | AI103: =beta_1(Y103,AE103,Z103) -> 0 | AJ103: =k_tHole(W103,U103) -> 2.416557311 | AK103: =K_t1Mu(Z103,AH103,D103,W103,U103,SIGN(X103),mu_millScale) -> 3.550712653 | AL103: =K_t1Mu(Z103,AI103,D103,W103,U103,SIGN(Y103),mu_millScale) -> 1.835791224 | AM103: =Sigma_hMax(AK103,X103,AF103) -> 603.9493273 | AN103: =Sigma_hMin(X103,Y103,AG103,AE103,AK103,AL103,AJ103,AI103,Z103,IF(L103=1,mu_redLead,mu_millScale)) -> 52.12605911 | AO103: 551.8232682 | AP103: 0.08630866326 | AQ103: 176.2771753 | AR103: =tau_n(N103,W103,U103,D103) -> 201.5065704 | AS103: =tau_hMax(X103,Z103,AH103,W103,U103) -> 157.0592916 | AT103: =tau_hMin(X103,Y103,AS103,AE103,Z103,AI103,IF(L103=1,mu_redLead,mu_millScale),W103,U103) -> 40.86032073 | AU103: 116.1989709
A104: 92 | B104: Graf1935 | C104: R; S | D104: 2 | E104: 1 | F104: 10 | G104: 39.5 | I104: 12.5 | J104: 8.5 | K104: 70 | M104: 572 | N104: 171.675 | O104: 0.0278 | P104: 1601600 | Q104: 2 | R104: GH52.23-32.2 | T104: 92 | U104: 1.25 | V104: 0.4761904762 | W104: 0.253164557 | X104: 176.5840362 | Y104: 4.909036207 | Z104: =IF(OR(X104>=1.6*D104*AD104,D104=1),calcLoadFraction(G104,F104,I104,J104,K104,D104,1),"Condition for spring model not fulfilled") -> 0.4806557526 | AA104: =IF(L104>2,L104,IF(L104=2,1,sigma_cl0(I104+J104))) -> 149.6503023 | AB104: =Sigma_cl(AA104,U104,V104,X104) -> 127.849804 | AC104: =Sigma_cl(AA104,U104,V104,Y104) -> 149.0442485 | AD104: =sigma_Slip(AB104,W104,U104,IF(L104=1,mu_redLead,mu_millScale)) -> 17.97222535 | AE104: =sigma_Slip(AC104,W104,U104,IF(L104=1,mu_redLead,mu_millScale)) -> 20.95159114 | AF104: =Sigma_p(AB104,V104) -> -23.04984448 | AG104: =Sigma_p(AC104,V104) -> -26.87095826 | AH104: =beta_1(X104,AD104,Z104) -> 0.7882534848 | AI104: =beta_1(Y104,AE104,Z104) -> 0 | AJ104: =k_tHole(W104,U104) -> 2.416557311 | AK104: =K_t1Mu(Z104,AH104,D104,W104,U104,SIGN(X104),mu_millScale) -> 3.550712653 | AL104: =K_t1Mu(Z104,AI104,D104,W104,U104,SIGN(Y104),mu_millScale) -> 1.835791224 | AM104: =Sigma_hMax(AK104,X104,AF104) -> 603.9493273 | AN104: =Sigma_hMin(X104,Y104,AG104,AE104,AK104,AL104,AJ104,AI104,Z104,IF(L104=1,mu_redLead,mu_millScale)) -> 52.12605911 | AO104: 551.8232682 | AP104: 0.08630866326 | AQ104: 176.2771753 | AR104: =tau_n(N104,W104,U104,D104) -> 201.5065704 | AS104: =tau_hMax(X104,Z104,AH104,W104,U104) -> 157.0592916 | AT104: =tau_hMin(X104,Y104,AS104,AE104,Z104,AI104,IF(L104=1,mu_redLead,mu_millScale),W104,U104) -> 40.86032073 | AU104: 116.1989709
A105: 93 | B105: Graf1935 | C105: R; S | D105: 2 | E105: 1 | F105: 10 | G105: 39.5 | I105: 12.5 | J105: 8.5 | K105: 70 | M105: 572 | N105: 161.865 | O105: 0.0294 | P105: 1416700 | Q105: 2 | R105: GH52.22-24.4 | T105: 93 | U105: 1.25 | V105: 0.4761904762 | W105: 0.253164557 | X105: 166.7679786 | Y105: 4.90297857 | Z105: =IF(OR(X105>=1.6*D105*AD105,D105=1),calcLoadFraction(G105,F105,I105,J105,K105,D105,1),"Condition for spring model not fulfilled") -> 0.4806557526 | AA105: =IF(L105>2,L105,IF(L105=2,1,sigma_cl0(I105+J105))) -> 149.6503023 | AB105: =Sigma_cl(AA105,U105,V105,X105) -> 129.061663 | AC105: =Sigma_cl(AA105,U105,V105,Y105) -> 149.0449963 | AD105: =sigma_Slip(AB105,W105,U105,IF(L105=1,mu_redLead,mu_millScale)) -> 18.14257995 | AE105: =sigma_Slip(AC105,W105,U105,IF(L105=1,mu_redLead,mu_millScale)) -> 20.95169626 | AF105: =Sigma_p(AB105,V105) -> -23.26832867 | AG105: =Sigma_p(AC105,V105) -> -26.87109309 | AH105: =beta_1(X105,AD105,Z105) -> 0.7736647295 | AI105: =beta_1(Y105,AE105,Z105) -> 0 | AJ105: =k_tHole(W105,U105) -> 2.416557311 | AK105: =K_t1Mu(Z105,AH105,D105,W105,U105,SIGN(X105),mu_millScale) -> 3.530797974 | AL105: =K_t1Mu(Z105,AI105,D105,W105,U105,SIGN(Y105),mu_millScale) -> 1.835791224 | AM105: =Sigma_hMax(AK105,X105,AF105) -> 565.5557123 | AN105: =Sigma_hMin(X105,Y105,AG105,AE105,AK105,AL105,AJ105,AI105,Z105,IF(L105=1,mu_redLead,mu_millScale)) -> 50.81734506 | AO105: 514.7383672 | AP105: 0.08985382688 | AQ105: 164.5000322 | AR105: =tau_n(N105,W105,U105,D105) -> 189.9919092 | AS105: =tau_hMax(X105,Z105,AH105,W105,U105) -> 145.5833667 | AT105: =tau_hMin(X105,Y105,AS105,AE105,Z105,AI105,IF(L105=1,mu_redLead,mu_millScale),W105,U105) -> 39.43949282 | AU105: 106.1438739
A106: 94 | B106: Graf1935 | C106: R; S | D106: 2 | E106: 1 | F106: 10 | G106: 39.5 | I106: 12.5 | J106: 8.5 | K106: 70 | M106: 572 | N106: 152.055 | O106: 0.032258064 | P106: 2064200 | Q106: 0 | R106: GH52.22-24.3 | T106: 94 | U106: 1.25 | V106: 0.4761904762 | W106: 0.253164557 | X106: 157.1234999 | Y106: 5.068499916 | Z106: =IF(OR(X106>=1.6*D106*AD106,D106=1),calcLoadFraction(G106,F106,I106,J106,K106,D106,1),"Condition for spring model not fulfilled") -> 0.4806557526 | AA106: =IF(L106>2,L106,IF(L106=2,1,sigma_cl0(I106+J106))) -> 149.6503023 | AB106: =Sigma_cl(AA106,U106,V106,X106) -> 130.2523394 | AC106: =Sigma_cl(AA106,U106,V106,Y106) -> 149.0245616 | AD106: =sigma_Slip(AB106,W106,U106,IF(L106=1,mu_redLead,mu_millScale)) -> 18.30995685 | AE106: =sigma_Slip(AC106,W106,U106,IF(L106=1,mu_redLead,mu_millScale)) -> 20.94882369 | AF106: =Sigma_p(AB106,V106) -> -23.48299388 | AG106: =Sigma_p(AC106,V106) -> -26.86740894 | AH106: =beta_1(X106,AD106,Z106) -> 0.7575556699 | AI106: =beta_1(Y106,AE106,Z106) -> 0 | AJ106: =k_tHole(W106,U106) -> 2.416557311 | AK106: =K_t1Mu(Z106,AH106,D106,W106,U106,SIGN(X106),mu_millScale) -> 3.507591452 | AL106: =K_t1Mu(Z106,AI106,D106,W106,U106,SIGN(Y106),mu_millScale) -> 1.835791224 | AM106: =Sigma_hMax(AK106,X106,AF106) -> 527.6420514 | AN106: =Sigma_hMin(X106,Y106,AG106,AE106,AK106,AL106,AJ106,AI106,Z106,IF(L106=1,mu_redLead,mu_millScale)) -> 49.89598377 | AO106: 477.7460676 | AP106: 0.09456407737 | AQ106: 152.7644513 | AR106: =tau_n(N106,W106,U106,D106) -> 178.4772481 | AS106: =tau_hMax(X106,Z106,AH106,W106,U106) -> 134.3080343 | AT106: =tau_hMin(X106,Y106,AS106,AE106,Z106,AI106,IF(L106=1,mu_redLead,mu_millScale),W106,U106) -> 38.0489802 | AU106: 96.2590541
A107: 95 | B107: Graf1935 | C107: R; S | D107: 2 | E107: 1 | F107: 10 | G107: 39.5 | I107: 12.5 | J107: 8.5 | K107: 70 | M107: 572 | N107: 98.1 | O107: 0.67 | P107: 1293500 | Q107: 2 | R107: GH52.22-24.1 | T107: 95 | U107: 1.25 | V107: 0.4761904762 | W107: 0.253164557 | X107: 297.2727273 | Y107: 199.1727273 | Z107: =IF(OR(X107>=1.6*D107*AD107,D107=1),calcLoadFraction(G107,F107,I107,J107,K107,D107,1),"Condition for spring model not fulfilled") -> 0.4806557526 | AA107: =IF(L107>2,L107,IF(L107=2,1,sigma_cl0(I107+J107))) -> 149.6503023 | AB107: =Sigma_cl(AA107,U107,V107,X107) -> 112.9499656 | AC107: =Sigma_cl(AA107,U107,V107,Y107) -> 125.0610767 | AD107: =sigma_Slip(AB107,W107,U107,IF(L107=1,mu_redLead,mu_millScale)) -> 15.87771097 | AE107: =sigma_Slip(AC107,W107,U107,IF(L107=1,mu_redLead,mu_millScale)) -> 17.5802057 | AF107: =Sigma_p(AB107,V107) -> -20.36357553 | AG107: =Sigma_p(AC107,V107) -> -22.54706912 | AH107: =beta_1(X107,AD107,Z107) -> 0.8888783504 | AI107: =beta_1(Y107,AE107,Z107) -> 0.8163631064 | AJ107: =k_tHole(W107,U107) -> 2.416557311 | AK107: =K_t1Mu(Z107,AH107,D107,W107,U107,SIGN(X107),mu_millScale) -> 3.656714088 | AL107: =K_t1Mu(Z107,AI107,D107,W107,U107,SIGN(Y107),mu_millScale) -> 3.586000049 | AM107: =Sigma_hMax(AK107,X107,AF107) -> 1066.677794 | AN107: =Sigma_hMin(X107,Y107,AG107,AE107,AK107,AL107,AJ107,AI107,Z107,IF(L107=1,mu_redLead,mu_millScale)) -> 669.1348189 | AO107: 397.5429752 | AP107: 0.6273073486 | AQ107: 146.9798915 | AR107: =tau_n(N107,W107,U107,D107) -> 115.1466117 | AS107: =tau_hMax(X107,Z107,AH107,W107,U107) -> 298.1560949 | AT107: =tau_hMin(X107,Y107,AS107,AE107,Z107,AI107,IF(L107=1,mu_redLead,mu_millScale),W107,U107) -> 218.7580807 | AU107: 79.39801425
A108: 96 | B108: Graf1935 | C108: R; S | D108: 2 | E108: 1 | F108: 10 | G108: 39.5 | I108: 12.5 | J108: 8.5 | K108: 70 | M108: 572 | N108: 117.72 | O108: 0.67 | P108: 1226900 | Q108: 1 | R108: GH52.21-31.2 | T108: 96 | U108: 1.25 | V108: 0.4761904762 | W108: 0.253164557 | X108: 356.7272727 | Y108: 239.0072727 | Z108: =IF(OR(X108>=1.6*D108*AD108,D108=1),calcLoadFraction(G108,F108,I108,J108,K108,D108,1),"Condition for spring model not fulfilled") -> 0.4806557526 | AA108: =IF(L108>2,L108,IF(L108=2,1,sigma_cl0(I108+J108))) -> 149.6503023 | AB108: =Sigma_cl(AA108,U108,V108,X108) -> 105.6098983 | AC108: =Sigma_cl(AA108,U108,V108,Y108) -> 120.1432316 | AD108: =sigma_Slip(AB108,W108,U108,IF(L108=1,mu_redLead,mu_millScale)) -> 14.84589598 | AE108: =sigma_Slip(AC108,W108,U108,IF(L108=1,mu_redLead,mu_millScale)) -> 16.88888966 | AF108: =Sigma_p(AB108,V108) -> -19.04024609 | AG108: =Sigma_p(AC108,V108) -> -21.66043839 | AH108: =beta_1(X108,AD108,Z108) -> 0.913416337 | AI108: =beta_1(Y108,AE108,Z108) -> 0.852986967 | AJ108: =k_tHole(W108,U108) -> 2.416557311 | AK108: =K_t1Mu(Z108,AH108,D108,W108,U108,SIGN(X108),mu_millScale) -> 3.67345562 | AL108: =K_t1Mu(Z108,AI108,D108,W108,U108,SIGN(Y108),mu_millScale) -> 3.625533006 | AM108: =Sigma_hMax(AK108,X108,AF108) -> 1291.381559 | AN108: =Sigma_hMin(X108,Y108,AG108,AE108,AK108,AL108,AJ108,AI108,Z108,IF(L108=1,mu_redLead,mu_millScale)) -> 802.6324784 | AO108: 488.7490803 | AP108: 0.621530076 | AQ108: 180.0671925 | AR108: =tau_n(N108,W108,U108,D108) -> 138.175934 | AS108: =tau_hMax(X108,Z108,AH108,W108,U108) -> 367.6642338 | AT108: =tau_hMin(X108,Y108,AS108,AE108,Z108,AI108,IF(L108=1,mu_redLead,mu_millScale),W108,U108) -> 267.5236517 | AU108: 100.1405822
A109: 97 | B109: Graf1935 | C109: R; S | D109: 2 | E109: 1 | F109: 10 | G109: 39.5 | I109: 12.5 | J109: 8.5 | K109: 70 | M109: 572 | N109: 114.777 | O109: 0.67 | P109: 1537400 | Q109: 1 | R109: GH52.22-24.5 | T109: 97 | U109: 1.25 | V109: 0.4761904762 | W109: 0.253164557 | X109: 347.8090909 | Y109: 233.0320909 | Z109: =IF(OR(X109>=1.6*D109*AD109,D109=1),calcLoadFraction(G109,F109,I109,J109,K109,D109,1),"Condition for spring model not fulfilled") -> 0.4806557526 | AA109: =IF(L109>2,L109,IF(L109=2,1,sigma_cl0(I109+J109))) -> 149.6503023 | AB109: =Sigma_cl(AA109,U109,V109,X109) -> 106.7109084 | AC109: =Sigma_cl(AA109,U109,V109,Y109) -> 120.8809084 | AD109: =sigma_Slip(AB109,W109,U109,IF(L109=1,mu_redLead,mu_millScale)) -> 15.00066823 | AE109: =sigma_Slip(AC109,W109,U109,IF(L109=1,mu_redLead,mu_millScale)) -> 16.99258706 | AF109: =Sigma_p(AB109,V109) -> -19.2387455 | AG109: =Sigma_p(AC109,V109) -> -21.793433 | AH109: =beta_1(X109,AD109,Z109) -> 0.9102704413 | AI109: =beta_1(Y109,AE109,Z109) -> 0.8482916002 | AJ109: =k_tHole(W109,U109) -> 2.416557311 | AK109: =K_t1Mu(Z109,AH109,D109,W109,U109,SIGN(X109),mu_millScale) -> 3.671524145 | AL109: =K_t1Mu(Z109,AI109,D109,W109,U109,SIGN(Y109),mu_millScale) -> 3.620888866 | AM109: =Sigma_hMax(AK109,X109,AF109) -> 1257.750729 | AN109: =Sigma_hMin(X109,Y109,AG109,AE109,AK109,AL109,AJ109,AI109,Z109,IF(L109=1,mu_redLead,mu_millScale)) -> 782.6799452 | AO109: 475.0707843 | AP109: 0.6222854234 | AQ109: 175.1072085 | AR109: =tau_n(N109,W109,U109,D109) -> 134.7215356 | AS109: =tau_hMax(X109,Z109,AH109,W109,U109) -> 357.238013 | AT109: =tau_hMin(X109,Y109,AS109,AE109,Z109,AI109,IF(L109=1,mu_redLead,mu_millScale),W109,U109) -> 260.2208801 | AU109: 97.0171329
A110: 98 | B110: Graf1935 | C110: R; S | D110: 2 | E110: 1 | F110: 10 | G110: 48 | I110: 6.5 | J110: 10 | K110: 70 | M110: 564 | N110: 201.105 | O110: 0.0238 | P110: 266600 | Q110: 1 | R110: GH52.6-13.6 | T110: 98 | U110: 0.65 | V110: 0.6060606061 | W110: 0.2083333333 | X110: 206.0079902 | Y110: 4.902990166 | Z110: =IF(OR(X110>=1.6*D110*AD110,D110=1),calcLoadFraction(G110,F110,I110,J110,K110,D110,1),"Condition for spring model not fulfilled") -> 0.5204274285 | AA110: =IF(L110>2,L110,IF(L110=2,1,sigma_cl0(I110+J110))) -> 128.0546465 | AB110: =Sigma_cl(AA110,U110,V110,X110) -> 112.6509102 | AC110: =Sigma_cl(AA110,U110,V110,Y110) -> 127.6880376 | AD110: =sigma_Slip(AB110,W110,U110,IF(L110=1,mu_redLead,mu_millScale)) -> 23.64131174 | AE110: =sigma_Slip(AC110,W110,U110,IF(L110=1,mu_redLead,mu_millScale)) -> 26.79705558 | AF110: =Sigma_p(AB110,V110) -> -26.41140019 | AG110: =Sigma_p(AC110,V110) -> -29.93690733 | AH110: =beta_1(X110,AD110,Z110) -> 0.7794904885 | AI110: =beta_1(Y110,AE110,Z110) -> 0 | AJ110: =k_tHole(W110,U110) -> 2.496166088 | AK110: =K_t1Mu(Z110,AH110,D110,W110,U110,SIGN(X110),mu_millScale) -> 3.849349648 | AL110: =K_t1Mu(Z110,AI110,D110,W110,U110,SIGN(Y110),mu_millScale) -> 1.846629439 | AM110: =Sigma_hMax(AK110,X110,AF110) -> 766.5853842 | AN110: =Sigma_hMin(X110,Y110,AG110,AE110,AK110,AL110,AJ110,AI110,Z110,IF(L110=1,mu_redLead,mu_millScale)) -> 73.13877748 | AO110: 693.4466068 | AP110: 0.09540852068 | AQ110: 221.759647 | AR110: =tau_n(N110,W110,U110,D110) -> 158.1138625 | AS110: =tau_hMax(X110,Z110,AH110,W110,U110) -> 131.4111265 | AT110: =tau_hMin(X110,Y110,AS110,AE110,Z110,AI110,IF(L110=1,mu_redLead,mu_millScale),W110,U110) -> 34.01232501 | AU110: 97.39880147
A111: 99 | B111: Graf1935 | C111: R; S | D111: 2 | E111: 1 | F111: 10 | G111: 48 | I111: 6.5 | J111: 10 | K111: 70 | M111: 564 | N111: 161.865 | O111: 0.0294 | P111: 1010600 | Q111: 1 | R111: GH52.8-14.6 | T111: 99 | U111: 0.65 | V111: 0.6060606061 | W111: 0.2083333333 | X111: 166.7679786 | Y111: 4.90297857 | Z111: =IF(OR(X111>=1.6*D111*AD111,D111=1),calcLoadFraction(G111,F111,I111,J111,K111,D111,1),"Condition for spring model not fulfilled") -> 0.5204274285 | AA111: =IF(L111>2,L111,IF(L111=2,1,sigma_cl0(I111+J111))) -> 128.0546465 | AB111: =Sigma_cl(AA111,U111,V111,X111) -> 115.5849847 | AC111: =Sigma_cl(AA111,U111,V111,Y111) -> 127.6880385 | AD111: =sigma_Slip(AB111,W111,U111,IF(L111=1,mu_redLead,mu_millScale)) -> 24.25706682 | AE111: =sigma_Slip(AC111,W111,U111,IF(L111=1,mu_redLead,mu_millScale)) -> 26.79705576 | AF111: =Sigma_p(AB111,V111) -> -27.09930423 | AG111: =Sigma_p(AC111,V111) -> -29.93690753 | AH111: =beta_1(X111,AD111,Z111) -> 0.720510535 | AI111: =beta_1(Y111,AE111,Z111) -> 0 | AJ111: =k_tHole(W111,U111) -> 2.496166088 | AK111: =K_t1Mu(Z111,AH111,D111,W111,U111,SIGN(X111),mu_millScale) -> 3.744398678 | AL111: =K_t1Mu(Z111,AI111,D111,W111,U111,SIGN(Y111),mu_millScale) -> 1.846629439 | AM111: =Sigma_hMax(AK111,X111,AF111) -> 597.3464943 | AN111: =Sigma_hMin(X111,Y111,AG111,AE111,AK111,AL111,AJ111,AI111,Z111,IF(L111=1,mu_redLead,mu_millScale)) -> 65.94857578 | AO111: 531.3979185 | AP111: 0.1104025493 | AQ111: 170.2508785 | AR111: =tau_n(N111,W111,U111,D111) -> 127.2623772 | AS111: =tau_hMax(X111,Z111,AH111,W111,U111) -> 98.330954 | AT111: =tau_hMin(X111,Y111,AS111,AE111,Z111,AI111,IF(L111=1,mu_redLead,mu_millScale),W111,U111) -> 29.48489159 | AU111: 68.84606241
A112: 100 | B112: Graf1935 | C112: R; S | D112: 2 | E112: 1 | F112: 10 | G112: 48 | I112: 6.5 | J112: 10 | K112: 70 | M112: 564 | N112: 152.055 | O112: 0.03125 | P112: 1882700 | Q112: 1 | R112: GH52.6-13.5 | T112: 100 | U112: 0.65 | V112: 0.6060606061 | W112: 0.2083333333 | X112: 156.96 | Y112: 4.905 | Z112: =IF(OR(X112>=1.6*D112*AD112,D112=1),calcLoadFraction(G112,F112,I112,J112,K112,D112,1),"Condition for spring model not fulfilled") -> 0.5204274285 | AA112: =IF(L112>2,L112,IF(L112=2,1,sigma_cl0(I112+J112))) -> 128.0546465 | AB112: =Sigma_cl(AA112,U112,V112,X112) -> 116.318352 | AC112: =Sigma_cl(AA112,U112,V112,Y112) -> 127.6878873 | AD112: =sigma_Slip(AB112,W112,U112,IF(L112=1,mu_redLead,mu_millScale)) -> 24.41097382 | AE112: =sigma_Slip(AC112,W112,U112,IF(L112=1,mu_redLead,mu_millScale)) -> 26.79702404 | AF112: =Sigma_p(AB112,V112) -> -27.27124475 | AG112: =Sigma_p(AC112,V112) -> -29.93687209 | AH112: =beta_1(X112,AD112,Z112) -> 0.70116192 | AI112: =beta_1(Y112,AE112,Z112) -> 0 | AJ112: =k_tHole(W112,U112) -> 2.496166088 | AK112: =K_t1Mu(Z112,AH112,D112,W112,U112,SIGN(X112),mu_millScale) -> 3.705977948 | AL112: =K_t1Mu(Z112,AI112,D112,W112,U112,SIGN(Y112),mu_millScale) -> 1.846629439 | AM112: =Sigma_hMax(AK112,X112,AF112) -> 554.419054 | AN112: =Sigma_hMin(X112,Y112,AG112,AE112,AK112,AL112,AJ112,AI112,Z112,IF(L112=1,mu_redLead,mu_millScale)) -> 63.56775679 | AO112: 490.8512972 | AP112: 0.1146565154 | AQ112: 157.3443269 | AR112: =tau_n(N112,W112,U112,D112) -> 119.5495058 | AS112: =tau_hMax(X112,Z112,AH112,W112,U112) -> 90.06261744 | AT112: =tau_hMin(X112,Y112,AS112,AE112,Z112,AI112,IF(L112=1,mu_redLead,mu_millScale),W112,U112) -> 28.13449223 | AU112: 61.92812521
A113: 101 | B113: Graf1935 | C113: R; S | D113: 2 | E113: 1 | F113: 10 | G113: 48 | I113: 6.5 | J113: 10 | K113: 70 | M113: 564 | N113: 142.245 | O113: 0.0333 | P113: 2000000 | Q113: 0 | R113: GH52.8-14.1 | T113: 101 | U113: 0.65 | V113: 0.6060606061 | W113: 0.2083333333 | X113: 147.144926 | Y113: 4.899926037 | Z113: =IF(OR(X113>=1.6*D113*AD113,D113=1),calcLoadFraction(G113,F113,I113,J113,K113,D113,1),"Condition for spring model not fulfilled") -> 0.5204274285 | AA113: =IF(L113>2,L113,IF(L113=2,1,sigma_cl0(I113+J113))) -> 128.0546465 | AB113: =Sigma_cl(AA113,U113,V113,X113) -> 117.0522498 | AC113: =Sigma_cl(AA113,U113,V113,Y113) -> 127.6882667 | AD113: =sigma_Slip(AB113,W113,U113,IF(L113=1,mu_redLead,mu_millScale)) -> 24.56499217 | AE113: =sigma_Slip(AC113,W113,U113,IF(L113=1,mu_redLead,mu_millScale)) -> 26.79710366 | AF113: =Sigma_p(AB113,V113) -> -27.44330966 | AG113: =Sigma_p(AC113,V113) -> -29.93696104 | AH113: =beta_1(X113,AD113,Z113) -> 0.6792171353 | AI113: =beta_1(Y113,AE113,Z113) -> 0 | AJ113: =k_tHole(W113,U113) -> 2.496166088 | AK113: =K_t1Mu(Z113,AH113,D113,W113,U113,SIGN(X113),mu_millScale) -> 3.660214821 | AL113: =K_t1Mu(Z113,AI113,D113,W113,U113,SIGN(Y113),mu_millScale) -> 1.846629439 | AM113: =Sigma_hMax(AK113,X113,AF113) -> 511.1387295 | AN113: =Sigma_hMin(X113,Y113,AG113,AE113,AK113,AL113,AJ113,AI113,Z113,IF(L113=1,mu_redLead,mu_millScale)) -> 60.83498209 | AO113: 450.3037474 | AP113: 0.1190185337 | AQ113: 144.4263435 | AR113: =tau_n(N113,W113,U113,D113) -> 111.8366345 | AS113: =tau_hMax(X113,Z113,AH113,W113,U113) -> 81.7882993 | AT113: =tau_hMin(X113,Y113,AS113,AE113,Z113,AI113,IF(L113=1,mu_redLead,mu_millScale),W113,U113) -> 26.66820746 | AU113: 55.12009184
A114: 102 | B114: Graf1935 | C114: R; S | D114: 2 | E114: 1 | F114: 10 | G114: 48 | I114: 6.5 | J114: 10 | K114: 70 | M114: 564 | N114: 137.34 | O114: 0.67 | P114: 89400 | Q114: 1 | R114: GH52.6-13.2 | T114: 102 | U114: 0.65 | V114: 0.6060606061 | W114: 0.2083333333 | X114: 416.1818182 | Y114: 278.8418182 | Z114: =IF(OR(X114>=1.6*D114*AD114,D114=1),calcLoadFraction(G114,F114,I114,J114,K114,D114,1),"Condition for spring model not fulfilled") -> 0.5204274285 | AA114: =IF(L114>2,L114,IF(L114=2,1,sigma_cl0(I114+J114))) -> 128.0546465 | AB114: =Sigma_cl(AA114,U114,V114,X114) -> 96.93568379 | AC114: =Sigma_cl(AA114,U114,V114,Y114) -> 107.2049415 | AD114: =sigma_Slip(AB114,W114,U114,IF(L114=1,mu_redLead,mu_millScale)) -> 20.34325967 | AE114: =sigma_Slip(AC114,W114,U114,IF(L114=1,mu_redLead,mu_millScale)) -> 22.4984018 | AF114: =Sigma_p(AB114,V114) -> -22.72691034 | AG114: =Sigma_p(AC114,V114) -> -25.13457375 | AH114: =beta_1(X114,AD114,Z114) -> 0.9060758525 | AI114: =beta_1(Y114,AE114,Z114) -> 0.8449636322 | AJ114: =k_tHole(W114,U114) -> 2.496166088 | AK114: =K_t1Mu(Z114,AH114,D114,W114,U114,SIGN(X114),mu_millScale) -> 4.002187479 | AL114: =K_t1Mu(Z114,AI114,D114,W114,U114,SIGN(Y114),mu_millScale) -> 3.941827567 | AM114: =Sigma_hMax(AK114,X114,AF114) -> 1642.910751 | AN114: =Sigma_hMin(X114,Y114,AG114,AE114,AK114,AL114,AJ114,AI114,Z114,IF(L114=1,mu_redLead,mu_millScale)) -> 1027.064351 | AO114: 615.8464004 | AP114: 0.6251492055 | AQ114: 227.3901378 | AR114: =tau_n(N114,W114,U114,D114) -> 107.9801988 | AS114: =tau_hMax(X114,Z114,AH114,W114,U114) -> 308.5921771 | AT114: =tau_hMin(X114,Y114,AS114,AE114,Z114,AI114,IF(L114=1,mu_redLead,mu_millScale),W114,U114) -> 224.9588773 | AU114: 83.6332998
A115: 103 | B115: Graf1935 | C115: R; S | D115: 2 | E115: 1 | F115: 10 | G115: 48 | I115: 6.5 | J115: 10 | K115: 70 | M115: 564 | N115: 107.91 | O115: 0.67 | P115: 501700 | Q115: 1 | R115: GH52.7-9.1 | T115: 103 | U115: 0.65 | V115: 0.6060606061 | W115: 0.2083333333 | X115: 327 | Y115: 219.09 | Z115: =IF(OR(X115>=1.6*D115*AD115,D115=1),calcLoadFraction(G115,F115,I115,J115,K115,D115,1),"Condition for spring model not fulfilled") -> 0.5204274285 | AA115: =IF(L115>2,L115,IF(L115=2,1,sigma_cl0(I115+J115))) -> 128.0546465 | AB115: =Sigma_cl(AA115,U115,V115,X115) -> 103.6040329 | AC115: =Sigma_cl(AA115,U115,V115,Y115) -> 111.6727354 | AD115: =sigma_Slip(AB115,W115,U115,IF(L115=1,mu_redLead,mu_millScale)) -> 21.74270261 | AE115: =sigma_Slip(AC115,W115,U115,IF(L115=1,mu_redLead,mu_millScale)) -> 23.43602857 | AF115: =Sigma_p(AB115,V115) -> -24.29032814 | AG115: =Sigma_p(AC115,V115) -> -26.18206368 | AH115: =beta_1(X115,AD115,Z115) -> 0.8722368544 | AI115: =beta_1(Y115,AE115,Z115) -> 0.794457665 | AJ115: =k_tHole(W115,U115) -> 2.496166088 | AK115: =K_t1Mu(Z115,AH115,D115,W115,U115,SIGN(X115),mu_millScale) -> 3.97204956 | AL115: =K_t1Mu(Z115,AI115,D115,W115,U115,SIGN(Y115),mu_millScale) -> 3.872841717 | AM115: =Sigma_hMax(AK115,X115,AF115) -> 1274.569878 | AN115: =Sigma_hMin(X115,Y115,AG115,AE115,AK115,AL115,AJ115,AI115,Z115,IF(L115=1,mu_redLead,mu_millScale)) -> 807.5636186 | AO115: 467.0062594 | AP115: 0.6335969746 | AQ115: 173.3426017 | AR115: =tau_n(N115,W115,U115,D115) -> 84.84158478 | AS115: =tau_hMax(X115,Z115,AH115,W115,U115) -> 233.4099891 | AT115: =tau_hMin(X115,Y115,AS115,AE115,Z115,AI115,IF(L115=1,mu_redLead,mu_millScale),W115,U115) -> 172.0715863 | AU115: 61.33840279
A116: 104 | B116: Graf1935 | C116: R; S | D116: 2 | E116: 1 | F116: 10 | G116: 48 | I116: 6.5 | J116: 10 | K116: 70 | M116: 564 | N116: 91.233 | O116: 0.67 | P116: 1112700 | Q116: 1 | R116: GH52.8-14.2 | T116: 104 | U116: 0.65 | V116: 0.6060606061 | W116: 0.2083333333 | X116: 276.4636364 | Y116: 185.2306364 | Z116: =IF(OR(X116>=1.6*D116*AD116,D116=1),calcLoadFraction(G116,F116,I116,J116,K116,D116,1),"Condition for spring model not fulfilled") -> 0.5204274285 | AA116: =IF(L116>2,L116,IF(L116=2,1,sigma_cl0(I116+J116))) -> 128.0546465 | AB116: =Sigma_cl(AA116,U116,V116,X116) -> 107.3827641 | AC116: =Sigma_cl(AA116,U116,V116,Y116) -> 114.2044853 | AD116: =sigma_Slip(AB116,W116,U116,IF(L116=1,mu_redLead,mu_millScale)) -> 22.53572028 | AE116: =sigma_Slip(AC116,W116,U116,IF(L116=1,mu_redLead,mu_millScale)) -> 23.96735041 | AF116: =Sigma_p(AB116,V116) -> -25.1762649 | AG116: =Sigma_p(AC116,V116) -> -26.7756413 | AH116: =beta_1(X116,AD116,Z116) -> 0.8433706124 | AI116: =beta_1(Y116,AE116,Z116) -> 0.7513737216 | AJ116: =k_tHole(W116,U116) -> 2.496166088 | AK116: =K_t1Mu(Z116,AH116,D116,W116,U116,SIGN(X116),mu_millScale) -> 3.939904977 | AL116: =K_t1Mu(Z116,AI116,D116,W116,U116,SIGN(Y116),mu_millScale) -> 3.801698473 | AM116: =Sigma_hMax(AK116,X116,AF116) -> 1064.064192 | AN116: =Sigma_hMin(X116,Y116,AG116,AE116,AK116,AL116,AJ116,AI116,Z116,IF(L116=1,mu_redLead,mu_millScale)) -> 681.4140573 | AO116: 382.6501348 | AP116: 0.6403881104 | AQ116: 142.6555508 | AR116: =tau_n(N116,W116,U116,D116) -> 71.72970349 | AS116: =tau_hMax(X116,Z116,AH116,W116,U116) -> 190.8067493 | AT116: =tau_hMin(X116,Y116,AS116,AE116,Z116,AI116,IF(L116=1,mu_redLead,mu_millScale),W116,U116) -> 141.9290866 | AU116: 48.8776627
A117: 105 | B117: Graf1935 | C117: R; S | D117: 2 | E117: 1 | F117: 10 | G117: 48 | I117: 6.5 | J117: 10 | K117: 70 | M117: 564 | N117: 85.347 | O117: 0.67 | P117: 1994000 | Q117: 1 | R117: GH52.8-14.5 | T117: 105 | U117: 0.65 | V117: 0.6060606061 | W117: 0.2083333333 | X117: 258.6272727 | Y117: 173.2802727 | Z117: =IF(OR(X117>=1.6*D117*AD117,D117=1),calcLoadFraction(G117,F117,I117,J117,K117,D117,1),"Condition for spring model not fulfilled") -> 0.5204274285 | AA117: =IF(L117>2,L117,IF(L117=2,1,sigma_cl0(I117+J117))) -> 128.0546465 | AB117: =Sigma_cl(AA117,U117,V117,X117) -> 108.716434 | AC117: =Sigma_cl(AA117,U117,V117,Y117) -> 115.0980441 | AD117: =sigma_Slip(AB117,W117,U117,IF(L117=1,mu_redLead,mu_millScale)) -> 22.81560887 | AE117: =sigma_Slip(AC117,W117,U117,IF(L117=1,mu_redLead,mu_millScale)) -> 24.15487576 | AF117: =Sigma_p(AB117,V117) -> -25.48894846 | AG117: =Sigma_p(AC117,V117) -> -26.98513929 | AH117: =beta_1(X117,AD117,Z117) -> 0.8304891251 | AI117: =beta_1(Y117,AE117,Z117) -> 0.7321476211 | AJ117: =k_tHole(W117,U117) -> 2.496166088 | AK117: =K_t1Mu(Z117,AH117,D117,W117,U117,SIGN(X117),mu_millScale) -> 3.923737651 | AL117: =K_t1Mu(Z117,AI117,D117,W117,U117,SIGN(Y117),mu_millScale) -> 3.766594398 | AM117: =Sigma_hMax(AK117,X117,AF117) -> 989.2966191 | AN117: =Sigma_hMin(X117,Y117,AG117,AE117,AK117,AL117,AJ117,AI117,Z117,IF(L117=1,mu_redLead,mu_millScale)) -> 636.4068815 | AO117: 352.8897376 | AP117: 0.6432922838 | AQ117: 131.8134259 | AR117: =tau_n(N117,W117,U117,D117) -> 67.10198069 | AS117: =tau_hMax(X117,Z117,AH117,W117,U117) -> 175.7703117 | AT117: =tau_hMin(X117,Y117,AS117,AE117,Z117,AI117,IF(L117=1,mu_redLead,mu_millScale),W117,U117) -> 131.2456173 | AU117: 44.52469444
A118: 106 | B118: Graf1935 | C118: R; S | D118: 2 | E118: 1 | F118: 10 | G118: 48 | I118: 6.5 | J118: 10 | K118: 70 | M118: 564 | N118: 88.29 | O118: 0.756756757 | P118: 669900 | Q118: 1 | R118: GH52.7-9.3 | T118: 106 | U118: 0.65 | V118: 0.6060606061 | W118: 0.2083333333 | X118: 362.9700004 | Y118: 274.6800004 | Z118: =IF(OR(X118>=1.6*D118*AD118,D118=1),calcLoadFraction(G118,F118,I118,J118,K118,D118,1),"Condition for spring model not fulfilled") -> 0.5204274285 | AA118: =IF(L118>2,L118,IF(L118=2,1,sigma_cl0(I118+J118))) -> 128.0546465 | AB118: =Sigma_cl(AA118,U118,V118,X118) -> 100.9144654 | AC118: =Sigma_cl(AA118,U118,V118,Y118) -> 107.5161311 | AD118: =sigma_Slip(AB118,W118,U118,IF(L118=1,mu_redLead,mu_millScale)) -> 21.17826062 | AE118: =sigma_Slip(AC118,W118,U118,IF(L118=1,mu_redLead,mu_millScale)) -> 22.56370913 | AF118: =Sigma_p(AB118,V118) -> -23.65974962 | AG118: =Sigma_p(AC118,V118) -> -25.20753325 | AH118: =beta_1(X118,AD118,Z118) -> 0.8878861209 | AI118: =beta_1(Y118,AE118,Z118) -> 0.8421577453 | AJ118: =k_tHole(W118,U118) -> 2.496166088 | AK118: =K_t1Mu(Z118,AH118,D118,W118,U118,SIGN(X118),mu_millScale) -> 3.987027068 | AL118: =K_t1Mu(Z118,AI118,D118,W118,U118,SIGN(Y118),mu_millScale) -> 3.938429769 | AM118: =Sigma_hMax(AK118,X118,AF118) -> 1423.511467 | AN118: =Sigma_hMin(X118,Y118,AG118,AE118,AK118,AL118,AJ118,AI118,Z118,IF(L118=1,mu_redLead,mu_millScale)) -> 1024.874608 | AO118: 398.636859 | AP118: 0.7199623127 | AQ118: 158.5836455 | AR118: =tau_n(N118,W118,U118,D118) -> 69.41584209 | AS118: =tau_hMax(X118,Z118,AH118,W118,U118) -> 263.7334719 | AT118: =tau_hMin(X118,Y118,AS118,AE118,Z118,AI118,IF(L118=1,mu_redLead,mu_millScale),W118,U118) -> 212.0658646 | AU118: 51.66760733
A119: 107 | B119: Graf1935 | C119: R; S | D119: 2 | E119: 1 | F119: 10 | G119: 48 | I119: 6.5 | J119: 10 | K119: 70 | M119: 564 | N119: 68.67 | O119: 0.810810811 | P119: 1665000 | Q119: 1 | R119: GH52.8-14.3 | T119: 107 | U119: 0.65 | V119: 0.6060606061 | W119: 0.2083333333 | X119: 362.9700004 | Y119: 294.3000004 | Z119: =IF(OR(X119>=1.6*D119*AD119,D119=1),calcLoadFraction(G119,F119,I119,J119,K119,D119,1),"Condition for spring model not fulfilled") -> 0.5204274285 | AA119: =IF(L119>2,L119,IF(L119=2,1,sigma_cl0(I119+J119))) -> 128.0546465 | AB119: =Sigma_cl(AA119,U119,V119,X119) -> 100.9144654 | AC119: =Sigma_cl(AA119,U119,V119,Y119) -> 106.0490943 | AD119: =sigma_Slip(AB119,W119,U119,IF(L119=1,mu_redLead,mu_millScale)) -> 21.17826062 | AE119: =sigma_Slip(AC119,W119,U119,IF(L119=1,mu_redLead,mu_millScale)) -> 22.25583169 | AF119: =Sigma_p(AB119,V119) -> -23.65974962 | AG119: =Sigma_p(AC119,V119) -> -24.86358133 | AH119: =beta_1(X119,AD119,Z119) -> 0.8878861209 | AI119: =beta_1(Y119,AE119,Z119) -> 0.8546907075 | AJ119: =k_tHole(W119,U119) -> 2.496166088 | AK119: =K_t1Mu(Z119,AH119,D119,W119,U119,SIGN(X119),mu_millScale) -> 3.987027068 | AL119: =K_t1Mu(Z119,AI119,D119,W119,U119,SIGN(Y119),mu_millScale) -> 3.953194511 | AM119: =Sigma_hMax(AK119,X119,AF119) -> 1423.511467 | AN119: =Sigma_hMin(X119,Y119,AG119,AE119,AK119,AL119,AJ119,AI119,Z119,IF(L119=1,mu_redLead,mu_millScale)) -> 1108.535652 | AO119: 314.9758147 | AP119: 0.7787332087 | AQ119: 134.7561329 | AR119: =tau_n(N119,W119,U119,D119) -> 53.9900994 | AS119: =tau_hMax(X119,Z119,AH119,W119,U119) -> 263.7334719 | AT119: =tau_hMin(X119,Y119,AS119,AE119,Z119,AI119,IF(L119=1,mu_redLead,mu_millScale),W119,U119) -> 223.6116959 | AU119: 40.12177604
A120: 108 | B120: Graf1935 | C120: R; S | D120: 2 | E120: 1 | F120: 10 | G120: 48 | I120: 6.5 | J120: 10 | K120: 70 | M120: 564 | N120: 68.67 | O120: 0.810810811 | P120: 2002200 | Q120: 1 | R120: GH52.10.5-6 | T120: 108 | U120: 0.65 | V120: 0.6060606061 | W120: 0.2083333333 | X120: 362.9700004 | Y120: 294.3000004 | Z120: =IF(OR(X120>=1.6*D120*AD120,D120=1),calcLoadFraction(G120,F120,I120,J120,K120,D120,1),"Condition for spring model not fulfilled") -> 0.5204274285 | AA120: =IF(L120>2,L120,IF(L120=2,1,sigma_cl0(I120+J120))) -> 128.0546465 | AB120: =Sigma_cl(AA120,U120,V120,X120) -> 100.9144654 | AC120: =Sigma_cl(AA120,U120,V120,Y120) -> 106.0490943 | AD120: =sigma_Slip(AB120,W120,U120,IF(L120=1,mu_redLead,mu_millScale)) -> 21.17826062 | AE120: =sigma_Slip(AC120,W120,U120,IF(L120=1,mu_redLead,mu_millScale)) -> 22.25583169 | AF120: =Sigma_p(AB120,V120) -> -23.65974962 | AG120: =Sigma_p(AC120,V120) -> -24.86358133 | AH120: =beta_1(X120,AD120,Z120) -> 0.8878861209 | AI120: =beta_1(Y120,AE120,Z120) -> 0.8546907075 | AJ120: =k_tHole(W120,U120) -> 2.496166088 | AK120: =K_t1Mu(Z120,AH120,D120,W120,U120,SIGN(X120),mu_millScale) -> 3.987027068 | AL120: =K_t1Mu(Z120,AI120,D120,W120,U120,SIGN(Y120),mu_millScale) -> 3.953194511 | AM120: =Sigma_hMax(AK120,X120,AF120) -> 1423.511467 | AN120: =Sigma_hMin(X120,Y120,AG120,AE120,AK120,AL120,AJ120,AI120,Z120,IF(L120=1,mu_redLead,mu_millScale)) -> 1108.535652 | AO120: 314.9758147 | AP120: 0.7787332087 | AQ120: 134.7561329 | AR120: =tau_n(N120,W120,U120,D120) -> 53.9900994 | AS120: =tau_hMax(X120,Z120,AH120,W120,U120) -> 263.7334719 | AT120: =tau_hMin(X120,Y120,AS120,AE120,Z120,AI120,IF(L120=1,mu_redLead,mu_millScale),W120,U120) -> 223.6116959 | AU120: 40.12177604
A121: 109 | B121: Graf1935 | C121: R; S | D121: 2 | E121: 1 | F121: 10 | G121: 48 | I121: 6.5 | J121: 10 | K121: 70 | M121: 564 | N121: 201.105 | O121: 0.0238 | P121: 167000 | Q121: 1 | R121: GH52.6-13.4 | T121: 109 | U121: 0.65 | V121: 0.6060606061 | W121: 0.2083333333 | X121: 206.0079902 | Y121: 4.902990166 | Z121: =IF(OR(X121>=1.6*D121*AD121,D121=1),calcLoadFraction(G121,F121,I121,J121,K121,D121,1),"Condition for spring model not fulfilled") -> 0.5204274285 | AA121: =IF(L121>2,L121,IF(L121=2,1,sigma_cl0(I121+J121))) -> 128.0546465 | AB121: =Sigma_cl(AA121,U121,V121,X121) -> 112.6509102 | AC121: =Sigma_cl(AA121,U121,V121,Y121) -> 127.6880376 | AD121: =sigma_Slip(AB121,W121,U121,IF(L121=1,mu_redLead,mu_millScale)) -> 23.64131174 | AE121: =sigma_Slip(AC121,W121,U121,IF(L121=1,mu_redLead,mu_millScale)) -> 26.79705558 | AF121: =Sigma_p(AB121,V121) -> -26.41140019 | AG121: =Sigma_p(AC121,V121) -> -29.93690733 | AH121: =beta_1(X121,AD121,Z121) -> 0.7794904885 | AI121: =beta_1(Y121,AE121,Z121) -> 0 | AJ121: =k_tHole(W121,U121) -> 2.496166088 | AK121: =K_t1Mu(Z121,AH121,D121,W121,U121,SIGN(X121),mu_millScale) -> 3.849349648 | AL121: =K_t1Mu(Z121,AI121,D121,W121,U121,SIGN(Y121),mu_millScale) -> 1.846629439 | AM121: =Sigma_hMax(AK121,X121,AF121) -> 766.5853842 | AN121: =Sigma_hMin(X121,Y121,AG121,AE121,AK121,AL121,AJ121,AI121,Z121,IF(L121=1,mu_redLead,mu_millScale)) -> 73.13877748 | AO121: 693.4466068 | AP121: 0.09540852068 | AQ121: 221.759647 | AR121: =tau_n(N121,W121,U121,D121) -> 158.1138625 | AS121: =tau_hMax(X121,Z121,AH121,W121,U121) -> 131.4111265 | AT121: =tau_hMin(X121,Y121,AS121,AE121,Z121,AI121,IF(L121=1,mu_redLead,mu_millScale),W121,U121) -> 34.01232501 | AU121: 97.39880147
A122: 110 | B122: Graf1935 | C122: R; S | D122: 2 | E122: 1 | F122: 10 | G122: 48 | I122: 6.5 | J122: 10 | K122: 70 | M122: 564 | N122: 161.865 | O122: 0.0294 | P122: 460900 | Q122: 1 | R122: GH52.8-14.4 | T122: 110 | U122: 0.65 | V122: 0.6060606061 | W122: 0.2083333333 | X122: 166.7679786 | Y122: 4.90297857 | Z122: =IF(OR(X122>=1.6*D122*AD122,D122=1),calcLoadFraction(G122,F122,I122,J122,K122,D122,1),"Condition for spring model not fulfilled") -> 0.5204274285 | AA122: =IF(L122>2,L122,IF(L122=2,1,sigma_cl0(I122+J122))) -> 128.0546465 | AB122: =Sigma_cl(AA122,U122,V122,X122) -> 115.5849847 | AC122: =Sigma_cl(AA122,U122,V122,Y122) -> 127.6880385 | AD122: =sigma_Slip(AB122,W122,U122,IF(L122=1,mu_redLead,mu_millScale)) -> 24.25706682 | AE122: =sigma_Slip(AC122,W122,U122,IF(L122=1,mu_redLead,mu_millScale)) -> 26.79705576 | AF122: =Sigma_p(AB122,V122) -> -27.09930423 | AG122: =Sigma_p(AC122,V122) -> -29.93690753 | AH122: =beta_1(X122,AD122,Z122) -> 0.720510535 | AI122: =beta_1(Y122,AE122,Z122) -> 0 | AJ122: =k_tHole(W122,U122) -> 2.496166088 | AK122: =K_t1Mu(Z122,AH122,D122,W122,U122,SIGN(X122),mu_millScale) -> 3.744398678 | AL122: =K_t1Mu(Z122,AI122,D122,W122,U122,SIGN(Y122),mu_millScale) -> 1.846629439 | AM122: =Sigma_hMax(AK122,X122,AF122) -> 597.3464943 | AN122: =Sigma_hMin(X122,Y122,AG122,AE122,AK122,AL122,AJ122,AI122,Z122,IF(L122=1,mu_redLead,mu_millScale)) -> 65.94857578 | AO122: 531.3979185 | AP122: 0.1104025493 | AQ122: 170.2508785 | AR122: =tau_n(N122,W122,U122,D122) -> 127.2623772 | AS122: =tau_hMax(X122,Z122,AH122,W122,U122) -> 98.330954 | AT122: =tau_hMin(X122,Y122,AS122,AE122,Z122,AI122,IF(L122=1,mu_redLead,mu_millScale),W122,U122) -> 29.48489159 | AU122: 68.84606241
A123: 111 | B123: Graf1935 | C123: R; S | D123: 2 | E123: 1 | F123: 10 | G123: 48 | I123: 5 | J123: 9 | K123: 70 | M123: 563 | N123: 201.105 | O123: 0.0238 | P123: 126100 | Q123: 1 | R123: GH52.28-30.1 | T123: 111 | U123: 0.5 | V123: 0.7142857143 | W123: 0.2083333333 | X123: 206.0079902 | Y123: 4.902990166 | Z123: =IF(OR(X123>=1.6*D123*AD123,D123=1),calcLoadFraction(G123,F123,I123,J123,K123,D123,1),"Condition for spring model not fulfilled") -> 0.5290522988 | AA123: =IF(L123>2,L123,IF(L123=2,1,sigma_cl0(I123+J123))) -> 112.4588041 | AB123: =Sigma_cl(AA123,U123,V123,X123) -> 99.37930179 | AC123: =Sigma_cl(AA123,U123,V123,Y123) -> 112.1475119 | AD123: =sigma_Slip(AB123,W123,U123,IF(L123=1,mu_redLead,mu_millScale)) -> 27.1129116 | AE123: =sigma_Slip(AC123,W123,U123,IF(L123=1,mu_redLead,mu_millScale)) -> 30.59636687 | AF123: =Sigma_p(AB123,V123) -> -27.59400605 | AG123: =Sigma_p(AC123,V123) -> -31.13927214 | AH123: =beta_1(X123,AD123,Z123) -> 0.7512325886 | AI123: =beta_1(Y123,AE123,Z123) -> 0 | AJ123: =k_tHole(W123,U123) -> 2.496166088 | AK123: =K_t1Mu(Z123,AH123,D123,W123,U123,SIGN(X123),mu_millScale) -> 3.821283645 | AL123: =K_t1Mu(Z123,AI123,D123,W123,U123,SIGN(Y123),mu_millScale) -> 1.835864884 | AM123: =Sigma_hMax(AK123,X123,AF123) -> 759.6209575 | AN123: =Sigma_hMin(X123,Y123,AG123,AE123,AK123,AL123,AJ123,AI123,Z123,IF(L123=1,mu_redLead,mu_millScale)) -> 80.13732818 | AO123: 679.4836293 | AP123: 0.1054964682 | AQ123: 217.5624564 | AR123: =tau_n(N123,W123,U123,D123) -> 121.6260481 | AS123: =tau_hMax(X123,Z123,AH123,W123,U123) -> 99.03548057 | AT123: =tau_hMin(X123,Y123,AS123,AE123,Z123,AI123,IF(L123=1,mu_redLead,mu_millScale),W123,U123) -> 27.57930481 | AU123: 71.45617576
A124: 112 | B124: Graf1935 | C124: R; S | D124: 2 | E124: 1 | F124: 10 | G124: 48 | I124: 5 | J124: 9 | K124: 70 | M124: 563 | N124: 161.865 | O124: 0.0294 | P124: 378800 | Q124: 1 | R124: GH52.27.1-2 | T124: 112 | U124: 0.5 | V124: 0.7142857143 | W124: 0.2083333333 | X124: 166.7679786 | Y124: 4.90297857 | Z124: =IF(OR(X124>=1.6*D124*AD124,D124=1),calcLoadFraction(G124,F124,I124,J124,K124,D124,1),"Condition for spring model not fulfilled") -> 0.5290522988 | AA124: =IF(L124>2,L124,IF(L124=2,1,sigma_cl0(I124+J124))) -> 112.4588041 | AB124: =Sigma_cl(AA124,U124,V124,X124) -> 101.8706606 | AC124: =Sigma_cl(AA124,U124,V124,Y124) -> 112.1475127 | AD124: =sigma_Slip(AB124,W124,U124,IF(L124=1,mu_redLead,mu_millScale)) -> 27.79261039 | AE124: =sigma_Slip(AC124,W124,U124,IF(L124=1,mu_redLead,mu_millScale)) -> 30.59636708 | AF124: =Sigma_p(AB124,V124) -> -28.28576549 | AG124: =Sigma_p(AC124,V124) -> -31.13927234 | AH124: =beta_1(X124,AD124,Z124) -> 0.6849945491 | AI124: =beta_1(Y124,AE124,Z124) -> 0 | AJ124: =k_tHole(W124,U124) -> 2.496166088 | AK124: =K_t1Mu(Z124,AH124,D124,W124,U124,SIGN(X124),mu_millScale) -> 3.690297833 | AL124: =K_t1Mu(Z124,AI124,D124,W124,U124,SIGN(Y124),mu_millScale) -> 1.835864884 | AM124: =Sigma_hMax(AK124,X124,AF124) -> 587.1377444 | AN124: =Sigma_hMin(X124,Y124,AG124,AE124,AK124,AL124,AJ124,AI124,Z124,IF(L124=1,mu_redLead,mu_millScale)) -> 70.97058612 | AO124: 516.1671583 | AP124: 0.1208755301 | AQ124: 165.5899421 | AR124: =tau_n(N124,W124,U124,D124) -> 97.89413628 | AS124: =tau_hMax(X124,Z124,AH124,W124,U124) -> 73.10247973 | AT124: =tau_hMin(X124,Y124,AS124,AE124,Z124,AI124,IF(L124=1,mu_redLead,mu_millScale),W124,U124) -> 23.49432371 | AU124: 49.60815602
A125: 113 | B125: Graf1935 | C125: R; S | D125: 2 | E125: 1 | F125: 10 | G125: 48 | I125: 5 | J125: 9 | K125: 70 | M125: 563 | N125: 161.865 | O125: 0.0294 | P125: 815300 | Q125: 1 | R125: GH52.28-30.2 | T125: 113 | U125: 0.5 | V125: 0.7142857143 | W125: 0.2083333333 | X125: 166.7679786 | Y125: 4.90297857 | Z125: =IF(OR(X125>=1.6*D125*AD125,D125=1),calcLoadFraction(G125,F125,I125,J125,K125,D125,1),"Condition for spring model not fulfilled") -> 0.5290522988 | AA125: =IF(L125>2,L125,IF(L125=2,1,sigma_cl0(I125+J125))) -> 112.4588041 | AB125: =Sigma_cl(AA125,U125,V125,X125) -> 101.8706606 | AC125: =Sigma_cl(AA125,U125,V125,Y125) -> 112.1475127 | AD125: =sigma_Slip(AB125,W125,U125,IF(L125=1,mu_redLead,mu_millScale)) -> 27.79261039 | AE125: =sigma_Slip(AC125,W125,U125,IF(L125=1,mu_redLead,mu_millScale)) -> 30.59636708 | AF125: =Sigma_p(AB125,V125) -> -28.28576549 | AG125: =Sigma_p(AC125,V125) -> -31.13927234 | AH125: =beta_1(X125,AD125,Z125) -> 0.6849945491 | AI125: =beta_1(Y125,AE125,Z125) -> 0 | AJ125: =k_tHole(W125,U125) -> 2.496166088 | AK125: =K_t1Mu(Z125,AH125,D125,W125,U125,SIGN(X125),mu_millScale) -> 3.690297833 | AL125: =K_t1Mu(Z125,AI125,D125,W125,U125,SIGN(Y125),mu_millScale) -> 1.835864884 | AM125: =Sigma_hMax(AK125,X125,AF125) -> 587.1377444 | AN125: =Sigma_hMin(X125,Y125,AG125,AE125,AK125,AL125,AJ125,AI125,Z125,IF(L125=1,mu_redLead,mu_millScale)) -> 70.97058612 | AO125: 516.1671583 | AP125: 0.1208755301 | AQ125: 165.5899421 | AR125: =tau_n(N125,W125,U125,D125) -> 97.89413628 | AS125: =tau_hMax(X125,Z125,AH125,W125,U125) -> 73.10247973 | AT125: =tau_hMin(X125,Y125,AS125,AE125,Z125,AI125,IF(L125=1,mu_redLead,mu_millScale),W125,U125) -> 23.49432371 | AU125: 49.60815602
A126: 114 | B126: Graf1935 | C126: R; S | D126: 2 | E126: 1 | F126: 10 | G126: 48 | I126: 5 | J126: 9 | K126: 70 | M126: 563 | N126: 152.055 | O126: 0.03125 | P126: 1743600 | Q126: 1 | R126: GH52.25-26.3 | T126: 114 | U126: 0.5 | V126: 0.7142857143 | W126: 0.2083333333 | X126: 156.96 | Y126: 4.905 | Z126: =IF(OR(X126>=1.6*D126*AD126,D126=1),calcLoadFraction(G126,F126,I126,J126,K126,D126,1),"Condition for spring model not fulfilled") -> 0.5290522988 | AA126: =IF(L126>2,L126,IF(L126=2,1,sigma_cl0(I126+J126))) -> 112.4588041 | AB126: =Sigma_cl(AA126,U126,V126,X126) -> 102.4933718 | AC126: =Sigma_cl(AA126,U126,V126,Y126) -> 112.1473843 | AD126: =sigma_Slip(AB126,W126,U126,IF(L126=1,mu_redLead,mu_millScale)) -> 27.96250002 | AE126: =sigma_Slip(AC126,W126,U126,IF(L126=1,mu_redLead,mu_millScale)) -> 30.59633206 | AF126: =Sigma_p(AB126,V126) -> -28.45866966 | AG126: =Sigma_p(AC126,V126) -> -31.13923671 | AH126: =beta_1(X126,AD126,Z126) -> 0.6632648894 | AI126: =beta_1(Y126,AE126,Z126) -> 0 | AJ126: =k_tHole(W126,U126) -> 2.496166088 | AK126: =K_t1Mu(Z126,AH126,D126,W126,U126,SIGN(X126),mu_millScale) -> 3.642647482 | AL126: =K_t1Mu(Z126,AI126,D126,W126,U126,SIGN(Y126),mu_millScale) -> 1.835864884 | AM126: =Sigma_hMax(AK126,X126,AF126) -> 543.2912792 | AN126: =Sigma_hMin(X126,Y126,AG126,AE126,AK126,AL126,AJ126,AI126,Z126,IF(L126=1,mu_redLead,mu_millScale)) -> 67.94765581 | AO126: 475.3436234 | AP126: 0.1250667154 | AQ126: 152.5754395 | AR126: =tau_n(N126,W126,U126,D126) -> 91.96115833 | AS126: =tau_hMax(X126,Z126,AH126,W126,U126) -> 66.62056736 | AT126: =tau_hMin(X126,Y126,AS126,AE126,Z126,AI126,IF(L126=1,mu_redLead,mu_millScale),W126,U126) -> 22.27972528 | AU126: 44.34084208
A127: 115 | B127: Graf1935 | C127: R; S | D127: 2 | E127: 1 | F127: 10 | G127: 48 | I127: 5 | J127: 9 | K127: 70 | M127: 563 | N127: 142.245 | O127: 0.0333 | P127: 2020100 | Q127: 0 | R127: GH52.25-26.5 | T127: 115 | U127: =I127/F127 -> 0.5 | V127: =F127/(J127+I127) -> 0.7142857143 | W127: =F127/G127 -> 0.2083333333 | X127: =N127/(1-O127) -> 147.144926 | Y127: =X127*O127 -> 4.899926037 | Z127: =IF(OR(X127>=1.6*D127*AD127,D127=1),calcLoadFraction(G127,F127,I127,J127,K127,D127,1),"Condition for spring model not fulfilled") -> 0.5290522988 | AA127: =IF(L127>2,L127,IF(L127=2,1,sigma_cl0(I127+J127))) -> 112.4588041 | AB127: =Sigma_cl(AA127,U127,V127,X127) -> 103.1165334 | AC127: =Sigma_cl(AA127,U127,V127,Y127) -> 112.1477065 | AD127: =sigma_Slip(AB127,W127,U127,IF(L127=1,mu_redLead,mu_millScale)) -> 28.13251256 | AE127: =sigma_Slip(AC127,W127,U127,IF(L127=1,mu_redLead,mu_millScale)) -> 30.59641995 | AF127: =Sigma_p(AB127,V127) -> -28.63169892 | AG127: =Sigma_p(AC127,V127) -> -31.13932615 | AH127: =beta_1(X127,AD127,Z127) -> 0.6386195747 | AI127: =beta_1(Y127,AE127,Z127) -> 0 | AJ127: =k_tHole(W127,U127) -> 2.496166088 | AK127: =K_t1Mu(Z127,AH127,D127,W127,U127,SIGN(X127),mu_millScale) -> 3.586091866 | AL127: =K_t1Mu(Z127,AI127,D127,W127,U127,SIGN(Y127),mu_millScale) -> 1.835864884 | AM127: =Sigma_hMax(AK127,X127,AF127) -> 499.0435235 | AN127: =Sigma_hMin(X127,Y127,AG127,AE127,AK127,AL127,AJ127,AI127,Z127,IF(L127=1,mu_redLead,mu_millScale)) -> 64.49494744 | AO127: =(AM127-AN127) -> 434.5485761 | AP127: =AN127/AM127 -> 0.1292371194 | AQ127: 139.5563515 | AR127: =tau_n(N127,W127,U127,D127) -> 86.02818037 | AS127: =tau_hMax(X127,Z127,AH127,W127,U127) -> 60.13396578 | AT127: =tau_hMin(X127,Y127,AS127,AE127,Z127,AI127,IF(L127=1,mu_redLead,mu_millScale),W127,U127) -> 20.96377318 | AU127: 39.1701926
A128: 116 | B128: Graf1935 | C128: R; S | D128: 2 | E128: 1 | F128: 10 | G128: 48 | I128: 5 | J128: 9 | K128: 70 | M128: 563 | N128: 117.72 | O128: 0.67 | P128: 290300 | Q128: 1 | R128: GH52.25-26.1 | T128: 116 | U128: 0.5 | V128: 0.7142857143 | W128: 0.2083333333 | X128: 356.7272727 | Y128: 239.0072727 | Z128: =IF(OR(X128>=1.6*D128*AD128,D128=1),calcLoadFraction(G128,F128,I128,J128,K128,D128,1),"Condition for spring model not fulfilled") -> 0.5290522988 | AA128: =IF(L128>2,L128,IF(L128=2,1,sigma_cl0(I128+J128))) -> 112.4588041 | AB128: =Sigma_cl(AA128,U128,V128,X128) -> 89.81009428 | AC128: =Sigma_cl(AA128,U128,V128,Y128) -> 97.28416852 | AD128: =sigma_Slip(AB128,W128,U128,IF(L128=1,mu_redLead,mu_millScale)) -> 24.50221629 | AE128: =sigma_Slip(AC128,W128,U128,IF(L128=1,mu_redLead,mu_millScale)) -> 26.54131206 | AF128: =Sigma_p(AB128,V128) -> -24.93698628 | AG128: =Sigma_p(AC128,V128) -> -27.01226399 | AH128: =beta_1(X128,AD128,Z128) -> 0.8701713773 | AI128: =beta_1(Y128,AE128,Z128) -> 0.79009989 | AJ128: =k_tHole(W128,U128) -> 2.496166088 | AK128: =K_t1Mu(Z128,AH128,D128,W128,U128,SIGN(X128),mu_millScale) -> 3.992415083 | AL128: =K_t1Mu(Z128,AI128,D128,W128,U128,SIGN(Y128),mu_millScale) -> 3.886988375 | AM128: =Sigma_hMax(AK128,X128,AF128) -> 1399.266358 | AN128: =Sigma_hMin(X128,Y128,AG128,AE128,AK128,AL128,AJ128,AI128,Z128,IF(L128=1,mu_redLead,mu_millScale)) -> 888.763283 | AO128: 510.5030751 | AP128: 0.6351637612 | AQ128: 189.6770264 | AR128: =tau_n(N128,W128,U128,D128) -> 71.19573548 | AS128: =tau_hMax(X128,Z128,AH128,W128,U128) -> 198.6430781 | AT128: =tau_hMin(X128,Y128,AS128,AE128,Z128,AI128,IF(L128=1,mu_redLead,mu_millScale),W128,U128) -> 146.5774545 | AU128: 52.06562354
A129: 117 | B129: Graf1935 | C129: R; S | D129: 2 | E129: 1 | F129: 10 | G129: 48 | I129: 5 | J129: 9 | K129: 70 | M129: 563 | N129: 107.91 | O129: 0.67 | P129: 820800 | Q129: 1 | R129: GH52.25-26.2 | T129: 117 | U129: 0.5 | V129: 0.7142857143 | W129: 0.2083333333 | X129: 327 | Y129: 219.09 | Z129: =IF(OR(X129>=1.6*D129*AD129,D129=1),calcLoadFraction(G129,F129,I129,J129,K129,D129,1),"Condition for spring model not fulfilled") -> 0.5290522988 | AA129: =IF(L129>2,L129,IF(L129=2,1,sigma_cl0(I129+J129))) -> 112.4588041 | AB129: =Sigma_cl(AA129,U129,V129,X129) -> 91.69748677 | AC129: =Sigma_cl(AA129,U129,V129,Y129) -> 98.54872149 | AD129: =sigma_Slip(AB129,W129,U129,IF(L129=1,mu_redLead,mu_millScale)) -> 25.01713946 | AE129: =sigma_Slip(AC129,W129,U129,IF(L129=1,mu_redLead,mu_millScale)) -> 26.88631059 | AF129: =Sigma_p(AB129,V129) -> -25.4610463 | AG129: =Sigma_p(AC129,V129) -> -27.36338421 | AH129: =beta_1(X129,AD129,Z129) -> 0.8553923425 | AI129: =beta_1(Y129,AE129,Z129) -> 0.768041629 | AJ129: =k_tHole(W129,U129) -> 2.496166088 | AK129: =K_t1Mu(Z129,AH129,D129,W129,U129,SIGN(X129),mu_millScale) -> 3.976212891 | AL129: =K_t1Mu(Z129,AI129,D129,W129,U129,SIGN(Y129),mu_millScale) -> 3.850780192 | AM129: =Sigma_hMax(AK129,X129,AF129) -> 1274.760569 | AN129: =Sigma_hMin(X129,Y129,AG129,AE129,AK129,AL129,AJ129,AI129,Z129,IF(L129=1,mu_redLead,mu_millScale)) -> 814.2613568 | AO129: 460.4992122 | AP129: 0.6387563097 | AQ129: 171.4953633 | AR129: =tau_n(N129,W129,U129,D129) -> 65.26275752 | AS129: =tau_hMax(X129,Z129,AH129,W129,U129) -> 178.9968711 | AT129: =tau_hMin(X129,Y129,AS129,AE129,Z129,AI129,IF(L129=1,mu_redLead,mu_millScale),W129,U129) -> 132.6925772 | AU129: 46.30429391
A130: 118 | B130: Graf1935 | C130: R; S | D130: 2 | E130: 1 | F130: 10 | G130: 48 | I130: 5 | J130: 9 | K130: 70 | M130: 563 | N130: 102.024 | O130: 0.67 | P130: 1517100 | Q130: 1 | R130: GH52.25-26.4 | T130: 118 | U130: 0.5 | V130: 0.7142857143 | W130: 0.2083333333 | X130: 309.1636364 | Y130: 207.1396364 | Z130: =IF(OR(X130>=1.6*D130*AD130,D130=1),calcLoadFraction(G130,F130,I130,J130,K130,D130,1),"Condition for spring model not fulfilled") -> 0.5290522988 | AA130: =IF(L130>2,L130,IF(L130=2,1,sigma_cl0(I130+J130))) -> 112.4588041 | AB130: =Sigma_cl(AA130,U130,V130,X130) -> 92.82992226 | AC130: =Sigma_cl(AA130,U130,V130,Y130) -> 99.30745327 | AD130: =sigma_Slip(AB130,W130,U130,IF(L130=1,mu_redLead,mu_millScale)) -> 25.32609337 | AE130: =sigma_Slip(AC130,W130,U130,IF(L130=1,mu_redLead,mu_millScale)) -> 27.0933097 | AF130: =Sigma_p(AB130,V130) -> -25.77548232 | AG130: =Sigma_p(AC130,V130) -> -27.57405634 | AH130: =beta_1(X130,AD130,Z130) -> 0.845160703 | AI130: =beta_1(Y130,AE130,Z130) -> 0.7527705253 | AJ130: =k_tHole(W130,U130) -> 2.496166088 | AK130: =K_t1Mu(Z130,AH130,D130,W130,U130,SIGN(X130),mu_millScale) -> 3.964100952 | AL130: =K_t1Mu(Z130,AI130,D130,W130,U130,SIGN(Y130),mu_millScale) -> 3.824048945 | AM130: =Sigma_hMax(AK130,X130,AF130) -> 1199.780383 | AN130: =Sigma_hMin(X130,Y130,AG130,AE130,AK130,AL130,AJ130,AI130,Z130,IF(L130=1,mu_redLead,mu_millScale)) -> 769.2794631 | AO130: 430.5009198 | AP130: 0.641183565 | AQ130: 160.5787551 | AR130: =tau_n(N130,W130,U130,D130) -> 61.70297075 | AS130: =tau_hMax(X130,Z130,AH130,W130,U130) -> 167.209147 | AT130: =tau_hMin(X130,Y130,AS130,AE130,Z130,AI130,IF(L130=1,mu_redLead,mu_millScale),W130,U130) -> 124.3412631 | AU130: 42.86788389
A131: 119 | B131: Graf1935 | C131: R; S | D131: 2 | E131: 1 | F131: 10 | G131: 48 | I131: 5 | J131: 9 | K131: 70 | M131: 563 | N131: 98.1 | O131: 0.67 | P131: 2008200 | Q131: 0 | R131: GH52.28-30.3 | T131: 119 | U131: =I131/F131 -> 0.5 | V131: =F131/(J131+I131) -> 0.7142857143 | W131: =F131/G131 -> 0.2083333333 | X131: =N131/(1-O131) -> 297.2727273 | Y131: =X131*O131 -> 199.1727273 | Z131: =IF(OR(X131>=1.6*D131*AD131,D131=1),calcLoadFraction(G131,F131,I131,J131,K131,D131,1),"Condition for spring model not fulfilled") -> 0.5290522988 | AA131: =IF(L131>2,L131,IF(L131=2,1,sigma_cl0(I131+J131))) -> 112.4588041 | AB131: =Sigma_cl(AA131,U131,V131,X131) -> 93.58487925 | AC131: =Sigma_cl(AA131,U131,V131,Y131) -> 99.81327445 | AD131: =sigma_Slip(AB131,W131,U131,IF(L131=1,mu_redLead,mu_millScale)) -> 25.53206264 | AE131: =sigma_Slip(AC131,W131,U131,IF(L131=1,mu_redLead,mu_millScale)) -> 27.23130911 | AF131: =Sigma_p(AB131,V131) -> -25.98510633 | AG131: =Sigma_p(AC131,V131) -> -27.71450442 | AH131: =beta_1(X131,AD131,Z131) -> 0.8376575006 | AI131: =beta_1(Y131,AE131,Z131) -> 0.7415717159 | AJ131: =k_tHole(W131,U131) -> 2.496166088 | AK131: =K_t1Mu(Z131,AH131,D131,W131,U131,SIGN(X131),mu_millScale) -> 3.954763079 | AL131: =K_t1Mu(Z131,AI131,D131,W131,U131,SIGN(Y131),mu_millScale) -> 3.80361276 | AM131: =Sigma_hMax(AK131,X131,AF131) -> 1149.6581 | AN131: =Sigma_hMin(X131,Y131,AG131,AE131,AK131,AL131,AJ131,AI131,Z131,IF(L131=1,mu_redLead,mu_millScale)) -> 739.1521379 | AO131: =(AM131-AN131) -> 410.5059619 | AP131: =AN131/AM131 -> 0.6429321361 | AQ131: 153.2978404 | AR131: =tau_n(N131,W131,U131,D131) -> 59.32977956 | AS131: =tau_hMax(X131,Z131,AH131,W131,U131) -> 159.3506642 | AT131: =tau_hMin(X131,Y131,AS131,AE131,Z131,AI131,IF(L131=1,mu_redLead,mu_millScale),W131,U131) -> 118.7638154 | AU131: 40.5868488
A132: 120 | B132: Graf1935 | C132: R; S | D132: 2 | E132: 1 | F132: 10 | G132: 61 | I132: 5 | J132: 9 | K132: 70 | M132: 560 | N132: 171.675 | O132: 0.0278 | P132: 246700 | Q132: 1 | R132: GH52.38.3-4 | T132: 120 | U132: =I132/F132 -> 0.5 | V132: =F132/(J132+I132) -> 0.7142857143 | W132: =F132/G132 -> 0.1639344262 | X132: =N132/(1-O132) -> 176.5840362 | Y132: =X132*O132 -> 4.909036207 | Z132: =IF(OR(X132>=1.6*D132*AD132,D132=1),calcLoadFraction(G132,F132,I132,J132,K132,D132,1),"Condition for spring model not fulfilled") -> 0.523540737 | AA132: =IF(L132>2,L132,IF(L132=2,1,sigma_cl0(I132+J132))) -> 112.4588041 | AB132: =Sigma_cl(AA132,U132,V132,X132) -> 101.2474365 | AC132: =Sigma_cl(AA132,U132,V132,Y132) -> 112.1471281 | AD132: =sigma_Slip(AB132,W132,U132,IF(L132=1,mu_redLead,mu_millScale)) -> 20.5815308 | AE132: =sigma_Slip(AC132,W132,U132,IF(L132=1,mu_redLead,mu_millScale)) -> 22.79721493 | AF132: =Sigma_p(AB132,V132) -> -28.11271889 | AG132: =Sigma_p(AC132,V132) -> -31.13916555 | AH132: =beta_1(X132,AD132,Z132) -> 0.7773740663 | AI132: =beta_1(Y132,AE132,Z132) -> 0 | AJ132: =k_tHole(W132,U132) -> 2.584414555 | AK132: =K_t1Mu(Z132,AH132,D132,W132,U132,SIGN(X132),mu_millScale) -> 4.465116348 | AL132: =K_t1Mu(Z132,AI132,D132,W132,U132,SIGN(Y132),mu_millScale) -> 1.907891404 | AM132: =Sigma_hMax(AK132,X132,AF132) -> 760.3555479 | AN132: =Sigma_hMin(X132,Y132,AG132,AE132,AK132,AL132,AJ132,AI132,Z132,IF(L132=1,mu_redLead,mu_millScale)) -> 77.42782758 | AO132: =(AM132-AN132) -> 682.9277203 | AP132: =AN132/AM132 -> 0.1018310813 | AQ132: 218.5666149 | AR132: =tau_n(N132,W132,U132,D132) -> 139.3469165 | AS132: =tau_hMax(X132,Z132,AH132,W132,U132) -> 116.6681389 | AT132: =tau_hMin(X132,Y132,AS132,AE132,Z132,AI132,IF(L132=1,mu_redLead,mu_millScale),W132,U132) -> 30.33253824 | AU132: 86.33560068
A133: 121 | B133: Graf1935 | C133: R; S | D133: 2 | E133: 1 | F133: 10 | G133: 61 | I133: 5 | J133: 9 | K133: 70 | M133: 560 | N133: 132.435 | O133: 0.0357 | P133: 582300 | Q133: 1 | R133: GH52.36-37.2 | T133: 121 | U133: =I133/F133 -> 0.5 | V133: =F133/(J133+I133) -> 0.7142857143 | W133: =F133/G133 -> 0.1639344262 | X133: =N133/(1-O133) -> 137.3379654 | Y133: =X133*O133 -> 4.902965363 | Z133: =IF(OR(X133>=1.6*D133*AD133,D133=1),calcLoadFraction(G133,F133,I133,J133,K133,D133,1),"Condition for spring model not fulfilled") -> 0.523540737 | AA133: =IF(L133>2,L133,IF(L133=2,1,sigma_cl0(I133+J133))) -> 112.4588041 | AB133: =Sigma_cl(AA133,U133,V133,X133) -> 103.73918 | AC133: =Sigma_cl(AA133,U133,V133,Y133) -> 112.1475135 | AD133: =sigma_Slip(AB133,W133,U133,IF(L133=1,mu_redLead,mu_millScale)) -> 21.08805124 | AE133: =sigma_Slip(AC133,W133,U133,IF(L133=1,mu_redLead,mu_millScale)) -> 22.79729329 | AF133: =Sigma_p(AB133,V133) -> -28.80458515 | AG133: =Sigma_p(AC133,V133) -> -31.13927257 | AH133: =beta_1(X133,AD133,Z133) -> 0.7067112808 | AI133: =beta_1(Y133,AE133,Z133) -> 0 | AJ133: =k_tHole(W133,U133) -> 2.584414555 | AK133: =K_t1Mu(Z133,AH133,D133,W133,U133,SIGN(X133),mu_millScale) -> 4.3004573 | AL133: =K_t1Mu(Z133,AI133,D133,W133,U133,SIGN(Y133),mu_millScale) -> 1.907891404 | AM133: =Sigma_hMax(AK133,X133,AF133) -> 561.8114705 | AN133: =Sigma_hMin(X133,Y133,AG133,AE133,AK133,AL133,AJ133,AI133,Z133,IF(L133=1,mu_redLead,mu_millScale)) -> 68.03058476 | AO133: =(AM133-AN133) -> 493.7808858 | AP133: =AN133/AM133 -> 0.1210914841 | AQ133: 158.4126406 | AR133: =tau_n(N133,W133,U133,D133) -> 107.4961927 | AS133: =tau_hMax(X133,Z133,AH133,W133,U133) -> 82.49040112 | AT133: =tau_hMin(X133,Y133,AS133,AE133,Z133,AI133,IF(L133=1,mu_redLead,mu_millScale),W133,U133) -> 25.53944814 | AU133: 56.95095299
A134: 122 | B134: Graf1935 | C134: R; S | D134: 2 | E134: 1 | F134: 10 | G134: 61 | I134: 5 | J134: 9 | K134: 70 | M134: 560 | N134: 122.625 | O134: 0.0385 | P134: 2000000 | Q134: 0 | R134: GH52.36-37.1 | T134: 122 | U134: 0.5 | V134: 0.7142857143 | W134: 0.1639344262 | X134: 127.5351014 | Y134: 4.910101404 | Z134: =IF(OR(X134>=1.6*D134*AD134,D134=1),calcLoadFraction(G134,F134,I134,J134,K134,D134,1),"Condition for spring model not fulfilled") -> 0.523540737 | AA134: =IF(L134>2,L134,IF(L134=2,1,sigma_cl0(I134+J134))) -> 112.4588041 | AB134: =Sigma_cl(AA134,U134,V134,X134) -> 104.3615665 | AC134: =Sigma_cl(AA134,U134,V134,Y134) -> 112.1470605 | AD134: =sigma_Slip(AB134,W134,U134,IF(L134=1,mu_redLead,mu_millScale)) -> 21.21456966 | AE134: =sigma_Slip(AC134,W134,U134,IF(L134=1,mu_redLead,mu_millScale)) -> 22.79720119 | AF134: =Sigma_p(AB134,V134) -> -28.97739916 | AG134: =Sigma_p(AC134,V134) -> -31.13914677 | AH134: =beta_1(X134,AD134,Z134) -> 0.6822730786 | AI134: =beta_1(Y134,AE134,Z134) -> 0 | AJ134: =k_tHole(W134,U134) -> 2.584414555 | AK134: =K_t1Mu(Z134,AH134,D134,W134,U134,SIGN(X134),mu_millScale) -> 4.235909609 | AL134: =K_t1Mu(Z134,AI134,D134,W134,U134,SIGN(Y134),mu_millScale) -> 1.907891404 | AM134: =Sigma_hMax(AK134,X134,AF134) -> 511.2497624 | AN134: =Sigma_hMin(X134,Y134,AG134,AE134,AK134,AL134,AJ134,AI134,Z134,IF(L134=1,mu_redLead,mu_millScale)) -> 64.77087764 | AO134: 446.4788847 | AP134: 0.1266912621 | AQ134: 143.3404976 | AR134: =tau_n(N134,W134,U134,D134) -> 99.53351177 | AS134: =tau_hMax(X134,Z134,AH134,W134,U134) -> 73.95350286 | AT134: =tau_hMin(X134,Y134,AS134,AE134,Z134,AI134,IF(L134=1,mu_redLead,mu_millScale),W134,U134) -> 24.06352266 | AU134: 49.8899802
A135: 123 | B135: Graf1935 | C135: R; S | D135: 2 | E135: 1 | F135: 10 | G135: 61 | I135: 5 | J135: 9 | K135: 70 | M135: 560 | N135: 112.815 | O135: 0.0417 | P135: 2026400 | Q135: 0 | R135: GH52.36-37.3 | T135: 123 | U135: 0.5 | V135: 0.7142857143 | W135: 0.1639344262 | X135: 117.7240948 | Y135: 4.909094751 | Z135: =IF(OR(X135>=1.6*D135*AD135,D135=1),calcLoadFraction(G135,F135,I135,J135,K135,D135,1),"Condition for spring model not fulfilled") -> 0.523540737 | AA135: =IF(L135>2,L135,IF(L135=2,1,sigma_cl0(I135+J135))) -> 112.4588041 | AB135: =Sigma_cl(AA135,U135,V135,X135) -> 104.9844699 | AC135: =Sigma_cl(AA135,U135,V135,Y135) -> 112.1471244 | AD135: =sigma_Slip(AB135,W135,U135,IF(L135=1,mu_redLead,mu_millScale)) -> 21.34119318 | AE135: =sigma_Slip(AC135,W135,U135,IF(L135=1,mu_redLead,mu_millScale)) -> 22.79721418 | AF135: =Sigma_p(AB135,V135) -> -29.15035671 | AG135: =Sigma_p(AC135,V135) -> -31.13916452 | AH135: =beta_1(X135,AD135,Z135) -> 0.6537395753 | AI135: =beta_1(Y135,AE135,Z135) -> 0 | AJ135: =k_tHole(W135,U135) -> 2.584414555 | AK135: =K_t1Mu(Z135,AH135,D135,W135,U135,SIGN(X135),mu_millScale) -> 4.156125528 | AL135: =K_t1Mu(Z135,AI135,D135,W135,U135,SIGN(Y135),mu_millScale) -> 1.907891404 | AM135: =Sigma_hMax(AK135,X135,AF135) -> 460.1257587 | AN135: =Sigma_hMin(X135,Y135,AG135,AE135,AK135,AL135,AJ135,AI135,Z135,IF(L135=1,mu_redLead,mu_millScale)) -> 60.91963336 | AO135: 399.2061254 | AP135: 0.1323977895 | AQ135: 128.2588888 | AR135: =tau_n(N135,W135,U135,D135) -> 91.57083083 | AS135: =tau_hMax(X135,Z135,AH135,W135,U135) -> 65.40951347 | AT135: =tau_hMin(X135,Y135,AS135,AE135,Z135,AI135,IF(L135=1,mu_redLead,mu_millScale),W135,U135) -> 22.43161868 | AU135: 42.97789478
A136: 124 | B136: Graf1935 | C136: R; S | D136: 2 | E136: 2 | F136: 10 | G136: 47.5 | I136: 6.5 | J136: 10 | K136: 70 | M136: 561 | N136: 270 | O136: =ROUND(0.5/28,2) -> 0.02 | P136: 37740 | Q136: 1 | R136: GH52.1-2,1 | T136: 124 | U136: =I136/F136 -> 0.65 | V136: =F136/(J136+I136) -> 0.6060606061 | W136: =F136/G136 -> 0.2105263158 | X136: =N136/(1-O136) -> 275.5102041 | Y136: =X136*O136 -> 5.510204082 | Z136: =IF(OR(X136>=1.6*D136*AD136,D136=1),calcLoadFraction(G136,F136,I136,J136,K136,D136,1),"Condition for spring model not fulfilled") -> 0.520616163 | AA136: =IF(L136>2,L136,IF(L136=2,1,sigma_cl0(I136+J136))) -> 128.0546465 | AB136: =Sigma_cl(AA136,U136,V136,X136) -> 107.4540547 | AC136: =Sigma_cl(AA136,U136,V136,Y136) -> 127.6426347 | AD136: =sigma_Slip(AB136,W136,U136,IF(L136=1,mu_redLead,mu_millScale)) -> 22.85135731 | AE136: =sigma_Slip(AC136,W136,U136,IF(L136=1,mu_redLead,mu_millScale)) -> 27.14469419 | AF136: =Sigma_p(AB136,V136) -> -25.19297921 | AG136: =Sigma_p(AC136,V136) -> -29.92626246 | AH136: =beta_1(X136,AD136,Z136) -> 0.8406850008 | AI136: =beta_1(Y136,AE136,Z136) -> 0 | AJ136: =k_tHole(W136,U136) -> 2.492054235 | AK136: =K_t1Mu(Z136,AH136,D136,W136,U136,SIGN(X136),mu_millScale) -> 3.912128229 | AL136: =K_t1Mu(Z136,AI136,D136,W136,U136,SIGN(Y136),mu_millScale) -> 1.843352378 | AM136: =Sigma_hMax(AK136,X136,AF136) -> 1052.638268 | AN136: =Sigma_hMin(X136,Y136,AG136,AE136,AK136,AL136,AJ136,AI136,Z136,IF(L136=1,mu_redLead,mu_millScale)) -> 82.82705334 | AO136: =(AM136-AN136) -> 969.8112143 | AP136: =AN136/AM136 -> 0.07868520069 | AQ136: 309.5233923 | AR136: =tau_n(N136,W136,U136,D136) -> 209.4876934 | AS136: =tau_hMax(X136,Z136,AH136,W136,U136) -> 187.1170582 | AT136: =tau_hMin(X136,Y136,AS136,AE136,Z136,AI136,IF(L136=1,mu_redLead,mu_millScale),W136,U136) -> 39.85734581 | AU136: 147.2597124
A137: 125 | B137: Graf1935 | C137: R; S | D137: 2 | E137: 2 | F137: 10 | G137: 47.5 | I137: 6.5 | J137: 10 | K137: 70 | M137: 561 | N137: 181 | O137: =ROUND(0.5/19,2) -> 0.03 | P137: 382020 | Q137: 1 | R137: GH52.1-2,6 | T137: 125 | U137: 0.65 | V137: 0.6060606061 | W137: 0.2105263158 | X137: 186.5979381 | Y137: 5.597938144 | Z137: =IF(OR(X137>=1.6*D137*AD137,D137=1),calcLoadFraction(G137,F137,I137,J137,K137,D137,1),"Condition for spring model not fulfilled") -> 0.520616163 | AA137: =IF(L137>2,L137,IF(L137=2,1,sigma_cl0(I137+J137))) -> 128.0546465 | AB137: =Sigma_cl(AA137,U137,V137,X137) -> 114.1022487 | AC137: =Sigma_cl(AA137,U137,V137,Y137) -> 127.6360746 | AD137: =sigma_Slip(AB137,W137,U137,IF(L137=1,mu_redLead,mu_millScale)) -> 24.26517328 | AE137: =sigma_Slip(AC137,W137,U137,IF(L137=1,mu_redLead,mu_millScale)) -> 27.14329911 | AF137: =Sigma_p(AB137,V137) -> -26.75167158 | AG137: =Sigma_p(AC137,V137) -> -29.92472442 | AH137: =beta_1(X137,AD137,Z137) -> 0.7502192822 | AI137: =beta_1(Y137,AE137,Z137) -> 0 | AJ137: =k_tHole(W137,U137) -> 2.492054235 | AK137: =K_t1Mu(Z137,AH137,D137,W137,U137,SIGN(X137),mu_millScale) -> 3.776540811 | AL137: =K_t1Mu(Z137,AI137,D137,W137,U137,SIGN(Y137),mu_millScale) -> 1.843352378 | AM137: =Sigma_hMax(AK137,X137,AF137) -> 677.9430571 | AN137: =Sigma_hMin(X137,Y137,AG137,AE137,AK137,AL137,AJ137,AI137,Z137,IF(L137=1,mu_redLead,mu_millScale)) -> 72.17973543 | AO137: 605.7633217 | AP137: 0.1064687287 | AQ137: 193.9814225 | AR137: =tau_n(N137,W137,U137,D137) -> 140.4343426 | AS137: =tau_hMax(X137,Z137,AH137,W137,U137) -> 113.0934509 | AT137: =tau_hMin(X137,Y137,AS137,AE137,Z137,AI137,IF(L137=1,mu_redLead,mu_millScale),W137,U137) -> 31.97216451 | AU137: 81.12128643
A138: 126 | B138: Graf1935 | C138: R; S | D138: 2 | E138: 2 | F138: 10 | G138: 47.5 | I138: 6.5 | J138: 10 | K138: 70 | M138: 561 | N138: 314 | O138: -1 | P138: 132011 | Q138: 1 | R138: GH52.1-2,7 | T138: 126 | U138: 0.65 | V138: 0.6060606061 | W138: 0.2105263158 | X138: 157 | Y138: -157 | Z138: =IF(OR(X138>=1.6*D138*AD138,D138=1),calcLoadFraction(G138,F138,I138,J138,K138,D138,1),"Condition for spring model not fulfilled") -> 0.520616163 | AA138: =IF(L138>2,L138,IF(L138=2,1,sigma_cl0(I138+J138))) -> 128.0546465 | AB138: =Sigma_cl(AA138,U138,V138,X138) -> 116.3153611 | AC138: =Sigma_cl(AA138,U138,V138,Y138) -> 139.7939319 | AD138: =sigma_Slip(AB138,W138,U138,IF(L138=1,mu_redLead,mu_millScale)) -> 24.73581742 | AE138: =sigma_Slip(AC138,W138,U138,IF(L138=1,mu_redLead,mu_millScale)) -> 29.7288092 | AF138: =Sigma_p(AB138,V138) -> -27.27054352 | AG138: =Sigma_p(AC138,V138) -> -32.77517663 | AH138: =beta_1(X138,AD138,Z138) -> 0.6973720979 | AI138: =beta_1(Y138,AE138,Z138) -> 0.6362858358 | AJ138: =k_tHole(W138,U138) -> 2.492054235 | AK138: =K_t1Mu(Z138,AH138,D138,W138,U138,SIGN(X138),mu_millScale) -> 3.676160691 | AL138: =K_t1Mu(Z138,AI138,D138,W138,U138,SIGN(Y138),mu_millScale) -> 0.366984629 | AM138: =Sigma_hMax(AK138,X138,AF138) -> 549.8866849 | AN138: =Sigma_hMin(X138,Y138,AG138,AE138,AK138,AL138,AJ138,AI138,Z138,IF(L138=1,mu_redLead,mu_millScale)) -> -165.4871132 | AO138: 715.3737981 | AP138: -0.3009476638 | AQ138: 221.1471794 | AR138: =tau_n(N138,W138,U138,D138) -> 243.6264286 | AS138: =tau_hMax(X138,Z138,AH138,W138,U138) -> 88.45178733 | AT138: =tau_hMin(X138,Y138,AS138,AE138,Z138,AI138,IF(L138=1,mu_redLead,mu_millScale),W138,U138) -> -80.70385895 | AU138: 169.1556463
A139: 127 | B139: Graf1935 | C139: R; S | D139: 2 | E139: 2 | F139: 10 | G139: 47.5 | I139: 6.5 | J139: 10 | K139: 70 | M139: 561 | N139: 294 | O139: -1 | P139: 220090 | Q139: 1 | R139: GH52.1-2,4 | T139: 127 | U139: 0.65 | V139: 0.6060606061 | W139: 0.2105263158 | X139: 147 | Y139: -147 | Z139: =IF(OR(X139>=1.6*D139*AD139,D139=1),calcLoadFraction(G139,F139,I139,J139,K139,D139,1),"Condition for spring model not fulfilled") -> 0.520616163 | AA139: =IF(L139>2,L139,IF(L139=2,1,sigma_cl0(I139+J139))) -> 128.0546465 | AB139: =Sigma_cl(AA139,U139,V139,X139) -> 117.0630863 | AC139: =Sigma_cl(AA139,U139,V139,Y139) -> 139.0462067 | AD139: =sigma_Slip(AB139,W139,U139,IF(L139=1,mu_redLead,mu_millScale)) -> 24.8948299 | AE139: =sigma_Slip(AC139,W139,U139,IF(L139=1,mu_redLead,mu_millScale)) -> 29.56979672 | AF139: =Sigma_p(AB139,V139) -> -27.44585031 | AG139: =Sigma_p(AC139,V139) -> -32.59986984 | AH139: =beta_1(X139,AD139,Z139) -> 0.6747074017 | AI139: =beta_1(Y139,AE139,Z139) -> 0.6136211396 | AJ139: =k_tHole(W139,U139) -> 2.492054235 | AK139: =K_t1Mu(Z139,AH139,D139,W139,U139,SIGN(X139),mu_millScale) -> 3.628942063 | AL139: =K_t1Mu(Z139,AI139,D139,W139,U139,SIGN(Y139),mu_millScale) -> 0.4173186779 | AM139: =Sigma_hMax(AK139,X139,AF139) -> 506.008633 | AN139: =Sigma_hMin(X139,Y139,AG139,AE139,AK139,AL139,AJ139,AI139,Z139,IF(L139=1,mu_redLead,mu_millScale)) -> -164.8958437 | AO139: 670.9044767 | AP139: -0.3258755541 | AQ139: 207.0933203 | AR139: =tau_n(N139,W139,U139,D139) -> 228.1088217 | AS139: =tau_hMax(X139,Z139,AH139,W139,U139) -> 80.12632104 | AT139: =tau_hMin(X139,Y139,AS139,AE139,Z139,AI139,IF(L139=1,mu_redLead,mu_millScale),W139,U139) -> -72.87189129 | AU139: 152.9982123
A140: 128 | B140: Graf1935 | C140: R; S | D140: 2 | E140: 2 | F140: 10 | G140: 47.5 | I140: 6.5 | J140: 10 | K140: 70 | M140: 561 | N140: 275 | O140: -1 | P140: 483347 | Q140: 1 | R140: GH52.3,6-7 | T140: =A140 -> 128 | U140: 0.65 | V140: 0.6060606061 | W140: 0.2105263158 | X140: 137.5 | Y140: -137.5 | Z140: =IF(OR(X140>=1.6*D140*AD140,D140=1),calcLoadFraction(G140,F140,I140,J140,K140,D140,1),"Condition for spring model not fulfilled") -> 0.520616163 | AA140: =IF(L140>2,L140,IF(L140=2,1,sigma_cl0(I140+J140))) -> 128.0546465 | AB140: =Sigma_cl(AA140,U140,V140,X140) -> 117.7734252 | AC140: =Sigma_cl(AA140,U140,V140,Y140) -> 138.3358678 | AD140: =sigma_Slip(AB140,W140,U140,IF(L140=1,mu_redLead,mu_millScale)) -> 25.04589175 | AE140: =sigma_Slip(AC140,W140,U140,IF(L140=1,mu_redLead,mu_millScale)) -> 29.41873487 | AF140: =Sigma_p(AB140,V140) -> -27.61239175 | AG140: =Sigma_p(AC140,V140) -> -32.43332839 | AH140: =beta_1(X140,AD140,Z140) -> 0.6501223877 | AI140: =beta_1(Y140,AE140,Z140) -> 0.5890361256 | AJ140: =k_tHole(W140,U140) -> 2.492054235 | AK140: =K_t1Mu(Z140,AH140,D140,W140,U140,SIGN(X140),mu_millScale) -> 3.575145824 | AL140: =K_t1Mu(Z140,AI140,D140,W140,U140,SIGN(Y140),mu_millScale) -> 0.472549583 | AM140: =Sigma_hMax(AK140,X140,AF140) -> 463.970159 | AN140: =Sigma_hMin(X140,Y140,AG140,AE140,AK140,AL140,AJ140,AI140,Z140,IF(L140=1,mu_redLead,mu_millScale)) -> -163.9188864 | AO140: 627.8890454 | AP140: -0.3532961834 | AQ140: =AO140/3.16*(1-0.9*AP140)/(1-AP140) -> 193.5117585 | AR140: =tau_n(N140,W140,U140,D140) -> 213.3670951 | AS140: =tau_hMax(X140,Z140,AH140,W140,U140) -> 72.21712807 | AT140: =tau_hMin(X140,Y140,AS140,AE140,Z140,AI140,IF(L140=1,mu_redLead,mu_millScale),W140,U140) -> -65.43152201 | AU140: =(AS140-AT140) -> 137.6486501
A141: 129 | B141: Graf1935 | C141: R; S | D141: 2 | E141: 2 | F141: 10 | G141: 47.5 | I141: 6.5 | J141: 10 | K141: 70 | M141: 561 | N141: 235 | O141: -1 | P141: 522400 | Q141: 0 | R141: GH52.1-2,5 | T141: 129 | U141: 0.65 | V141: 0.6060606061 | W141: 0.2105263158 | X141: 117.5 | Y141: -117.5 | Z141: =IF(OR(X141>=1.6*D141*AD141,D141=1),calcLoadFraction(G141,F141,I141,J141,K141,D141,1),"Condition for spring model not fulfilled") -> 0.520616163 | AA141: =IF(L141>2,L141,IF(L141=2,1,sigma_cl0(I141+J141))) -> 128.0546465 | AB141: =Sigma_cl(AA141,U141,V141,X141) -> 119.2688756 | AC141: =Sigma_cl(AA141,U141,V141,Y141) -> 136.8404174 | AD141: =sigma_Slip(AB141,W141,U141,IF(L141=1,mu_redLead,mu_millScale)) -> 25.36391671 | AE141: =sigma_Slip(AC141,W141,U141,IF(L141=1,mu_redLead,mu_millScale)) -> 29.10070992 | AF141: =Sigma_p(AB141,V141) -> -27.96300533 | AG141: =Sigma_p(AC141,V141) -> -32.08271482 | AH141: =beta_1(X141,AD141,Z141) -> 0.5853699208 | AI141: =beta_1(Y141,AE141,Z141) -> 0.5242836587 | AJ141: =k_tHole(W141,U141) -> 2.492054235 | AK141: =K_t1Mu(Z141,AH141,D141,W141,U141,SIGN(X141),mu_millScale) -> 3.422029631 | AL141: =K_t1Mu(Z141,AI141,D141,W141,U141,SIGN(Y141),mu_millScale) -> 0.6207457042 | AM141: =Sigma_hMax(AK141,X141,AF141) -> 374.1254763 | AN141: =Sigma_hMin(X141,Y141,AG141,AE141,AK141,AL141,AJ141,AI141,Z141,IF(L141=1,mu_redLead,mu_millScale)) -> -160.0404913 | AO141: 534.1659676 | AP141: -0.4277722354 | AQ141: 163.9752907 | AR141: =tau_n(N141,W141,U141,D141) -> 182.3318813 | AS141: =tau_hMax(X141,Z141,AH141,W141,U141) -> 55.5661955 | AT141: =tau_hMin(X141,Y141,AS141,AE141,Z141,AI141,IF(L141=1,mu_redLead,mu_millScale),W141,U141) -> -49.76758668 | AU141: 105.3337822
A142: 130 | B142: Graf1935 | C142: R; S | D142: 3 | E142: 2 | F142: 10 | G142: 66.25 | H142: 67.5 | I142: 6.5 | J142: 10 | K142: 70 | M142: 567 | N142: 181 | O142: =ROUND(0.5/19,2) -> 0.03 | P142: 208945 | Q142: 1 | R142: GH52.54-55,3 | T142: 130 | U142: 0.65 | V142: 0.6060606061 | W142: 0.1509433962 | X142: 186.5979381 | Y142: 5.597938144 | Z142: =IF(OR(X142>=1.6*D142*AD142,D142=1),calcLoadFraction(G142,F142,I142,J142,K142,D142,1),"Condition for spring model not fulfilled") -> 0.3769839318 | AA142: =IF(L142>2,L142,IF(L142=2,1,sigma_cl0(I142+J142))) -> 128.0546465 | AB142: =Sigma_cl(AA142,U142,V142,X142) -> 114.1022487 | AC142: =Sigma_cl(AA142,U142,V142,Y142) -> 127.6360746 | AD142: =sigma_Slip(AB142,W142,U142,IF(L142=1,mu_redLead,mu_millScale)) -> 16.17678219 | AE142: =sigma_Slip(AC142,W142,U142,IF(L142=1,mu_redLead,mu_millScale)) -> 18.09553274 | AF142: =Sigma_p(AB142,V142) -> -26.75167158 | AG142: =Sigma_p(AC142,V142) -> -29.92472442 | AH142: =beta_1(X142,AD142,Z142) -> 0.7700346214 | AI142: =beta_1(Y142,AE142,Z142) -> 0 | AJ142: =k_tHole(W142,U142) -> 2.612082457 | AK142: =K_t1Mu(Z142,AH142,D142,W142,U142,SIGN(X142),mu_millScale) -> 4.109949483 | AL142: =K_t1Mu(Z142,AI142,D142,W142,U142,SIGN(Y142),mu_millScale) -> 2.1197259 | AM142: =Sigma_hMax(AK142,X142,AF142) -> 740.1564279 | AN142: =Sigma_hMin(X142,Y142,AG142,AE142,AK142,AL142,AJ142,AI142,Z142,IF(L142=1,mu_redLead,mu_millScale)) -> 65.75488991 | AO142: 674.4015379 | AP142: 0.08883917972 | AQ142: 215.4990592 | AR142: =tau_n(N142,W142,U142,D142) -> 140.4343426 | AS142: =tau_hMax(X142,Z142,AH142,W142,U142) -> 126.0828269 | AT142: =tau_hMin(X142,Y142,AS142,AE142,Z142,AI142,IF(L142=1,mu_redLead,mu_millScale),W142,U142) -> 33.88548365 | AU142: 92.19734325
A143: 131 | B143: Graf1935 | C143: R; S | D143: 3 | E143: 2 | F143: 10 | G143: 66.25 | H143: 67.5 | I143: 6.5 | J143: 10 | K143: 70 | M143: 567 | N143: 314 | O143: -1 | P143: 144570 | Q143: 1 | R143: GH52.54.1-2 | T143: 131 | U143: 0.65 | V143: 0.6060606061 | W143: 0.1509433962 | X143: 157 | Y143: -157 | Z143: =IF(OR(X143>=1.6*D143*AD143,D143=1),calcLoadFraction(G143,F143,I143,J143,K143,D143,1),"Condition for spring model not fulfilled") -> 0.3769839318 | AA143: =IF(L143>2,L143,IF(L143=2,1,sigma_cl0(I143+J143))) -> 128.0546465 | AB143: =Sigma_cl(AA143,U143,V143,X143) -> 116.3153611 | AC143: =Sigma_cl(AA143,U143,V143,Y143) -> 139.7939319 | AD143: =sigma_Slip(AB143,W143,U143,IF(L143=1,mu_redLead,mu_millScale)) -> 16.49054495 | AE143: =sigma_Slip(AC143,W143,U143,IF(L143=1,mu_redLead,mu_millScale)) -> 19.81920613 | AF143: =Sigma_p(AB143,V143) -> -27.27054352 | AG143: =Sigma_p(AC143,V143) -> -32.77517663 | AH143: =beta_1(X143,AD143,Z143) -> 0.7213798539 | AI143: =beta_1(Y143,AE143,Z143) -> 0.6651396224 | AJ143: =k_tHole(W143,U143) -> 2.612082457 | AK143: =K_t1Mu(Z143,AH143,D143,W143,U143,SIGN(X143),mu_millScale) -> 4.022069243 | AL143: =K_t1Mu(Z143,AI143,D143,W143,U143,SIGN(Y143),mu_millScale) -> 0.5862973966 | AM143: =Sigma_hMax(AK143,X143,AF143) -> 604.1943276 | AN143: =Sigma_hMin(X143,Y143,AG143,AE143,AK143,AL143,AJ143,AI143,Z143,IF(L143=1,mu_redLead,mu_millScale)) -> -204.7125265 | AO143: 808.9068541 | AP143: -0.3388190143 | AQ143: 249.5049372 | AR143: =tau_n(N143,W143,U143,D143) -> 243.6264286 | AS143: =tau_hMax(X143,Z143,AH143,W143,U143) -> 99.38080426 | AT143: =tau_hMin(X143,Y143,AS143,AE143,Z143,AI143,IF(L143=1,mu_redLead,mu_millScale),W143,U143) -> -91.63287589 | AU143: 191.0136801
A144: 132 | B144: Graf1935 | C144: R; S | D144: 3 | E144: 2 | F144: 10 | G144: 66.25 | H144: 67.5 | I144: 6.5 | J144: 10 | K144: 70 | M144: 567 | N144: 275 | O144: -1 | P144: 264258 | Q144: 1 | R144: GH52.55.1-2 | T144: 132 | U144: 0.65 | V144: 0.6060606061 | W144: 0.1509433962 | X144: 137.5 | Y144: -137.5 | Z144: =IF(OR(X144>=1.6*D144*AD144,D144=1),calcLoadFraction(G144,F144,I144,J144,K144,D144,1),"Condition for spring model not fulfilled") -> 0.3769839318 | AA144: =IF(L144>2,L144,IF(L144=2,1,sigma_cl0(I144+J144))) -> 128.0546465 | AB144: =Sigma_cl(AA144,U144,V144,X144) -> 117.7734252 | AC144: =Sigma_cl(AA144,U144,V144,Y144) -> 138.3358678 | AD144: =sigma_Slip(AB144,W144,U144,IF(L144=1,mu_redLead,mu_millScale)) -> 16.69726117 | AE144: =sigma_Slip(AC144,W144,U144,IF(L144=1,mu_redLead,mu_millScale)) -> 19.61248991 | AF144: =Sigma_p(AB144,V144) -> -27.61239175 | AG144: =Sigma_p(AC144,V144) -> -32.43332839 | AH144: =beta_1(X144,AD144,Z144) -> 0.6778785077 | AI144: =beta_1(Y144,AE144,Z144) -> 0.6216382762 | AJ144: =k_tHole(W144,U144) -> 2.612082457 | AK144: =K_t1Mu(Z144,AH144,D144,W144,U144,SIGN(X144),mu_millScale) -> 3.933204268 | AL144: =K_t1Mu(Z144,AI144,D144,W144,U144,SIGN(Y144),mu_millScale) -> 0.6827681585 | AM144: =Sigma_hMax(AK144,X144,AF144) -> 513.2031952 | AN144: =Sigma_hMin(X144,Y144,AG144,AE144,AK144,AL144,AJ144,AI144,Z144,IF(L144=1,mu_redLead,mu_millScale)) -> -198.817526 | AO144: 712.0207212 | AP144: -0.3874050822 | AQ144: 219.0313192 | AR144: =tau_n(N144,W144,U144,D144) -> 213.3670951 | AS144: =tau_hMax(X144,Z144,AH144,W144,U144) -> 81.78871933 | AT144: =tau_hMin(X144,Y144,AS144,AE144,Z144,AI144,IF(L144=1,mu_redLead,mu_millScale),W144,U144) -> -75.00311327 | AU144: 156.7918326
A145: 133 | B145: Graf1935 | C145: R; S | D145: 3 | E145: 2 | F145: 10 | G145: 66.25 | H145: 67.5 | I145: 6.5 | J145: 10 | K145: 70 | M145: 567 | N145: 255 | O145: -1 | P145: 294796 | Q145: 1 | R145: GH52.56.2-3 | T145: 133 | U145: 0.65 | V145: 0.6060606061 | W145: 0.1509433962 | X145: 127.5 | Y145: -127.5 | Z145: =IF(OR(X145>=1.6*D145*AD145,D145=1),calcLoadFraction(G145,F145,I145,J145,K145,D145,1),"Condition for spring model not fulfilled") -> 0.3769839318 | AA145: =IF(L145>2,L145,IF(L145=2,1,sigma_cl0(I145+J145))) -> 128.0546465 | AB145: =Sigma_cl(AA145,U145,V145,X145) -> 118.5211504 | AC145: =Sigma_cl(AA145,U145,V145,Y145) -> 137.5881426 | AD145: =sigma_Slip(AB145,W145,U145,IF(L145=1,mu_redLead,mu_millScale)) -> 16.80326949 | AE145: =sigma_Slip(AC145,W145,U145,IF(L145=1,mu_redLead,mu_millScale)) -> 19.5064816 | AF145: =Sigma_p(AB145,V145) -> -27.78769854 | AG145: =Sigma_p(AC145,V145) -> -32.25802161 | AH145: =beta_1(X145,AD145,Z145) -> 0.6504085776 | AI145: =beta_1(Y145,AE145,Z145) -> 0.5941683461 | AJ145: =k_tHole(W145,U145) -> 2.612082457 | AK145: =K_t1Mu(Z145,AH145,D145,W145,U145,SIGN(X145),mu_millScale) -> 3.872595009 | AL145: =K_t1Mu(Z145,AI145,D145,W145,U145,SIGN(Y145),mu_millScale) -> 0.7445324582 | AM145: =Sigma_hMax(AK145,X145,AF145) -> 465.9681652 | AN145: =Sigma_hMin(X145,Y145,AG145,AE145,AK145,AL145,AJ145,AI145,Z145,IF(L145=1,mu_redLead,mu_millScale)) -> -195.13362 | AO145: 661.1017851 | AP145: -0.4187702821 | AQ145: 203.0343111 | AR145: =tau_n(N145,W145,U145,D145) -> 197.8494882 | AS145: =tau_hMax(X145,Z145,AH145,W145,U145) -> 72.76713732 | AT145: =tau_hMin(X145,Y145,AS145,AE145,Z145,AI145,IF(L145=1,mu_redLead,mu_millScale),W145,U145) -> -66.47502988 | AU145: 139.2421672
A146: 134 | B146: Graf1932 | C146: R; S | D146: 1 | E146: 1 | F146: 10 | G146: 35 | I146: 6 | J146: 10 | K146: 50 | M146: 386 | N146: 212.877 | O146: 0 | P146: 36400 | Q146: 1 | R146: P3T1 | T146: 134 | U146: 0.6 | V146: 0.625 | W146: 0.2857142857 | X146: 212.877 | Y146: 0 | Z146: =IF(OR(X146>=1.6*D146*AD146,D146=1),calcLoadFraction(G146,F146,I146,J146,K146,D146,1),"Condition for spring model not fulfilled") -> 1 | AA146: =IF(L146>2,L146,IF(L146=2,1,sigma_cl0(I146+J146))) -> 125.1771365 | AB146: =Sigma_cl(AA146,U146,V146,X146) -> 110.205482 | AC146: =Sigma_cl(AA146,U146,V146,Y146) -> 125.1771365 | AD146: =sigma_Slip(AB146,W146,U146,IF(L146=1,mu_redLead,mu_millScale)) -> 38.08428067 | AE146: =sigma_Slip(AC146,W146,U146,IF(L146=1,mu_redLead,mu_millScale)) -> 43.25811305 | AF146: =Sigma_p(AB146,V146) -> -26.68584546 | AG146: =Sigma_p(AC146,V146) -> -30.31117562 | AH146: =beta_1(X146,AD146,Z146) -> 0.8210972502 | AI146: =beta_1(Y146,AE146,Z146) -> 0 | AJ146: =k_tHole(W146,U146) -> 2.364431487 | AK146: =K_t1Mu(Z146,AH146,D146,W146,U146,SIGN(X146),mu_millScale) -> 4.410312774 | AL146: =K_t1Mu(Z146,AI146,D146,W146,U146,SIGN(Y146),mu_millScale) -> 1.182215743 | AM146: =Sigma_hMax(AK146,X146,AF146) -> 912.1683069 | AN146: =Sigma_hMin(X146,Y146,AG146,AE146,AK146,AL146,AJ146,AI146,Z146,IF(L146=1,mu_redLead,mu_millScale)) -> 93.85204664 | AO146: 818.3162603 | AP146: 0.102888958 | AQ146: 261.9308433 | AR146: =tau_n(N146,W146,U146,D146) -> 203.2825605 | AS146: =tau_hMax(X146,Z146,AH146,W146,U146) -> 166.9147515 | AT146: =tau_hMin(X146,Y146,AS146,AE146,Z146,AI146,IF(L146=1,mu_redLead,mu_millScale),W146,U146) -> 34.28130472 | AU146: 132.6334467
A147: 135 | B147: Graf1932 | C147: R; S | D147: 1 | E147: 1 | F147: 10 | G147: 35 | I147: 6 | J147: 10 | K147: 50 | M147: 386 | N147: 201.105 | O147: 0 | P147: 2009800 | Q147: 0 | R147: P3T1 | T147: 135 | U147: 0.6 | V147: 0.625 | W147: 0.2857142857 | X147: 201.105 | Y147: 0 | Z147: =IF(OR(X147>=1.6*D147*AD147,D147=1),calcLoadFraction(G147,F147,I147,J147,K147,D147,1),"Condition for spring model not fulfilled") -> 1 | AA147: =IF(L147>2,L147,IF(L147=2,1,sigma_cl0(I147+J147))) -> 125.1771365 | AB147: =Sigma_cl(AA147,U147,V147,X147) -> 111.0334076 | AC147: =Sigma_cl(AA147,U147,V147,Y147) -> 125.1771365 | AD147: =sigma_Slip(AB147,W147,U147,IF(L147=1,mu_redLead,mu_millScale)) -> 38.37039121 | AE147: =sigma_Slip(AC147,W147,U147,IF(L147=1,mu_redLead,mu_millScale)) -> 43.25811305 | AF147: =Sigma_p(AB147,V147) -> -26.88632455 | AG147: =Sigma_p(AC147,V147) -> -30.31117562 | AH147: =beta_1(X147,AD147,Z147) -> 0.8092022018 | AI147: =beta_1(Y147,AE147,Z147) -> 0 | AJ147: =k_tHole(W147,U147) -> 2.364431487 | AK147: =K_t1Mu(Z147,AH147,D147,W147,U147,SIGN(X147),mu_millScale) -> 4.384344937 | AL147: =K_t1Mu(Z147,AI147,D147,W147,U147,SIGN(Y147),mu_millScale) -> 1.182215743 | AM147: =Sigma_hMax(AK147,X147,AF147) -> 854.827364 | AN147: =Sigma_hMin(X147,Y147,AG147,AE147,AK147,AL147,AJ147,AI147,Z147,IF(L147=1,mu_redLead,mu_millScale)) -> 92.1727728 | AO147: 762.6545912 | AP147: 0.1078261842 | AQ147: 244.2632495 | AR147: =tau_n(N147,W147,U147,D147) -> 192.0411286 | AS147: =tau_hMax(X147,Z147,AH147,W147,U147) -> 155.4001041 | AT147: =tau_hMin(X147,Y147,AS147,AE147,Z147,AI147,IF(L147=1,mu_redLead,mu_millScale),W147,U147) -> 33.28125663 | AU147: 122.1188475
A148: 136 | B148: Graf1932 | C148: R; S | D148: 1 | E148: 1 | F148: 10 | G148: 35 | I148: 6 | J148: 10 | K148: 50 | M148: 386 | N148: 191.295 | O148: 0 | P148: 2003000 | Q148: 0 | R148: P3T1 | T148: 136 | U148: 0.6 | V148: 0.625 | W148: 0.2857142857 | X148: 191.295 | Y148: 0 | Z148: =IF(OR(X148>=1.6*D148*AD148,D148=1),calcLoadFraction(G148,F148,I148,J148,K148,D148,1),"Condition for spring model not fulfilled") -> 1 | AA148: =IF(L148>2,L148,IF(L148=2,1,sigma_cl0(I148+J148))) -> 125.1771365 | AB148: =Sigma_cl(AA148,U148,V148,X148) -> 111.7233456 | AC148: =Sigma_cl(AA148,U148,V148,Y148) -> 125.1771365 | AD148: =sigma_Slip(AB148,W148,U148,IF(L148=1,mu_redLead,mu_millScale)) -> 38.60881667 | AE148: =sigma_Slip(AC148,W148,U148,IF(L148=1,mu_redLead,mu_millScale)) -> 43.25811305 | AF148: =Sigma_p(AB148,V148) -> -27.05339045 | AG148: =Sigma_p(AC148,V148) -> -30.31117562 | AH148: =beta_1(X148,AD148,Z148) -> 0.7981713235 | AI148: =beta_1(Y148,AE148,Z148) -> 0 | AJ148: =k_tHole(W148,U148) -> 2.364431487 | AK148: =K_t1Mu(Z148,AH148,D148,W148,U148,SIGN(X148),mu_millScale) -> 4.359025323 | AL148: =K_t1Mu(Z148,AI148,D148,W148,U148,SIGN(Y148),mu_millScale) -> 1.182215743 | AM148: =Sigma_hMax(AK148,X148,AF148) -> 806.8063588 | AN148: =Sigma_hMin(X148,Y148,AG148,AE148,AK148,AL148,AJ148,AI148,Z148,IF(L148=1,mu_redLead,mu_millScale)) -> 90.60404112 | AO148: 716.2023177 | AP148: 0.1122996121 | AQ148: 229.5135195 | AR148: =tau_n(N148,W148,U148,D148) -> 182.6732687 | AS148: =tau_hMax(X148,Z148,AH148,W148,U148) -> 145.8045646 | AT148: =tau_hMin(X148,Y148,AS148,AE148,Z148,AI148,IF(L148=1,mu_redLead,mu_millScale),W148,U148) -> 32.38594616 | AU148: 113.4186185
A149: 137 | B149: Graf1932 | C149: R; S | D149: 1 | E149: 1 | F149: 10 | G149: 35 | I149: 7 | J149: 10 | K149: 50 | M149: 386 | N149: 166.77 | O149: 0 | P149: 317600 | Q149: 1 | R149: P3T1 | T149: 137 | U149: 0.7 | V149: 0.5882352941 | W149: 0.2857142857 | X149: 166.77 | Y149: 0 | Z149: =IF(OR(X149>=1.6*D149*AD149,D149=1),calcLoadFraction(G149,F149,I149,J149,K149,D149,1),"Condition for spring model not fulfilled") -> 1 | AA149: =IF(L149>2,L149,IF(L149=2,1,sigma_cl0(I149+J149))) -> 130.8232889 | AB149: =Sigma_cl(AA149,U149,V149,X149) -> 117.6386489 | AC149: =Sigma_cl(AA149,U149,V149,Y149) -> 130.8232889 | AD149: =sigma_Slip(AB149,W149,U149,IF(L149=1,mu_redLead,mu_millScale)) -> 34.84542751 | AE149: =sigma_Slip(AC149,W149,U149,IF(L149=1,mu_redLead,mu_millScale)) -> 38.75081423 | AF149: =Sigma_p(AB149,V149) -> -26.7232027 | AG149: =Sigma_p(AC149,V149) -> -29.71827116 | AH149: =beta_1(X149,AD149,Z149) -> 0.7910569796 | AI149: =beta_1(Y149,AE149,Z149) -> 0 | AJ149: =k_tHole(W149,U149) -> 2.364431487 | AK149: =K_t1Mu(Z149,AH149,D149,W149,U149,SIGN(X149),mu_millScale) -> 4.358988023 | AL149: =K_t1Mu(Z149,AI149,D149,W149,U149,SIGN(Y149),mu_millScale) -> 1.182215743 | AM149: =Sigma_hMax(AK149,X149,AF149) -> 700.2252299 | AN149: =Sigma_hMin(X149,Y149,AG149,AE149,AK149,AL149,AJ149,AI149,Z149,IF(L149=1,mu_redLead,mu_millScale)) -> 78.16635916 | AO149: 622.0588708 | AP149: 0.1116303095 | AQ149: 199.327692 | AR149: =tau_n(N149,W149,U149,D149) -> 185.7958886 | AS149: =tau_hMax(X149,Z149,AH149,W149,U149) -> 146.9751345 | AT149: =tau_hMin(X149,Y149,AS149,AE149,Z149,AI149,IF(L149=1,mu_redLead,mu_millScale),W149,U149) -> 33.29447219 | AU149: 113.6806623
A150: 138 | B150: Graf1932 | C150: R; S | D150: 1 | E150: 1 | F150: 10 | G150: 35 | I150: 7 | J150: 10 | K150: 50 | M150: 386 | N150: 161.865 | O150: 0 | P150: 590600 | Q150: 1 | R150: P3T1 | T150: 138 | U150: 0.7 | V150: 0.5882352941 | W150: 0.2857142857 | X150: 161.865 | Y150: 0 | Z150: =IF(OR(X150>=1.6*D150*AD150,D150=1),calcLoadFraction(G150,F150,I150,J150,K150,D150,1),"Condition for spring model not fulfilled") -> 1 | AA150: =IF(L150>2,L150,IF(L150=2,1,sigma_cl0(I150+J150))) -> 130.8232889 | AB150: =Sigma_cl(AA150,U150,V150,X150) -> 118.0264325 | AC150: =Sigma_cl(AA150,U150,V150,Y150) -> 130.8232889 | AD150: =sigma_Slip(AB150,W150,U150,IF(L150=1,mu_redLead,mu_millScale)) -> 34.96029182 | AE150: =sigma_Slip(AC150,W150,U150,IF(L150=1,mu_redLead,mu_millScale)) -> 38.75081423 | AF150: =Sigma_p(AB150,V150) -> -26.81129295 | AG150: =Sigma_p(AC150,V150) -> -29.71827116 | AH150: =beta_1(X150,AD150,Z150) -> 0.7840157426 | AI150: =beta_1(Y150,AE150,Z150) -> 0 | AJ150: =k_tHole(W150,U150) -> 2.364431487 | AK150: =K_t1Mu(Z150,AH150,D150,W150,U150,SIGN(X150),mu_millScale) -> 4.341652048 | AL150: =K_t1Mu(Z150,AI150,D150,W150,U150,SIGN(Y150),mu_millScale) -> 1.182215743 | AM150: =Sigma_hMax(AK150,X150,AF150) -> 675.9502158 | AN150: =Sigma_hMin(X150,Y150,AG150,AE150,AK150,AL150,AJ150,AI150,Z150,IF(L150=1,mu_redLead,mu_millScale)) -> 77.25620961 | AO150: 598.6940062 | AP150: 0.1142927509 | AQ150: 191.9049453 | AR150: =tau_n(N150,W150,U150,D150) -> 180.3313037 | AS150: =tau_hMax(X150,Z150,AH150,W150,U150) -> 141.382581 | AT150: =tau_hMin(X150,Y150,AS150,AE150,Z150,AI150,IF(L150=1,mu_redLead,mu_millScale),W150,U150) -> 32.72358299 | AU150: 108.658998
A151: 139 | B151: Graf1932 | C151: R; S | D151: 1 | E151: 1 | F151: 10 | G151: 35 | I151: 7 | J151: 10 | K151: 50 | M151: 386 | N151: 152.055 | O151: 0 | P151: 2500000 | Q151: 0 | R151: P3T1 | T151: 139 | U151: =I151/F151 -> 0.7 | V151: =F151/(J151+I151) -> 0.5882352941 | W151: =F151/G151 -> 0.2857142857 | X151: =N151/(1-O151) -> 152.055 | Y151: =X151*O151 -> 0 | Z151: =IF(OR(X151>=1.6*D151*AD151,D151=1),calcLoadFraction(G151,F151,I151,J151,K151,D151,1),"Condition for spring model not fulfilled") -> 1 | AA151: =IF(L151>2,L151,IF(L151=2,1,sigma_cl0(I151+J151))) -> 130.8232889 | AB151: =Sigma_cl(AA151,U151,V151,X151) -> 118.8019995 | AC151: =Sigma_cl(AA151,U151,V151,Y151) -> 130.8232889 | AD151: =sigma_Slip(AB151,W151,U151,IF(L151=1,mu_redLead,mu_millScale)) -> 35.19002045 | AE151: =sigma_Slip(AC151,W151,U151,IF(L151=1,mu_redLead,mu_millScale)) -> 38.75081423 | AF151: =Sigma_p(AB151,V151) -> -26.98747345 | AG151: =Sigma_p(AC151,V151) -> -29.71827116 | AH151: =beta_1(X151,AD151,Z151) -> 0.7685704485 | AI151: =beta_1(Y151,AE151,Z151) -> 0 | AJ151: =k_tHole(W151,U151) -> 2.364431487 | AK151: =K_t1Mu(Z151,AH151,D151,W151,U151,SIGN(X151),mu_millScale) -> 4.302016517 | AL151: =K_t1Mu(Z151,AI151,D151,W151,U151,SIGN(Y151),mu_millScale) -> 1.182215743 | AM151: =Sigma_hMax(AK151,X151,AF151) -> 627.155648 | AN151: =Sigma_hMin(X151,Y151,AG151,AE151,AK151,AL151,AJ151,AI151,Z151,IF(L151=1,mu_redLead,mu_millScale)) -> 75.24877969 | AO151: 551.9068683 | AP151: 0.1199842175 | AQ151: 177.0353627 | AR151: =tau_n(N151,W151,U151,D151) -> 169.4021338 | AS151: =tau_hMax(X151,Z151,AH151,W151,U151) -> 130.1974739 | AT151: =tau_hMin(X151,Y151,AS151,AE151,Z151,AI151,IF(L151=1,mu_redLead,mu_millScale),W151,U151) -> 31.50982354 | AU151: 98.68765038
A152: 140 | B152: Graf1932 | C152: R; S | D152: 1 | E152: 1 | F152: 10 | G152: 35 | I152: 6 | J152: 10 | K152: 50 | M152: 386 | N152: 98.1 | O152: 0.67 | P152: 446400 | Q152: 1 | R152: P3T1 | T152: 140 | U152: 0.6 | V152: 0.625 | W152: 0.2857142857 | X152: 297.2727273 | Y152: 199.1727273 | Z152: =IF(OR(X152>=1.6*D152*AD152,D152=1),calcLoadFraction(G152,F152,I152,J152,K152,D152,1),"Condition for spring model not fulfilled") -> 1 | AA152: =IF(L152>2,L152,IF(L152=2,1,sigma_cl0(I152+J152))) -> 125.1771365 | AB152: =Sigma_cl(AA152,U152,V152,X152) -> 104.2699245 | AC152: =Sigma_cl(AA152,U152,V152,Y152) -> 111.1693045 | AD152: =sigma_Slip(AB152,W152,U152,IF(L152=1,mu_redLead,mu_millScale)) -> 36.03309925 | AE152: =sigma_Slip(AC152,W152,U152,IF(L152=1,mu_redLead,mu_millScale)) -> 38.4173538 | AF152: =Sigma_p(AB152,V152) -> -25.24857241 | AG152: =Sigma_p(AC152,V152) -> -26.91923147 | AH152: =beta_1(X152,AD152,Z152) -> 0.8787877395 | AI152: =beta_1(Y152,AE152,Z152) -> 0.8071153901 | AJ152: =k_tHole(W152,U152) -> 2.364431487 | AK152: =K_t1Mu(Z152,AH152,D152,W152,U152,SIGN(X152),mu_millScale) -> 4.515489107 | AL152: =K_t1Mu(Z152,AI152,D152,W152,U152,SIGN(Y152),mu_millScale) -> 4.379645495 | AM152: =Sigma_hMax(AK152,X152,AF152) -> 1317.083189 | AN152: =Sigma_hMin(X152,Y152,AG152,AE152,AK152,AL152,AJ152,AI152,Z152,IF(L152=1,mu_redLead,mu_millScale)) -> 843.687204 | AO152: =(AM152-AN152) -> 473.3959853 | AP152: =AN152/AM152 -> 0.6405724489 | AQ152: 176.5078183 | AR152: =tau_n(N152,W152,U152,D152) -> 93.67859931 | AS152: =tau_hMax(X152,Z152,AH152,W152,U152) -> 249.4654683 | AT152: =tau_hMin(X152,Y152,AS152,AE152,Z152,AI152,IF(L152=1,mu_redLead,mu_millScale),W152,U152) -> 183.4055007 | AU152: 66.05996755
A153: 141 | B153: Graf1932 | C153: R; S | D153: 1 | E153: 1 | F153: 10 | G153: 35 | I153: 6 | J153: 10 | K153: 50 | M153: 386 | N153: 84.366 | O153: 0.67 | P153: 799700 | Q153: 1 | R153: P3T1 | T153: 141 | U153: 0.6 | V153: 0.625 | W153: 0.2857142857 | X153: 255.6545455 | Y153: 171.2885455 | Z153: =IF(OR(X153>=1.6*D153*AD153,D153=1),calcLoadFraction(G153,F153,I153,J153,K153,D153,1),"Condition for spring model not fulfilled") -> 1 | AA153: =IF(L153>2,L153,IF(L153=2,1,sigma_cl0(I153+J153))) -> 125.1771365 | AB153: =Sigma_cl(AA153,U153,V153,X153) -> 107.1969342 | AC153: =Sigma_cl(AA153,U153,V153,Y153) -> 113.1304009 | AD153: =sigma_Slip(AB153,W153,U153,IF(L153=1,mu_redLead,mu_millScale)) -> 37.04460118 | AE153: =sigma_Slip(AC153,W153,U153,IF(L153=1,mu_redLead,mu_millScale)) -> 39.0950601 | AF153: =Sigma_p(AB153,V153) -> -25.95733686 | AG153: =Sigma_p(AC153,V153) -> -27.39410365 | AH153: =beta_1(X153,AD153,Z153) -> 0.8550989926 | AI153: =beta_1(Y153,AE153,Z153) -> 0.7717590514 | AJ153: =k_tHole(W153,U153) -> 2.364431487 | AK153: =K_t1Mu(Z153,AH153,D153,W153,U153,SIGN(X153),mu_millScale) -> 4.476595179 | AL153: =K_t1Mu(Z153,AI153,D153,W153,U153,SIGN(Y153),mu_millScale) -> 4.293724858 | AM153: =Sigma_hMax(AK153,X153,AF153) -> 1118.504569 | AN153: =Sigma_hMin(X153,Y153,AG153,AE153,AK153,AL153,AJ153,AI153,Z153,IF(L153=1,mu_redLead,mu_millScale)) -> 724.6409763 | AO153: 393.8635926 | AP153: 0.6478659064 | AQ153: 147.5720539 | AR153: =tau_n(N153,W153,U153,D153) -> 80.56359541 | AS153: =tau_hMax(X153,Z153,AH153,W153,U153) -> 208.757119 | AT153: =tau_hMin(X153,Y153,AS153,AE153,Z153,AI153,IF(L153=1,mu_redLead,mu_millScale),W153,U153) -> 154.6352508 | AU153: 54.12186818
A154: 142 | B154: Graf1932 | C154: R; S | D154: 1 | E154: 1 | F154: 10 | G154: 35 | I154: 6 | J154: 10 | K154: 50 | M154: 386 | N154: 82.404 | O154: 0.67 | P154: 769800 | Q154: 1 | R154: P3T1 | T154: 142 | U154: 0.6 | V154: 0.625 | W154: 0.2857142857 | X154: 249.7090909 | Y154: 167.3050909 | Z154: =IF(OR(X154>=1.6*D154*AD154,D154=1),calcLoadFraction(G154,F154,I154,J154,K154,D154,1),"Condition for spring model not fulfilled") -> 1 | AA154: =IF(L154>2,L154,IF(L154=2,1,sigma_cl0(I154+J154))) -> 125.1771365 | AB154: =Sigma_cl(AA154,U154,V154,X154) -> 107.6150784 | AC154: =Sigma_cl(AA154,U154,V154,Y154) -> 113.4105576 | AD154: =sigma_Slip(AB154,W154,U154,IF(L154=1,mu_redLead,mu_millScale)) -> 37.18910146 | AE154: =sigma_Slip(AC154,W154,U154,IF(L154=1,mu_redLead,mu_millScale)) -> 39.19187528 | AF154: =Sigma_p(AB154,V154) -> -26.05858892 | AG154: =Sigma_p(AC154,V154) -> -27.46194253 | AH154: =beta_1(X154,AD154,Z154) -> 0.8510702942 | AI154: =beta_1(Y154,AE154,Z154) -> 0.7657460686 | AJ154: =k_tHole(W154,U154) -> 2.364431487 | AK154: =K_t1Mu(Z154,AH154,D154,W154,U154,SIGN(X154),mu_millScale) -> 4.469373881 | AL154: =K_t1Mu(Z154,AI154,D154,W154,U154,SIGN(Y154),mu_millScale) -> 4.277965948 | AM154: =Sigma_hMax(AK154,X154,AF154) -> 1089.9847 | AN154: =Sigma_hMin(X154,Y154,AG154,AE154,AK154,AL154,AJ154,AI154,Z154,IF(L154=1,mu_redLead,mu_millScale)) -> 707.486702 | AO154: 382.4979977 | AP154: 0.6490794799 | AQ154: 143.4324898 | AR154: =tau_n(N154,W154,U154,D154) -> 78.69002342 | AS154: =tau_hMax(X154,Z154,AH154,W154,U154) -> 202.9416405 | AT154: =tau_hMin(X154,Y154,AS154,AE154,Z154,AI154,IF(L154=1,mu_redLead,mu_millScale),W154,U154) -> 150.5142896 | AU154: 52.42735097
A155: 143 | B155: Graf1932 | C155: R; S | D155: 1 | E155: 1 | F155: 10 | G155: 35 | I155: 6 | J155: 10 | K155: 50 | M155: 386 | N155: 79.461 | O155: 0.67 | P155: 2003000 | Q155: 1 | R155: P3T1 | T155: 143 | U155: 0.6 | V155: 0.625 | W155: 0.2857142857 | X155: 240.7909091 | Y155: 161.3299091 | Z155: =IF(OR(X155>=1.6*D155*AD155,D155=1),calcLoadFraction(G155,F155,I155,J155,K155,D155,1),"Condition for spring model not fulfilled") -> 1 | AA155: =IF(L155>2,L155,IF(L155=2,1,sigma_cl0(I155+J155))) -> 125.1771365 | AB155: =Sigma_cl(AA155,U155,V155,X155) -> 108.2422948 | AC155: =Sigma_cl(AA155,U155,V155,Y155) -> 113.8307925 | AD155: =sigma_Slip(AB155,W155,U155,IF(L155=1,mu_redLead,mu_millScale)) -> 37.40585187 | AE155: =sigma_Slip(AC155,W155,U155,IF(L155=1,mu_redLead,mu_millScale)) -> 39.33709806 | AF155: =Sigma_p(AB155,V155) -> -26.21046702 | AG155: =Sigma_p(AC155,V155) -> -27.56370086 | AH155: =beta_1(X155,AD155,Z155) -> 0.8446542188 | AI155: =beta_1(Y155,AE155,Z155) -> 0.7561698368 | AJ155: =k_tHole(W155,U155) -> 2.364431487 | AK155: =K_t1Mu(Z155,AH155,D155,W155,U155,SIGN(X155),mu_millScale) -> 4.457517041 | AL155: =K_t1Mu(Z155,AI155,D155,W155,U155,SIGN(Y155),mu_millScale) -> 4.252206403 | AM155: =Sigma_hMax(AK155,X155,AF155) -> 1047.119114 | AN155: =Sigma_hMin(X155,Y155,AG155,AE155,AK155,AL155,AJ155,AI155,Z155,IF(L155=1,mu_redLead,mu_millScale)) -> 681.6703444 | AO155: 365.4487692 | AP155: 0.6509959904 | AQ155: 137.220191 | AR155: =tau_n(N155,W155,U155,D155) -> 75.87966544 | AS155: =tau_hMax(X155,Z155,AH155,W155,U155) -> 194.2184229 | AT155: =tau_hMin(X155,Y155,AS155,AE155,Z155,AI155,IF(L155=1,mu_redLead,mu_millScale),W155,U155) -> 144.3267148 | AU155: 49.89170803
A156: 144 | B156: Graf1932 | C156: R; S | D156: 1 | E156: 1 | F156: 10 | G156: 35 | I156: 7 | J156: 10 | K156: 50 | M156: 386 | N156: 91.233 | O156: 0.67 | P156: 663800 | Q156: 1 | R156: P3T1 | T156: 144 | U156: 0.7 | V156: 0.5882352941 | W156: 0.2857142857 | X156: 276.4636364 | Y156: 185.2306364 | Z156: =IF(OR(X156>=1.6*D156*AD156,D156=1),calcLoadFraction(G156,F156,I156,J156,K156,D156,1),"Condition for spring model not fulfilled") -> 1 | AA156: =IF(L156>2,L156,IF(L156=2,1,sigma_cl0(I156+J156))) -> 130.8232889 | AB156: =Sigma_cl(AA156,U156,V156,X156) -> 108.9663991 | AC156: =Sigma_cl(AA156,U156,V156,Y156) -> 116.1791727 | AD156: =sigma_Slip(AB156,W156,U156,IF(L156=1,mu_redLead,mu_millScale)) -> 32.27664373 | AE156: =sigma_Slip(AC156,W156,U156,IF(L156=1,mu_redLead,mu_millScale)) -> 34.41311999 | AF156: =Sigma_p(AB156,V156) -> -24.75318441 | AG156: =Sigma_p(AC156,V156) -> -26.39166304 | AH156: =beta_1(X156,AD156,Z156) -> 0.8832517573 | AI156: =beta_1(Y156,AE156,Z156) -> 0.8142147505 | AJ156: =k_tHole(W156,U156) -> 2.364431487 | AK156: =K_t1Mu(Z156,AH156,D156,W156,U156,SIGN(X156),mu_millScale) -> 4.539996745 | AL156: =K_t1Mu(Z156,AI156,D156,W156,U156,SIGN(Y156),mu_millScale) -> 4.412655611 | AM156: =Sigma_hMax(AK156,X156,AF156) -> 1230.390825 | AN156: =Sigma_hMin(X156,Y156,AG156,AE156,AK156,AL156,AJ156,AI156,Z156,IF(L156=1,mu_redLead,mu_millScale)) -> 785.4704084 | AO156: 444.9204165 | AP156: 0.6383909832 | AQ156: 165.6542586 | AR156: =tau_n(N156,W156,U156,D156) -> 101.6412803 | AS156: =tau_hMax(X156,Z156,AH156,W156,U156) -> 272.0449679 | AT156: =tau_hMin(X156,Y156,AS156,AE156,Z156,AI156,IF(L156=1,mu_redLead,mu_millScale),W156,U156) -> 199.6948847 | AU156: 72.35008315
A157: 145 | B157: Graf1932 | C157: R; S | D157: 1 | E157: 1 | F157: 10 | G157: 35 | I157: 7 | J157: 10 | K157: 50 | M157: 386 | N157: 86.328 | O157: 0.67 | P157: 403500 | Q157: 1 | R157: P3T1 | T157: 145 | U157: 0.7 | V157: 0.5882352941 | W157: 0.2857142857 | X157: 261.6 | Y157: 175.272 | Z157: =IF(OR(X157>=1.6*D157*AD157,D157=1),calcLoadFraction(G157,F157,I157,J157,K157,D157,1),"Condition for spring model not fulfilled") -> 1 | AA157: =IF(L157>2,L157,IF(L157=2,1,sigma_cl0(I157+J157))) -> 130.8232889 | AB157: =Sigma_cl(AA157,U157,V157,X157) -> 110.1415007 | AC157: =Sigma_cl(AA157,U157,V157,Y157) -> 116.9664908 | AD157: =sigma_Slip(AB157,W157,U157,IF(L157=1,mu_redLead,mu_millScale)) -> 32.62471741 | AE157: =sigma_Slip(AC157,W157,U157,IF(L157=1,mu_redLead,mu_millScale)) -> 34.64632936 | AF157: =Sigma_p(AB157,V157) -> -25.02012456 | AG157: =Sigma_p(AC157,V157) -> -26.57051294 | AH157: =beta_1(X157,AD157,Z157) -> 0.8752877775 | AI157: =beta_1(Y157,AE157,Z157) -> 0.8023282135 | AJ157: =k_tHole(W157,U157) -> 2.364431487 | AK157: =K_t1Mu(Z157,AH157,D157,W157,U157,SIGN(X157),mu_millScale) -> 4.527943159 | AL157: =K_t1Mu(Z157,AI157,D157,W157,U157,SIGN(Y157),mu_millScale) -> 4.38575875 | AM157: =Sigma_hMax(AK157,X157,AF157) -> 1159.489806 | AN157: =Sigma_hMin(X157,Y157,AG157,AE157,AK157,AL157,AJ157,AI157,Z157,IF(L157=1,mu_redLead,mu_millScale)) -> 743.0606985 | AO157: 416.4291073 | AP157: 0.6408514286 | AQ157: 155.2959421 | AR157: =tau_n(N157,W157,U157,D157) -> 96.17669529 | AS157: =tau_hMax(X157,Z157,AH157,W157,U157) -> 255.097836 | AT157: =tau_hMin(X157,Y157,AS157,AE157,Z157,AI157,IF(L157=1,mu_redLead,mu_millScale),W157,U157) -> 187.7415701 | AU157: 67.35626582
A158: 146 | B158: Graf1932 | C158: R; S | D158: 1 | E158: 1 | F158: 10 | G158: 35 | I158: 7 | J158: 10 | K158: 50 | M158: 386 | N158: 77.499 | O158: 0.67 | P158: 1487000 | Q158: 1 | R158: P3T1 | T158: 146 | U158: 0.7 | V158: 0.5882352941 | W158: 0.2857142857 | X158: 234.8454545 | Y158: 157.3464545 | Z158: =IF(OR(X158>=1.6*D158*AD158,D158=1),calcLoadFraction(G158,F158,I158,J158,K158,D158,1),"Condition for spring model not fulfilled") -> 1 | AA158: =IF(L158>2,L158,IF(L158=2,1,sigma_cl0(I158+J158))) -> 130.8232889 | AB158: =Sigma_cl(AA158,U158,V158,X158) -> 112.2566836 | AC158: =Sigma_cl(AA158,U158,V158,Y158) -> 118.3836633 | AD158: =sigma_Slip(AB158,W158,U158,IF(L158=1,mu_redLead,mu_millScale)) -> 33.25125004 | AE158: =sigma_Slip(AC158,W158,U158,IF(L158=1,mu_redLead,mu_millScale)) -> 35.06610622 | AF158: =Sigma_p(AB158,V158) -> -25.50061682 | AG158: =Sigma_p(AC158,V158) -> -26.89244275 | AH158: =beta_1(X158,AD158,Z158) -> 0.8584122051 | AI158: =beta_1(Y158,AE158,Z158) -> 0.7771407921 | AJ158: =k_tHole(W158,U158) -> 2.364431487 | AK158: =K_t1Mu(Z158,AH158,D158,W158,U158,SIGN(X158),mu_millScale) -> 4.500065911 | AL158: =K_t1Mu(Z158,AI158,D158,W158,U158,SIGN(Y158),mu_millScale) -> 4.324279639 | AM158: =Sigma_hMax(AK158,X158,AF158) -> 1031.319407 | AN158: =Sigma_hMin(X158,Y158,AG158,AE158,AK158,AL158,AJ158,AI158,Z158,IF(L158=1,mu_redLead,mu_millScale)) -> 666.1967445 | AO158: 365.122663 | AP158: 0.6459654882 | AQ158: 136.627322 | AR158: =tau_n(N158,W158,U158,D158) -> 86.34044237 | AS158: =tau_hMax(X158,Z158,AH158,W158,U158) -> 224.5929986 | AT158: =tau_hMin(X158,Y158,AS158,AE158,Z158,AI158,IF(L158=1,mu_redLead,mu_millScale),W158,U158) -> 166.179265 | AU158: 58.41373353
A159: 147 | B159: Graf1932 | C159: R; S | D159: 1 | E159: 1 | F159: 10 | G159: 35 | I159: 7 | J159: 10 | K159: 50 | M159: 386 | N159: 74.556 | O159: 0.67 | P159: 1700200 | Q159: 1 | R159: P3T1 | T159: 147 | U159: 0.7 | V159: 0.5882352941 | W159: 0.2857142857 | X159: 225.9272727 | Y159: 151.3712727 | Z159: =IF(OR(X159>=1.6*D159*AD159,D159=1),calcLoadFraction(G159,F159,I159,J159,K159,D159,1),"Condition for spring model not fulfilled") -> 1 | AA159: =IF(L159>2,L159,IF(L159=2,1,sigma_cl0(I159+J159))) -> 130.8232889 | AB159: =Sigma_cl(AA159,U159,V159,X159) -> 112.9617445 | AC159: =Sigma_cl(AA159,U159,V159,Y159) -> 118.8560542 | AD159: =sigma_Slip(AB159,W159,U159,IF(L159=1,mu_redLead,mu_millScale)) -> 33.46009425 | AE159: =sigma_Slip(AC159,W159,U159,IF(L159=1,mu_redLead,mu_millScale)) -> 35.20603184 | AF159: =Sigma_p(AB159,V159) -> -25.66078091 | AG159: =Sigma_p(AC159,V159) -> -26.99975269 | AH159: =beta_1(X159,AD159,Z159) -> 0.8518988264 | AI159: =beta_1(Y159,AE159,Z159) -> 0.7674193312 | AJ159: =k_tHole(W159,U159) -> 2.364431487 | AK159: =K_t1Mu(Z159,AH159,D159,W159,U159,SIGN(X159),mu_millScale) -> 4.488473825 | AL159: =K_t1Mu(Z159,AI159,D159,W159,U159,SIGN(Y159),mu_millScale) -> 4.298975626 | AM159: =Sigma_hMax(AK159,X159,AF159) -> 988.407869 | AN159: =Sigma_hMin(X159,Y159,AG159,AE159,AK159,AL159,AJ159,AI159,Z159,IF(L159=1,mu_redLead,mu_millScale)) -> 640.3922313 | AO159: 348.0156378 | AP159: 0.6479028054 | AQ159: 130.3971079 | AR159: =tau_n(N159,W159,U159,D159) -> 83.06169139 | AS159: =tau_hMax(X159,Z159,AH159,W159,U159) -> 214.4247194 | AT159: =tau_hMin(X159,Y159,AS159,AE159,Z159,AI159,IF(L159=1,mu_redLead,mu_millScale),W159,U159) -> 158.9760785 | AU159: 55.44864091
A160: 148 | B160: Graf1932 | C160: R; S | D160: 1 | E160: 1 | F160: 10 | G160: 35 | I160: 7 | J160: 10 | K160: 50 | M160: 386 | N160: 72.594 | O160: 0.67 | P160: 2005300 | Q160: 0 | R160: P3T1 | T160: 148 | U160: 0.7 | V160: 0.5882352941 | W160: 0.2857142857 | X160: 219.9818182 | Y160: 147.3878182 | Z160: =IF(OR(X160>=1.6*D160*AD160,D160=1),calcLoadFraction(G160,F160,I160,J160,K160,D160,1),"Condition for spring model not fulfilled") -> 1 | AA160: =IF(L160>2,L160,IF(L160=2,1,sigma_cl0(I160+J160))) -> 130.8232889 | AB160: =Sigma_cl(AA160,U160,V160,X160) -> 113.4317852 | AC160: =Sigma_cl(AA160,U160,V160,Y160) -> 119.1709814 | AD160: =sigma_Slip(AB160,W160,U160,IF(L160=1,mu_redLead,mu_millScale)) -> 33.59932372 | AE160: =sigma_Slip(AC160,W160,U160,IF(L160=1,mu_redLead,mu_millScale)) -> 35.29931559 | AF160: =Sigma_p(AB160,V160) -> -25.76755697 | AG160: =Sigma_p(AC160,V160) -> -27.07129265 | AH160: =beta_1(X160,AD160,Z160) -> 0.8472631784 | AI160: =beta_1(Y160,AE160,Z160) -> 0.7605004537 | AJ160: =k_tHole(W160,U160) -> 2.364431487 | AK160: =K_t1Mu(Z160,AH160,D160,W160,U160,SIGN(X160),mu_millScale) -> 4.479946179 | AL160: =K_t1Mu(Z160,AI160,D160,W160,U160,SIGN(Y160),mu_millScale) -> 4.280448649 | AM160: =Sigma_hMax(AK160,X160,AF160) -> 959.7391488 | AN160: =Sigma_hMin(X160,Y160,AG160,AE160,AK160,AL160,AJ160,AI160,Z160,IF(L160=1,mu_redLead,mu_millScale)) -> 623.1290005 | AO160: 336.6101483 | AP160: 0.6492691283 | AQ160: 126.241471 | AR160: =tau_n(N160,W160,U160,D160) -> 80.87585741 | AS160: =tau_hMax(X160,Z160,AH160,W160,U160) -> 207.6458667 | AT160: =tau_hMin(X160,Y160,AS160,AE160,Z160,AI160,IF(L160=1,mu_redLead,mu_millScale),W160,U160) -> 154.1688795 | AU160: 53.47698714
A161: 149 | B161: Graf1932 | C161: R; S | D161: 1 | E161: 1 | F161: 10 | G161: 35 | I161: 8 | J161: 10 | K161: 50 | M161: 386 | N161: 88.29 | O161: 0.67 | P161: 391500 | Q161: 1 | R161: P3T1 | T161: 149 | U161: 0.8 | V161: 0.5555555556 | W161: 0.2857142857 | X161: 267.5454545 | Y161: 179.2554545 | Z161: =IF(OR(X161>=1.6*D161*AD161,D161=1),calcLoadFraction(G161,F161,I161,J161,K161,D161,1),"Condition for spring model not fulfilled") -> 1 | AA161: =IF(L161>2,L161,IF(L161=2,1,sigma_cl0(I161+J161))) -> 136.0555365 | AB161: =Sigma_cl(AA161,U161,V161,X161) -> 112.7263135 | AC161: =Sigma_cl(AA161,U161,V161,Y161) -> 120.4249571 | AD161: =sigma_Slip(AB161,W161,U161,IF(L161=1,mu_redLead,mu_millScale)) -> 29.21656313 | AE161: =sigma_Slip(AC161,W161,U161,IF(L161=1,mu_redLead,mu_millScale)) -> 31.21190831 | AF161: =Sigma_p(AB161,V161) -> -24.08681913 | AG161: =Sigma_p(AC161,V161) -> -25.73182844 | AH161: =beta_1(X161,AD161,Z161) -> 0.8907977593 | AI161: =beta_1(Y161,AE161,Z161) -> 0.8258802869 | AJ161: =k_tHole(W161,U161) -> 2.364431487 | AK161: =K_t1Mu(Z161,AH161,D161,W161,U161,SIGN(X161),mu_millScale) -> 4.587219315 | AL161: =K_t1Mu(Z161,AI161,D161,W161,U161,SIGN(Y161),mu_millScale) -> 4.472929463 | AM161: =Sigma_hMax(AK161,X161,AF161) -> 1203.202858 | AN161: =Sigma_hMin(X161,Y161,AG161,AE161,AK161,AL161,AJ161,AI161,Z161,IF(L161=1,mu_redLead,mu_millScale)) -> 764.5586911 | AO161: 438.6441664 | AP161: 0.6354362329 | AQ161: 163.0063403 | AR161: =tau_n(N161,W161,U161,D161) -> 112.4143192 | AS161: =tau_hMax(X161,Z161,AH161,W161,U161) -> 303.4497686 | AT161: =tau_hMin(X161,Y161,AS161,AE161,Z161,AI161,IF(L161=1,mu_redLead,mu_millScale),W161,U161) -> 222.1711572 | AU161: 81.27861136
A162: 150 | B162: Graf1932 | C162: R; S | D162: 1 | E162: 1 | F162: 10 | G162: 35 | I162: 8 | J162: 10 | K162: 50 | M162: 386 | N162: 74.556 | O162: 0.67 | P162: 775700 | Q162: 1 | R162: P3T1 | T162: 150 | U162: 0.8 | V162: 0.5555555556 | W162: 0.2857142857 | X162: 225.9272727 | Y162: 151.3712727 | Z162: =IF(OR(X162>=1.6*D162*AD162,D162=1),calcLoadFraction(G162,F162,I162,J162,K162,D162,1),"Condition for spring model not fulfilled") -> 1 | AA162: =IF(L162>2,L162,IF(L162=2,1,sigma_cl0(I162+J162))) -> 136.0555365 | AB162: =Sigma_cl(AA162,U162,V162,X162) -> 116.3553038 | AC162: =Sigma_cl(AA162,U162,V162,Y162) -> 122.8563806 | AD162: =sigma_Slip(AB162,W162,U162,IF(L162=1,mu_redLead,mu_millScale)) -> 30.15712988 | AE162: =sigma_Slip(AC162,W162,U162,IF(L162=1,mu_redLead,mu_millScale)) -> 31.84208804 | AF162: =Sigma_p(AB162,V162) -> -24.86224439 | AG162: =Sigma_p(AC162,V162) -> -26.25136337 | AH162: =beta_1(X162,AD162,Z162) -> 0.8665184176 | AI162: =beta_1(Y162,AE162,Z162) -> 0.7896424634 | AJ162: =k_tHole(W162,U162) -> 2.364431487 | AK162: =K_t1Mu(Z162,AH162,D162,W162,U162,SIGN(X162),mu_millScale) -> 4.549916158 | AL162: =K_t1Mu(Z162,AI162,D162,W162,U162,SIGN(Y162),mu_millScale) -> 4.389896387 | AM162: =Sigma_hMax(AK162,X162,AF162) -> 1003.087904 | AN162: =Sigma_hMin(X162,Y162,AG162,AE162,AK162,AL162,AJ162,AI162,Z162,IF(L162=1,mu_redLead,mu_millScale)) -> 644.82143 | AO162: 358.2664743 | AP162: 0.6428364127 | AQ162: 133.781208 | AR162: =tau_n(N162,W162,U162,D162) -> 94.9276473 | AS162: =tau_hMax(X162,Z162,AH162,W162,U162) -> 249.262287 | AT162: =tau_hMin(X162,Y162,AS162,AE162,Z162,AI162,IF(L162=1,mu_redLead,mu_millScale),W162,U162) -> 183.9469448 | AU162: 65.31534222
A163: 151 | B163: Graf1932 | C163: R; S | D163: 1 | E163: 1 | F163: 10 | G163: 35 | I163: 8 | J163: 10 | K163: 50 | M163: 386 | N163: 67.689 | O163: 0.67 | P163: 1539200 | Q163: 1 | R163: P3T1 | T163: 151 | U163: 0.8 | V163: 0.5555555556 | W163: 0.2857142857 | X163: 205.1181818 | Y163: 137.4291818 | Z163: =IF(OR(X163>=1.6*D163*AD163,D163=1),calcLoadFraction(G163,F163,I163,J163,K163,D163,1),"Condition for spring model not fulfilled") -> 1 | AA163: =IF(L163>2,L163,IF(L163=2,1,sigma_cl0(I163+J163))) -> 136.0555365 | AB163: =Sigma_cl(AA163,U163,V163,X163) -> 118.1697989 | AC163: =Sigma_cl(AA163,U163,V163,Y163) -> 124.0720923 | AD163: =sigma_Slip(AB163,W163,U163,IF(L163=1,mu_redLead,mu_millScale)) -> 30.62741326 | AE163: =sigma_Slip(AC163,W163,U163,IF(L163=1,mu_redLead,mu_millScale)) -> 32.1571779 | AF163: =Sigma_p(AB163,V163) -> -25.24995703 | AG163: =Sigma_p(AC163,V163) -> -26.51113084 | AH163: =beta_1(X163,AD163,Z163) -> 0.8506840642 | AI163: =beta_1(Y163,AE163,Z163) -> 0.7660091003 | AJ163: =k_tHole(W163,U163) -> 2.364431487 | AK163: =K_t1Mu(Z163,AH163,D163,W163,U163,SIGN(X163),mu_millScale) -> 4.522030051 | AL163: =K_t1Mu(Z163,AI163,D163,W163,U163,SIGN(Y163),mu_millScale) -> 4.328934704 | AM163: =Sigma_hMax(AK163,X163,AF163) -> 902.3006251 | AN163: =Sigma_hMin(X163,Y163,AG163,AE163,AK163,AL163,AJ163,AI163,Z163,IF(L163=1,mu_redLead,mu_millScale)) -> 584.2500251 | AO163: 318.0505999 | AP163: 0.6475114933 | AQ163: 119.1378489 | AR163: =tau_n(N163,W163,U163,D163) -> 86.18431137 | AS163: =tau_hMax(X163,Z163,AH163,W163,U163) -> 222.1685463 | AT163: =tau_hMin(X163,Y163,AS163,AE163,Z163,AI163,IF(L163=1,mu_redLead,mu_millScale),W163,U163) -> 164.765257 | AU163: 57.40328925
A164: 152 | B164: Graf1932 | C164: R; S | D164: 1 | E164: 1 | F164: 10 | G164: 35 | I164: 8 | J164: 10 | K164: 50 | M164: 386 | N164: 65.727 | O164: 0.67 | P164: 2018600 | Q164: 0 | R164: P3T1 | T164: 152 | U164: 0.8 | V164: 0.5555555556 | W164: 0.2857142857 | X164: 199.1727273 | Y164: 133.4457273 | Z164: =IF(OR(X164>=1.6*D164*AD164,D164=1),calcLoadFraction(G164,F164,I164,J164,K164,D164,1),"Condition for spring model not fulfilled") -> 1 | AA164: =IF(L164>2,L164,IF(L164=2,1,sigma_cl0(I164+J164))) -> 136.0555365 | AB164: =Sigma_cl(AA164,U164,V164,X164) -> 118.6882261 | AC164: =Sigma_cl(AA164,U164,V164,Y164) -> 124.4194385 | AD164: =sigma_Slip(AB164,W164,U164,IF(L164=1,mu_redLead,mu_millScale)) -> 30.76177994 | AE164: =sigma_Slip(AC164,W164,U164,IF(L164=1,mu_redLead,mu_millScale)) -> 32.24720357 | AF164: =Sigma_p(AB164,V164) -> -25.36073207 | AG164: =Sigma_p(AC164,V164) -> -26.58535011 | AH164: =beta_1(X164,AD164,Z164) -> 0.8455522482 | AI164: =beta_1(Y164,AE164,Z164) -> 0.7583496734 | AJ164: =k_tHole(W164,U164) -> 2.364431487 | AK164: =K_t1Mu(Z164,AH164,D164,W164,U164,SIGN(X164),mu_millScale) -> 4.512406598 | AL164: =K_t1Mu(Z164,AI164,D164,W164,U164,SIGN(Y164),mu_millScale) -> 4.308080269 | AM164: =Sigma_hMax(AK164,X164,AF164) -> 873.3875966 | AN164: =Sigma_hMin(X164,Y164,AG164,AE164,AK164,AL164,AJ164,AI164,Z164,IF(L164=1,mu_redLead,mu_millScale)) -> 566.8291487 | AO164: 306.558448 | AP164: 0.6490006852 | AQ164: 114.9497984 | AR164: =tau_n(N164,W164,U164,D164) -> 83.68621539 | AS164: =tau_hMax(X164,Z164,AH164,W164,U164) -> 214.4274775 | AT164: =tau_hMin(X164,Y164,AS164,AE164,Z164,AI164,IF(L164=1,mu_redLead,mu_millScale),W164,U164) -> 159.2737857 | AU164: 55.15369173
A165: 153 | B165: Graf1932 | C165: R; S | D165: 1 | E165: 1 | F165: 10 | G165: 35 | I165: 8 | J165: 10 | K165: 50 | M165: 386 | N165: 195.219 | O165: 0.02 | P165: 45300 | Q165: 3 | R165: P3T1 | S165: Rivet may have yielded | T165: 153 | U165: 0.8 | V165: 0.5555555556 | W165: 0.2857142857 | X165: 199.2030612 | Y165: 3.984061224 | Z165: =IF(OR(X165>=1.6*D165*AD165,D165=1),calcLoadFraction(G165,F165,I165,J165,K165,D165,1),"Condition for spring model not fulfilled") -> 1 | AA165: =IF(L165>2,L165,IF(L165=2,1,sigma_cl0(I165+J165))) -> 136.0555365 | AB165: =Sigma_cl(AA165,U165,V165,X165) -> 118.685581 | AC165: =Sigma_cl(AA165,U165,V165,Y165) -> 135.7081374 | AD165: =sigma_Slip(AB165,W165,U165,IF(L165=1,mu_redLead,mu_millScale)) -> 30.76109439 | AE165: =sigma_Slip(AC165,W165,U165,IF(L165=1,mu_redLead,mu_millScale)) -> 35.1730243 | AF165: =Sigma_p(AB165,V165) -> -25.36016689 | AG165: =Sigma_p(AC165,V165) -> -28.99746526 | AH165: =beta_1(X165,AD165,Z165) -> 0.8455792085 | AI165: =beta_1(Y165,AE165,Z165) -> 0 | AJ165: =k_tHole(W165,U165) -> 2.364431487 | AK165: =K_t1Mu(Z165,AH165,D165,W165,U165,SIGN(X165),mu_millScale) -> 4.512457894 | AL165: =K_t1Mu(Z165,AI165,D165,W165,U165,SIGN(Y165),mu_millScale) -> 1.182215743 | AM165: =Sigma_hMax(AK165,X165,AF165) -> 873.5352593 | AN165: =Sigma_hMin(X165,Y165,AG165,AE165,AK165,AL165,AJ165,AI165,Z165,IF(L165=1,mu_redLead,mu_millScale)) -> 91.99537572 | AO165: 781.5398836 | AP165: 0.1053138665 | AQ165: 250.233994 | AR165: =tau_n(N165,W165,U165,D165) -> 248.5605502 | AS165: =tau_hMax(X165,Z165,AH165,W165,U165) -> 214.4669727 | AT165: =tau_hMin(X165,Y165,AS165,AE165,Z165,AI165,IF(L165=1,mu_redLead,mu_millScale),W165,U165) -> 43.6253383 | AU165: 170.8416344
A166: 154 | B166: Graf1932 | C166: R; S | D166: 1 | E166: 1 | F166: 10 | G166: 35 | I166: 8 | J166: 10 | K166: 50 | M166: 386 | N166: 165.789 | O166: 0.023 | P166: 161800 | Q166: 3 | R166: P3T1 | S166: Rivet may have yielded | T166: 154 | U166: 0.8 | V166: 0.5555555556 | W166: 0.2857142857 | X166: 169.691914 | Y166: 3.902914023 | Z166: =IF(OR(X166>=1.6*D166*AD166,D166=1),calcLoadFraction(G166,F166,I166,J166,K166,D166,1),"Condition for spring model not fulfilled") -> 1 | AA166: =IF(L166>2,L166,IF(L166=2,1,sigma_cl0(I166+J166))) -> 136.0555365 | AB166: =Sigma_cl(AA166,U166,V166,X166) -> 121.2588714 | AC166: =Sigma_cl(AA166,U166,V166,Y166) -> 135.7152132 | AD166: =sigma_Slip(AB166,W166,U166,IF(L166=1,mu_redLead,mu_millScale)) -> 31.42804337 | AE166: =sigma_Slip(AC166,W166,U166,IF(L166=1,mu_redLead,mu_millScale)) -> 35.17485822 | AF166: =Sigma_p(AB166,V166) -> -25.91001525 | AG166: =Sigma_p(AC166,V166) -> -28.99897719 | AH166: =beta_1(X166,AD166,Z166) -> 0.8147935124 | AI166: =beta_1(Y166,AE166,Z166) -> 0 | AJ166: =k_tHole(W166,U166) -> 2.364431487 | AK166: =K_t1Mu(Z166,AH166,D166,W166,U166,SIGN(X166),mu_millScale) -> 4.448915286 | AL166: =K_t1Mu(Z166,AI166,D166,W166,U166,SIGN(Y166),mu_millScale) -> 1.182215743 | AM166: =Sigma_hMax(AK166,X166,AF166) -> 729.0349349 | AN166: =Sigma_hMin(X166,Y166,AG166,AE166,AK166,AL166,AJ166,AI166,Z166,IF(L166=1,mu_redLead,mu_millScale)) -> 87.60448016 | AO166: 641.4304547 | AP166: 0.1201649962 | AQ166: 205.7566148 | AR166: =tau_n(N166,W166,U166,D166) -> 211.0891105 | AS166: =tau_hMax(X166,Z166,AH166,W166,U166) -> 176.0430274 | AT166: =tau_hMin(X166,Y166,AS166,AE166,Z166,AI166,IF(L166=1,mu_redLead,mu_millScale),W166,U166) -> 40.29272973 | AU166: 135.7502976
A167: 155 | B167: Graf1932 | C167: R; S | D167: 1 | E167: 1 | F167: 10 | G167: 35 | I167: 8 | J167: 10 | K167: 50 | M167: 386 | N167: 153.036 | O167: 0.025 | P167: 109700 | Q167: 3 | R167: P3T1 | S167: Rivet may have yielded | T167: 155 | U167: 0.8 | V167: 0.5555555556 | W167: 0.2857142857 | X167: 156.96 | Y167: 3.924 | Z167: =IF(OR(X167>=1.6*D167*AD167,D167=1),calcLoadFraction(G167,F167,I167,J167,K167,D167,1),"Condition for spring model not fulfilled") -> 1 | AA167: =IF(L167>2,L167,IF(L167=2,1,sigma_cl0(I167+J167))) -> 136.0555365 | AB167: =Sigma_cl(AA167,U167,V167,X167) -> 122.369059 | AC167: =Sigma_cl(AA167,U167,V167,Y167) -> 135.7133746 | AD167: =sigma_Slip(AB167,W167,U167,IF(L167=1,mu_redLead,mu_millScale)) -> 31.71578336 | AE167: =sigma_Slip(AC167,W167,U167,IF(L167=1,mu_redLead,mu_millScale)) -> 35.17438168 | AF167: =Sigma_p(AB167,V167) -> -26.14723484 | AG167: =Sigma_p(AC167,V167) -> -28.99858432 | AH167: =beta_1(X167,AD167,Z167) -> 0.7979371601 | AI167: =beta_1(Y167,AE167,Z167) -> 0 | AJ167: =k_tHole(W167,U167) -> 2.364431487 | AK167: =K_t1Mu(Z167,AH167,D167,W167,U167,SIGN(X167),mu_millScale) -> 4.410043585 | AL167: =K_t1Mu(Z167,AI167,D167,W167,U167,SIGN(Y167),mu_millScale) -> 1.182215743 | AM167: =Sigma_hMax(AK167,X167,AF167) -> 666.0532063 | AN167: =Sigma_hMin(X167,Y167,AG167,AE167,AK167,AL167,AJ167,AI167,Z167,IF(L167=1,mu_redLead,mu_millScale)) -> 85.41669034 | AO167: 580.636516 | AP167: 0.1282430435 | AQ167: 186.4487927 | AR167: =tau_n(N167,W167,U167,D167) -> 194.8514866 | AS167: =tau_hMax(X167,Z167,AH167,W167,U167) -> 159.4658891 | AT167: =tau_hMin(X167,Y167,AS167,AE167,Z167,AI167,IF(L167=1,mu_redLead,mu_millScale),W167,U167) -> 38.66166798 | AU167: 120.8042211
A168: 156 | B168: Graf1932 | C168: R; S | D168: 1 | E168: 1 | F168: 10 | G168: 35 | I168: 8 | J168: 10 | K168: 50 | M168: 386 | N168: 144.207 | O168: 0 | P168: 729300 | Q168: 1 | R168: P3T1 | T168: 156 | U168: 0.8 | V168: 0.5555555556 | W168: 0.2857142857 | X168: 144.207 | Y168: 0 | Z168: =IF(OR(X168>=1.6*D168*AD168,D168=1),calcLoadFraction(G168,F168,I168,J168,K168,D168,1),"Condition for spring model not fulfilled") -> 1 | AA168: =IF(L168>2,L168,IF(L168=2,1,sigma_cl0(I168+J168))) -> 136.0555365 | AB168: =Sigma_cl(AA168,U168,V168,X168) -> 123.4810853 | AC168: =Sigma_cl(AA168,U168,V168,Y168) -> 136.0555365 | AD168: =sigma_Slip(AB168,W168,U168,IF(L168=1,mu_redLead,mu_millScale)) -> 32.00399988 | AE168: =sigma_Slip(AC168,W168,U168,IF(L168=1,mu_redLead,mu_millScale)) -> 35.26306368 | AF168: =Sigma_p(AB168,V168) -> -26.38484729 | AG168: =Sigma_p(AC168,V168) -> -29.07169584 | AH168: =beta_1(X168,AD168,Z168) -> 0.7780690266 | AI168: =beta_1(Y168,AE168,Z168) -> 0 | AJ168: =k_tHole(W168,U168) -> 2.364431487 | AK168: =K_t1Mu(Z168,AH168,D168,W168,U168,SIGN(X168),mu_millScale) -> 4.360691465 | AL168: =K_t1Mu(Z168,AI168,D168,W168,U168,SIGN(Y168),mu_millScale) -> 1.182215743 | AM168: =Sigma_hMax(AK168,X168,AF168) -> 602.4573869 | AN168: =Sigma_hMin(X168,Y168,AG168,AE168,AK168,AL168,AJ168,AI168,Z168,IF(L168=1,mu_redLead,mu_millScale)) -> 68.38367464 | AO168: 534.0737122 | AP168: 0.113507903 | AQ168: 171.1747088 | AR168: =tau_n(N168,W168,U168,D168) -> 183.6100547 | AS168: =tau_hMax(X168,Z168,AH168,W168,U168) -> 142.8612965 | AT168: =tau_hMin(X168,Y168,AS168,AE168,Z168,AI168,IF(L168=1,mu_redLead,mu_millScale),W168,U168) -> 33.57194701 | AU168: 109.2893495
A169: 157 | B169: Graf1932 | C169: R; S | D169: 1 | E169: 1 | F169: 10 | G169: 35 | I169: 8 | J169: 10 | K169: 50 | M169: 386 | N169: 138.321 | O169: 0 | P169: 2237900 | Q169: 0 | R169: P3T1 | T169: 157 | U169: 0.8 | V169: 0.5555555556 | W169: 0.2857142857 | X169: 138.321 | Y169: 0 | Z169: =IF(OR(X169>=1.6*D169*AD169,D169=1),calcLoadFraction(G169,F169,I169,J169,K169,D169,1),"Condition for spring model not fulfilled") -> 1 | AA169: =IF(L169>2,L169,IF(L169=2,1,sigma_cl0(I169+J169))) -> 136.0555365 | AB169: =Sigma_cl(AA169,U169,V169,X169) -> 123.9943282 | AC169: =Sigma_cl(AA169,U169,V169,Y169) -> 136.0555365 | AD169: =sigma_Slip(AB169,W169,U169,IF(L169=1,mu_redLead,mu_millScale)) -> 32.1370229 | AE169: =sigma_Slip(AC169,W169,U169,IF(L169=1,mu_redLead,mu_millScale)) -> 35.26306368 | AF169: =Sigma_p(AB169,V169) -> -26.49451458 | AG169: =Sigma_p(AC169,V169) -> -29.07169584 | AH169: =beta_1(X169,AD169,Z169) -> 0.7676634575 | AI169: =beta_1(Y169,AE169,Z169) -> 0 | AJ169: =k_tHole(W169,U169) -> 2.364431487 | AK169: =K_t1Mu(Z169,AH169,D169,W169,U169,SIGN(X169),mu_millScale) -> 4.333369697 | AL169: =K_t1Mu(Z169,AI169,D169,W169,U169,SIGN(Y169),mu_millScale) -> 1.182215743 | AM169: =Sigma_hMax(AK169,X169,AF169) -> 572.9015153 | AN169: =Sigma_hMin(X169,Y169,AG169,AE169,AK169,AL169,AJ169,AI169,Z169,IF(L169=1,mu_redLead,mu_millScale)) -> 67.13859154 | AO169: 505.7629237 | AP169: 0.117190459 | AQ169: 162.1761971 | AR169: =tau_n(N169,W169,U169,D169) -> 176.1157667 | AS169: =tau_hMax(X169,Z169,AH169,W169,U169) -> 135.1976384 | AT169: =tau_hMin(X169,Y169,AS169,AE169,Z169,AI169,IF(L169=1,mu_redLead,mu_millScale),W169,U169) -> 32.72805338 | AU169: 102.469585
A170: 158 | B170: Graf1941 | C170: R; S | D170: 2 | E170: 2 | F170: 10 | G170: 39.25 | H170: 39.5 | I170: 8.5 | J170: 13 | K170: 70 | M170: 514 | N170: 353.16 | O170: -1 | P170: 99631 | Q170: 1 | R170: 73-77.2 | T170: 158 | U170: =I170/F170 -> 0.85 | V170: =F170/(J170+I170) -> 0.4651162791 | W170: =F170/G170 -> 0.2547770701 | X170: =N170/(1-O170) -> 176.58 | Y170: =X170*O170 -> -176.58 | Z170: =IF(OR(X170>=1.6*D170*AD170,D170=1),calcLoadFraction(G170,F170,I170,J170,K170,D170,1),"Condition for spring model not fulfilled") -> 0.5206385667 | AA170: =IF(L170>2,L170,IF(L170=2,1,sigma_cl0(I170+J170))) -> 151.6522834 | AB170: =Sigma_cl(AA170,U170,V170,X170) -> 137.054967 | AC170: =Sigma_cl(AA170,U170,V170,Y170) -> 166.2495998 | AD170: =sigma_Slip(AB170,W170,U170,IF(L170=1,mu_redLead,mu_millScale)) -> 28.57483959 | AE170: =sigma_Slip(AC170,W170,U170,IF(L170=1,mu_redLead,mu_millScale)) -> 34.66168173 | AF170: =Sigma_p(AB170,V170) -> -24.06192931 | AG170: =Sigma_p(AC170,V170) -> -29.18745819 | AH170: =beta_1(X170,AD170,Z170) -> 0.6891821493 | AI170: =beta_1(Y170,AE170,Z170) -> 0.6229735819 | AJ170: =k_tHole(W170,U170) -> 2.413864931 | AK170: =K_t1Mu(Z170,AH170,D170,W170,U170,SIGN(X170),mu_millScale) -> 3.311321248 | AL170: =K_t1Mu(Z170,AI170,D170,W170,U170,SIGN(Y170),mu_millScale) -> 0.5576220141 | AM170: =Sigma_hMax(AK170,X170,AF170) -> 560.6511766 | AN170: =Sigma_hMin(X170,Y170,AG170,AE170,AK170,AL170,AJ170,AI170,Z170,IF(L170=1,mu_redLead,mu_millScale)) -> -195.5143731 | AO170: =(AM170-AN170) -> 756.1655498 | AP170: =AN170/AM170 -> -0.3487273037 | AQ170: 233.1057318 | AR170: =tau_n(N170,W170,U170,D170) -> 279.490101 | AS170: =tau_hMax(X170,Z170,AH170,W170,U170) -> 100.2851865 | AT170: =tau_hMin(X170,Y170,AS170,AE170,Z170,AI170,IF(L170=1,mu_redLead,mu_millScale),W170,U170) -> -90.65095768 | AU170: 190.9361442
A171: 159 | B171: Graf1941 | C171: R; S | D171: 2 | E171: 2 | F171: 10 | G171: 39.25 | H171: 39.5 | I171: 8.5 | J171: 13 | K171: 70 | M171: 514 | N171: 294.3 | O171: -1 | P171: 376821 | Q171: 1 | R171: 75-76.1 | T171: 159 | U171: 0.85 | V171: 0.4651162791 | W171: 0.2547770701 | X171: 147.15 | Y171: -147.15 | Z171: =IF(OR(X171>=1.6*D171*AD171,D171=1),calcLoadFraction(G171,F171,I171,J171,K171,D171,1),"Condition for spring model not fulfilled") -> 0.5206385667 | AA171: =IF(L171>2,L171,IF(L171=2,1,sigma_cl0(I171+J171))) -> 151.6522834 | AB171: =Sigma_cl(AA171,U171,V171,X171) -> 139.4878531 | AC171: =Sigma_cl(AA171,U171,V171,Y171) -> 163.8167137 | AD171: =sigma_Slip(AB171,W171,U171,IF(L171=1,mu_redLead,mu_millScale)) -> 29.08207643 | AE171: =sigma_Slip(AC171,W171,U171,IF(L171=1,mu_redLead,mu_millScale)) -> 34.15444489 | AF171: =Sigma_p(AB171,V171) -> -24.48905672 | AG171: =Sigma_p(AC171,V171) -> -28.76033078 | AH171: =beta_1(X171,AD171,Z171) -> 0.6203977225 | AI171: =beta_1(Y171,AE171,Z171) -> 0.5541891551 | AJ171: =k_tHole(W171,U171) -> 2.413864931 | AK171: =K_t1Mu(Z171,AH171,D171,W171,U171,SIGN(X171),mu_millScale) -> 3.183122877 | AL171: =K_t1Mu(Z171,AI171,D171,W171,U171,SIGN(Y171),mu_millScale) -> 0.688950965 | AM171: =Sigma_hMax(AK171,X171,AF171) -> 443.9074747 | AN171: =Sigma_hMin(X171,Y171,AG171,AE171,AK171,AL171,AJ171,AI171,Z171,IF(L171=1,mu_redLead,mu_millScale)) -> -185.7526212 | AO171: 629.6600959 | AP171: -0.4184489603 | AQ171: 193.3812765 | AR171: =tau_n(N171,W171,U171,D171) -> 232.9084175 | AS171: =tau_hMax(X171,Z171,AH171,W171,U171) -> 75.23011317 | AT171: =tau_hMin(X171,Y171,AS171,AE171,Z171,AI171,IF(L171=1,mu_redLead,mu_millScale),W171,U171) -> -67.20158915 | AU171: 142.4317023
A172: 160 | B172: Graf1941 | C172: R; S | D172: 2 | E172: 2 | F172: 10 | G172: 39.25 | H172: 39.5 | I172: 8.5 | J172: 13 | K172: 70 | M172: 514 | N172: 274.68 | O172: -1 | P172: 274179 | Q172: 1 | R172: 73-77.3 | T172: 160 | U172: 0.85 | V172: 0.4651162791 | W172: 0.2547770701 | X172: 137.34 | Y172: -137.34 | Z172: =IF(OR(X172>=1.6*D172*AD172,D172=1),calcLoadFraction(G172,F172,I172,J172,K172,D172,1),"Condition for spring model not fulfilled") -> 0.5206385667 | AA172: =IF(L172>2,L172,IF(L172=2,1,sigma_cl0(I172+J172))) -> 151.6522834 | AB172: =Sigma_cl(AA172,U172,V172,X172) -> 140.2988151 | AC172: =Sigma_cl(AA172,U172,V172,Y172) -> 163.0057517 | AD172: =sigma_Slip(AB172,W172,U172,IF(L172=1,mu_redLead,mu_millScale)) -> 29.25115538 | AE172: =sigma_Slip(AC172,W172,U172,IF(L172=1,mu_redLead,mu_millScale)) -> 33.98536594 | AF172: =Sigma_p(AB172,V172) -> -24.63143252 | AG172: =Sigma_p(AC172,V172) -> -28.61795498 | AH172: =beta_1(X172,AD172,Z172) -> 0.5909186824 | AI172: =beta_1(Y172,AE172,Z172) -> 0.524710115 | AJ172: =k_tHole(W172,U172) -> 2.413864931 | AK172: =K_t1Mu(Z172,AH172,D172,W172,U172,SIGN(X172),mu_millScale) -> 3.12342444 | AL172: =K_t1Mu(Z172,AI172,D172,W172,U172,SIGN(Y172),mu_millScale) -> 0.7465123665 | AM172: =Sigma_hMax(AK172,X172,AF172) -> 404.3396801 | AN172: =Sigma_hMin(X172,Y172,AG172,AE172,AK172,AL172,AJ172,AI172,Z172,IF(L172=1,mu_redLead,mu_millScale)) -> -181.6023493 | AO172: 585.9420293 | AP172: -0.4491331378 | AQ172: 179.677783 | AR172: =tau_n(N172,W172,U172,D172) -> 217.3811897 | AS172: =tau_hMax(X172,Z172,AH172,W172,U172) -> 66.87842206 | AT172: =tau_hMin(X172,Y172,AS172,AE172,Z172,AI172,IF(L172=1,mu_redLead,mu_millScale),W172,U172) -> -59.38513297 | AU172: 126.263555
A173: 161 | B173: Graf1941 | C173: R; S | D173: 2 | E173: 2 | F173: 10 | G173: 39.25 | H173: 39.5 | I173: 8.5 | J173: 13 | K173: 70 | M173: 514 | N173: 274.68 | O173: -1 | P173: 257815 | Q173: 1 | R173: 75-76.3 | T173: 161 | U173: 0.85 | V173: 0.4651162791 | W173: 0.2547770701 | X173: 137.34 | Y173: -137.34 | Z173: =IF(OR(X173>=1.6*D173*AD173,D173=1),calcLoadFraction(G173,F173,I173,J173,K173,D173,1),"Condition for spring model not fulfilled") -> 0.5206385667 | AA173: =IF(L173>2,L173,IF(L173=2,1,sigma_cl0(I173+J173))) -> 151.6522834 | AB173: =Sigma_cl(AA173,U173,V173,X173) -> 140.2988151 | AC173: =Sigma_cl(AA173,U173,V173,Y173) -> 163.0057517 | AD173: =sigma_Slip(AB173,W173,U173,IF(L173=1,mu_redLead,mu_millScale)) -> 29.25115538 | AE173: =sigma_Slip(AC173,W173,U173,IF(L173=1,mu_redLead,mu_millScale)) -> 33.98536594 | AF173: =Sigma_p(AB173,V173) -> -24.63143252 | AG173: =Sigma_p(AC173,V173) -> -28.61795498 | AH173: =beta_1(X173,AD173,Z173) -> 0.5909186824 | AI173: =beta_1(Y173,AE173,Z173) -> 0.524710115 | AJ173: =k_tHole(W173,U173) -> 2.413864931 | AK173: =K_t1Mu(Z173,AH173,D173,W173,U173,SIGN(X173),mu_millScale) -> 3.12342444 | AL173: =K_t1Mu(Z173,AI173,D173,W173,U173,SIGN(Y173),mu_millScale) -> 0.7465123665 | AM173: =Sigma_hMax(AK173,X173,AF173) -> 404.3396801 | AN173: =Sigma_hMin(X173,Y173,AG173,AE173,AK173,AL173,AJ173,AI173,Z173,IF(L173=1,mu_redLead,mu_millScale)) -> -181.6023493 | AO173: 585.9420293 | AP173: -0.4491331378 | AQ173: 179.677783 | AR173: =tau_n(N173,W173,U173,D173) -> 217.3811897 | AS173: =tau_hMax(X173,Z173,AH173,W173,U173) -> 66.87842206 | AT173: =tau_hMin(X173,Y173,AS173,AE173,Z173,AI173,IF(L173=1,mu_redLead,mu_millScale),W173,U173) -> -59.38513297 | AU173: 126.263555
A174: 162 | B174: Graf1941 | C174: R; S | D174: 2 | E174: 2 | F174: 10 | G174: 39.25 | H174: 39.5 | I174: 8.5 | J174: 13 | K174: 70 | M174: 514 | N174: 206.01 | O174: 0.023 | P174: 481700 | Q174: 1 | R174: Abb3 | T174: 162 | U174: 0.85 | V174: 0.4651162791 | W174: 0.2547770701 | X174: 210.8597748 | Y174: 4.849774821 | Z174: =IF(OR(X174>=1.6*D174*AD174,D174=1),calcLoadFraction(G174,F174,I174,J174,K174,D174,1),"Condition for spring model not fulfilled") -> 0.5206385667 | AA174: =IF(L174>2,L174,IF(L174=2,1,sigma_cl0(I174+J174))) -> 151.6522834 | AB174: =Sigma_cl(AA174,U174,V174,X174) -> 134.2211652 | AC174: =Sigma_cl(AA174,U174,V174,Y174) -> 151.2513677 | AD174: =sigma_Slip(AB174,W174,U174,IF(L174=1,mu_redLead,mu_millScale)) -> 27.98401509 | AE174: =sigma_Slip(AC174,W174,U174,IF(L174=1,mu_redLead,mu_millScale)) -> 31.53467301 | AF174: =Sigma_p(AB174,V174) -> -23.56441551 | AG174: =Sigma_p(AC174,V174) -> -26.55430735 | AH174: =beta_1(X174,AD174,Z174) -> 0.745094062 | AI174: =beta_1(Y174,AE174,Z174) -> 0 | AJ174: =k_tHole(W174,U174) -> 2.413864931 | AK174: =K_t1Mu(Z174,AH174,D174,W174,U174,SIGN(X174),mu_millScale) -> 3.402120484 | AL174: =K_t1Mu(Z174,AI174,D174,W174,U174,SIGN(Y174),mu_millScale) -> 1.785489342 | AM174: =Sigma_hMax(AK174,X174,AF174) -> 693.8059437 | AN174: =Sigma_hMin(X174,Y174,AG174,AE174,AK174,AL174,AJ174,AI174,Z174,IF(L174=1,mu_redLead,mu_millScale)) -> 71.92242493 | AO174: 621.8835188 | AP174: 0.1036636045 | AQ174: 199.074608 | AR174: =tau_n(N174,W174,U174,D174) -> 163.0358923 | AS174: =tau_hMax(X174,Z174,AH174,W174,U174) -> 129.4690897 | AT174: =tau_hMin(X174,Y174,AS174,AE174,Z174,AI174,IF(L174=1,mu_redLead,mu_millScale),W174,U174) -> 36.49122927 | AU174: 92.97786047
A175: 163 | B175: Graf1941 | C175: R; S | D175: 2 | E175: 2 | F175: 10 | G175: 59.25 | H175: 59.5 | I175: 5 | J175: 8.5 | K175: 70 | M175: 529 | N175: 294.3 | O175: -1 | P175: 149221 | Q175: 1 | R175: 62-68.2 | T175: 163 | U175: 0.5 | V175: 0.7407407407 | W175: 0.1687763713 | X175: 147.15 | Y175: -147.15 | Z175: =IF(OR(X175>=1.6*D175*AD175,D175=1),calcLoadFraction(G175,F175,I175,J175,K175,D175,1),"Condition for spring model not fulfilled") -> 0.522164456 | AA175: =IF(L175>2,L175,IF(L175=2,1,sigma_cl0(I175+J175))) -> 108.944757 | AB175: =Sigma_cl(AA175,U175,V175,X175) -> 99.40016801 | AC175: =Sigma_cl(AA175,U175,V175,Y175) -> 118.489346 | AD175: =sigma_Slip(AB175,W175,U175,IF(L175=1,mu_redLead,mu_millScale)) -> 20.92399931 | AE175: =sigma_Slip(AC175,W175,U175,IF(L175=1,mu_redLead,mu_millScale)) -> 24.94232196 | AF175: =Sigma_p(AB175,V175) -> -28.62201465 | AG175: =Sigma_p(AC175,V175) -> -34.11869279 | AH175: =beta_1(X175,AD175,Z175) -> 0.7276815134 | AI175: =beta_1(Y175,AE175,Z175) -> 0.6753844585 | AJ175: =k_tHole(W175,U175) -> 2.574319603 | AK175: =K_t1Mu(Z175,AH175,D175,W175,U175,SIGN(X175),mu_millScale) -> 4.270574944 | AL175: =K_t1Mu(Z175,AI175,D175,W175,U175,SIGN(Y175),mu_millScale) -> 0 | AM175: =Sigma_hMax(AK175,X175,AF175) -> 599.7930884 | AN175: =Sigma_hMin(X175,Y175,AG175,AE175,AK175,AL175,AJ175,AI175,Z175,IF(L175=1,mu_redLead,mu_millScale)) -> -122.076866 | AO175: 721.8699544 | AP175: -0.2035316318 | AQ175: 224.576667 | AR175: =tau_n(N175,W175,U175,D175) -> 230.6835508 | AS175: =tau_hMax(X175,Z175,AH175,W175,U175) -> 87.65269536 | AT175: =tau_hMin(X175,Y175,AS175,AE175,Z175,AI175,IF(L175=1,mu_redLead,mu_millScale),W175,U175) -> -81.35326664 | AU175: 169.005962
A176: 164 | B176: Graf1941 | C176: R; S | D176: 2 | E176: 2 | F176: 10 | G176: 59.25 | H176: 59.5 | I176: 5 | J176: 8.5 | K176: 70 | M176: 529 | N176: 255.06 | O176: -1 | P176: 237405 | Q176: 1 | R176: 64-71.2 | T176: 164 | U176: 0.5 | V176: 0.7407407407 | W176: 0.1687763713 | X176: 127.53 | Y176: -127.53 | Z176: =IF(OR(X176>=1.6*D176*AD176,D176=1),calcLoadFraction(G176,F176,I176,J176,K176,D176,1),"Condition for spring model not fulfilled") -> 0.522164456 | AA176: =IF(L176>2,L176,IF(L176=2,1,sigma_cl0(I176+J176))) -> 108.944757 | AB176: =Sigma_cl(AA176,U176,V176,X176) -> 100.6727799 | AC176: =Sigma_cl(AA176,U176,V176,Y176) -> 117.2167341 | AD176: =sigma_Slip(AB176,W176,U176,IF(L176=1,mu_redLead,mu_millScale)) -> 21.19188749 | AE176: =sigma_Slip(AC176,W176,U176,IF(L176=1,mu_redLead,mu_millScale)) -> 24.67443378 | AF176: =Sigma_p(AB176,V176) -> -28.98845986 | AG176: =Sigma_p(AC176,V176) -> -33.75224758 | AH176: =beta_1(X176,AD176,Z176) -> 0.6817635112 | AI176: =beta_1(Y176,AE176,Z176) -> 0.6294664563 | AJ176: =k_tHole(W176,U176) -> 2.574319603 | AK176: =K_t1Mu(Z176,AH176,D176,W176,U176,SIGN(X176),mu_millScale) -> 4.15594496 | AL176: =K_t1Mu(Z176,AI176,D176,W176,U176,SIGN(Y176),mu_millScale) -> 0.0936585296 | AM176: =Sigma_hMax(AK176,X176,AF176) -> 501.0192009 | AN176: =Sigma_hMin(X176,Y176,AG176,AE176,AK176,AL176,AJ176,AI176,Z176,IF(L176=1,mu_redLead,mu_millScale)) -> -126.4460865 | AO176: 627.4652874 | AP176: -0.2523777258 | AQ176: 194.5635059 | AR176: =tau_n(N176,W176,U176,D176) -> 199.925744 | AS176: =tau_hMax(X176,Z176,AH176,W176,U176) -> 71.17210001 | AT176: =tau_hMin(X176,Y176,AS176,AE176,Z176,AI176,IF(L176=1,mu_redLead,mu_millScale),W176,U176) -> -65.71259511 | AU176: 136.8846951
A177: 165 | B177: Graf1941 | C177: R; S | D177: 2 | E177: 2 | F177: 10 | G177: 59.25 | H177: 59.5 | I177: 5 | J177: 8.5 | K177: 70 | M177: 529 | N177: 235.44 | O177: -1 | P177: 298991 | Q177: 1 | R177: 64-71.1 | T177: 165 | U177: 0.5 | V177: 0.7407407407 | W177: 0.1687763713 | X177: 117.72 | Y177: -117.72 | Z177: =IF(OR(X177>=1.6*D177*AD177,D177=1),calcLoadFraction(G177,F177,I177,J177,K177,D177,1),"Condition for spring model not fulfilled") -> 0.522164456 | AA177: =IF(L177>2,L177,IF(L177=2,1,sigma_cl0(I177+J177))) -> 108.944757 | AB177: =Sigma_cl(AA177,U177,V177,X177) -> 101.3090858 | AC177: =Sigma_cl(AA177,U177,V177,Y177) -> 116.5804282 | AD177: =sigma_Slip(AB177,W177,U177,IF(L177=1,mu_redLead,mu_millScale)) -> 21.32583158 | AE177: =sigma_Slip(AC177,W177,U177,IF(L177=1,mu_redLead,mu_millScale)) -> 24.54048969 | AF177: =Sigma_p(AB177,V177) -> -29.17168246 | AG177: =Sigma_p(AC177,V177) -> -33.56902497 | AH177: =beta_1(X177,AD177,Z177) -> 0.6530647599 | AI177: =beta_1(Y177,AE177,Z177) -> 0.6007677049 | AJ177: =k_tHole(W177,U177) -> 2.574319603 | AK177: =K_t1Mu(Z177,AH177,D177,W177,U177,SIGN(X177),mu_millScale) -> 4.07812071 | AL177: =K_t1Mu(Z177,AI177,D177,W177,U177,SIGN(Y177),mu_millScale) -> 0.1734464077 | AM177: =Sigma_hMax(AK177,X177,AF177) -> 450.9046876 | AN177: =Sigma_hMin(X177,Y177,AG177,AE177,AK177,AL177,AJ177,AI177,Z177,IF(L177=1,mu_redLead,mu_millScale)) -> -129.3992306 | AO177: 580.3039182 | AP177: -0.2869769026 | AQ177: 179.5455681 | AR177: =tau_n(N177,W177,U177,D177) -> 184.5468406 | AS177: =tau_hMax(X177,Z177,AH177,W177,U177) -> 62.93180233 | AT177: =tau_hMin(X177,Y177,AS177,AE177,Z177,AI177,IF(L177=1,mu_redLead,mu_millScale),W177,U177) -> -57.89225935 | AU177: 120.8240617
A178: 166 | B178: Graf1941 | C178: R; S | D178: 2 | E178: 2 | F178: 10 | G178: 59.25 | H178: 59.5 | I178: 5 | J178: 8.5 | K178: 70 | M178: 529 | N178: 167.751 | O178: 0.028 | P178: 563600 | Q178: 1 | R178: Abb4 | T178: 166 | U178: 0.5 | V178: 0.7407407407 | W178: 0.1687763713 | X178: 172.5833333 | Y178: 4.832333333 | Z178: =IF(OR(X178>=1.6*D178*AD178,D178=1),calcLoadFraction(G178,F178,I178,J178,K178,D178,1),"Condition for spring model not fulfilled") -> 0.522164456 | AA178: =IF(L178>2,L178,IF(L178=2,1,sigma_cl0(I178+J178))) -> 108.944757 | AB178: =Sigma_cl(AA178,U178,V178,X178) -> 97.75048597 | AC178: =Sigma_cl(AA178,U178,V178,Y178) -> 108.6313174 | AD178: =sigma_Slip(AB178,W178,U178,IF(L178=1,mu_redLead,mu_millScale)) -> 20.57673686 | AE178: =sigma_Slip(AC178,W178,U178,IF(L178=1,mu_redLead,mu_millScale)) -> 22.86718077 | AF178: =Sigma_p(AB178,V178) -> -28.14699308 | AG178: =Sigma_p(AC178,V178) -> -31.28009962 | AH178: =beta_1(X178,AD178,Z178) -> 0.771666126 | AI178: =beta_1(Y178,AE178,Z178) -> 0 | AJ178: =k_tHole(W178,U178) -> 2.574319603 | AK178: =K_t1Mu(Z178,AH178,D178,W178,U178,SIGN(X178),mu_millScale) -> 4.367691494 | AL178: =K_t1Mu(Z178,AI178,D178,W178,U178,SIGN(Y178),mu_millScale) -> 1.902210506 | AM178: =Sigma_hMax(AK178,X178,AF178) -> 725.6437639 | AN178: =Sigma_hMin(X178,Y178,AG178,AE178,AK178,AL178,AJ178,AI178,Z178,IF(L178=1,mu_redLead,mu_millScale)) -> 73.97872919 | AO178: 651.6650347 | AP178: 0.1019491007 | AQ178: 208.5642113 | AR178: =tau_n(N178,W178,U178,D178) -> 131.489624 | AS178: =tau_hMax(X178,Z178,AH178,W178,U178) -> 109.0164301 | AT178: =tau_hMin(X178,Y178,AS178,AE178,Z178,AI178,IF(L178=1,mu_redLead,mu_millScale),W178,U178) -> 28.87110229 | AU178: 80.14532779
A179: 167 | B179: Graf1941 | C179: R; S | D179: 2 | E179: 2 | F179: 10 | G179: 48 | I179: 5 | J179: 6.5 | K179: 70 | M179: 538 | N179: 313.92 | O179: -1 | P179: 220300 | Q179: 1 | R179: 78-79.2 | T179: 167 | U179: 0.5 | V179: 0.8695652174 | W179: 0.2083333333 | X179: 156.96 | Y179: -156.96 | Z179: =IF(OR(X179>=1.6*D179*AD179,D179=1),calcLoadFraction(G179,F179,I179,J179,K179,D179,1),"Condition for spring model not fulfilled") -> 0.514024605 | AA179: =IF(L179>2,L179,IF(L179=2,1,sigma_cl0(I179+J179))) -> 93.34026365 | AB179: =Sigma_cl(AA179,U179,V179,X179) -> 82.17197418 | AC179: =Sigma_cl(AA179,U179,V179,Y179) -> 104.5085531 | AD179: =sigma_Slip(AB179,W179,U179,IF(L179=1,mu_redLead,mu_millScale)) -> 22.41836511 | AE179: =sigma_Slip(AC179,W179,U179,IF(L179=1,mu_redLead,mu_millScale)) -> 28.51228687 | AF179: =Sigma_p(AB179,V179) -> -27.64762986 | AG179: =Sigma_p(AC179,V179) -> -35.1630081 | AH179: =beta_1(X179,AD179,Z179) -> 0.7221367956 | AI179: =beta_1(Y179,AE179,Z179) -> 0.6466060145 | AJ179: =k_tHole(W179,U179) -> 2.496166088 | AK179: =K_t1Mu(Z179,AH179,D179,W179,U179,SIGN(X179),mu_millScale) -> 3.730449449 | AL179: =K_t1Mu(Z179,AI179,D179,W179,U179,SIGN(Y179),mu_millScale) -> 0.3609026724 | AM179: =Sigma_hMax(AK179,X179,AF179) -> 557.8837157 | AN179: =Sigma_hMin(X179,Y179,AG179,AE179,AK179,AL179,AJ179,AI179,Z179,IF(L179=1,mu_redLead,mu_millScale)) -> -166.674177 | AO179: 724.5578927 | AP179: -0.2987615023 | AQ179: 224.0159731 | AR179: =tau_n(N179,W179,U179,D179) -> 189.8552946 | AS179: =tau_hMax(X179,Z179,AH179,W179,U179) -> 70.47354134 | AT179: =tau_hMin(X179,Y179,AS179,AE179,Z179,AI179,IF(L179=1,mu_redLead,mu_millScale),W179,U179) -> -63.10247029 | AU179: 133.5760116
A180: 168 | B180: Graf1941 | C180: R; S | D180: 2 | E180: 2 | F180: 10 | G180: 48 | I180: 5 | J180: 6.5 | K180: 70 | M180: 538 | N180: 274.68 | O180: -1 | P180: 112300 | Q180: 1 | R180: 82-83.1 | T180: 168 | U180: 0.5 | V180: 0.8695652174 | W180: 0.2083333333 | X180: 137.34 | Y180: -137.34 | Z180: =IF(OR(X180>=1.6*D180*AD180,D180=1),calcLoadFraction(G180,F180,I180,J180,K180,D180,1),"Condition for spring model not fulfilled") -> 0.514024605 | AA180: =IF(L180>2,L180,IF(L180=2,1,sigma_cl0(I180+J180))) -> 93.34026365 | AB180: =Sigma_cl(AA180,U180,V180,X180) -> 83.56801036 | AC180: =Sigma_cl(AA180,U180,V180,Y180) -> 103.1125169 | AD180: =sigma_Slip(AB180,W180,U180,IF(L180=1,mu_redLead,mu_millScale)) -> 22.79923522 | AE180: =sigma_Slip(AC180,W180,U180,IF(L180=1,mu_redLead,mu_millScale)) -> 28.13141676 | AF180: =Sigma_p(AB180,V180) -> -28.117341 | AG180: =Sigma_p(AC180,V180) -> -34.69329696 | AH180: =beta_1(X180,AD180,Z180) -> 0.6770469963 | AI180: =beta_1(Y180,AE180,Z180) -> 0.6015162152 | AJ180: =k_tHole(W180,U180) -> 2.496166088 | AK180: =K_t1Mu(Z180,AH180,D180,W180,U180,SIGN(X180),mu_millScale) -> 3.639688655 | AL180: =K_t1Mu(Z180,AI180,D180,W180,U180,SIGN(Y180),mu_millScale) -> 0.4607467978 | AM180: =Sigma_hMax(AK180,X180,AF180) -> 471.7574989 | AN180: =Sigma_hMin(X180,Y180,AG180,AE180,AK180,AL180,AJ180,AI180,Z180,IF(L180=1,mu_redLead,mu_millScale)) -> -164.7069394 | AO180: 636.4644383 | AP180: -0.3491347563 | AQ180: 196.200552 | AR180: =tau_n(N180,W180,U180,D180) -> 166.1233828 | AS180: =tau_hMax(X180,Z180,AH180,W180,U180) -> 57.8140628 | AT180: =tau_hMin(X180,Y180,AS180,AE180,Z180,AI180,IF(L180=1,mu_redLead,mu_millScale),W180,U180) -> -51.36437563 | AU180: 109.1784384
A181: 169 | B181: Graf1941 | C181: R; S | D181: 2 | E181: 2 | F181: 10 | G181: 48 | I181: 5 | J181: 6.5 | K181: 70 | M181: 538 | N181: 235.44 | O181: -1 | P181: 337500 | Q181: 1 | R181: 82-82.3 | T181: 169 | U181: 0.5 | V181: 0.8695652174 | W181: 0.2083333333 | X181: 117.72 | Y181: -117.72 | Z181: =IF(OR(X181>=1.6*D181*AD181,D181=1),calcLoadFraction(G181,F181,I181,J181,K181,D181,1),"Condition for spring model not fulfilled") -> 0.514024605 | AA181: =IF(L181>2,L181,IF(L181=2,1,sigma_cl0(I181+J181))) -> 93.34026365 | AB181: =Sigma_cl(AA181,U181,V181,X181) -> 84.96404655 | AC181: =Sigma_cl(AA181,U181,V181,Y181) -> 101.7164807 | AD181: =sigma_Slip(AB181,W181,U181,IF(L181=1,mu_redLead,mu_millScale)) -> 23.18010533 | AE181: =sigma_Slip(AC181,W181,U181,IF(L181=1,mu_redLead,mu_millScale)) -> 27.75054665 | AF181: =Sigma_p(AB181,V181) -> -28.58705214 | AG181: =Sigma_p(AC181,V181) -> -34.22358582 | AH181: =beta_1(X181,AD181,Z181) -> 0.616927264 | AI181: =beta_1(Y181,AE181,Z181) -> 0.5413964828 | AJ181: =k_tHole(W181,U181) -> 2.496166088 | AK181: =K_t1Mu(Z181,AH181,D181,W181,U181,SIGN(X181),mu_millScale) -> 3.504769336 | AL181: =K_t1Mu(Z181,AI181,D181,W181,U181,SIGN(Y181),mu_millScale) -> 0.5970760728 | AM181: =Sigma_hMax(AK181,X181,AF181) -> 383.9943941 | AN181: =Sigma_hMin(X181,Y181,AG181,AE181,AK181,AL181,AJ181,AI181,Z181,IF(L181=1,mu_redLead,mu_millScale)) -> -160.7816467 | AO181: 544.7760408 | AP181: -0.4187083176 | AQ181: 167.3094545 | AR181: =tau_n(N181,W181,U181,D181) -> 142.391471 | AS181: =tau_hMax(X181,Z181,AH181,W181,U181) -> 45.15458425 | AT181: =tau_hMin(X181,Y181,AS181,AE181,Z181,AI181,IF(L181=1,mu_redLead,mu_millScale),W181,U181) -> -39.62628097 | AU181: 84.78086522
A182: 170 | B182: Graf1941 | C182: R; S | D182: 2 | E182: 2 | F182: 10 | G182: 48 | I182: 5 | J182: 6.5 | K182: 70 | M182: 538 | N182: 225.63 | O182: 0.021 | P182: 286000 | Q182: 1 | R182: 82-83.2(R0) | T182: 170 | U182: 0.5 | V182: 0.8695652174 | W182: 0.2083333333 | X182: 230.4698672 | Y182: 4.839867211 | Z182: =IF(OR(X182>=1.6*D182*AD182,D182=1),calcLoadFraction(G182,F182,I182,J182,K182,D182,1),"Condition for spring model not fulfilled") -> 0.514024605 | AA182: =IF(L182>2,L182,IF(L182=2,1,sigma_cl0(I182+J182))) -> 93.34026365 | AB182: =Sigma_cl(AA182,U182,V182,X182) -> 76.94147293 | AC182: =Sigma_cl(AA182,U182,V182,Y182) -> 92.99588904 | AD182: =sigma_Slip(AB182,W182,U182,IF(L182=1,mu_redLead,mu_millScale)) -> 20.99136657 | AE182: =sigma_Slip(AC182,W182,U182,IF(L182=1,mu_redLead,mu_millScale)) -> 25.37137284 | AF182: =Sigma_p(AB182,V182) -> -25.88777239 | AG182: =Sigma_p(AC182,V182) -> -31.2894505 | AH182: =beta_1(X182,AD182,Z182) -> 0.8228085944 | AI182: =beta_1(Y182,AE182,Z182) -> 0 | AJ182: =k_tHole(W182,U182) -> 2.496166088 | AK182: =K_t1Mu(Z182,AH182,D182,W182,U182,SIGN(X182),mu_millScale) -> 3.894295762 | AL182: =K_t1Mu(Z182,AI182,D182,W182,U182,SIGN(Y182),mu_millScale) -> 1.854620694 | AM182: =Sigma_hMax(AK182,X182,AF182) -> 871.6300547 | AN182: =Sigma_hMin(X182,Y182,AG182,AE182,AK182,AL182,AJ182,AI182,Z182,IF(L182=1,mu_redLead,mu_millScale)) -> 71.28155166 | AO182: 800.348503 | AP182: 0.08177959362 | AQ182: 255.530588 | AR182: =tau_n(N182,W182,U182,D182) -> 136.458493 | AS182: =tau_hMax(X182,Z182,AH182,W182,U182) -> 117.90456 | AT182: =tau_hMin(X182,Y182,AS182,AE182,Z182,AI182,IF(L182=1,mu_redLead,mu_millScale),W182,U182) -> 27.35542321 | AU182: 90.54913682
A183: 171 | B183: Graf1941 | C183: R; S | D183: 2 | E183: 2 | F183: 10 | G183: 48 | I183: 5 | J183: 6.5 | K183: 70 | M183: 538 | N183: 186.39 | O183: 0.026 | P183: 1426000 | Q183: 1 | R183: 78-79.1(R0) | T183: 171 | U183: 0.5 | V183: 0.8695652174 | W183: 0.2083333333 | X183: 191.3655031 | Y183: 4.97550308 | Z183: =IF(OR(X183>=1.6*D183*AD183,D183=1),calcLoadFraction(G183,F183,I183,J183,K183,D183,1),"Condition for spring model not fulfilled") -> 0.514024605 | AA183: =IF(L183>2,L183,IF(L183=2,1,sigma_cl0(I183+J183))) -> 93.34026365 | AB183: =Sigma_cl(AA183,U183,V183,X183) -> 79.7238943 | AC183: =Sigma_cl(AA183,U183,V183,Y183) -> 92.98623805 | AD183: =sigma_Slip(AB183,W183,U183,IF(L183=1,mu_redLead,mu_millScale)) -> 21.75047379 | AE183: =sigma_Slip(AC183,W183,U183,IF(L183=1,mu_redLead,mu_millScale)) -> 25.36873983 | AF183: =Sigma_p(AB183,V183) -> -26.82394749 | AG183: =Sigma_p(AC183,V183) -> -31.28620332 | AH183: =beta_1(X183,AD183,Z183) -> 0.7788834946 | AI183: =beta_1(Y183,AE183,Z183) -> 0 | AJ183: =k_tHole(W183,U183) -> 2.496166088 | AK183: =K_t1Mu(Z183,AH183,D183,W183,U183,SIGN(X183),mu_millScale) -> 3.829945423 | AL183: =K_t1Mu(Z183,AI183,D183,W183,U183,SIGN(Y183),mu_millScale) -> 1.854620694 | AM183: =Sigma_hMax(AK183,X183,AF183) -> 706.0954852 | AN183: =Sigma_hMin(X183,Y183,AG183,AE183,AK183,AL183,AJ183,AI183,Z183,IF(L183=1,mu_redLead,mu_millScale)) -> 66.82340998 | AO183: 639.2720752 | AP183: 0.09463792275 | AQ183: 204.4159545 | AR183: =tau_n(N183,W183,U183,D183) -> 112.7265812 | AS183: =tau_hMax(X183,Z183,AH183,W183,U183) -> 92.67311973 | AT183: =tau_hMin(X183,Y183,AS183,AE183,Z183,AI183,IF(L183=1,mu_redLead,mu_millScale),W183,U183) -> 24.63689281 | AU183: 68.03622692
A184: 172 | B184: Graf1941 | C184: R; S | D184: 2 | E184: 2 | F184: 10 | G184: 48 | I184: 8.5 | J184: 13 | K184: 70 | M184: 562 | N184: 274.68 | O184: -1 | P184: 105900 | Q184: 1 & 3 | R184: 88-89.4 | S184: Failed in ply and rivet | T184: 172 | U184: 0.85 | V184: 0.4651162791 | W184: 0.2083333333 | X184: 137.34 | Y184: -137.34 | Z184: =IF(OR(X184>=1.6*D184*AD184,D184=1),calcLoadFraction(G184,F184,I184,J184,K184,D184,1),"Condition for spring model not fulfilled") -> 0.5172059348 | AA184: =IF(L184>2,L184,IF(L184=2,1,sigma_cl0(I184+J184))) -> 151.6522834 | AB184: =Sigma_cl(AA184,U184,V184,X184) -> 140.2988151 | AC184: =Sigma_cl(AA184,U184,V184,Y184) -> 163.0057517 | AD184: =sigma_Slip(AB184,W184,U184,IF(L184=1,mu_redLead,mu_millScale)) -> 22.51569197 | AE184: =sigma_Slip(AC184,W184,U184,IF(L184=1,mu_redLead,mu_millScale)) -> 26.15978826 | AF184: =Sigma_p(AB184,V184) -> -24.63143252 | AG184: =Sigma_p(AC184,V184) -> -28.61795498 | AH184: =beta_1(X184,AD184,Z184) -> 0.6830251858 | AI184: =beta_1(Y184,AE184,Z184) -> 0.6317237759 | AJ184: =k_tHole(W184,U184) -> 2.496166088 | AK184: =K_t1Mu(Z184,AH184,D184,W184,U184,SIGN(X184),mu_millScale) -> 3.696871428 | AL184: =K_t1Mu(Z184,AI184,D184,W184,U184,SIGN(Y184),mu_millScale) -> 0.3521201064 | AM184: =Sigma_hMax(AK184,X184,AF184) -> 483.0968894 | AN184: =Sigma_hMin(X184,Y184,AG184,AE184,AK184,AL184,AJ184,AI184,Z184,IF(L184=1,mu_redLead,mu_millScale)) -> -144.811112 | AO184: 627.9080015 | AP184: -0.2997558361 | AQ184: 194.1224336 | AR184: =tau_n(N184,W184,U184,D184) -> 282.4097507 | AS184: =tau_hMax(X184,Z184,AH184,W184,U184) -> 99.76539014 | AT184: =tau_hMin(X184,Y184,AS184,AE184,Z184,AI184,IF(L184=1,mu_redLead,mu_millScale),W184,U184) -> -92.27210105 | AU184: 192.0374912
A185: 173 | B185: Graf1941 | C185: R; S | D185: 2 | E185: 2 | F185: 10 | G185: 48 | I185: 8.5 | J185: 13 | K185: 70 | M185: 562 | N185: 255.06 | O185: -1 | P185: 345500 | Q185: 1 & 3 | R185: 88-89.1 | S185: Failed in ply and rivet | T185: 173 | U185: 0.85 | V185: 0.4651162791 | W185: 0.2083333333 | X185: 127.53 | Y185: -127.53 | Z185: =IF(OR(X185>=1.6*D185*AD185,D185=1),calcLoadFraction(G185,F185,I185,J185,K185,D185,1),"Condition for spring model not fulfilled") -> 0.5172059348 | AA185: =IF(L185>2,L185,IF(L185=2,1,sigma_cl0(I185+J185))) -> 151.6522834 | AB185: =Sigma_cl(AA185,U185,V185,X185) -> 141.1097771 | AC185: =Sigma_cl(AA185,U185,V185,Y185) -> 162.1947897 | AD185: =sigma_Slip(AB185,W185,U185,IF(L185=1,mu_redLead,mu_millScale)) -> 22.64583827 | AE185: =sigma_Slip(AC185,W185,U185,IF(L185=1,mu_redLead,mu_millScale)) -> 26.02964196 | AF185: =Sigma_p(AB185,V185) -> -24.77380832 | AG185: =Sigma_p(AC185,V185) -> -28.47557918 | AH185: =beta_1(X185,AD185,Z185) -> 0.6566693767 | AI185: =beta_1(Y185,AE185,Z185) -> 0.6053679668 | AJ185: =k_tHole(W185,U185) -> 2.496166088 | AK185: =K_t1Mu(Z185,AH185,D185,W185,U185,SIGN(X185),mu_millScale) -> 3.638694606 | AL185: =K_t1Mu(Z185,AI185,D185,W185,U185,SIGN(Y185),mu_millScale) -> 0.4121976233 | AM185: =Sigma_hMax(AK185,X185,AF185) -> 439.2689147 | AN185: =Sigma_hMin(X185,Y185,AG185,AE185,AK185,AL185,AJ185,AI185,Z185,IF(L185=1,mu_redLead,mu_millScale)) -> -144.575614 | AO185: 583.8445287 | AP185: -0.3291278057 | AQ185: 180.1857492 | AR185: =tau_n(N185,W185,U185,D185) -> 262.2376257 | AS185: =tau_hMax(X185,Z185,AH185,W185,U185) -> 89.06462988 | AT185: =tau_hMin(X185,Y185,AS185,AE185,Z185,AI185,IF(L185=1,mu_redLead,mu_millScale),W185,U185) -> -82.10657573 | AU185: 171.1712056
A186: 174 | B186: Graf1941 | C186: R; S | D186: 2 | E186: 2 | F186: 10 | G186: 48 | I186: 8.5 | J186: 13 | K186: 70 | M186: 562 | N186: 235.44 | O186: -1 | P186: 594100 | Q186: 1 | R186: 84-87.1 | T186: 174 | U186: 0.85 | V186: 0.4651162791 | W186: 0.2083333333 | X186: 117.72 | Y186: -117.72 | Z186: =IF(OR(X186>=1.6*D186*AD186,D186=1),calcLoadFraction(G186,F186,I186,J186,K186,D186,1),"Condition for spring model not fulfilled") -> 0.5172059348 | AA186: =IF(L186>2,L186,IF(L186=2,1,sigma_cl0(I186+J186))) -> 151.6522834 | AB186: =Sigma_cl(AA186,U186,V186,X186) -> 141.9207391 | AC186: =Sigma_cl(AA186,U186,V186,Y186) -> 161.3838277 | AD186: =sigma_Slip(AB186,W186,U186,IF(L186=1,mu_redLead,mu_millScale)) -> 22.77598456 | AE186: =sigma_Slip(AC186,W186,U186,IF(L186=1,mu_redLead,mu_millScale)) -> 25.89949567 | AF186: =Sigma_p(AB186,V186) -> -24.91618413 | AG186: =Sigma_p(AC186,V186) -> -28.33320338 | AH186: =beta_1(X186,AD186,Z186) -> 0.6259209326 | AI186: =beta_1(Y186,AE186,Z186) -> 0.5746195227 | AJ186: =k_tHole(W186,U186) -> 2.496166088 | AK186: =K_t1Mu(Z186,AH186,D186,W186,U186,SIGN(X186),mu_millScale) -> 3.567054347 | AL186: =K_t1Mu(Z186,AI186,D186,W186,U186,SIGN(Y186),mu_millScale) -> 0.4832080859 | AM186: =Sigma_hMax(AK186,X186,AF186) -> 394.9974536 | AN186: =Sigma_hMin(X186,Y186,AG186,AE186,AK186,AL186,AJ186,AI186,Z186,IF(L186=1,mu_redLead,mu_millScale)) -> -143.7844319 | AO186: 538.7818855 | AP186: -0.3640135667 | AQ186: 165.9504564 | AR186: =tau_n(N186,W186,U186,D186) -> 242.0655006 | AS186: =tau_hMax(X186,Z186,AH186,W186,U186) -> 78.36386962 | AT186: =tau_hMin(X186,Y186,AS186,AE186,Z186,AI186,IF(L186=1,mu_redLead,mu_millScale),W186,U186) -> -71.9410504 | AU186: 150.30492
A187: 175 | B187: Graf1941 | C187: R; S | D187: 2 | E187: 2 | F187: 10 | G187: 48 | I187: 8.5 | J187: 13 | K187: 70 | M187: 562 | N187: 186.39 | O187: 0.026 | P187: 317000 | Q187: 1 | R187: 84-87.2 | T187: 175 | U187: 0.85 | V187: 0.4651162791 | W187: 0.2083333333 | X187: 191.3655031 | Y187: 4.97550308 | Z187: =IF(OR(X187>=1.6*D187*AD187,D187=1),calcLoadFraction(G187,F187,I187,J187,K187,D187,1),"Condition for spring model not fulfilled") -> 0.5172059348 | AA187: =IF(L187>2,L187,IF(L187=2,1,sigma_cl0(I187+J187))) -> 151.6522834 | AB187: =Sigma_cl(AA187,U187,V187,X187) -> 135.8326957 | AC187: =Sigma_cl(AA187,U187,V187,Y187) -> 151.2409741 | AD187: =sigma_Slip(AB187,W187,U187,IF(L187=1,mu_redLead,mu_millScale)) -> 21.798952 | AE187: =sigma_Slip(AC187,W187,U187,IF(L187=1,mu_redLead,mu_millScale)) -> 24.27173162 | AF187: =Sigma_p(AB187,V187) -> -23.84734237 | AG187: =Sigma_p(AC187,V187) -> -26.55248262 | AH187: =beta_1(X187,AD187,Z187) -> 0.7797537797 | AI187: =beta_1(Y187,AE187,Z187) -> 0 | AJ187: =k_tHole(W187,U187) -> 2.496166088 | AK187: =K_t1Mu(Z187,AH187,D187,W187,U187,SIGN(X187),mu_millScale) -> 3.880772547 | AL187: =K_t1Mu(Z187,AI187,D187,W187,U187,SIGN(Y187),mu_millScale) -> 1.85065013 | AM187: =Sigma_hMax(AK187,X187,AF187) -> 718.7986484 | AN187: =Sigma_hMin(X187,Y187,AG187,AE187,AK187,AL187,AJ187,AI187,Z187,IF(L187=1,mu_redLead,mu_millScale)) -> 70.23131974 | AO187: 648.5673287 | AP187: 0.09770652726 | AQ187: 207.4653357 | AR187: =tau_n(N187,W187,U187,D187) -> 191.635188 | AS187: =tau_hMax(X187,Z187,AH187,W187,U187) -> 158.6964764 | AT187: =tau_hMin(X187,Y187,AS187,AE187,Z187,AI187,IF(L187=1,mu_redLead,mu_millScale),W187,U187) -> 40.87575094 | AU187: 117.8207255
A188: 176 | B188: Graf1941 | C188: R; S | D188: 2 | E188: 2 | F188: 10 | G188: 48 | I188: 8.5 | J188: 13 | K188: 70 | M188: 562 | N188: 166.77 | O188: 0.029 | P188: 965300 | Q188: 1 | R188: 88-89.3 | T188: 176 | U188: 0.85 | V188: 0.4651162791 | W188: 0.2083333333 | X188: 171.7507724 | Y188: 4.9807724 | Z188: =IF(OR(X188>=1.6*D188*AD188,D188=1),calcLoadFraction(G188,F188,I188,J188,K188,D188,1),"Condition for spring model not fulfilled") -> 0.5172059348 | AA188: =IF(L188>2,L188,IF(L188=2,1,sigma_cl0(I188+J188))) -> 151.6522834 | AB188: =Sigma_cl(AA188,U188,V188,X188) -> 137.4541841 | AC188: =Sigma_cl(AA188,U188,V188,Y188) -> 151.2405385 | AD188: =sigma_Slip(AB188,W188,U188,IF(L188=1,mu_redLead,mu_millScale)) -> 22.05917469 | AE188: =sigma_Slip(AC188,W188,U188,IF(L188=1,mu_redLead,mu_millScale)) -> 24.27166172 | AF188: =Sigma_p(AB188,V188) -> -24.1320175 | AG188: =Sigma_p(AC188,V188) -> -26.55240614 | AH188: =beta_1(X188,AD188,Z188) -> 0.7516712163 | AI188: =beta_1(Y188,AE188,Z188) -> 0 | AJ188: =k_tHole(W188,U188) -> 2.496166088 | AK188: =K_t1Mu(Z188,AH188,D188,W188,U188,SIGN(X188),mu_millScale) -> 3.83258372 | AL188: =K_t1Mu(Z188,AI188,D188,W188,U188,SIGN(Y188),mu_millScale) -> 1.85065013 | AM188: =Sigma_hMax(AK188,X188,AF188) -> 634.1171966 | AN188: =Sigma_hMin(X188,Y188,AG188,AE188,AK188,AL188,AJ188,AI188,Z188,IF(L188=1,mu_redLead,mu_millScale)) -> 67.05980854 | AO188: 567.0573881 | AP188: 0.1057530199 | AQ188: 181.5706864 | AR188: =tau_n(N188,W188,U188,D188) -> 171.4630629 | AS188: =tau_hMax(X188,Z188,AH188,W188,U188) -> 137.3007037 | AT188: =tau_hMin(X188,Y188,AS188,AE188,Z188,AI188,IF(L188=1,mu_redLead,mu_millScale),W188,U188) -> 38.17785928 | AU188: 99.12284441
A189: 177 | B189: Graf1941 | C189: R; S | D189: 2 | E189: 2 | F189: 10 | G189: 48 | I189: 6.5 | J189: 10.5 | K189: 70 | N189: 294.3 | O189: -1 | P189: 245200 | Q189: 1 | R189: 4-5.1 | S189: Grade St52 | T189: 177 | U189: 0.65 | V189: 0.5882352941 | W189: 0.2083333333 | X189: 147.15 | Y189: -147.15 | Z189: =IF(OR(X189>=1.6*D189*AD189,D189=1),calcLoadFraction(G189,F189,I189,J189,K189,D189,1),"Condition for spring model not fulfilled") -> 0.5223625882 | AA189: =IF(L189>2,L189,IF(L189=2,1,sigma_cl0(I189+J189))) -> 130.8232889 | AB189: =Sigma_cl(AA189,U189,V189,X189) -> 120.0207477 | AC189: =Sigma_cl(AA189,U189,V189,Y189) -> 141.6258301 | AD189: =sigma_Slip(AB189,W189,U189,IF(L189=1,mu_redLead,mu_millScale)) -> 25.18797147 | AE189: =sigma_Slip(AC189,W189,U189,IF(L189=1,mu_redLead,mu_millScale)) -> 29.72208918 | AF189: =Sigma_p(AB189,V189) -> -27.26432851 | AG189: =Sigma_p(AC189,V189) -> -32.17221381 | AH189: =beta_1(X189,AD189,Z189) -> 0.672311756 | AI189: =beta_1(Y189,AE189,Z189) -> 0.6133241923 | AJ189: =k_tHole(W189,U189) -> 2.496166088 | AK189: =K_t1Mu(Z189,AH189,D189,W189,U189,SIGN(X189),mu_millScale) -> 3.649627865 | AL189: =K_t1Mu(Z189,AI189,D189,W189,U189,SIGN(Y189),mu_millScale) -> 0.3997184969 | AM189: =Sigma_hMax(AK189,X189,AF189) -> 509.7784119 | AN189: =Sigma_hMin(X189,Y189,AG189,AE189,AK189,AL189,AJ189,AI189,Z189,IF(L189=1,mu_redLead,mu_millScale)) -> -163.1832525 | AO189: 672.9616644 | AP189: -0.3201062435 | AQ189: 207.798525 | AR189: =tau_n(N189,W189,U189,D189) -> 231.3861403 | AS189: =tau_hMax(X189,Z189,AH189,W189,U189) -> 81.26061638 | AT189: =tau_hMin(X189,Y189,AS189,AE189,Z189,AI189,IF(L189=1,mu_redLead,mu_millScale),W189,U189) -> -74.1309392 | AU189: 155.3915556
A190: 178 | B190: Graf1941 | C190: R; S | D190: 2 | E190: 2 | F190: 10 | G190: 48 | I190: 6.5 | J190: 10.5 | K190: 70 | N190: 274.68 | O190: -1 | P190: 246200 | Q190: 1 | R190: 4-5.2 | S190: Grade St52 | T190: 178 | U190: 0.65 | V190: 0.5882352941 | W190: 0.2083333333 | X190: 137.34 | Y190: -137.34 | Z190: =IF(OR(X190>=1.6*D190*AD190,D190=1),calcLoadFraction(G190,F190,I190,J190,K190,D190,1),"Condition for spring model not fulfilled") -> 0.5223625882 | AA190: =IF(L190>2,L190,IF(L190=2,1,sigma_cl0(I190+J190))) -> 130.8232889 | AB190: =Sigma_cl(AA190,U190,V190,X190) -> 120.7409172 | AC190: =Sigma_cl(AA190,U190,V190,Y190) -> 140.9056607 | AD190: =sigma_Slip(AB190,W190,U190,IF(L190=1,mu_redLead,mu_millScale)) -> 25.33910873 | AE190: =sigma_Slip(AC190,W190,U190,IF(L190=1,mu_redLead,mu_millScale)) -> 29.57095192 | AF190: =Sigma_p(AB190,V190) -> -27.42792469 | AG190: =Sigma_p(AC190,V190) -> -32.00861763 | AH190: =beta_1(X190,AD190,Z190) -> 0.6467987541 | AI190: =beta_1(Y190,AE190,Z190) -> 0.5878111904 | AJ190: =k_tHole(W190,U190) -> 2.496166088 | AK190: =K_t1Mu(Z190,AH190,D190,W190,U190,SIGN(X190),mu_millScale) -> 3.59270371 | AL190: =K_t1Mu(Z190,AI190,D190,W190,U190,SIGN(Y190),mu_millScale) -> 0.4578399498 | AM190: =Sigma_hMax(AK190,X190,AF190) -> 465.9940028 | AN190: =Sigma_hMin(X190,Y190,AG190,AE190,AK190,AL190,AJ190,AI190,Z190,IF(L190=1,mu_redLead,mu_millScale)) -> -162.4140363 | AO190: 628.4080391 | AP190: -0.3485324604 | AQ190: 193.7236188 | AR190: =tau_n(N190,W190,U190,D190) -> 215.9603976 | AS190: =tau_hMax(X190,Z190,AH190,W190,U190) -> 72.96512959 | AT190: =tau_hMin(X190,Y190,AS190,AE190,Z190,AI190,IF(L190=1,mu_redLead,mu_millScale),W190,U190) -> -66.31076423 | AU190: 139.2758938
